Workbook

Sheet Datos
H3: Ticket importado: | J3: =IF('Historical Financial'!A1<>"",'Historical Financial'!A1,"Ningún fichero seleccionado") -> NYSE:BRK.B - Berkshire Hathaway Inc
H4: Fecha de reporte: | J4: =IF('Historical Price'!A3<>"",'Historical Price'!A3,"Ningún fichero seleccionado") -> 2018-04-03
H7: Genera un fichero con el formato "Valoracion_Nombre de Empresa_YYYYMMDD.xlsx"
H8: Requisito: tener sub-carpeta "Valoraciones" previamente creada.
H11: Elimina los datos importados de Gurufocus, y los valores ingresados manualmente
H12: en las pestañas de Normalización y Valoración relativa.
C16: Requisitos para el correcto funcionamiento del conversor automático:
C17: 1. Tener habilitadas las macros en la configuración de su Excel y la opcion "Confiar en el acceso al modelo de objeto de proyectos de VBA".
D18: Ver instrucciones en el siguiente enlace: | H18: Habilitar o deshabilitar macros en archivos de Office
C19: 2. Asegurarse que la configuración regional utilice puntos (.) para la separación de decimales, y comas (,) para la separación de miles.
D20: Ver instrucciones en el siguiente enlace: | H20: Cambiar el carácter que se usa como separador de miles o de decimales

Sheet Crecimiento
C1: ='Historical Financial'!B3 -> Dec88 | D1: ='Historical Financial'!C3 -> Dec89 | E1: ='Historical Financial'!D3 -> Dec90 | F1: ='Historical Financial'!E3 -> Dec91 | G1: ='Historical Financial'!F3 -> Dec92 | H1: ='Historical Financial'!G3 -> Dec93 | I1: ='Historical Financial'!H3 -> Dec94 | J1: ='Historical Financial'!I3 -> Dec95 | K1: ='Historical Financial'!J3 -> Dec96 | L1: ='Historical Financial'!K3 -> Dec97 | M1: ='Historical Financial'!L3 -> Dec98 | N1: ='Historical Financial'!M3 -> Dec99 | O1: ='Historical Financial'!N3 -> Dec00 | P1: ='Historical Financial'!O3 -> Dec01 | Q1: ='Historical Financial'!P3 -> Dec02 | R1: ='Historical Financial'!Q3 -> Dec03 | S1: ='Historical Financial'!R3 -> Dec04 | T1: ='Historical Financial'!S3 -> Dec05 | U1: ='Historical Financial'!T3 -> Dec06 | V1: ='Historical Financial'!U3 -> Dec07 | W1: ='Historical Financial'!V3 -> Dec08 | X1: ='Historical Financial'!W3 -> Dec09 | Y1: ='Historical Financial'!X3 -> Dec10 | Z1: ='Historical Financial'!Y3 -> Dec11 | AA1: ='Historical Financial'!Z3 -> Dec12 | AB1: ='Historical Financial'!AA3 -> Dec13 | AC1: ='Historical Financial'!AB3 -> Dec14 | AD1: ='Historical Financial'!AC3 -> Dec15 | AE1: ='Historical Financial'!AD3 -> Dec16 | AF1: ='Historical Financial'!AE3 -> Dec17 | AG1: ='Historical Financial'!AF3 -> TTM/current | AH1: Media | AI1: 5 años | AL1: ='Historical Financial'!EP3 -> Mar16 | AM1: ='Historical Financial'!EQ3 -> Jun16 | AN1: ='Historical Financial'!ER3 -> Sep16 | AO1: ='Historical Financial'!ES3 -> Dec16 | AP1: ='Historical Financial'!ET3 -> Mar17 | AQ1: ='Historical Financial'!EU3 -> Jun17 | AR1: ='Historical Financial'!EV3 -> Sep17 | AS1: ='Historical Financial'!EW3 -> Dec17 | AT1: Media
A2: Ingresos/acc | B2: Revenue per Share | C2: =VLOOKUP($B2,'Historical Financial'!$A:$AF,2,FALSE) -> 1.433 | D2: =VLOOKUP($B2,'Historical Financial'!$A:$AF,3,FALSE) -> 1.443 | E2: =VLOOKUP($B2,'Historical Financial'!$A:$AF,4,FALSE) -> 0.919 | F2: =VLOOKUP($B2,'Historical Financial'!$A:$AF,5,FALSE) -> 1.413 | G2: =VLOOKUP($B2,'Historical Financial'!$A:$AF,6,FALSE) -> 1.761 | H2: =VLOOKUP($B2,'Historical Financial'!$A:$AF,7,FALSE) -> 1.482 | I2: =VLOOKUP($B2,'Historical Financial'!$A:$AF,8,FALSE) -> 1.868 | J2: =VLOOKUP($B2,'Historical Financial'!$A:$AF,9,FALSE) -> 2.563 | K2: =VLOOKUP($B2,'Historical Financial'!$A:$AF,10,FALSE) -> 2.708 | L2: =VLOOKUP($B2,'Historical Financial'!$A:$AF,11,FALSE) -> 3.069 | M2: =VLOOKUP($B2,'Historical Financial'!$A:$AF,12,FALSE) -> 7.369 | N2: =VLOOKUP($B2,'Historical Financial'!$A:$AF,13,FALSE) -> 10.541 | O2: =VLOOKUP($B2,'Historical Financial'!$A:$AF,14,FALSE) -> 14.873 | P2: =VLOOKUP($B2,'Historical Financial'!$A:$AF,15,FALSE) -> 16.861 | Q2: =VLOOKUP($B2,'Historical Financial'!$A:$AF,16,FALSE) -> 18.415 | R2: =VLOOKUP($B2,'Historical Financial'!$A:$AF,17,FALSE) -> 27.727 | S2: =VLOOKUP($B2,'Historical Financial'!$A:$AF,18,FALSE) -> 32.248 | T2: =VLOOKUP($B2,'Historical Financial'!$A:$AF,19,FALSE) -> 35.357 | U2: =VLOOKUP($B2,'Historical Financial'!$A:$AF,20,FALSE) -> 42.608 | V2: =VLOOKUP($B2,'Historical Financial'!$A:$AF,21,FALSE) -> 50.998 | W2: =VLOOKUP($B2,'Historical Financial'!$A:$AF,22,FALSE) -> 46.391 | X2: =VLOOKUP($B2,'Historical Financial'!$A:$AF,23,FALSE) -> 48.347 | Y2: =VLOOKUP($B2,'Historical Financial'!$A:$AF,24,FALSE) -> 55.507 | Z2: =VLOOKUP($B2,'Historical Financial'!$A:$AF,25,FALSE) -> 58.06 | AA2: =VLOOKUP($B2,'Historical Financial'!$A:$AF,26,FALSE) -> 65.59 | AB2: =VLOOKUP($B2,'Historical Financial'!$A:$AF,27,FALSE) -> 73.882 | AC2: =VLOOKUP($B2,'Historical Financial'!$A:$AF,28,FALSE) -> 78.98 | AD2: =VLOOKUP($B2,'Historical Financial'!$A:$AF,29,FALSE) -> 85.583 | AE2: =VLOOKUP($B2,'Historical Financial'!$A:$AF,30,FALSE) -> 90.684 | AF2: =VLOOKUP($B2,'Historical Financial'!$A:$AF,31,FALSE) -> 98.154 | AG2: =VLOOKUP($B2,'Historical Financial'!$A:$AF,32,FALSE) -> 98.152 | AH2: =MediaCrecimiento($C2:$AF2) -> 0.1569076243 | AI2: =MediaCrecimiento($AA2:$AF2) -> 0.0839620419 | AL2: =VLOOKUP($B2,'Historical Financial'!$A:$EW,146,FALSE) -> 21.159 | AM2: =VLOOKUP($B2,'Historical Financial'!$A:$EW,147,FALSE) -> 22.004 | AN2: =VLOOKUP($B2,'Historical Financial'!$A:$EW,148,FALSE) -> 23.863 | AO2: =VLOOKUP($B2,'Historical Financial'!$A:$EW,149,FALSE) -> 23.655 | AP2: =VLOOKUP($B2,'Historical Financial'!$A:$EW,150,FALSE) -> 26.427 | AQ2: =VLOOKUP($B2,'Historical Financial'!$A:$EW,151,FALSE) -> 23.316 | AR2: =VLOOKUP($B2,'Historical Financial'!$A:$EW,152,FALSE) -> 24.534 | AS2: =VLOOKUP($B2,'Historical Financial'!$A:$EW,153,FALSE) -> 23.875 | AT2: =MediaCrecimiento($AL2:$AS2) -> 0.01740204434
D3: =IF(OR(D2="-",D2=0,C2="-",C2=0),"-",+(D2-C2)/ABS(C2)) -> 0.006978367062 | E3: -0.3631323631 | F3: 0.5375408052 | G3: 0.2462845011 | H3: -0.1584327087 | I3: 0.2604588394 | J3: 0.3720556745 | K3: 0.05657432696 | L3: 0.1333087149 | M3: 1.401107853 | N3: 0.4304518931 | O3: 0.4109667015 | P3: 0.1336650306 | Q3: 0.092165352 | R3: 0.5056747217 | S3: =IF(OR(S2="-",S2=0,R2="-",R2=0),"-",+(S2-R2)/ABS(R2)) -> 0.1630540628 | T3: =IF(OR(T2="-",T2=0,S2="-",S2=0),"-",+(T2-S2)/ABS(S2)) -> 0.09640907963 | U3: 0.2050796165 | V3: 0.1969113781 | W3: -0.09033687596 | X3: 0.04216335065 | Y3: 0.1480960556 | Z3: 0.04599419893 | AA3: 0.1296934206 | AB3: 0.1264217106 | AC3: 0.06900192198 | AD3: 0.08360344391 | AE3: 0.05960295853 | AF3: 0.08237395792 | AG3: -2.037614361e-05 | AM3: =IF(OR(AM2="-",AM2=0,AL2="-",AL2=0),"-",+(AM2-AL2)/ABS(AL2)) -> 0.03993572475 | AN3: =IF(OR(AN2="-",AN2=0,AM2="-",AM2=0),"-",+(AN2-AM2)/ABS(AM2)) -> 0.08448463916 | AO3: =IF(OR(AO2="-",AO2=0,AN2="-",AN2=0),"-",+(AO2-AN2)/ABS(AN2)) -> -0.008716422914 | AP3: =IF(OR(AP2="-",AP2=0,AO2="-",AO2=0),"-",+(AP2-AO2)/ABS(AO2)) -> 0.1171845276 | AQ3: =IF(OR(AQ2="-",AQ2=0,AP2="-",AP2=0),"-",+(AQ2-AP2)/ABS(AP2)) -> -0.1177205131 | AR3: =IF(OR(AR2="-",AR2=0,AQ2="-",AQ2=0),"-",+(AR2-AQ2)/ABS(AQ2)) -> 0.05223880597 | AS3: =IF(OR(AS2="-",AS2=0,AR2="-",AR2=0),"-",+(AS2-AR2)/ABS(AR2)) -> -0.02686068313
A4: EBITDA/acc | B4: EBITDA per Share | C4: =VLOOKUP($B4,'Historical Financial'!$A:$AF,2,FALSE) -> 0 | D4: =VLOOKUP($B4,'Historical Financial'!$A:$AF,3,FALSE) -> 0 | E4: =VLOOKUP($B4,'Historical Financial'!$A:$AF,4,FALSE) -> 0.099 | F4: =VLOOKUP($B4,'Historical Financial'!$A:$AF,5,FALSE) -> 0.093 | G4: =VLOOKUP($B4,'Historical Financial'!$A:$AF,6,FALSE) -> 0.096 | H4: =VLOOKUP($B4,'Historical Financial'!$A:$AF,7,FALSE) -> 0.074 | I4: =VLOOKUP($B4,'Historical Financial'!$A:$AF,8,FALSE) -> 0.069 | J4: =VLOOKUP($B4,'Historical Financial'!$A:$AF,9,FALSE) -> 0.685 | K4: =VLOOKUP($B4,'Historical Financial'!$A:$AF,10,FALSE) -> 2.189 | L4: =VLOOKUP($B4,'Historical Financial'!$A:$AF,11,FALSE) -> 1.712 | M4: =VLOOKUP($B4,'Historical Financial'!$A:$AF,12,FALSE) -> 2.498 | N4: =VLOOKUP($B4,'Historical Financial'!$A:$AF,13,FALSE) -> 1.435 | O4: =VLOOKUP($B4,'Historical Financial'!$A:$AF,14,FALSE) -> 2.945 | P4: =VLOOKUP($B4,'Historical Financial'!$A:$AF,15,FALSE) -> 1.156 | Q4: =VLOOKUP($B4,'Historical Financial'!$A:$AF,16,FALSE) -> 3.466 | R4: =VLOOKUP($B4,'Historical Financial'!$A:$AF,17,FALSE) -> 5.65 | S4: =VLOOKUP($B4,'Historical Financial'!$A:$AF,18,FALSE) -> 5.462 | T4: =VLOOKUP($B4,'Historical Financial'!$A:$AF,19,FALSE) -> 6.276 | U4: =VLOOKUP($B4,'Historical Financial'!$A:$AF,20,FALSE) -> 8.893 | V4: =VLOOKUP($B4,'Historical Financial'!$A:$AF,21,FALSE) -> 10.557 | W4: =VLOOKUP($B4,'Historical Financial'!$A:$AF,22,FALSE) -> 5.314 | X4: =VLOOKUP($B4,'Historical Financial'!$A:$AF,23,FALSE) -> 7.165 | Y4: =VLOOKUP($B4,'Historical Financial'!$A:$AF,24,FALSE) -> 10.552 | Z4: =VLOOKUP($B4,'Historical Financial'!$A:$AF,25,FALSE) -> 9.483 | AA4: =VLOOKUP($B4,'Historical Financial'!$A:$AF,26,FALSE) -> 12.57 | AB4: =VLOOKUP($B4,'Historical Financial'!$A:$AF,27,FALSE) -> 15.456 | AC4: =VLOOKUP($B4,'Historical Financial'!$A:$AF,28,FALSE) -> 15.71 | AD4: =VLOOKUP($B4,'Historical Financial'!$A:$AF,29,FALSE) -> 18.76 | AE4: =VLOOKUP($B4,'Historical Financial'!$A:$AF,30,FALSE) -> 18.682 | AF4: =VLOOKUP($B4,'Historical Financial'!$A:$AF,31,FALSE) -> 15.574 | AG4: =VLOOKUP($B4,'Historical Financial'!$A:$AF,32,FALSE) -> 15.574 | AH4: =MediaCrecimiento($C4:$AF4) -> 0.2060398715 | AI4: =MediaCrecimiento($AA4:$AF4) -> 0.04378963166 | AL4: =VLOOKUP($B4,'Historical Financial'!$A:$EW,146,FALSE) -> 3.957 | AM4: =VLOOKUP($B4,'Historical Financial'!$A:$EW,147,FALSE) -> 4.191 | AN4: =VLOOKUP($B4,'Historical Financial'!$A:$EW,148,FALSE) -> 5.602 | AO4: =VLOOKUP($B4,'Historical Financial'!$A:$EW,149,FALSE) -> 4.932 | AP4: =VLOOKUP($B4,'Historical Financial'!$A:$EW,150,FALSE) -> 3.648 | AQ4: =VLOOKUP($B4,'Historical Financial'!$A:$EW,151,FALSE) -> 4.023 | AR4: =VLOOKUP($B4,'Historical Financial'!$A:$EW,152,FALSE) -> 3.713 | AS4: =VLOOKUP($B4,'Historical Financial'!$A:$EW,153,FALSE) -> 4.19 | AT4: =MediaCrecimiento($AL4:$AS4) -> 0.008207004547
D5: =IF(OR(D4="-",D4=0,C4="-",C4=0),"-",+(D4-C4)/ABS(C4)) -> - | E5: - | F5: -0.06060606061 | G5: 0.03225806452 | H5: -0.2291666667 | I5: -0.06756756757 | J5: 8.927536232 | K5: 2.195620438 | L5: -0.2179077204 | M5: 0.4591121495 | N5: -0.4255404323 | O5: 1.052264808 | P5: -0.6074702886 | Q5: 1.998269896 | R5: 0.6301211771 | S5: =IF(OR(S4="-",S4=0,R4="-",R4=0),"-",+(S4-R4)/ABS(R4)) -> -0.03327433628 | T5: =IF(OR(T4="-",T4=0,S4="-",S4=0),"-",+(T4-S4)/ABS(S4)) -> 0.1490296595 | U5: =IF(OR(U4="-",U4=0,T4="-",T4=0),"-",+(U4-T4)/ABS(T4)) -> 0.416985341 | V5: =IF(OR(V4="-",V4=0,U4="-",U4=0),"-",+(V4-U4)/ABS(U4)) -> 0.18711346 | W5: =IF(OR(W4="-",W4=0,V4="-",V4=0),"-",+(W4-V4)/ABS(V4)) -> -0.4966373023 | X5: =IF(OR(X4="-",X4=0,W4="-",W4=0),"-",+(X4-W4)/ABS(W4)) -> 0.3483251788 | Y5: =IF(OR(Y4="-",Y4=0,X4="-",X4=0),"-",+(Y4-X4)/ABS(X4)) -> 0.4727145848 | Z5: =IF(OR(Z4="-",Z4=0,Y4="-",Y4=0),"-",+(Z4-Y4)/ABS(Y4)) -> -0.1013078089 | AA5: =IF(OR(AA4="-",AA4=0,Z4="-",Z4=0),"-",+(AA4-Z4)/ABS(Z4)) -> 0.3255298956 | AB5: =IF(OR(AB4="-",AB4=0,AA4="-",AA4=0),"-",+(AB4-AA4)/ABS(AA4)) -> 0.2295942721 | AC5: =IF(OR(AC4="-",AC4=0,AB4="-",AB4=0),"-",+(AC4-AB4)/ABS(AB4)) -> 0.01643374741 | AD5: =IF(OR(AD4="-",AD4=0,AC4="-",AC4=0),"-",+(AD4-AC4)/ABS(AC4)) -> 0.1941438574 | AE5: =IF(OR(AE4="-",AE4=0,AD4="-",AD4=0),"-",+(AE4-AD4)/ABS(AD4)) -> -0.004157782516 | AF5: =IF(OR(AF4="-",AF4=0,AE4="-",AE4=0),"-",+(AF4-AE4)/ABS(AE4)) -> -0.1663633444 | AG5: =IF(OR(AG4="-",AG4=0,AF4="-",AF4=0),"-",+(AG4-AF4)/ABS(AF4)) -> 1.140591267e-16 | AM5: =IF(OR(AM4="-",AM4=0,AL4="-",AL4=0),"-",+(AM4-AL4)/ABS(AL4)) -> 0.05913570887 | AN5: =IF(OR(AN4="-",AN4=0,AM4="-",AM4=0),"-",+(AN4-AM4)/ABS(AM4)) -> 0.3366738249 | AO5: =IF(OR(AO4="-",AO4=0,AN4="-",AN4=0),"-",+(AO4-AN4)/ABS(AN4)) -> -0.1196001428 | AP5: =IF(OR(AP4="-",AP4=0,AO4="-",AO4=0),"-",+(AP4-AO4)/ABS(AO4)) -> -0.2603406326 | AQ5: =IF(OR(AQ4="-",AQ4=0,AP4="-",AP4=0),"-",+(AQ4-AP4)/ABS(AP4)) -> 0.1027960526 | AR5: =IF(OR(AR4="-",AR4=0,AQ4="-",AQ4=0),"-",+(AR4-AQ4)/ABS(AQ4)) -> -0.07705692269 | AS5: =IF(OR(AS4="-",AS4=0,AR4="-",AR4=0),"-",+(AS4-AR4)/ABS(AR4)) -> 0.1284675465
A6: EBIT/acc | B6: EBIT per Share | C6: =VLOOKUP($B6,'Historical Financial'!$A:$AF,2,FALSE) -> 0 | D6: =VLOOKUP($B6,'Historical Financial'!$A:$AF,3,FALSE) -> 0 | E6: =VLOOKUP($B6,'Historical Financial'!$A:$AF,4,FALSE) -> 0.066 | F6: =VLOOKUP($B6,'Historical Financial'!$A:$AF,5,FALSE) -> 0.071 | G6: =VLOOKUP($B6,'Historical Financial'!$A:$AF,6,FALSE) -> 0.072 | H6: =VLOOKUP($B6,'Historical Financial'!$A:$AF,7,FALSE) -> 0.046 | I6: =VLOOKUP($B6,'Historical Financial'!$A:$AF,8,FALSE) -> 0.034 | J6: =VLOOKUP($B6,'Historical Financial'!$A:$AF,9,FALSE) -> 0.642 | K6: =VLOOKUP($B6,'Historical Financial'!$A:$AF,10,FALSE) -> 2.105 | L6: =VLOOKUP($B6,'Historical Financial'!$A:$AF,11,FALSE) -> 1.589 | M6: =VLOOKUP($B6,'Historical Financial'!$A:$AF,12,FALSE) -> 2.356 | N6: =VLOOKUP($B6,'Historical Financial'!$A:$AF,13,FALSE) -> 1.134 | O6: =VLOOKUP($B6,'Historical Financial'!$A:$AF,14,FALSE) -> 2.509 | P6: =VLOOKUP($B6,'Historical Financial'!$A:$AF,15,FALSE) -> 0.686 | Q6: =VLOOKUP($B6,'Historical Financial'!$A:$AF,16,FALSE) -> 3.113 | R6: =VLOOKUP($B6,'Historical Financial'!$A:$AF,17,FALSE) -> 5.424 | S6: =VLOOKUP($B6,'Historical Financial'!$A:$AF,18,FALSE) -> 5.054 | T6: =VLOOKUP($B6,'Historical Financial'!$A:$AF,19,FALSE) -> 5.851 | U6: =VLOOKUP($B6,'Historical Financial'!$A:$AF,20,FALSE) -> 8 | V6: =VLOOKUP($B6,'Historical Financial'!$A:$AF,21,FALSE) -> 9.519 | W6: =VLOOKUP($B6,'Historical Financial'!$A:$AF,22,FALSE) -> 4.105 | X6: =VLOOKUP($B6,'Historical Financial'!$A:$AF,23,FALSE) -> 5.821 | Y6: =VLOOKUP($B6,'Historical Financial'!$A:$AF,24,FALSE) -> 8.807 | Z6: =VLOOKUP($B6,'Historical Financial'!$A:$AF,25,FALSE) -> 7.264 | AA6: =VLOOKUP($B6,'Historical Financial'!$A:$AF,26,FALSE) -> 10.085 | AB6: =VLOOKUP($B6,'Historical Financial'!$A:$AF,27,FALSE) -> 12.816 | AC6: =VLOOKUP($B6,'Historical Financial'!$A:$AF,28,FALSE) -> 12.72 | AD6: =VLOOKUP($B6,'Historical Financial'!$A:$AF,29,FALSE) -> 15.604 | AE6: =VLOOKUP($B6,'Historical Financial'!$A:$AF,30,FALSE) -> 15.072 | AF6: =VLOOKUP($B6,'Historical Financial'!$A:$AF,31,FALSE) -> 11.85 | AG6: =VLOOKUP($B6,'Historical Financial'!$A:$AF,32,FALSE) -> 11.85 | AH6: =MediaCrecimiento($C6:$AF6) -> 0.2119590368 | AI6: =MediaCrecimiento($AA6:$AF6) -> 0.03278159431 | AL6: =VLOOKUP($B6,'Historical Financial'!$A:$EW,146,FALSE) -> 3.095 | AM6: =VLOOKUP($B6,'Historical Financial'!$A:$EW,147,FALSE) -> 3.285 | AN6: =VLOOKUP($B6,'Historical Financial'!$A:$EW,148,FALSE) -> 4.691 | AO6: =VLOOKUP($B6,'Historical Financial'!$A:$EW,149,FALSE) -> 4.001 | AP6: =VLOOKUP($B6,'Historical Financial'!$A:$EW,150,FALSE) -> 2.739 | AQ6: =VLOOKUP($B6,'Historical Financial'!$A:$EW,151,FALSE) -> 3.093 | AR6: =VLOOKUP($B6,'Historical Financial'!$A:$EW,152,FALSE) -> 2.782 | AS6: =VLOOKUP($B6,'Historical Financial'!$A:$EW,153,FALSE) -> 3.236 | AT6: =MediaCrecimiento($AL6:$AS6) -> 0.006384594191
D7: =IF(OR(D6="-",D6=0,C6="-",C6=0),"-",+(D6-C6)/ABS(C6)) -> - | E7: =IF(OR(E6="-",E6=0,D6="-",D6=0),"-",+(E6-D6)/ABS(D6)) -> - | F7: =IF(OR(F6="-",F6=0,E6="-",E6=0),"-",+(F6-E6)/ABS(E6)) -> 0.07575757576 | G7: =IF(OR(G6="-",G6=0,F6="-",F6=0),"-",+(G6-F6)/ABS(F6)) -> 0.01408450704 | H7: =IF(OR(H6="-",H6=0,G6="-",G6=0),"-",+(H6-G6)/ABS(G6)) -> -0.3611111111 | I7: =IF(OR(I6="-",I6=0,H6="-",H6=0),"-",+(I6-H6)/ABS(H6)) -> -0.2608695652 | J7: =IF(OR(J6="-",J6=0,I6="-",I6=0),"-",+(J6-I6)/ABS(I6)) -> 17.88235294 | K7: =IF(OR(K6="-",K6=0,J6="-",J6=0),"-",+(K6-J6)/ABS(J6)) -> 2.278816199 | L7: =IF(OR(L6="-",L6=0,K6="-",K6=0),"-",+(L6-K6)/ABS(K6)) -> -0.2451306413 | M7: =IF(OR(M6="-",M6=0,L6="-",L6=0),"-",+(M6-L6)/ABS(L6)) -> 0.4826935179 | N7: =IF(OR(N6="-",N6=0,M6="-",M6=0),"-",+(N6-M6)/ABS(M6)) -> -0.5186757216 | O7: =IF(OR(O6="-",O6=0,N6="-",N6=0),"-",+(O6-N6)/ABS(N6)) -> 1.212522046 | P7: =IF(OR(P6="-",P6=0,O6="-",O6=0),"-",+(P6-O6)/ABS(O6)) -> -0.7265842965 | Q7: =IF(OR(Q6="-",Q6=0,P6="-",P6=0),"-",+(Q6-P6)/ABS(P6)) -> 3.537900875 | R7: =IF(OR(R6="-",R6=0,Q6="-",Q6=0),"-",+(R6-Q6)/ABS(Q6)) -> 0.7423707035 | S7: =IF(OR(S6="-",S6=0,R6="-",R6=0),"-",+(S6-R6)/ABS(R6)) -> -0.06821533923 | T7: =IF(OR(T6="-",T6=0,S6="-",S6=0),"-",+(T6-S6)/ABS(S6)) -> 0.1576968738 | U7: =IF(OR(U6="-",U6=0,T6="-",T6=0),"-",+(U6-T6)/ABS(T6)) -> 0.3672876431 | V7: =IF(OR(V6="-",V6=0,U6="-",U6=0),"-",+(V6-U6)/ABS(U6)) -> 0.189875 | W7: =IF(OR(W6="-",W6=0,V6="-",V6=0),"-",+(W6-V6)/ABS(V6)) -> -0.5687572224 | X7: =IF(OR(X6="-",X6=0,W6="-",W6=0),"-",+(X6-W6)/ABS(W6)) -> 0.4180267966 | Y7: =IF(OR(Y6="-",Y6=0,X6="-",X6=0),"-",+(Y6-X6)/ABS(X6)) -> 0.51297028 | Z7: =IF(OR(Z6="-",Z6=0,Y6="-",Y6=0),"-",+(Z6-Y6)/ABS(Y6)) -> -0.1752015442 | AA7: =IF(OR(AA6="-",AA6=0,Z6="-",Z6=0),"-",+(AA6-Z6)/ABS(Z6)) -> 0.3883535242 | AB7: =IF(OR(AB6="-",AB6=0,AA6="-",AA6=0),"-",+(AB6-AA6)/ABS(AA6)) -> 0.2707982152 | AC7: =IF(OR(AC6="-",AC6=0,AB6="-",AB6=0),"-",+(AC6-AB6)/ABS(AB6)) -> -0.007490636704 | AD7: =IF(OR(AD6="-",AD6=0,AC6="-",AC6=0),"-",+(AD6-AC6)/ABS(AC6)) -> 0.2267295597 | AE7: =IF(OR(AE6="-",AE6=0,AD6="-",AD6=0),"-",+(AE6-AD6)/ABS(AD6)) -> -0.0340938221 | AF7: =IF(OR(AF6="-",AF6=0,AE6="-",AE6=0),"-",+(AF6-AE6)/ABS(AE6)) -> -0.2137738854 | AG7: =IF(OR(AG6="-",AG6=0,AF6="-",AF6=0),"-",+(AG6-AF6)/ABS(AF6)) -> 1.499035308e-16 | AM7: =IF(OR(AM6="-",AM6=0,AL6="-",AL6=0),"-",+(AM6-AL6)/ABS(AL6)) -> 0.06138933764 | AN7: =IF(OR(AN6="-",AN6=0,AM6="-",AM6=0),"-",+(AN6-AM6)/ABS(AM6)) -> 0.4280060883 | AO7: =IF(OR(AO6="-",AO6=0,AN6="-",AN6=0),"-",+(AO6-AN6)/ABS(AN6)) -> -0.1470901727 | AP7: =IF(OR(AP6="-",AP6=0,AO6="-",AO6=0),"-",+(AP6-AO6)/ABS(AO6)) -> -0.3154211447 | AQ7: =IF(OR(AQ6="-",AQ6=0,AP6="-",AP6=0),"-",+(AQ6-AP6)/ABS(AP6)) -> 0.1292442497 | AR7: =IF(OR(AR6="-",AR6=0,AQ6="-",AQ6=0),"-",+(AR6-AQ6)/ABS(AQ6)) -> -0.1005496282 | AS7: =IF(OR(AS6="-",AS6=0,AR6="-",AR6=0),"-",+(AS6-AR6)/ABS(AR6)) -> 0.1631919482
A8: BPA | B8: Earnings per Share (Diluted) | C8: =VLOOKUP($B8,'Historical Financial'!$A:$AF,2,FALSE) -> 0.232 | D8: =VLOOKUP($B8,'Historical Financial'!$A:$AF,3,FALSE) -> 0.26 | E8: =VLOOKUP($B8,'Historical Financial'!$A:$AF,4,FALSE) -> 0.229 | F8: =VLOOKUP($B8,'Historical Financial'!$A:$AF,5,FALSE) -> 0.256 | G8: =VLOOKUP($B8,'Historical Financial'!$A:$AF,6,FALSE) -> 0.237 | H8: =VLOOKUP($B8,'Historical Financial'!$A:$AF,7,FALSE) -> 0.448 | I8: =VLOOKUP($B8,'Historical Financial'!$A:$AF,8,FALSE) -> 0.313 | J8: =VLOOKUP($B8,'Historical Financial'!$A:$AF,9,FALSE) -> 0.447 | K8: =VLOOKUP($B8,'Historical Financial'!$A:$AF,10,FALSE) -> 1.377 | L8: =VLOOKUP($B8,'Historical Financial'!$A:$AF,11,FALSE) -> 1.028 | M8: =VLOOKUP($B8,'Historical Financial'!$A:$AF,12,FALSE) -> 1.508 | N8: =VLOOKUP($B8,'Historical Financial'!$A:$AF,13,FALSE) -> 0.683 | O8: =VLOOKUP($B8,'Historical Financial'!$A:$AF,14,FALSE) -> 1.457 | P8: =VLOOKUP($B8,'Historical Financial'!$A:$AF,15,FALSE) -> 0.347 | Q8: =VLOOKUP($B8,'Historical Financial'!$A:$AF,16,FALSE) -> 1.863 | R8: =VLOOKUP($B8,'Historical Financial'!$A:$AF,17,FALSE) -> 3.539 | S8: =VLOOKUP($B8,'Historical Financial'!$A:$AF,18,FALSE) -> 3.169 | T8: =VLOOKUP($B8,'Historical Financial'!$A:$AF,19,FALSE) -> 3.692 | U8: =VLOOKUP($B8,'Historical Financial'!$A:$AF,20,FALSE) -> 4.763 | V8: =VLOOKUP($B8,'Historical Financial'!$A:$AF,21,FALSE) -> 5.699 | W8: =VLOOKUP($B8,'Historical Financial'!$A:$AF,22,FALSE) -> 2.149 | X8: =VLOOKUP($B8,'Historical Financial'!$A:$AF,23,FALSE) -> 3.462 | Y8: =VLOOKUP($B8,'Historical Financial'!$A:$AF,24,FALSE) -> 5.285 | Z8: =VLOOKUP($B8,'Historical Financial'!$A:$AF,25,FALSE) -> 4.143 | AA8: =VLOOKUP($B8,'Historical Financial'!$A:$AF,26,FALSE) -> 5.985 | AB8: =VLOOKUP($B8,'Historical Financial'!$A:$AF,27,FALSE) -> 7.9 | AC8: =VLOOKUP($B8,'Historical Financial'!$A:$AF,28,FALSE) -> 8.061 | AD8: =VLOOKUP($B8,'Historical Financial'!$A:$AF,29,FALSE) -> 9.771 | AE8: =VLOOKUP($B8,'Historical Financial'!$A:$AF,30,FALSE) -> 9.763 | AF8: =VLOOKUP($B8,'Historical Financial'!$A:$AF,31,FALSE) -> 18.217 | AG8: =VLOOKUP($B8,'Historical Financial'!$A:$AF,32,FALSE) -> 18.218 | AH8: =MediaCrecimiento($C8:$AF8) -> 0.1623701374 | AI8: =MediaCrecimiento($AA8:$AF8) -> 0.2493454535 | AL8: =VLOOKUP($B8,'Historical Financial'!$A:$EW,146,FALSE) -> 2.267 | AM8: =VLOOKUP($B8,'Historical Financial'!$A:$EW,147,FALSE) -> 2.028 | AN8: =VLOOKUP($B8,'Historical Financial'!$A:$EW,148,FALSE) -> 2.919 | AO8: =VLOOKUP($B8,'Historical Financial'!$A:$EW,149,FALSE) -> 2.549 | AP8: =VLOOKUP($B8,'Historical Financial'!$A:$EW,150,FALSE) -> 1.646 | AQ8: =VLOOKUP($B8,'Historical Financial'!$A:$EW,151,FALSE) -> 1.728 | AR8: =VLOOKUP($B8,'Historical Financial'!$A:$EW,152,FALSE) -> 1.649 | AS8: =VLOOKUP($B8,'Historical Financial'!$A:$EW,153,FALSE) -> 13.195 | AT8: =MediaCrecimiento($AL8:$AS8) -> 0.2861146828
D9: =IF(OR(D8="-",D8=0,C8="-",C8=0),"-",+(D8-C8)/ABS(C8)) -> 0.1206896552 | E9: =IF(OR(E8="-",E8=0,D8="-",D8=0),"-",+(E8-D8)/ABS(D8)) -> -0.1192307692 | F9: =IF(OR(F8="-",F8=0,E8="-",E8=0),"-",+(F8-E8)/ABS(E8)) -> 0.1179039301 | G9: =IF(OR(G8="-",G8=0,F8="-",F8=0),"-",+(G8-F8)/ABS(F8)) -> -0.07421875 | H9: =IF(OR(H8="-",H8=0,G8="-",G8=0),"-",+(H8-G8)/ABS(G8)) -> 0.8902953586 | I9: =IF(OR(I8="-",I8=0,H8="-",H8=0),"-",+(I8-H8)/ABS(H8)) -> -0.3013392857 | J9: =IF(OR(J8="-",J8=0,I8="-",I8=0),"-",+(J8-I8)/ABS(I8)) -> 0.428115016 | K9: =IF(OR(K8="-",K8=0,J8="-",J8=0),"-",+(K8-J8)/ABS(J8)) -> 2.080536913 | L9: =IF(OR(L8="-",L8=0,K8="-",K8=0),"-",+(L8-K8)/ABS(K8)) -> -0.253449528 | M9: =IF(OR(M8="-",M8=0,L8="-",L8=0),"-",+(M8-L8)/ABS(L8)) -> 0.46692607 | N9: =IF(OR(N8="-",N8=0,M8="-",M8=0),"-",+(N8-M8)/ABS(M8)) -> -0.5470822281 | O9: =IF(OR(O8="-",O8=0,N8="-",N8=0),"-",+(O8-N8)/ABS(N8)) -> 1.133235725 | P9: =IF(OR(P8="-",P8=0,O8="-",O8=0),"-",+(P8-O8)/ABS(O8)) -> -0.761839396 | Q9: =IF(OR(Q8="-",Q8=0,P8="-",P8=0),"-",+(Q8-P8)/ABS(P8)) -> 4.368876081 | R9: =IF(OR(R8="-",R8=0,Q8="-",Q8=0),"-",+(R8-Q8)/ABS(Q8)) -> 0.8996242619 | S9: =IF(OR(S8="-",S8=0,R8="-",R8=0),"-",+(S8-R8)/ABS(R8)) -> -0.1045493077 | T9: =IF(OR(T8="-",T8=0,S8="-",S8=0),"-",+(T8-S8)/ABS(S8)) -> 0.1650362891 | U9: =IF(OR(U8="-",U8=0,T8="-",T8=0),"-",+(U8-T8)/ABS(T8)) -> 0.2900866739 | V9: =IF(OR(V8="-",V8=0,U8="-",U8=0),"-",+(V8-U8)/ABS(U8)) -> 0.1965148016 | W9: =IF(OR(W8="-",W8=0,V8="-",V8=0),"-",+(W8-V8)/ABS(V8)) -> -0.6229163011 | X9: =IF(OR(X8="-",X8=0,W8="-",W8=0),"-",+(X8-W8)/ABS(W8)) -> 0.610981852 | Y9: =IF(OR(Y8="-",Y8=0,X8="-",X8=0),"-",+(Y8-X8)/ABS(X8)) -> 0.5265742345 | Z9: =IF(OR(Z8="-",Z8=0,Y8="-",Y8=0),"-",+(Z8-Y8)/ABS(Y8)) -> -0.2160832545 | AA9: =IF(OR(AA8="-",AA8=0,Z8="-",Z8=0),"-",+(AA8-Z8)/ABS(Z8)) -> 0.4446053584 | AB9: =IF(OR(AB8="-",AB8=0,AA8="-",AA8=0),"-",+(AB8-AA8)/ABS(AA8)) -> 0.3199665831 | AC9: =IF(OR(AC8="-",AC8=0,AB8="-",AB8=0),"-",+(AC8-AB8)/ABS(AB8)) -> 0.02037974684 | AD9: =IF(OR(AD8="-",AD8=0,AC8="-",AC8=0),"-",+(AD8-AC8)/ABS(AC8)) -> 0.2121324898 | AE9: =IF(OR(AE8="-",AE8=0,AD8="-",AD8=0),"-",+(AE8-AD8)/ABS(AD8)) -> -0.0008187493604 | AF9: =IF(OR(AF8="-",AF8=0,AE8="-",AE8=0),"-",+(AF8-AE8)/ABS(AE8)) -> 0.8659223599 | AG9: =IF(OR(AG8="-",AG8=0,AF8="-",AF8=0),"-",+(AG8-AF8)/ABS(AF8)) -> 5.489378053e-05 | AM9: =IF(OR(AM8="-",AM8=0,AL8="-",AL8=0),"-",+(AM8-AL8)/ABS(AL8)) -> -0.1054256727 | AN9: =IF(OR(AN8="-",AN8=0,AM8="-",AM8=0),"-",+(AN8-AM8)/ABS(AM8)) -> 0.4393491124 | AO9: =IF(OR(AO8="-",AO8=0,AN8="-",AN8=0),"-",+(AO8-AN8)/ABS(AN8)) -> -0.1267557383 | AP9: =IF(OR(AP8="-",AP8=0,AO8="-",AO8=0),"-",+(AP8-AO8)/ABS(AO8)) -> -0.3542565712 | AQ9: =IF(OR(AQ8="-",AQ8=0,AP8="-",AP8=0),"-",+(AQ8-AP8)/ABS(AP8)) -> 0.04981773998 | AR9: =IF(OR(AR8="-",AR8=0,AQ8="-",AQ8=0),"-",+(AR8-AQ8)/ABS(AQ8)) -> -0.04571759259 | AS9: =IF(OR(AS8="-",AS8=0,AR8="-",AR8=0),"-",+(AS8-AR8)/ABS(AR8)) -> 7.001819284
A10: FCF/acc | B10: Free Cash Flow per Share | C10: =VLOOKUP($B10,'Historical Financial'!$A:$AF,2,FALSE) -> 0 | D10: =VLOOKUP($B10,'Historical Financial'!$A:$AF,3,FALSE) -> 0 | E10: =VLOOKUP($B10,'Historical Financial'!$A:$AF,4,FALSE) -> 0.304 | F10: =VLOOKUP($B10,'Historical Financial'!$A:$AF,5,FALSE) -> 0.319 | G10: =VLOOKUP($B10,'Historical Financial'!$A:$AF,6,FALSE) -> 0.51 | H10: =VLOOKUP($B10,'Historical Financial'!$A:$AF,7,FALSE) -> 0.411 | I10: =VLOOKUP($B10,'Historical Financial'!$A:$AF,8,FALSE) -> 0.526 | J10: =VLOOKUP($B10,'Historical Financial'!$A:$AF,9,FALSE) -> 0.633 | K10: =VLOOKUP($B10,'Historical Financial'!$A:$AF,10,FALSE) -> -0.395 | L10: =VLOOKUP($B10,'Historical Financial'!$A:$AF,11,FALSE) -> 0.843 | M10: =VLOOKUP($B10,'Historical Financial'!$A:$AF,12,FALSE) -> 0.35 | N10: =VLOOKUP($B10,'Historical Financial'!$A:$AF,13,FALSE) -> 0.965 | O10: =VLOOKUP($B10,'Historical Financial'!$A:$AF,14,FALSE) -> 1.29 | P10: =VLOOKUP($B10,'Historical Financial'!$A:$AF,15,FALSE) -> 2.872 | Q10: =VLOOKUP($B10,'Historical Financial'!$A:$AF,16,FALSE) -> 4.871 | R10: =VLOOKUP($B10,'Historical Financial'!$A:$AF,17,FALSE) -> 3.585 | S10: =VLOOKUP($B10,'Historical Financial'!$A:$AF,18,FALSE) -> 2.616 | T10: =VLOOKUP($B10,'Historical Financial'!$A:$AF,19,FALSE) -> 3.139 | U10: =VLOOKUP($B10,'Historical Financial'!$A:$AF,20,FALSE) -> 2.432 | V10: =VLOOKUP($B10,'Historical Financial'!$A:$AF,21,FALSE) -> 3.095 | W10: =VLOOKUP($B10,'Historical Financial'!$A:$AF,22,FALSE) -> 2.201 | X10: =VLOOKUP($B10,'Historical Financial'!$A:$AF,23,FALSE) -> 4.688 | Y10: =VLOOKUP($B10,'Historical Financial'!$A:$AF,24,FALSE) -> 4.856 | Z10: =VLOOKUP($B10,'Historical Financial'!$A:$AF,25,FALSE) -> 4.964 | AA10: =VLOOKUP($B10,'Historical Financial'!$A:$AF,26,FALSE) -> 4.512 | AB10: =VLOOKUP($B10,'Historical Financial'!$A:$AF,27,FALSE) -> 6.74 | AC10: =VLOOKUP($B10,'Historical Financial'!$A:$AF,28,FALSE) -> 6.825 | AD10: =VLOOKUP($B10,'Historical Financial'!$A:$AF,29,FALSE) -> 6.252 | AE10: =VLOOKUP($B10,'Historical Financial'!$A:$AF,30,FALSE) -> 7.941 | AF10: =VLOOKUP($B10,'Historical Financial'!$A:$AF,31,FALSE) -> 13.81 | AG10: =VLOOKUP($B10,'Historical Financial'!$A:$AF,32,FALSE) -> 13.81 | AH10: =MediaCrecimiento($C10:$AF10) -> 0.1518136626 | AI10: =MediaCrecimiento($AA10:$AF10) -> 0.2507338895 | AL10: =VLOOKUP($B10,'Historical Financial'!$A:$EW,146,FALSE) -> 1.87 | AM10: =VLOOKUP($B10,'Historical Financial'!$A:$EW,147,FALSE) -> 1.829 | AN10: =VLOOKUP($B10,'Historical Financial'!$A:$EW,148,FALSE) -> 2.655 | AO10: =VLOOKUP($B10,'Historical Financial'!$A:$EW,149,FALSE) -> 1.586 | AP10: =VLOOKUP($B10,'Historical Financial'!$A:$EW,150,FALSE) -> 6.466 | AQ10: =VLOOKUP($B10,'Historical Financial'!$A:$EW,151,FALSE) -> 2.241 | AR10: =VLOOKUP($B10,'Historical Financial'!$A:$EW,152,FALSE) -> 3.084 | AS10: =VLOOKUP($B10,'Historical Financial'!$A:$EW,153,FALSE) -> 2.019 | AT10: =MediaCrecimiento($AL10:$AS10) -> 0.01101217947
D11: =IF(OR(D10="-",D10=0,C10="-",C10=0),"-",+(D10-C10)/ABS(C10)) -> - | E11: =IF(OR(E10="-",E10=0,D10="-",D10=0),"-",+(E10-D10)/ABS(D10)) -> - | F11: =IF(OR(F10="-",F10=0,E10="-",E10=0),"-",+(F10-E10)/ABS(E10)) -> 0.04934210526 | G11: =IF(OR(G10="-",G10=0,F10="-",F10=0),"-",+(G10-F10)/ABS(F10)) -> 0.5987460815 | H11: =IF(OR(H10="-",H10=0,G10="-",G10=0),"-",+(H10-G10)/ABS(G10)) -> -0.1941176471 | I11: =IF(OR(I10="-",I10=0,H10="-",H10=0),"-",+(I10-H10)/ABS(H10)) -> 0.2798053528 | J11: =IF(OR(J10="-",J10=0,I10="-",I10=0),"-",+(J10-I10)/ABS(I10)) -> 0.2034220532 | K11: =IF(OR(K10="-",K10=0,J10="-",J10=0),"-",+(K10-J10)/ABS(J10)) -> -1.624012638 | L11: =IF(OR(L10="-",L10=0,K10="-",K10=0),"-",+(L10-K10)/ABS(K10)) -> 3.134177215 | M11: =IF(OR(M10="-",M10=0,L10="-",L10=0),"-",+(M10-L10)/ABS(L10)) -> -0.5848161329 | N11: =IF(OR(N10="-",N10=0,M10="-",M10=0),"-",+(N10-M10)/ABS(M10)) -> 1.757142857 | O11: =IF(OR(O10="-",O10=0,N10="-",N10=0),"-",+(O10-N10)/ABS(N10)) -> 0.3367875648 | P11: =IF(OR(P10="-",P10=0,O10="-",O10=0),"-",+(P10-O10)/ABS(O10)) -> 1.226356589 | Q11: =IF(OR(Q10="-",Q10=0,P10="-",P10=0),"-",+(Q10-P10)/ABS(P10)) -> 0.6960306407 | R11: =IF(OR(R10="-",R10=0,Q10="-",Q10=0),"-",+(R10-Q10)/ABS(Q10)) -> -0.2640114966 | S11: =IF(OR(S10="-",S10=0,R10="-",R10=0),"-",+(S10-R10)/ABS(R10)) -> -0.270292887 | T11: =IF(OR(T10="-",T10=0,S10="-",S10=0),"-",+(T10-S10)/ABS(S10)) -> 0.1999235474 | U11: =IF(OR(U10="-",U10=0,T10="-",T10=0),"-",+(U10-T10)/ABS(T10)) -> -0.2252309653 | V11: =IF(OR(V10="-",V10=0,U10="-",U10=0),"-",+(V10-U10)/ABS(U10)) -> 0.2726151316 | W11: =IF(OR(W10="-",W10=0,V10="-",V10=0),"-",+(W10-V10)/ABS(V10)) -> -0.2888529887 | X11: =IF(OR(X10="-",X10=0,W10="-",W10=0),"-",+(X10-W10)/ABS(W10)) -> 1.129940936 | Y11: =IF(OR(Y10="-",Y10=0,X10="-",X10=0),"-",+(Y10-X10)/ABS(X10)) -> 0.03583617747 | Z11: =IF(OR(Z10="-",Z10=0,Y10="-",Y10=0),"-",+(Z10-Y10)/ABS(Y10)) -> 0.02224052718 | AA11: =IF(OR(AA10="-",AA10=0,Z10="-",Z10=0),"-",+(AA10-Z10)/ABS(Z10)) -> -0.09105560032 | AB11: =IF(OR(AB10="-",AB10=0,AA10="-",AA10=0),"-",+(AB10-AA10)/ABS(AA10)) -> 0.4937943262 | AC11: =IF(OR(AC10="-",AC10=0,AB10="-",AB10=0),"-",+(AC10-AB10)/ABS(AB10)) -> 0.01261127596 | AD11: =IF(OR(AD10="-",AD10=0,AC10="-",AC10=0),"-",+(AD10-AC10)/ABS(AC10)) -> -0.08395604396 | AE11: =IF(OR(AE10="-",AE10=0,AD10="-",AD10=0),"-",+(AE10-AD10)/ABS(AD10)) -> 0.2701535509 | AF11: =IF(OR(AF10="-",AF10=0,AE10="-",AE10=0),"-",+(AF10-AE10)/ABS(AE10)) -> 0.7390756832 | AG11: =IF(OR(AG10="-",AG10=0,AF10="-",AF10=0),"-",+(AG10-AF10)/ABS(AF10)) -> 0 | AM11: =IF(OR(AM10="-",AM10=0,AL10="-",AL10=0),"-",+(AM10-AL10)/ABS(AL10)) -> -0.02192513369 | AN11: =IF(OR(AN10="-",AN10=0,AM10="-",AM10=0),"-",+(AN10-AM10)/ABS(AM10)) -> 0.4516129032 | AO11: =IF(OR(AO10="-",AO10=0,AN10="-",AN10=0),"-",+(AO10-AN10)/ABS(AN10)) -> -0.4026365348 | AP11: =IF(OR(AP10="-",AP10=0,AO10="-",AO10=0),"-",+(AP10-AO10)/ABS(AO10)) -> 3.076923077 | AQ11: =IF(OR(AQ10="-",AQ10=0,AP10="-",AP10=0),"-",+(AQ10-AP10)/ABS(AP10)) -> -0.6534178781 | AR11: =IF(OR(AR10="-",AR10=0,AQ10="-",AQ10=0),"-",+(AR10-AQ10)/ABS(AQ10)) -> 0.3761713521 | AS11: =IF(OR(AS10="-",AS10=0,AR10="-",AR10=0),"-",+(AS10-AR10)/ABS(AR10)) -> -0.3453307393
A12: Valor Contable/acc | B12: Book Value per Share | C12: =VLOOKUP($B12,'Historical Financial'!$A:$AF,2,FALSE) -> 0 | D12: =VLOOKUP($B12,'Historical Financial'!$A:$AF,3,FALSE) -> 0 | E12: =VLOOKUP($B12,'Historical Financial'!$A:$AF,4,FALSE) -> 3.076 | F12: =VLOOKUP($B12,'Historical Financial'!$A:$AF,5,FALSE) -> 4.293 | G12: =VLOOKUP($B12,'Historical Financial'!$A:$AF,6,FALSE) -> 5.162 | H12: =VLOOKUP($B12,'Historical Financial'!$A:$AF,7,FALSE) -> 5.902 | I12: =VLOOKUP($B12,'Historical Financial'!$A:$AF,8,FALSE) -> 6.72 | J12: =VLOOKUP($B12,'Historical Financial'!$A:$AF,9,FALSE) -> 9.346 | K12: =VLOOKUP($B12,'Historical Financial'!$A:$AF,10,FALSE) -> 12.674 | L12: =VLOOKUP($B12,'Historical Financial'!$A:$AF,11,FALSE) -> 16.992 | M12: =VLOOKUP($B12,'Historical Financial'!$A:$AF,12,FALSE) -> 30.704 | N12: =VLOOKUP($B12,'Historical Financial'!$A:$AF,13,FALSE) -> 25.324 | O12: =VLOOKUP($B12,'Historical Financial'!$A:$AF,14,FALSE) -> 26.961 | P12: =VLOOKUP($B12,'Historical Financial'!$A:$AF,15,FALSE) -> 25.28 | Q12: =VLOOKUP($B12,'Historical Financial'!$A:$AF,16,FALSE) -> 27.818 | R12: =VLOOKUP($B12,'Historical Financial'!$A:$AF,17,FALSE) -> 33.665 | S12: =VLOOKUP($B12,'Historical Financial'!$A:$AF,18,FALSE) -> 37.216 | T12: =VLOOKUP($B12,'Historical Financial'!$A:$AF,19,FALSE) -> 39.585 | U12: =VLOOKUP($B12,'Historical Financial'!$A:$AF,20,FALSE) -> 46.854 | V12: =VLOOKUP($B12,'Historical Financial'!$A:$AF,21,FALSE) -> 52.006 | W12: =VLOOKUP($B12,'Historical Financial'!$A:$AF,22,FALSE) -> 47.02 | X12: =VLOOKUP($B12,'Historical Financial'!$A:$AF,23,FALSE) -> 56.324 | Y12: =VLOOKUP($B12,'Historical Financial'!$A:$AF,24,FALSE) -> 63.635 | Z12: =VLOOKUP($B12,'Historical Financial'!$A:$AF,25,FALSE) -> 66.574 | AA12: =VLOOKUP($B12,'Historical Financial'!$A:$AF,26,FALSE) -> 76.142 | AB12: =VLOOKUP($B12,'Historical Financial'!$A:$AF,27,FALSE) -> 89.982 | AC12: =VLOOKUP($B12,'Historical Financial'!$A:$AF,28,FALSE) -> 97.457 | AD12: =VLOOKUP($B12,'Historical Financial'!$A:$AF,29,FALSE) -> 103.668 | AE12: =VLOOKUP($B12,'Historical Financial'!$A:$AF,30,FALSE) -> 114.361 | AF12: =VLOOKUP($B12,'Historical Financial'!$A:$AF,31,FALSE) -> 141.167 | AG12: =VLOOKUP($B12,'Historical Financial'!$A:$AF,32,FALSE) -> 141.167 | AH12: =MediaCrecimiento($C12:$AF12) -> 0.1522485752 | AI12: =MediaCrecimiento($AA12:$AF12) -> 0.1314146063 | AL12: =VLOOKUP($B12,'Historical Financial'!$A:$EW,146,FALSE) -> 104.922 | AM12: =VLOOKUP($B12,'Historical Financial'!$A:$EW,147,FALSE) -> 106.673 | AN12: =VLOOKUP($B12,'Historical Financial'!$A:$EW,148,FALSE) -> 109.188 | AO12: =VLOOKUP($B12,'Historical Financial'!$A:$EW,149,FALSE) -> 114.361 | AP12: =VLOOKUP($B12,'Historical Financial'!$A:$EW,150,FALSE) -> 118.717 | AQ12: =VLOOKUP($B12,'Historical Financial'!$A:$EW,151,FALSE) -> 121.877 | AR12: =VLOOKUP($B12,'Historical Financial'!$A:$EW,152,FALSE) -> 124.957 | AS12: =VLOOKUP($B12,'Historical Financial'!$A:$EW,153,FALSE) -> 141.167 | AT12: =MediaCrecimiento($AL12:$AS12) -> 0.04330074585
D13: =IF(OR(D12="-",D12=0,C12="-",C12=0),"-",+(D12-C12)/ABS(C12)) -> - | E13: =IF(OR(E12="-",E12=0,D12="-",D12=0),"-",+(E12-D12)/ABS(D12)) -> - | F13: =IF(OR(F12="-",F12=0,E12="-",E12=0),"-",+(F12-E12)/ABS(E12)) -> 0.3956436931 | G13: =IF(OR(G12="-",G12=0,F12="-",F12=0),"-",+(G12-F12)/ABS(F12)) -> 0.2024225483 | H13: =IF(OR(H12="-",H12=0,G12="-",G12=0),"-",+(H12-G12)/ABS(G12)) -> 0.1433552886 | I13: =IF(OR(I12="-",I12=0,H12="-",H12=0),"-",+(I12-H12)/ABS(H12)) -> 0.1385970857 | J13: =IF(OR(J12="-",J12=0,I12="-",I12=0),"-",+(J12-I12)/ABS(I12)) -> 0.3907738095 | K13: =IF(OR(K12="-",K12=0,J12="-",J12=0),"-",+(K12-J12)/ABS(J12)) -> 0.3560881661 | L13: =IF(OR(L12="-",L12=0,K12="-",K12=0),"-",+(L12-K12)/ABS(K12)) -> 0.3406974909 | M13: =IF(OR(M12="-",M12=0,L12="-",L12=0),"-",+(M12-L12)/ABS(L12)) -> 0.8069679849 | N13: =IF(OR(N12="-",N12=0,M12="-",M12=0),"-",+(N12-M12)/ABS(M12)) -> -0.1752214695 | O13: =IF(OR(O12="-",O12=0,N12="-",N12=0),"-",+(O12-N12)/ABS(N12)) -> 0.06464223661 | P13: =IF(OR(P12="-",P12=0,O12="-",O12=0),"-",+(P12-O12)/ABS(O12)) -> -0.06234931939 | Q13: =IF(OR(Q12="-",Q12=0,P12="-",P12=0),"-",+(Q12-P12)/ABS(P12)) -> 0.1003955696 | R13: =IF(OR(R12="-",R12=0,Q12="-",Q12=0),"-",+(R12-Q12)/ABS(Q12)) -> 0.2101876483 | S13: =IF(OR(S12="-",S12=0,R12="-",R12=0),"-",+(S12-R12)/ABS(R12)) -> 0.1054804693 | T13: =IF(OR(T12="-",T12=0,S12="-",S12=0),"-",+(T12-S12)/ABS(S12)) -> 0.06365541702 | U13: =IF(OR(U12="-",U12=0,T12="-",T12=0),"-",+(U12-T12)/ABS(T12)) -> 0.1836301629 | V13: =IF(OR(V12="-",V12=0,U12="-",U12=0),"-",+(V12-U12)/ABS(U12)) -> 0.1099585948 | W13: =IF(OR(W12="-",W12=0,V12="-",V12=0),"-",+(W12-V12)/ABS(V12)) -> -0.09587355305 | X13: =IF(OR(X12="-",X12=0,W12="-",W12=0),"-",+(X12-W12)/ABS(W12)) -> 0.1978732454 | Y13: =IF(OR(Y12="-",Y12=0,X12="-",X12=0),"-",+(Y12-X12)/ABS(X12)) -> 0.1298025708 | Z13: =IF(OR(Z12="-",Z12=0,Y12="-",Y12=0),"-",+(Z12-Y12)/ABS(Y12)) -> 0.0461852754 | AA13: =IF(OR(AA12="-",AA12=0,Z12="-",Z12=0),"-",+(AA12-Z12)/ABS(Z12)) -> 0.1437197705 | AB13: =IF(OR(AB12="-",AB12=0,AA12="-",AA12=0),"-",+(AB12-AA12)/ABS(AA12)) -> 0.1817656484 | AC13: =IF(OR(AC12="-",AC12=0,AB12="-",AB12=0),"-",+(AC12-AB12)/ABS(AB12)) -> 0.08307216999 | AD13: =IF(OR(AD12="-",AD12=0,AC12="-",AC12=0),"-",+(AD12-AC12)/ABS(AC12)) -> 0.06373067096 | AE13: =IF(OR(AE12="-",AE12=0,AD12="-",AD12=0),"-",+(AE12-AD12)/ABS(AD12)) -> 0.1031465833 | AF13: =IF(OR(AF12="-",AF12=0,AE12="-",AE12=0),"-",+(AF12-AE12)/ABS(AE12)) -> 0.2343980903 | AG13: =IF(OR(AG12="-",AG12=0,AF12="-",AF12=0),"-",+(AG12-AF12)/ABS(AF12)) -> 0 | AM13: =IF(OR(AM12="-",AM12=0,AL12="-",AL12=0),"-",+(AM12-AL12)/ABS(AL12)) -> 0.01668858771 | AN13: =IF(OR(AN12="-",AN12=0,AM12="-",AM12=0),"-",+(AN12-AM12)/ABS(AM12)) -> 0.02357672513 | AO13: =IF(OR(AO12="-",AO12=0,AN12="-",AN12=0),"-",+(AO12-AN12)/ABS(AN12)) -> 0.04737700114 | AP13: =IF(OR(AP12="-",AP12=0,AO12="-",AO12=0),"-",+(AP12-AO12)/ABS(AO12)) -> 0.03808990827 | AQ13: =IF(OR(AQ12="-",AQ12=0,AP12="-",AP12=0),"-",+(AQ12-AP12)/ABS(AP12)) -> 0.0266179233 | AR13: =IF(OR(AR12="-",AR12=0,AQ12="-",AQ12=0),"-",+(AR12-AQ12)/ABS(AQ12)) -> 0.02527138016 | AS13: =IF(OR(AS12="-",AS12=0,AR12="-",AR12=0),"-",+(AS12-AR12)/ABS(AR12)) -> 0.1297246253
A14: Valor Tangible/acc | B14: Tangible Book per Share | C14: =VLOOKUP($B14,'Historical Financial'!$A:$AF,2,FALSE) -> 0 | D14: =VLOOKUP($B14,'Historical Financial'!$A:$AF,3,FALSE) -> 0 | E14: =VLOOKUP($B14,'Historical Financial'!$A:$AF,4,FALSE) -> 3.076 | F14: =VLOOKUP($B14,'Historical Financial'!$A:$AF,5,FALSE) -> 4.293 | G14: =VLOOKUP($B14,'Historical Financial'!$A:$AF,6,FALSE) -> 5.162 | H14: =VLOOKUP($B14,'Historical Financial'!$A:$AF,7,FALSE) -> 5.902 | I14: =VLOOKUP($B14,'Historical Financial'!$A:$AF,8,FALSE) -> 6.72 | J14: =VLOOKUP($B14,'Historical Financial'!$A:$AF,9,FALSE) -> 8.971 | K14: =VLOOKUP($B14,'Historical Financial'!$A:$AF,10,FALSE) -> 10.991 | L14: =VLOOKUP($B14,'Historical Financial'!$A:$AF,11,FALSE) -> 15.335 | M14: =VLOOKUP($B14,'Historical Financial'!$A:$AF,12,FALSE) -> 20.771 | N14: =VLOOKUP($B14,'Historical Financial'!$A:$AF,13,FALSE) -> 17.309 | O14: =VLOOKUP($B14,'Historical Financial'!$A:$AF,14,FALSE) -> 18.717 | P14: =VLOOKUP($B14,'Historical Financial'!$A:$AF,15,FALSE) -> 15.941 | Q14: =VLOOKUP($B14,'Historical Financial'!$A:$AF,16,FALSE) -> 18.132 | R14: =VLOOKUP($B14,'Historical Financial'!$A:$AF,17,FALSE) -> 23.709 | S14: =VLOOKUP($B14,'Historical Financial'!$A:$AF,18,FALSE) -> 27.246 | T14: =VLOOKUP($B14,'Historical Financial'!$A:$AF,19,FALSE) -> 29.354 | U14: =VLOOKUP($B14,'Historical Financial'!$A:$AF,20,FALSE) -> 32.922 | V14: =VLOOKUP($B14,'Historical Financial'!$A:$AF,21,FALSE) -> 37.85 | W14: =VLOOKUP($B14,'Historical Financial'!$A:$AF,22,FALSE) -> 32.483 | X14: =VLOOKUP($B14,'Historical Financial'!$A:$AF,23,FALSE) -> 41.729 | Y14: =VLOOKUP($B14,'Historical Financial'!$A:$AF,24,FALSE) -> 43.812 | Z14: =VLOOKUP($B14,'Historical Financial'!$A:$AF,25,FALSE) -> 45.084 | AA14: =VLOOKUP($B14,'Historical Financial'!$A:$AF,26,FALSE) -> 54.018 | AB14: =VLOOKUP($B14,'Historical Financial'!$A:$AF,27,FALSE) -> 66.863 | AC14: =VLOOKUP($B14,'Historical Financial'!$A:$AF,28,FALSE) -> 69.086 | AD14: =VLOOKUP($B14,'Historical Financial'!$A:$AF,29,FALSE) -> 74.518 | AE14: =VLOOKUP($B14,'Historical Financial'!$A:$AF,30,FALSE) -> 68.56 | AF14: =VLOOKUP($B14,'Historical Financial'!$A:$AF,31,FALSE) -> 95.052 | AG14: =VLOOKUP($B14,'Historical Financial'!$A:$AF,32,FALSE) -> 95.052 | AH14: =MediaCrecimiento($C14:$AF14) -> 0.1354924649 | AI14: =MediaCrecimiento($AA14:$AF14) -> 0.1196558454 | AL14: =VLOOKUP($B14,'Historical Financial'!$A:$EW,146,FALSE) -> 58.525 | AM14: =VLOOKUP($B14,'Historical Financial'!$A:$EW,147,FALSE) -> 60.294 | AN14: =VLOOKUP($B14,'Historical Financial'!$A:$EW,148,FALSE) -> 62.788 | AO14: =VLOOKUP($B14,'Historical Financial'!$A:$EW,149,FALSE) -> 68.56 | AP14: =VLOOKUP($B14,'Historical Financial'!$A:$EW,150,FALSE) -> 72.737 | AQ14: =VLOOKUP($B14,'Historical Financial'!$A:$EW,151,FALSE) -> 75.911 | AR14: =VLOOKUP($B14,'Historical Financial'!$A:$EW,152,FALSE) -> 78.807 | AS14: =VLOOKUP($B14,'Historical Financial'!$A:$EW,153,FALSE) -> 95.052 | AT14: =MediaCrecimiento($AL14:$AS14) -> 0.07173779918
D15: =IF(OR(D14="-",D14=0,C14="-",C14=0),"-",+(D14-C14)/ABS(C14)) -> - | E15: =IF(OR(E14="-",E14=0,D14="-",D14=0),"-",+(E14-D14)/ABS(D14)) -> - | F15: =IF(OR(F14="-",F14=0,E14="-",E14=0),"-",+(F14-E14)/ABS(E14)) -> 0.3956436931 | G15: =IF(OR(G14="-",G14=0,F14="-",F14=0),"-",+(G14-F14)/ABS(F14)) -> 0.2024225483 | H15: =IF(OR(H14="-",H14=0,G14="-",G14=0),"-",+(H14-G14)/ABS(G14)) -> 0.1433552886 | I15: =IF(OR(I14="-",I14=0,H14="-",H14=0),"-",+(I14-H14)/ABS(H14)) -> 0.1385970857 | J15: =IF(OR(J14="-",J14=0,I14="-",I14=0),"-",+(J14-I14)/ABS(I14)) -> 0.3349702381 | K15: =IF(OR(K14="-",K14=0,J14="-",J14=0),"-",+(K14-J14)/ABS(J14)) -> 0.2251699922 | L15: =IF(OR(L14="-",L14=0,K14="-",K14=0),"-",+(L14-K14)/ABS(K14)) -> 0.3952324629 | M15: =IF(OR(M14="-",M14=0,L14="-",L14=0),"-",+(M14-L14)/ABS(L14)) -> 0.3544832083 | N15: =IF(OR(N14="-",N14=0,M14="-",M14=0),"-",+(N14-M14)/ABS(M14)) -> -0.1666746907 | O15: =IF(OR(O14="-",O14=0,N14="-",N14=0),"-",+(O14-N14)/ABS(N14)) -> 0.08134496505 | P15: =IF(OR(P14="-",P14=0,O14="-",O14=0),"-",+(P14-O14)/ABS(O14)) -> -0.1483143666 | Q15: =IF(OR(Q14="-",Q14=0,P14="-",P14=0),"-",+(Q14-P14)/ABS(P14)) -> 0.137444326 | R15: =IF(OR(R14="-",R14=0,Q14="-",Q14=0),"-",+(R14-Q14)/ABS(Q14)) -> 0.3075777631 | S15: =IF(OR(S14="-",S14=0,R14="-",R14=0),"-",+(S14-R14)/ABS(R14)) -> 0.1491838542 | T15: =IF(OR(T14="-",T14=0,S14="-",S14=0),"-",+(T14-S14)/ABS(S14)) -> 0.07736915511 | U15: =IF(OR(U14="-",U14=0,T14="-",T14=0),"-",+(U14-T14)/ABS(T14)) -> 0.1215507256 | V15: =IF(OR(V14="-",V14=0,U14="-",U14=0),"-",+(V14-U14)/ABS(U14)) -> 0.1496871393 | W15: =IF(OR(W14="-",W14=0,V14="-",V14=0),"-",+(W14-V14)/ABS(V14)) -> -0.1417965654 | X15: =IF(OR(X14="-",X14=0,W14="-",W14=0),"-",+(X14-W14)/ABS(W14)) -> 0.2846411969 | Y15: =IF(OR(Y14="-",Y14=0,X14="-",X14=0),"-",+(Y14-X14)/ABS(X14)) -> 0.04991732368 | Z15: =IF(OR(Z14="-",Z14=0,Y14="-",Y14=0),"-",+(Z14-Y14)/ABS(Y14)) -> 0.02903314161 | AA15: =IF(OR(AA14="-",AA14=0,Z14="-",Z14=0),"-",+(AA14-Z14)/ABS(Z14)) -> 0.1981634283 | AB15: =IF(OR(AB14="-",AB14=0,AA14="-",AA14=0),"-",+(AB14-AA14)/ABS(AA14)) -> 0.2377911067 | AC15: =IF(OR(AC14="-",AC14=0,AB14="-",AB14=0),"-",+(AC14-AB14)/ABS(AB14)) -> 0.03324708733 | AD15: =IF(OR(AD14="-",AD14=0,AC14="-",AC14=0),"-",+(AD14-AC14)/ABS(AC14)) -> 0.07862663926 | AE15: =IF(OR(AE14="-",AE14=0,AD14="-",AD14=0),"-",+(AE14-AD14)/ABS(AD14)) -> -0.07995383666 | AF15: =IF(OR(AF14="-",AF14=0,AE14="-",AE14=0),"-",+(AF14-AE14)/ABS(AE14)) -> 0.3864060677 | AG15: =IF(OR(AG14="-",AG14=0,AF14="-",AF14=0),"-",+(AG14-AF14)/ABS(AF14)) -> 0 | AM15: =IF(OR(AM14="-",AM14=0,AL14="-",AL14=0),"-",+(AM14-AL14)/ABS(AL14)) -> 0.03022639897 | AN15: =IF(OR(AN14="-",AN14=0,AM14="-",AM14=0),"-",+(AN14-AM14)/ABS(AM14)) -> 0.04136398315 | AO15: =IF(OR(AO14="-",AO14=0,AN14="-",AN14=0),"-",+(AO14-AN14)/ABS(AN14)) -> 0.09192839396 | AP15: =IF(OR(AP14="-",AP14=0,AO14="-",AO14=0),"-",+(AP14-AO14)/ABS(AO14)) -> 0.06092473746 | AQ15: =IF(OR(AQ14="-",AQ14=0,AP14="-",AP14=0),"-",+(AQ14-AP14)/ABS(AP14)) -> 0.0436366636 | AR15: =IF(OR(AR14="-",AR14=0,AQ14="-",AQ14=0),"-",+(AR14-AQ14)/ABS(AQ14)) -> 0.03814993874 | AS15: =IF(OR(AS14="-",AS14=0,AR14="-",AR14=0),"-",+(AS14-AR14)/ABS(AR14)) -> 0.2061365107
A16: Dividendo/acc | B16: Dividends per Share | C16: =VLOOKUP($B16,'Historical Financial'!$A:$AF,2,FALSE) -> 0 | D16: =VLOOKUP($B16,'Historical Financial'!$A:$AF,3,FALSE) -> 0 | E16: =VLOOKUP($B16,'Historical Financial'!$A:$AF,4,FALSE) -> 0 | F16: =VLOOKUP($B16,'Historical Financial'!$A:$AF,5,FALSE) -> 0 | G16: =VLOOKUP($B16,'Historical Financial'!$A:$AF,6,FALSE) -> 0 | H16: =VLOOKUP($B16,'Historical Financial'!$A:$AF,7,FALSE) -> 0 | I16: =VLOOKUP($B16,'Historical Financial'!$A:$AF,8,FALSE) -> 0 | J16: =VLOOKUP($B16,'Historical Financial'!$A:$AF,9,FALSE) -> 0 | K16: =VLOOKUP($B16,'Historical Financial'!$A:$AF,10,FALSE) -> 0 | L16: =VLOOKUP($B16,'Historical Financial'!$A:$AF,11,FALSE) -> 0 | M16: =VLOOKUP($B16,'Historical Financial'!$A:$AF,12,FALSE) -> 0 | N16: =VLOOKUP($B16,'Historical Financial'!$A:$AF,13,FALSE) -> 0 | O16: =VLOOKUP($B16,'Historical Financial'!$A:$AF,14,FALSE) -> 0 | P16: =VLOOKUP($B16,'Historical Financial'!$A:$AF,15,FALSE) -> 0 | Q16: =VLOOKUP($B16,'Historical Financial'!$A:$AF,16,FALSE) -> 0 | R16: =VLOOKUP($B16,'Historical Financial'!$A:$AF,17,FALSE) -> 0 | S16: =VLOOKUP($B16,'Historical Financial'!$A:$AF,18,FALSE) -> 0 | T16: =VLOOKUP($B16,'Historical Financial'!$A:$AF,19,FALSE) -> 0 | U16: =VLOOKUP($B16,'Historical Financial'!$A:$AF,20,FALSE) -> 0 | V16: =VLOOKUP($B16,'Historical Financial'!$A:$AF,21,FALSE) -> 0 | W16: =VLOOKUP($B16,'Historical Financial'!$A:$AF,22,FALSE) -> 0 | X16: =VLOOKUP($B16,'Historical Financial'!$A:$AF,23,FALSE) -> 0 | Y16: =VLOOKUP($B16,'Historical Financial'!$A:$AF,24,FALSE) -> 0 | Z16: =VLOOKUP($B16,'Historical Financial'!$A:$AF,25,FALSE) -> 0 | AA16: =VLOOKUP($B16,'Historical Financial'!$A:$AF,26,FALSE) -> 0 | AB16: =VLOOKUP($B16,'Historical Financial'!$A:$AF,27,FALSE) -> 0 | AC16: =VLOOKUP($B16,'Historical Financial'!$A:$AF,28,FALSE) -> 0 | AD16: =VLOOKUP($B16,'Historical Financial'!$A:$AF,29,FALSE) -> 0 | AE16: =VLOOKUP($B16,'Historical Financial'!$A:$AF,30,FALSE) -> 0 | AF16: =VLOOKUP($B16,'Historical Financial'!$A:$AF,31,FALSE) -> 0 | AG16: =VLOOKUP($B16,'Historical Financial'!$A:$AF,32,FALSE) -> 0 | AH16: =IF(SUM($C16:$AF16)=0,0,MediaCrecimiento($C16:$AF16)) -> 0 | AI16: =IF(SUM(AA16:AF16)=0,0,MediaCrecimiento($AA16:$AF16)) -> 0 | AL16: =VLOOKUP($B16,'Historical Financial'!$A:$EW,146,FALSE) -> 0 | AM16: =VLOOKUP($B16,'Historical Financial'!$A:$EW,147,FALSE) -> 0 | AN16: =VLOOKUP($B16,'Historical Financial'!$A:$EW,148,FALSE) -> 0 | AO16: =VLOOKUP($B16,'Historical Financial'!$A:$EW,149,FALSE) -> 0 | AP16: =VLOOKUP($B16,'Historical Financial'!$A:$EW,150,FALSE) -> 0 | AQ16: =VLOOKUP($B16,'Historical Financial'!$A:$EW,151,FALSE) -> 0 | AR16: =VLOOKUP($B16,'Historical Financial'!$A:$EW,152,FALSE) -> 0 | AS16: =VLOOKUP($B16,'Historical Financial'!$A:$EW,153,FALSE) -> 0 | AT16: =IF(SUM(AL16:AS16)=0,0,MediaCrecimiento($AL16:$AS16)) -> 0
D17: =IF(OR(D16="-",D16=0,C16="-",C16=0),"-",+(D16-C16)/ABS(C16)) -> - | E17: =IF(OR(E16="-",E16=0,D16="-",D16=0),"-",+(E16-D16)/ABS(D16)) -> - | F17: =IF(OR(F16="-",F16=0,E16="-",E16=0),"-",+(F16-E16)/ABS(E16)) -> - | G17: =IF(OR(G16="-",G16=0,F16="-",F16=0),"-",+(G16-F16)/ABS(F16)) -> - | H17: =IF(OR(H16="-",H16=0,G16="-",G16=0),"-",+(H16-G16)/ABS(G16)) -> - | I17: =IF(OR(I16="-",I16=0,H16="-",H16=0),"-",+(I16-H16)/ABS(H16)) -> - | J17: =IF(OR(J16="-",J16=0,I16="-",I16=0),"-",+(J16-I16)/ABS(I16)) -> - | K17: =IF(OR(K16="-",K16=0,J16="-",J16=0),"-",+(K16-J16)/ABS(J16)) -> - | L17: =IF(OR(L16="-",L16=0,K16="-",K16=0),"-",+(L16-K16)/ABS(K16)) -> - | M17: =IF(OR(M16="-",M16=0,L16="-",L16=0),"-",+(M16-L16)/ABS(L16)) -> - | N17: =IF(OR(N16="-",N16=0,M16="-",M16=0),"-",+(N16-M16)/ABS(M16)) -> - | O17: =IF(OR(O16="-",O16=0,N16="-",N16=0),"-",+(O16-N16)/ABS(N16)) -> - | P17: =IF(OR(P16="-",P16=0,O16="-",O16=0),"-",+(P16-O16)/ABS(O16)) -> - | Q17: =IF(OR(Q16="-",Q16=0,P16="-",P16=0),"-",+(Q16-P16)/ABS(P16)) -> - | R17: =IF(OR(R16="-",R16=0,Q16="-",Q16=0),"-",+(R16-Q16)/ABS(Q16)) -> - | S17: =IF(OR(S16="-",S16=0,R16="-",R16=0),"-",+(S16-R16)/ABS(R16)) -> - | T17: =IF(OR(T16="-",T16=0,S16="-",S16=0),"-",+(T16-S16)/ABS(S16)) -> - | U17: =IF(OR(U16="-",U16=0,T16="-",T16=0),"-",+(U16-T16)/ABS(T16)) -> - | V17: =IF(OR(V16="-",V16=0,U16="-",U16=0),"-",+(V16-U16)/ABS(U16)) -> - | W17: =IF(OR(W16="-",W16=0,V16="-",V16=0),"-",+(W16-V16)/ABS(V16)) -> - | X17: =IF(OR(X16="-",X16=0,W16="-",W16=0),"-",+(X16-W16)/ABS(W16)) -> - | Y17: =IF(OR(Y16="-",Y16=0,X16="-",X16=0),"-",+(Y16-X16)/ABS(X16)) -> - | Z17: =IF(OR(Z16="-",Z16=0,Y16="-",Y16=0),"-",+(Z16-Y16)/ABS(Y16)) -> - | AA17: =IF(OR(AA16="-",AA16=0,Z16="-",Z16=0),"-",+(AA16-Z16)/ABS(Z16)) -> - | AB17: =IF(OR(AB16="-",AB16=0,AA16="-",AA16=0),"-",+(AB16-AA16)/ABS(AA16)) -> - | AC17: =IF(OR(AC16="-",AC16=0,AB16="-",AB16=0),"-",+(AC16-AB16)/ABS(AB16)) -> - | AD17: =IF(OR(AD16="-",AD16=0,AC16="-",AC16=0),"-",+(AD16-AC16)/ABS(AC16)) -> - | AE17: =IF(OR(AE16="-",AE16=0,AD16="-",AD16=0),"-",+(AE16-AD16)/ABS(AD16)) -> - | AF17: =IF(OR(AF16="-",AF16=0,AE16="-",AE16=0),"-",+(AF16-AE16)/ABS(AE16)) -> - | AG17: =IF(OR(AG16="-",AG16=0,AF16="-",AF16=0),"-",+(AG16-AF16)/ABS(AF16)) -> - | AM17: =IF(OR(AM16="-",AM16=0,AL16="-",AL16=0),"-",+(AM16-AL16)/ABS(AL16)) -> - | AN17: =IF(OR(AN16="-",AN16=0,AM16="-",AM16=0),"-",+(AN16-AM16)/ABS(AM16)) -> - | AO17: =IF(OR(AO16="-",AO16=0,AN16="-",AN16=0),"-",+(AO16-AN16)/ABS(AN16)) -> - | AP17: =IF(OR(AP16="-",AP16=0,AO16="-",AO16=0),"-",+(AP16-AO16)/ABS(AO16)) -> - | AQ17: =IF(OR(AQ16="-",AQ16=0,AP16="-",AP16=0),"-",+(AQ16-AP16)/ABS(AP16)) -> - | AR17: =IF(OR(AR16="-",AR16=0,AQ16="-",AQ16=0),"-",+(AR16-AQ16)/ABS(AQ16)) -> - | AS17: =IF(OR(AS16="-",AS16=0,AR16="-",AR16=0),"-",+(AS16-AR16)/ABS(AR16)) -> -
A18: Nº Acciones | B18: Shares Outstanding (EOP) | C18: =VLOOKUP($B18,'Historical Financial'!$A:$AF,2,FALSE) -> 1719 | D18: =VLOOKUP($B18,'Historical Financial'!$A:$AF,3,FALSE) -> 1719 | E18: =VLOOKUP($B18,'Historical Financial'!$A:$AF,4,FALSE) -> 1719 | F18: =VLOOKUP($B18,'Historical Financial'!$A:$AF,5,FALSE) -> 1719 | G18: =VLOOKUP($B18,'Historical Financial'!$A:$AF,6,FALSE) -> 1723.5 | H18: =VLOOKUP($B18,'Historical Financial'!$A:$AF,7,FALSE) -> 1767 | I18: =VLOOKUP($B18,'Historical Financial'!$A:$AF,8,FALSE) -> 1767 | J18: =VLOOKUP($B18,'Historical Financial'!$A:$AF,9,FALSE) -> 1791 | K18: =VLOOKUP($B18,'Historical Financial'!$A:$AF,10,FALSE) -> 1848.37 | L18: =VLOOKUP($B18,'Historical Financial'!$A:$AF,11,FALSE) -> 1851.19 | M18: =VLOOKUP($B18,'Historical Financial'!$A:$AF,12,FALSE) -> 1869.55 | N18: =VLOOKUP($B18,'Historical Financial'!$A:$AF,13,FALSE) -> 2280.84 | O18: =VLOOKUP($B18,'Historical Financial'!$A:$AF,14,FALSE) -> 2289.34 | P18: =VLOOKUP($B18,'Historical Financial'!$A:$AF,15,FALSE) -> 2292.33 | Q18: =VLOOKUP($B18,'Historical Financial'!$A:$AF,16,FALSE) -> 2301.98 | R18: =VLOOKUP($B18,'Historical Financial'!$A:$AF,17,FALSE) -> 2304.94 | S18: =VLOOKUP($B18,'Historical Financial'!$A:$AF,18,FALSE) -> 2308.13 | T18: =VLOOKUP($B18,'Historical Financial'!$A:$AF,19,FALSE) -> 2311.08 | U18: =VLOOKUP($B18,'Historical Financial'!$A:$AF,20,FALSE) -> 2313.97 | V18: =VLOOKUP($B18,'Historical Financial'!$A:$AF,21,FALSE) -> 2321.54 | W18: =VLOOKUP($B18,'Historical Financial'!$A:$AF,22,FALSE) -> 2323.85 | X18: =VLOOKUP($B18,'Historical Financial'!$A:$AF,23,FALSE) -> 2327.62 | Y18: =VLOOKUP($B18,'Historical Financial'!$A:$AF,24,FALSE) -> 2472.18 | Z18: =VLOOKUP($B18,'Historical Financial'!$A:$AF,25,FALSE) -> 2476.21 | AA18: =VLOOKUP($B18,'Historical Financial'!$A:$AF,26,FALSE) -> 2464.42 | AB18: =VLOOKUP($B18,'Historical Financial'!$A:$AF,27,FALSE) -> 2465.93 | AC18: =VLOOKUP($B18,'Historical Financial'!$A:$AF,28,FALSE) -> 2464.36 | AD18: =VLOOKUP($B18,'Historical Financial'!$A:$AF,29,FALSE) -> 2465.09 | AE18: =VLOOKUP($B18,'Historical Financial'!$A:$AF,30,FALSE) -> 2466.48 | AF18: =VLOOKUP($B18,'Historical Financial'!$A:$AF,31,FALSE) -> 2467.27 | AG18: =VLOOKUP($B18,'Historical Financial'!$A:$AF,32,FALSE) -> 2467.49 | AH18: =MediaCrecimiento($C18:$AF18) -> 0.01253898095 | AI18: =MediaCrecimiento($AA18:$AF18) -> 0.0002311848265 | AL18: =VLOOKUP($B18,'Historical Financial'!$A:$EW,146,FALSE) -> 2465.26 | AM18: =VLOOKUP($B18,'Historical Financial'!$A:$EW,147,FALSE) -> 2465.72 | AN18: =VLOOKUP($B18,'Historical Financial'!$A:$EW,148,FALSE) -> 2466.05 | AO18: =VLOOKUP($B18,'Historical Financial'!$A:$EW,149,FALSE) -> 2466.48 | AP18: =VLOOKUP($B18,'Historical Financial'!$A:$EW,150,FALSE) -> 2466.79 | AQ18: =VLOOKUP($B18,'Historical Financial'!$A:$EW,151,FALSE) -> 2466.9 | AR18: =VLOOKUP($B18,'Historical Financial'!$A:$EW,152,FALSE) -> 2467.07 | AS18: =VLOOKUP($B18,'Historical Financial'!$A:$EW,153,FALSE) -> 2467.27 | AT18: =MediaCrecimiento($AL18:$AS18) -> 0.0001164350098
D19: =IF(OR(D18="-",D18=0,C18="-",C18=0),"-",+(D18-C18)/ABS(C18)) -> 0 | E19: =IF(OR(E18="-",E18=0,D18="-",D18=0),"-",+(E18-D18)/ABS(D18)) -> 0 | F19: =IF(OR(F18="-",F18=0,E18="-",E18=0),"-",+(F18-E18)/ABS(E18)) -> 0 | G19: =IF(OR(G18="-",G18=0,F18="-",F18=0),"-",+(G18-F18)/ABS(F18)) -> 0.002617801047 | H19: =IF(OR(H18="-",H18=0,G18="-",G18=0),"-",+(H18-G18)/ABS(G18)) -> 0.02523933856 | I19: =IF(OR(I18="-",I18=0,H18="-",H18=0),"-",+(I18-H18)/ABS(H18)) -> 0 | J19: =IF(OR(J18="-",J18=0,I18="-",I18=0),"-",+(J18-I18)/ABS(I18)) -> 0.01358234295 | K19: =IF(OR(K18="-",K18=0,J18="-",J18=0),"-",+(K18-J18)/ABS(J18)) -> 0.03203238414 | L19: =IF(OR(L18="-",L18=0,K18="-",K18=0),"-",+(L18-K18)/ABS(K18)) -> 0.001525668562 | M19: =IF(OR(M18="-",M18=0,L18="-",L18=0),"-",+(M18-L18)/ABS(L18)) -> 0.009917944673 | N19: =IF(OR(N18="-",N18=0,M18="-",M18=0),"-",+(N18-M18)/ABS(M18)) -> 0.2199941162 | O19: =IF(OR(O18="-",O18=0,N18="-",N18=0),"-",+(O18-N18)/ABS(N18)) -> 0.003726697182 | P19: =IF(OR(P18="-",P18=0,O18="-",O18=0),"-",+(P18-O18)/ABS(O18)) -> 0.001306053273 | Q19: =IF(OR(Q18="-",Q18=0,P18="-",P18=0),"-",+(Q18-P18)/ABS(P18)) -> 0.004209690577 | R19: =IF(OR(R18="-",R18=0,Q18="-",Q18=0),"-",+(R18-Q18)/ABS(Q18)) -> 0.001285849573 | S19: =IF(OR(S18="-",S18=0,R18="-",R18=0),"-",+(S18-R18)/ABS(R18)) -> 0.001383983965 | T19: =IF(OR(T18="-",T18=0,S18="-",S18=0),"-",+(T18-S18)/ABS(S18)) -> 0.001278090922 | U19: =IF(OR(U18="-",U18=0,T18="-",T18=0),"-",+(U18-T18)/ABS(T18)) -> 0.001250497603 | V19: =IF(OR(V18="-",V18=0,U18="-",U18=0),"-",+(V18-U18)/ABS(U18)) -> 0.003271433943 | W19: =IF(OR(W18="-",W18=0,V18="-",V18=0),"-",+(W18-V18)/ABS(V18)) -> 0.0009950291617 | X19: =IF(OR(X18="-",X18=0,W18="-",W18=0),"-",+(X18-W18)/ABS(W18)) -> 0.001622307808 | Y19: =IF(OR(Y18="-",Y18=0,X18="-",X18=0),"-",+(Y18-X18)/ABS(X18)) -> 0.06210635757 | Z19: =IF(OR(Z18="-",Z18=0,Y18="-",Y18=0),"-",+(Z18-Y18)/ABS(Y18)) -> 0.0016301402 | AA19: =IF(OR(AA18="-",AA18=0,Z18="-",Z18=0),"-",+(AA18-Z18)/ABS(Z18)) -> -0.004761308613 | AB19: =IF(OR(AB18="-",AB18=0,AA18="-",AA18=0),"-",+(AB18-AA18)/ABS(AA18)) -> 0.0006127202344 | AC19: =IF(OR(AC18="-",AC18=0,AB18="-",AB18=0),"-",+(AC18-AB18)/ABS(AB18)) -> -0.0006366766291 | AD19: =IF(OR(AD18="-",AD18=0,AC18="-",AC18=0),"-",+(AD18-AC18)/ABS(AC18)) -> 0.0002962229544 | AE19: =IF(OR(AE18="-",AE18=0,AD18="-",AD18=0),"-",+(AE18-AD18)/ABS(AD18)) -> 0.0005638739356 | AF19: =IF(OR(AF18="-",AF18=0,AE18="-",AE18=0),"-",+(AF18-AE18)/ABS(AE18)) -> 0.0003202945088 | AG19: =IF(OR(AG18="-",AG18=0,AF18="-",AF18=0),"-",+(AG18-AF18)/ABS(AF18)) -> 8.916737933e-05 | AM19: =IF(OR(AM18="-",AM18=0,AL18="-",AL18=0),"-",+(AM18-AL18)/ABS(AL18)) -> 0.0001865928949 | AN19: =IF(OR(AN18="-",AN18=0,AM18="-",AM18=0),"-",+(AN18-AM18)/ABS(AM18)) -> 0.0001338351475 | AO19: =IF(OR(AO18="-",AO18=0,AN18="-",AN18=0),"-",+(AO18-AN18)/ABS(AN18)) -> 0.0001743679163 | AP19: =IF(OR(AP18="-",AP18=0,AO18="-",AO18=0),"-",+(AP18-AO18)/ABS(AO18)) -> 0.000125685187 | AQ19: =IF(OR(AQ18="-",AQ18=0,AP18="-",AP18=0),"-",+(AQ18-AP18)/ABS(AP18)) -> 4.459236498e-05 | AR19: =IF(OR(AR18="-",AR18=0,AQ18="-",AQ18=0),"-",+(AR18-AQ18)/ABS(AQ18)) -> 6.891240018e-05 | AS19: =IF(OR(AS18="-",AS18=0,AR18="-",AR18=0),"-",+(AS18-AR18)/ABS(AR18)) -> 8.10678254e-05

Sheet Salud Financiera
C1: ='Historical Financial'!B3 -> Dec88 | D1: ='Historical Financial'!C3 -> Dec89 | E1: ='Historical Financial'!D3 -> Dec90 | F1: ='Historical Financial'!E3 -> Dec91 | G1: ='Historical Financial'!F3 -> Dec92 | H1: ='Historical Financial'!G3 -> Dec93 | I1: ='Historical Financial'!H3 -> Dec94 | J1: ='Historical Financial'!I3 -> Dec95 | K1: ='Historical Financial'!J3 -> Dec96 | L1: ='Historical Financial'!K3 -> Dec97 | M1: ='Historical Financial'!L3 -> Dec98 | N1: ='Historical Financial'!M3 -> Dec99 | O1: ='Historical Financial'!N3 -> Dec00 | P1: ='Historical Financial'!O3 -> Dec01 | Q1: ='Historical Financial'!P3 -> Dec02 | R1: ='Historical Financial'!Q3 -> Dec03 | S1: ='Historical Financial'!R3 -> Dec04 | T1: ='Historical Financial'!S3 -> Dec05 | U1: ='Historical Financial'!T3 -> Dec06 | V1: ='Historical Financial'!U3 -> Dec07 | W1: ='Historical Financial'!V3 -> Dec08 | X1: ='Historical Financial'!W3 -> Dec09 | Y1: ='Historical Financial'!X3 -> Dec10 | Z1: ='Historical Financial'!Y3 -> Dec11 | AA1: ='Historical Financial'!Z3 -> Dec12 | AB1: ='Historical Financial'!AA3 -> Dec13 | AC1: ='Historical Financial'!AB3 -> Dec14 | AD1: ='Historical Financial'!AC3 -> Dec15 | AE1: ='Historical Financial'!AD3 -> Dec16 | AF1: ='Historical Financial'!AE3 -> Dec17 | AG1: ='Historical Financial'!AF3 -> TTM/current | AH1: Media | AI1: 5 años | AL1: ='Historical Financial'!EP3 -> Mar16 | AM1: ='Historical Financial'!EQ3 -> Jun16 | AN1: ='Historical Financial'!ER3 -> Sep16 | AO1: ='Historical Financial'!ES3 -> Dec16 | AP1: ='Historical Financial'!ET3 -> Mar17 | AQ1: ='Historical Financial'!EU3 -> Jun17 | AR1: ='Historical Financial'!EV3 -> Sep17 | AS1: ='Historical Financial'!EW3 -> Dec17 | AT1: Media
A2: EBITDA | B2: EBITDA | C2: =VLOOKUP($B2,'Historical Financial'!$A:$AF,2,FALSE) -> 0 | D2: =VLOOKUP($B2,'Historical Financial'!$A:$AF,3,FALSE) -> 0 | E2: =VLOOKUP($B2,'Historical Financial'!$A:$AF,4,FALSE) -> 169.4 | F2: =VLOOKUP($B2,'Historical Financial'!$A:$AF,5,FALSE) -> 159 | G2: =VLOOKUP($B2,'Historical Financial'!$A:$AF,6,FALSE) -> 165.6 | H2: =VLOOKUP($B2,'Historical Financial'!$A:$AF,7,FALSE) -> 130.9 | I2: =VLOOKUP($B2,'Historical Financial'!$A:$AF,8,FALSE) -> 122.6 | J2: =VLOOKUP($B2,'Historical Financial'!$A:$AF,9,FALSE) -> 1219.4 | K2: =VLOOKUP($B2,'Historical Financial'!$A:$AF,10,FALSE) -> 3956.6 | L2: =VLOOKUP($B2,'Historical Financial'!$A:$AF,11,FALSE) -> 3166.5 | M2: =VLOOKUP($B2,'Historical Financial'!$A:$AF,12,FALSE) -> 4688 | N2: =VLOOKUP($B2,'Historical Financial'!$A:$AF,13,FALSE) -> 3272 | O2: =VLOOKUP($B2,'Historical Financial'!$A:$AF,14,FALSE) -> 6728 | P2: =VLOOKUP($B2,'Historical Financial'!$A:$AF,15,FALSE) -> 2646 | Q2: =VLOOKUP($B2,'Historical Financial'!$A:$AF,16,FALSE) -> 7971 | R2: =VLOOKUP($B2,'Historical Financial'!$A:$AF,17,FALSE) -> 13012 | S2: =VLOOKUP($B2,'Historical Financial'!$A:$AF,18,FALSE) -> 12598 | T2: =VLOOKUP($B2,'Historical Financial'!$A:$AF,19,FALSE) -> 14496 | U2: =VLOOKUP($B2,'Historical Financial'!$A:$AF,20,FALSE) -> 20568 | V2: =VLOOKUP($B2,'Historical Financial'!$A:$AF,21,FALSE) -> 24478 | W2: =VLOOKUP($B2,'Historical Financial'!$A:$AF,22,FALSE) -> 12347 | X2: =VLOOKUP($B2,'Historical Financial'!$A:$AF,23,FALSE) -> 16671 | Y2: =VLOOKUP($B2,'Historical Financial'!$A:$AF,24,FALSE) -> 25888 | Z2: =VLOOKUP($B2,'Historical Financial'!$A:$AF,25,FALSE) -> 23470 | AA2: =VLOOKUP($B2,'Historical Financial'!$A:$AF,26,FALSE) -> 31134 | AB2: =VLOOKUP($B2,'Historical Financial'!$A:$AF,27,FALSE) -> 38105 | AC2: =VLOOKUP($B2,'Historical Financial'!$A:$AF,28,FALSE) -> 38728 | AD2: =VLOOKUP($B2,'Historical Financial'!$A:$AF,29,FALSE) -> 46240 | AE2: =VLOOKUP($B2,'Historical Financial'!$A:$AF,30,FALSE) -> 46065 | AF2: =VLOOKUP($B2,'Historical Financial'!$A:$AF,31,FALSE) -> 38420 | AG2: =VLOOKUP($B2,'Historical Financial'!$A:$AF,32,FALSE) -> 38420 | AL2: =VLOOKUP($B2,'Historical Financial'!$A:$EW,146,FALSE) -> 9754 | AM2: =VLOOKUP($B2,'Historical Financial'!$A:$EW,147,FALSE) -> 10333 | AN2: =VLOOKUP($B2,'Historical Financial'!$A:$EW,148,FALSE) -> 13814 | AO2: =VLOOKUP($B2,'Historical Financial'!$A:$EW,149,FALSE) -> 12164 | AP2: =VLOOKUP($B2,'Historical Financial'!$A:$EW,150,FALSE) -> 8998 | AQ2: =VLOOKUP($B2,'Historical Financial'!$A:$EW,151,FALSE) -> 9925 | AR2: =VLOOKUP($B2,'Historical Financial'!$A:$EW,152,FALSE) -> 9159 | AS2: =VLOOKUP($B2,'Historical Financial'!$A:$EW,153,FALSE) -> 10338
A3: Caja y equivalentes | B3: Cash, Cash Equivalents, Marketable Securities | C3: =VLOOKUP($B3,'Historical Financial'!$A:$AF,2,FALSE) ->  | D3: =VLOOKUP($B3,'Historical Financial'!$A:$AF,3,FALSE) ->  | E3: =VLOOKUP($B3,'Historical Financial'!$A:$AF,4,FALSE) ->  | F3: =VLOOKUP($B3,'Historical Financial'!$A:$AF,5,FALSE) ->  | G3: =VLOOKUP($B3,'Historical Financial'!$A:$AF,6,FALSE) ->  | H3: =VLOOKUP($B3,'Historical Financial'!$A:$AF,7,FALSE) ->  | I3: =VLOOKUP($B3,'Historical Financial'!$A:$AF,8,FALSE) ->  | J3: =VLOOKUP($B3,'Historical Financial'!$A:$AF,9,FALSE) ->  | K3: =VLOOKUP($B3,'Historical Financial'!$A:$AF,10,FALSE) ->  | L3: =VLOOKUP($B3,'Historical Financial'!$A:$AF,11,FALSE) ->  | M3: =VLOOKUP($B3,'Historical Financial'!$A:$AF,12,FALSE) ->  | N3: =VLOOKUP($B3,'Historical Financial'!$A:$AF,13,FALSE) ->  | O3: =VLOOKUP($B3,'Historical Financial'!$A:$AF,14,FALSE) ->  | P3: =VLOOKUP($B3,'Historical Financial'!$A:$AF,15,FALSE) ->  | Q3: =VLOOKUP($B3,'Historical Financial'!$A:$AF,16,FALSE) ->  | R3: =VLOOKUP($B3,'Historical Financial'!$A:$AF,17,FALSE) ->  | S3: =VLOOKUP($B3,'Historical Financial'!$A:$AF,18,FALSE) ->  | T3: =VLOOKUP($B3,'Historical Financial'!$A:$AF,19,FALSE) ->  | U3: =VLOOKUP($B3,'Historical Financial'!$A:$AF,20,FALSE) ->  | V3: =VLOOKUP($B3,'Historical Financial'!$A:$AF,21,FALSE) ->  | W3: =VLOOKUP($B3,'Historical Financial'!$A:$AF,22,FALSE) ->  | X3: =VLOOKUP($B3,'Historical Financial'!$A:$AF,23,FALSE) ->  | Y3: =VLOOKUP($B3,'Historical Financial'!$A:$AF,24,FALSE) ->  | Z3: =VLOOKUP($B3,'Historical Financial'!$A:$AF,25,FALSE) ->  | AA3: =VLOOKUP($B3,'Historical Financial'!$A:$AF,26,FALSE) ->  | AB3: =VLOOKUP($B3,'Historical Financial'!$A:$AF,27,FALSE) ->  | AC3: =VLOOKUP($B3,'Historical Financial'!$A:$AF,28,FALSE) ->  | AD3: =VLOOKUP($B3,'Historical Financial'!$A:$AF,29,FALSE) ->  | AE3: =VLOOKUP($B3,'Historical Financial'!$A:$AF,30,FALSE) ->  | AF3: =VLOOKUP($B3,'Historical Financial'!$A:$AF,31,FALSE) ->  | AG3: =VLOOKUP($B3,'Historical Financial'!$A:$AF,32,FALSE) ->  | AL3: =VLOOKUP($B3,'Historical Financial'!$A:$EW,146,FALSE) ->  | AM3: =VLOOKUP($B3,'Historical Financial'!$A:$EW,147,FALSE) ->  | AN3: =VLOOKUP($B3,'Historical Financial'!$A:$EW,148,FALSE) ->  | AO3: =VLOOKUP($B3,'Historical Financial'!$A:$EW,149,FALSE) ->  | AP3: =VLOOKUP($B3,'Historical Financial'!$A:$EW,150,FALSE) ->  | AQ3: =VLOOKUP($B3,'Historical Financial'!$A:$EW,151,FALSE) ->  | AR3: =VLOOKUP($B3,'Historical Financial'!$A:$EW,152,FALSE) ->  | AS3: =VLOOKUP($B3,'Historical Financial'!$A:$EW,153,FALSE) -> 
A4: Inventarios | B4: Total Inventories | C4: =VLOOKUP($B4,'Historical Financial'!$A:$AF,2,FALSE) ->  | D4: =VLOOKUP($B4,'Historical Financial'!$A:$AF,3,FALSE) ->  | E4: =VLOOKUP($B4,'Historical Financial'!$A:$AF,4,FALSE) ->  | F4: =VLOOKUP($B4,'Historical Financial'!$A:$AF,5,FALSE) ->  | G4: =VLOOKUP($B4,'Historical Financial'!$A:$AF,6,FALSE) ->  | H4: =VLOOKUP($B4,'Historical Financial'!$A:$AF,7,FALSE) ->  | I4: =VLOOKUP($B4,'Historical Financial'!$A:$AF,8,FALSE) ->  | J4: =VLOOKUP($B4,'Historical Financial'!$A:$AF,9,FALSE) ->  | K4: =VLOOKUP($B4,'Historical Financial'!$A:$AF,10,FALSE) ->  | L4: =VLOOKUP($B4,'Historical Financial'!$A:$AF,11,FALSE) ->  | M4: =VLOOKUP($B4,'Historical Financial'!$A:$AF,12,FALSE) ->  | N4: =VLOOKUP($B4,'Historical Financial'!$A:$AF,13,FALSE) ->  | O4: =VLOOKUP($B4,'Historical Financial'!$A:$AF,14,FALSE) ->  | P4: =VLOOKUP($B4,'Historical Financial'!$A:$AF,15,FALSE) ->  | Q4: =VLOOKUP($B4,'Historical Financial'!$A:$AF,16,FALSE) ->  | R4: =VLOOKUP($B4,'Historical Financial'!$A:$AF,17,FALSE) ->  | S4: =VLOOKUP($B4,'Historical Financial'!$A:$AF,18,FALSE) ->  | T4: =VLOOKUP($B4,'Historical Financial'!$A:$AF,19,FALSE) ->  | U4: =VLOOKUP($B4,'Historical Financial'!$A:$AF,20,FALSE) ->  | V4: =VLOOKUP($B4,'Historical Financial'!$A:$AF,21,FALSE) ->  | W4: =VLOOKUP($B4,'Historical Financial'!$A:$AF,22,FALSE) ->  | X4: =VLOOKUP($B4,'Historical Financial'!$A:$AF,23,FALSE) ->  | Y4: =VLOOKUP($B4,'Historical Financial'!$A:$AF,24,FALSE) ->  | Z4: =VLOOKUP($B4,'Historical Financial'!$A:$AF,25,FALSE) ->  | AA4: =VLOOKUP($B4,'Historical Financial'!$A:$AF,26,FALSE) ->  | AB4: =VLOOKUP($B4,'Historical Financial'!$A:$AF,27,FALSE) ->  | AC4: =VLOOKUP($B4,'Historical Financial'!$A:$AF,28,FALSE) ->  | AD4: =VLOOKUP($B4,'Historical Financial'!$A:$AF,29,FALSE) ->  | AE4: =VLOOKUP($B4,'Historical Financial'!$A:$AF,30,FALSE) ->  | AF4: =VLOOKUP($B4,'Historical Financial'!$A:$AF,31,FALSE) ->  | AG4: =VLOOKUP($B4,'Historical Financial'!$A:$AF,32,FALSE) ->  | AL4: =VLOOKUP($B4,'Historical Financial'!$A:$EW,146,FALSE) ->  | AM4: =VLOOKUP($B4,'Historical Financial'!$A:$EW,147,FALSE) ->  | AN4: =VLOOKUP($B4,'Historical Financial'!$A:$EW,148,FALSE) ->  | AO4: =VLOOKUP($B4,'Historical Financial'!$A:$EW,149,FALSE) ->  | AP4: =VLOOKUP($B4,'Historical Financial'!$A:$EW,150,FALSE) ->  | AQ4: =VLOOKUP($B4,'Historical Financial'!$A:$EW,151,FALSE) ->  | AR4: =VLOOKUP($B4,'Historical Financial'!$A:$EW,152,FALSE) ->  | AS4: =VLOOKUP($B4,'Historical Financial'!$A:$EW,153,FALSE) -> 
A5: Activo Corriente | B5: Total Current Assets | C5: =VLOOKUP($B5,'Historical Financial'!$A:$AF,2,FALSE) ->  | D5: =VLOOKUP($B5,'Historical Financial'!$A:$AF,3,FALSE) ->  | E5: =VLOOKUP($B5,'Historical Financial'!$A:$AF,4,FALSE) ->  | F5: =VLOOKUP($B5,'Historical Financial'!$A:$AF,5,FALSE) ->  | G5: =VLOOKUP($B5,'Historical Financial'!$A:$AF,6,FALSE) ->  | H5: =VLOOKUP($B5,'Historical Financial'!$A:$AF,7,FALSE) ->  | I5: =VLOOKUP($B5,'Historical Financial'!$A:$AF,8,FALSE) ->  | J5: =VLOOKUP($B5,'Historical Financial'!$A:$AF,9,FALSE) ->  | K5: =VLOOKUP($B5,'Historical Financial'!$A:$AF,10,FALSE) ->  | L5: =VLOOKUP($B5,'Historical Financial'!$A:$AF,11,FALSE) ->  | M5: =VLOOKUP($B5,'Historical Financial'!$A:$AF,12,FALSE) ->  | N5: =VLOOKUP($B5,'Historical Financial'!$A:$AF,13,FALSE) ->  | O5: =VLOOKUP($B5,'Historical Financial'!$A:$AF,14,FALSE) ->  | P5: =VLOOKUP($B5,'Historical Financial'!$A:$AF,15,FALSE) ->  | Q5: =VLOOKUP($B5,'Historical Financial'!$A:$AF,16,FALSE) ->  | R5: =VLOOKUP($B5,'Historical Financial'!$A:$AF,17,FALSE) ->  | S5: =VLOOKUP($B5,'Historical Financial'!$A:$AF,18,FALSE) ->  | T5: =VLOOKUP($B5,'Historical Financial'!$A:$AF,19,FALSE) ->  | U5: =VLOOKUP($B5,'Historical Financial'!$A:$AF,20,FALSE) ->  | V5: =VLOOKUP($B5,'Historical Financial'!$A:$AF,21,FALSE) ->  | W5: =VLOOKUP($B5,'Historical Financial'!$A:$AF,22,FALSE) ->  | X5: =VLOOKUP($B5,'Historical Financial'!$A:$AF,23,FALSE) ->  | Y5: =VLOOKUP($B5,'Historical Financial'!$A:$AF,24,FALSE) ->  | Z5: =VLOOKUP($B5,'Historical Financial'!$A:$AF,25,FALSE) ->  | AA5: =VLOOKUP($B5,'Historical Financial'!$A:$AF,26,FALSE) ->  | AB5: =VLOOKUP($B5,'Historical Financial'!$A:$AF,27,FALSE) ->  | AC5: =VLOOKUP($B5,'Historical Financial'!$A:$AF,28,FALSE) ->  | AD5: =VLOOKUP($B5,'Historical Financial'!$A:$AF,29,FALSE) ->  | AE5: =VLOOKUP($B5,'Historical Financial'!$A:$AF,30,FALSE) ->  | AF5: =VLOOKUP($B5,'Historical Financial'!$A:$AF,31,FALSE) ->  | AG5: =VLOOKUP($B5,'Historical Financial'!$A:$AF,32,FALSE) ->  | AL5: =VLOOKUP($B5,'Historical Financial'!$A:$EW,146,FALSE) ->  | AM5: =VLOOKUP($B5,'Historical Financial'!$A:$EW,147,FALSE) ->  | AN5: =VLOOKUP($B5,'Historical Financial'!$A:$EW,148,FALSE) ->  | AO5: =VLOOKUP($B5,'Historical Financial'!$A:$EW,149,FALSE) ->  | AP5: =VLOOKUP($B5,'Historical Financial'!$A:$EW,150,FALSE) ->  | AQ5: =VLOOKUP($B5,'Historical Financial'!$A:$EW,151,FALSE) ->  | AR5: =VLOOKUP($B5,'Historical Financial'!$A:$EW,152,FALSE) ->  | AS5: =VLOOKUP($B5,'Historical Financial'!$A:$EW,153,FALSE) -> 
A6: Activo Intangible | B6: Intangible Assets | C6: =VLOOKUP($B6,'Historical Financial'!$A:$AF,2,FALSE) -> 0 | D6: =VLOOKUP($B6,'Historical Financial'!$A:$AF,3,FALSE) -> 0 | E6: =VLOOKUP($B6,'Historical Financial'!$A:$AF,4,FALSE) -> 0 | F6: =VLOOKUP($B6,'Historical Financial'!$A:$AF,5,FALSE) -> 0 | G6: =VLOOKUP($B6,'Historical Financial'!$A:$AF,6,FALSE) -> 0 | H6: =VLOOKUP($B6,'Historical Financial'!$A:$AF,7,FALSE) -> 0 | I6: =VLOOKUP($B6,'Historical Financial'!$A:$AF,8,FALSE) -> 0 | J6: =VLOOKUP($B6,'Historical Financial'!$A:$AF,9,FALSE) -> 672 | K6: =VLOOKUP($B6,'Historical Financial'!$A:$AF,10,FALSE) -> 3110.3 | L6: =VLOOKUP($B6,'Historical Financial'!$A:$AF,11,FALSE) -> 3067 | M6: =VLOOKUP($B6,'Historical Financial'!$A:$AF,12,FALSE) -> 18570 | N6: =VLOOKUP($B6,'Historical Financial'!$A:$AF,13,FALSE) -> 18281 | O6: =VLOOKUP($B6,'Historical Financial'!$A:$AF,14,FALSE) -> 18875 | P6: =VLOOKUP($B6,'Historical Financial'!$A:$AF,15,FALSE) -> 21407 | Q6: =VLOOKUP($B6,'Historical Financial'!$A:$AF,16,FALSE) -> 22298 | R6: =VLOOKUP($B6,'Historical Financial'!$A:$AF,17,FALSE) -> 22948 | S6: =VLOOKUP($B6,'Historical Financial'!$A:$AF,18,FALSE) -> 23012 | T6: =VLOOKUP($B6,'Historical Financial'!$A:$AF,19,FALSE) -> 23644 | U6: =VLOOKUP($B6,'Historical Financial'!$A:$AF,20,FALSE) -> 32238 | V6: =VLOOKUP($B6,'Historical Financial'!$A:$AF,21,FALSE) -> 32862 | W6: =VLOOKUP($B6,'Historical Financial'!$A:$AF,22,FALSE) -> 33781 | X6: =VLOOKUP($B6,'Historical Financial'!$A:$AF,23,FALSE) -> 33972 | Y6: =VLOOKUP($B6,'Historical Financial'!$A:$AF,24,FALSE) -> 49006 | Z6: =VLOOKUP($B6,'Historical Financial'!$A:$AF,25,FALSE) -> 53213 | AA6: =VLOOKUP($B6,'Historical Financial'!$A:$AF,26,FALSE) -> 54523 | AB6: =VLOOKUP($B6,'Historical Financial'!$A:$AF,27,FALSE) -> 57011 | AC6: =VLOOKUP($B6,'Historical Financial'!$A:$AF,28,FALSE) -> 69917 | AD6: =VLOOKUP($B6,'Historical Financial'!$A:$AF,29,FALSE) -> 71856 | AE6: =VLOOKUP($B6,'Historical Financial'!$A:$AF,30,FALSE) -> 112967 | AF6: =VLOOKUP($B6,'Historical Financial'!$A:$AF,31,FALSE) -> 113776 | AG6: =VLOOKUP($B6,'Historical Financial'!$A:$AF,32,FALSE) -> 113776 | AL6: =VLOOKUP($B6,'Historical Financial'!$A:$EW,146,FALSE) -> 114381 | AM6: =VLOOKUP($B6,'Historical Financial'!$A:$EW,147,FALSE) -> 114356 | AN6: =VLOOKUP($B6,'Historical Financial'!$A:$EW,148,FALSE) -> 114426 | AO6: =VLOOKUP($B6,'Historical Financial'!$A:$EW,149,FALSE) -> 112967 | AP6: =VLOOKUP($B6,'Historical Financial'!$A:$EW,150,FALSE) -> 113423 | AQ6: =VLOOKUP($B6,'Historical Financial'!$A:$EW,151,FALSE) -> 113395 | AR6: =VLOOKUP($B6,'Historical Financial'!$A:$EW,152,FALSE) -> 113856 | AS6: =VLOOKUP($B6,'Historical Financial'!$A:$EW,153,FALSE) -> 113776
A7: Activo Total | B7: Total Assets | C7: =VLOOKUP($B7,'Historical Financial'!$A:$AF,2,FALSE) -> 0 | D7: =VLOOKUP($B7,'Historical Financial'!$A:$AF,3,FALSE) -> 0 | E7: =VLOOKUP($B7,'Historical Financial'!$A:$AF,4,FALSE) -> 10670.4 | F7: =VLOOKUP($B7,'Historical Financial'!$A:$AF,5,FALSE) -> 14461.9 | G7: =VLOOKUP($B7,'Historical Financial'!$A:$AF,6,FALSE) -> 16944.8 | H7: =VLOOKUP($B7,'Historical Financial'!$A:$AF,7,FALSE) -> 19520.5 | I7: =VLOOKUP($B7,'Historical Financial'!$A:$AF,8,FALSE) -> 21338.2 | J7: =VLOOKUP($B7,'Historical Financial'!$A:$AF,9,FALSE) -> 28711.4 | K7: =VLOOKUP($B7,'Historical Financial'!$A:$AF,10,FALSE) -> 43409.4 | L7: =VLOOKUP($B7,'Historical Financial'!$A:$AF,11,FALSE) -> 56111 | M7: =VLOOKUP($B7,'Historical Financial'!$A:$AF,12,FALSE) -> 122237 | N7: =VLOOKUP($B7,'Historical Financial'!$A:$AF,13,FALSE) -> 131416 | O7: =VLOOKUP($B7,'Historical Financial'!$A:$AF,14,FALSE) -> 135792 | P7: =VLOOKUP($B7,'Historical Financial'!$A:$AF,15,FALSE) -> 162752 | Q7: =VLOOKUP($B7,'Historical Financial'!$A:$AF,16,FALSE) -> 169544 | R7: =VLOOKUP($B7,'Historical Financial'!$A:$AF,17,FALSE) -> 180559 | S7: =VLOOKUP($B7,'Historical Financial'!$A:$AF,18,FALSE) -> 188874 | T7: =VLOOKUP($B7,'Historical Financial'!$A:$AF,19,FALSE) -> 198325 | U7: =VLOOKUP($B7,'Historical Financial'!$A:$AF,20,FALSE) -> 248437 | V7: =VLOOKUP($B7,'Historical Financial'!$A:$AF,21,FALSE) -> 273160 | W7: =VLOOKUP($B7,'Historical Financial'!$A:$AF,22,FALSE) -> 267399 | X7: =VLOOKUP($B7,'Historical Financial'!$A:$AF,23,FALSE) -> 297119 | Y7: =VLOOKUP($B7,'Historical Financial'!$A:$AF,24,FALSE) -> 372229 | Z7: =VLOOKUP($B7,'Historical Financial'!$A:$AF,25,FALSE) -> 392647 | AA7: =VLOOKUP($B7,'Historical Financial'!$A:$AF,26,FALSE) -> 427452 | AB7: =VLOOKUP($B7,'Historical Financial'!$A:$AF,27,FALSE) -> 484931 | AC7: =VLOOKUP($B7,'Historical Financial'!$A:$AF,28,FALSE) -> 525867 | AD7: =VLOOKUP($B7,'Historical Financial'!$A:$AF,29,FALSE) -> 552257 | AE7: =VLOOKUP($B7,'Historical Financial'!$A:$AF,30,FALSE) -> 620854 | AF7: =VLOOKUP($B7,'Historical Financial'!$A:$AF,31,FALSE) -> 702095 | AG7: =VLOOKUP($B7,'Historical Financial'!$A:$AF,32,FALSE) -> 702095 | AL7: =VLOOKUP($B7,'Historical Financial'!$A:$EW,146,FALSE) -> 586315 | AM7: =VLOOKUP($B7,'Historical Financial'!$A:$EW,147,FALSE) -> 592816 | AN7: =VLOOKUP($B7,'Historical Financial'!$A:$EW,148,FALSE) -> 604038 | AO7: =VLOOKUP($B7,'Historical Financial'!$A:$EW,149,FALSE) -> 620854 | AP7: =VLOOKUP($B7,'Historical Financial'!$A:$EW,150,FALSE) -> 654451 | AQ7: =VLOOKUP($B7,'Historical Financial'!$A:$EW,151,FALSE) -> 665590 | AR7: =VLOOKUP($B7,'Historical Financial'!$A:$EW,152,FALSE) -> 681554 | AS7: =VLOOKUP($B7,'Historical Financial'!$A:$EW,153,FALSE) -> 702095
A8: Pasivo Corriente | B8: Total Current Liabilities | C8: =VLOOKUP($B8,'Historical Financial'!$A:$AF,2,FALSE) ->  | D8: =VLOOKUP($B8,'Historical Financial'!$A:$AF,3,FALSE) ->  | E8: =VLOOKUP($B8,'Historical Financial'!$A:$AF,4,FALSE) ->  | F8: =VLOOKUP($B8,'Historical Financial'!$A:$AF,5,FALSE) ->  | G8: =VLOOKUP($B8,'Historical Financial'!$A:$AF,6,FALSE) ->  | H8: =VLOOKUP($B8,'Historical Financial'!$A:$AF,7,FALSE) ->  | I8: =VLOOKUP($B8,'Historical Financial'!$A:$AF,8,FALSE) ->  | J8: =VLOOKUP($B8,'Historical Financial'!$A:$AF,9,FALSE) ->  | K8: =VLOOKUP($B8,'Historical Financial'!$A:$AF,10,FALSE) ->  | L8: =VLOOKUP($B8,'Historical Financial'!$A:$AF,11,FALSE) ->  | M8: =VLOOKUP($B8,'Historical Financial'!$A:$AF,12,FALSE) ->  | N8: =VLOOKUP($B8,'Historical Financial'!$A:$AF,13,FALSE) ->  | O8: =VLOOKUP($B8,'Historical Financial'!$A:$AF,14,FALSE) ->  | P8: =VLOOKUP($B8,'Historical Financial'!$A:$AF,15,FALSE) ->  | Q8: =VLOOKUP($B8,'Historical Financial'!$A:$AF,16,FALSE) ->  | R8: =VLOOKUP($B8,'Historical Financial'!$A:$AF,17,FALSE) ->  | S8: =VLOOKUP($B8,'Historical Financial'!$A:$AF,18,FALSE) ->  | T8: =VLOOKUP($B8,'Historical Financial'!$A:$AF,19,FALSE) ->  | U8: =VLOOKUP($B8,'Historical Financial'!$A:$AF,20,FALSE) ->  | V8: =VLOOKUP($B8,'Historical Financial'!$A:$AF,21,FALSE) ->  | W8: =VLOOKUP($B8,'Historical Financial'!$A:$AF,22,FALSE) ->  | X8: =VLOOKUP($B8,'Historical Financial'!$A:$AF,23,FALSE) ->  | Y8: =VLOOKUP($B8,'Historical Financial'!$A:$AF,24,FALSE) ->  | Z8: =VLOOKUP($B8,'Historical Financial'!$A:$AF,25,FALSE) ->  | AA8: =VLOOKUP($B8,'Historical Financial'!$A:$AF,26,FALSE) ->  | AB8: =VLOOKUP($B8,'Historical Financial'!$A:$AF,27,FALSE) ->  | AC8: =VLOOKUP($B8,'Historical Financial'!$A:$AF,28,FALSE) ->  | AD8: =VLOOKUP($B8,'Historical Financial'!$A:$AF,29,FALSE) ->  | AE8: =VLOOKUP($B8,'Historical Financial'!$A:$AF,30,FALSE) ->  | AF8: =VLOOKUP($B8,'Historical Financial'!$A:$AF,31,FALSE) ->  | AG8: =VLOOKUP($B8,'Historical Financial'!$A:$AF,32,FALSE) ->  | AL8: =VLOOKUP($B8,'Historical Financial'!$A:$EW,146,FALSE) ->  | AM8: =VLOOKUP($B8,'Historical Financial'!$A:$EW,147,FALSE) ->  | AN8: =VLOOKUP($B8,'Historical Financial'!$A:$EW,148,FALSE) ->  | AO8: =VLOOKUP($B8,'Historical Financial'!$A:$EW,149,FALSE) ->  | AP8: =VLOOKUP($B8,'Historical Financial'!$A:$EW,150,FALSE) ->  | AQ8: =VLOOKUP($B8,'Historical Financial'!$A:$EW,151,FALSE) ->  | AR8: =VLOOKUP($B8,'Historical Financial'!$A:$EW,152,FALSE) ->  | AS8: =VLOOKUP($B8,'Historical Financial'!$A:$EW,153,FALSE) -> 
A9: Pasivo Total | B9: Total Liabilities | C9: =VLOOKUP($B9,'Historical Financial'!$A:$AF,2,FALSE) -> 0 | D9: =VLOOKUP($B9,'Historical Financial'!$A:$AF,3,FALSE) -> 0 | E9: =VLOOKUP($B9,'Historical Financial'!$A:$AF,4,FALSE) -> 5382.9 | F9: =VLOOKUP($B9,'Historical Financial'!$A:$AF,5,FALSE) -> 7082 | G9: =VLOOKUP($B9,'Historical Financial'!$A:$AF,6,FALSE) -> 8048.5 | H9: =VLOOKUP($B9,'Historical Financial'!$A:$AF,7,FALSE) -> 9092.1 | I9: =VLOOKUP($B9,'Historical Financial'!$A:$AF,8,FALSE) -> 9463.3 | J9: =VLOOKUP($B9,'Historical Financial'!$A:$AF,9,FALSE) -> 11972.7 | K9: =VLOOKUP($B9,'Historical Financial'!$A:$AF,10,FALSE) -> 19983.1 | L9: =VLOOKUP($B9,'Historical Financial'!$A:$AF,11,FALSE) -> 24656 | M9: =VLOOKUP($B9,'Historical Financial'!$A:$AF,12,FALSE) -> 64834 | N9: =VLOOKUP($B9,'Historical Financial'!$A:$AF,13,FALSE) -> 73655 | O9: =VLOOKUP($B9,'Historical Financial'!$A:$AF,14,FALSE) -> 74068 | P9: =VLOOKUP($B9,'Historical Financial'!$A:$AF,15,FALSE) -> 104802 | Q9: =VLOOKUP($B9,'Historical Financial'!$A:$AF,16,FALSE) -> 105507 | R9: =VLOOKUP($B9,'Historical Financial'!$A:$AF,17,FALSE) -> 102963 | S9: =VLOOKUP($B9,'Historical Financial'!$A:$AF,18,FALSE) -> 102974 | T9: =VLOOKUP($B9,'Historical Financial'!$A:$AF,19,FALSE) -> 106841 | U9: =VLOOKUP($B9,'Historical Financial'!$A:$AF,20,FALSE) -> 140018 | V9: =VLOOKUP($B9,'Historical Financial'!$A:$AF,21,FALSE) -> 152427 | W9: =VLOOKUP($B9,'Historical Financial'!$A:$AF,22,FALSE) -> 158132 | X9: =VLOOKUP($B9,'Historical Financial'!$A:$AF,23,FALSE) -> 166017 | Y9: =VLOOKUP($B9,'Historical Financial'!$A:$AF,24,FALSE) -> 214911 | Z9: =VLOOKUP($B9,'Historical Financial'!$A:$AF,25,FALSE) -> 227797 | AA9: =VLOOKUP($B9,'Historical Financial'!$A:$AF,26,FALSE) -> 239805 | AB9: =VLOOKUP($B9,'Historical Financial'!$A:$AF,27,FALSE) -> 263041 | AC9: =VLOOKUP($B9,'Historical Financial'!$A:$AF,28,FALSE) -> 285697 | AD9: =VLOOKUP($B9,'Historical Financial'!$A:$AF,29,FALSE) -> 296707 | AE9: =VLOOKUP($B9,'Historical Financial'!$A:$AF,30,FALSE) -> 338784 | AF9: =VLOOKUP($B9,'Historical Financial'!$A:$AF,31,FALSE) -> 353799 | AG9: =VLOOKUP($B9,'Historical Financial'!$A:$AF,32,FALSE) -> 353799 | AL9: =VLOOKUP($B9,'Historical Financial'!$A:$EW,146,FALSE) -> 327654 | AM9: =VLOOKUP($B9,'Historical Financial'!$A:$EW,147,FALSE) -> 329791 | AN9: =VLOOKUP($B9,'Historical Financial'!$A:$EW,148,FALSE) -> 334774 | AO9: =VLOOKUP($B9,'Historical Financial'!$A:$EW,149,FALSE) -> 338784 | AP9: =VLOOKUP($B9,'Historical Financial'!$A:$EW,150,FALSE) -> 361600 | AQ9: =VLOOKUP($B9,'Historical Financial'!$A:$EW,151,FALSE) -> 364931 | AR9: =VLOOKUP($B9,'Historical Financial'!$A:$EW,152,FALSE) -> 373276 | AS9: =VLOOKUP($B9,'Historical Financial'!$A:$EW,153,FALSE) -> 353799
A10: Fondos Propios | C10: =IF(C9="-","-",+'Salud Financiera'!C7-'Salud Financiera'!C9) -> 0 | D10: =IF(D9="-","-",+'Salud Financiera'!D7-'Salud Financiera'!D9) -> 0 | E10: =IF(E9="-","-",+'Salud Financiera'!E7-'Salud Financiera'!E9) -> 5287.5 | F10: =IF(F9="-","-",+'Salud Financiera'!F7-'Salud Financiera'!F9) -> 7379.9 | G10: =IF(G9="-","-",+'Salud Financiera'!G7-'Salud Financiera'!G9) -> 8896.3 | H10: =IF(H9="-","-",+'Salud Financiera'!H7-'Salud Financiera'!H9) -> 10428.4 | I10: =IF(I9="-","-",+'Salud Financiera'!I7-'Salud Financiera'!I9) -> 11874.9 | J10: =IF(J9="-","-",+'Salud Financiera'!J7-'Salud Financiera'!J9) -> 16738.7 | K10: =IF(K9="-","-",+'Salud Financiera'!K7-'Salud Financiera'!K9) -> 23426.3 | L10: =IF(L9="-","-",+'Salud Financiera'!L7-'Salud Financiera'!L9) -> 31455 | M10: =IF(M9="-","-",+'Salud Financiera'!M7-'Salud Financiera'!M9) -> 57403 | N10: =IF(N9="-","-",+'Salud Financiera'!N7-'Salud Financiera'!N9) -> 57761 | O10: =IF(O9="-","-",+'Salud Financiera'!O7-'Salud Financiera'!O9) -> 61724 | P10: =IF(P9="-","-",+'Salud Financiera'!P7-'Salud Financiera'!P9) -> 57950 | Q10: =IF(Q9="-","-",+'Salud Financiera'!Q7-'Salud Financiera'!Q9) -> 64037 | R10: =IF(R9="-","-",+'Salud Financiera'!R7-'Salud Financiera'!R9) -> 77596 | S10: =IF(S9="-","-",+'Salud Financiera'!S7-'Salud Financiera'!S9) -> 85900 | T10: =IF(T9="-","-",+'Salud Financiera'!T7-'Salud Financiera'!T9) -> 91484 | U10: =IF(U9="-","-",+'Salud Financiera'!U7-'Salud Financiera'!U9) -> 108419 | V10: =IF(V9="-","-",+'Salud Financiera'!V7-'Salud Financiera'!V9) -> 120733 | W10: =IF(W9="-","-",+'Salud Financiera'!W7-'Salud Financiera'!W9) -> 109267 | X10: =IF(X9="-","-",+'Salud Financiera'!X7-'Salud Financiera'!X9) -> 131102 | Y10: =IF(Y9="-","-",+'Salud Financiera'!Y7-'Salud Financiera'!Y9) -> 157318 | Z10: =IF(Z9="-","-",+'Salud Financiera'!Z7-'Salud Financiera'!Z9) -> 164850 | AA10: =IF(AA9="-","-",+'Salud Financiera'!AA7-'Salud Financiera'!AA9) -> 187647 | AB10: =IF(AB9="-","-",+'Salud Financiera'!AB7-'Salud Financiera'!AB9) -> 221890 | AC10: =IF(AC9="-","-",+'Salud Financiera'!AC7-'Salud Financiera'!AC9) -> 240170 | AD10: =IF(AD9="-","-",+'Salud Financiera'!AD7-'Salud Financiera'!AD9) -> 255550 | AE10: =IF(AE9="-","-",+'Salud Financiera'!AE7-'Salud Financiera'!AE9) -> 282070 | AF10: =IF(AF9="-","-",+'Salud Financiera'!AF7-'Salud Financiera'!AF9) -> 348296 | AG10: =IF(AG9="-","-",+'Salud Financiera'!AG7-'Salud Financiera'!AG9) -> 348296 | AL10: =IF(AL9="-","-",+'Salud Financiera'!AL7-'Salud Financiera'!AL9) -> 258661 | AM10: =IF(AM9="-","-",+'Salud Financiera'!AM7-'Salud Financiera'!AM9) -> 263025 | AN10: =IF(AN9="-","-",+'Salud Financiera'!AN7-'Salud Financiera'!AN9) -> 269264 | AO10: =IF(AO9="-","-",+'Salud Financiera'!AO7-'Salud Financiera'!AO9) -> 282070 | AP10: =IF(AP9="-","-",+'Salud Financiera'!AP7-'Salud Financiera'!AP9) -> 292851 | AQ10: =IF(AQ9="-","-",+'Salud Financiera'!AQ7-'Salud Financiera'!AQ9) -> 300659 | AR10: =IF(AR9="-","-",+'Salud Financiera'!AR7-'Salud Financiera'!AR9) -> 308278 | AS10: =IF(AS9="-","-",+'Salud Financiera'!AS7-'Salud Financiera'!AS9) -> 348296
C12: ='Historical Financial'!B3 -> Dec88 | D12: ='Historical Financial'!C3 -> Dec89 | E12: ='Historical Financial'!D3 -> Dec90 | F12: ='Historical Financial'!E3 -> Dec91 | G12: ='Historical Financial'!F3 -> Dec92 | H12: ='Historical Financial'!G3 -> Dec93 | I12: ='Historical Financial'!H3 -> Dec94 | J12: ='Historical Financial'!I3 -> Dec95 | K12: ='Historical Financial'!J3 -> Dec96 | L12: ='Historical Financial'!K3 -> Dec97 | M12: ='Historical Financial'!L3 -> Dec98 | N12: ='Historical Financial'!M3 -> Dec99 | O12: ='Historical Financial'!N3 -> Dec00 | P12: ='Historical Financial'!O3 -> Dec01 | Q12: ='Historical Financial'!P3 -> Dec02 | R12: ='Historical Financial'!Q3 -> Dec03 | S12: ='Historical Financial'!R3 -> Dec04 | T12: ='Historical Financial'!S3 -> Dec05 | U12: ='Historical Financial'!T3 -> Dec06 | V12: ='Historical Financial'!U3 -> Dec07 | W12: ='Historical Financial'!V3 -> Dec08 | X12: ='Historical Financial'!W3 -> Dec09 | Y12: ='Historical Financial'!X3 -> Dec10 | Z12: ='Historical Financial'!Y3 -> Dec11 | AA12: ='Historical Financial'!Z3 -> Dec12 | AB12: ='Historical Financial'!AA3 -> Dec13 | AC12: ='Historical Financial'!AB3 -> Dec14 | AD12: ='Historical Financial'!AC3 -> Dec15 | AE12: ='Historical Financial'!AD3 -> Dec16 | AF12: ='Historical Financial'!AE3 -> Dec17 | AG12: ='Historical Financial'!AF3 -> TTM/current
A13: Current Ratio | C13: =IF(OR(C5="-",C5=0,C8="-",C8=0),"-",+'Salud Financiera'!C5/'Salud Financiera'!C8) ->  | D13: =IF(OR(D5="-",D5=0,D8="-",D8=0),"-",+'Salud Financiera'!D5/'Salud Financiera'!D8) ->  | E13: =IF(OR(E5="-",E5=0,E8="-",E8=0),"-",+'Salud Financiera'!E5/'Salud Financiera'!E8) ->  | F13: =IF(OR(F5="-",F5=0,F8="-",F8=0),"-",+'Salud Financiera'!F5/'Salud Financiera'!F8) ->  | G13: =IF(OR(G5="-",G5=0,G8="-",G8=0),"-",+'Salud Financiera'!G5/'Salud Financiera'!G8) ->  | H13: =IF(OR(H5="-",H5=0,H8="-",H8=0),"-",+'Salud Financiera'!H5/'Salud Financiera'!H8) ->  | I13: =IF(OR(I5="-",I5=0,I8="-",I8=0),"-",+'Salud Financiera'!I5/'Salud Financiera'!I8) ->  | J13: =IF(OR(J5="-",J5=0,J8="-",J8=0),"-",+'Salud Financiera'!J5/'Salud Financiera'!J8) ->  | K13: =IF(OR(K5="-",K5=0,K8="-",K8=0),"-",+'Salud Financiera'!K5/'Salud Financiera'!K8) ->  | L13: =IF(OR(L5="-",L5=0,L8="-",L8=0),"-",+'Salud Financiera'!L5/'Salud Financiera'!L8) ->  | M13: =IF(OR(M5="-",M5=0,M8="-",M8=0),"-",+'Salud Financiera'!M5/'Salud Financiera'!M8) ->  | N13: =IF(OR(N5="-",N5=0,N8="-",N8=0),"-",+'Salud Financiera'!N5/'Salud Financiera'!N8) ->  | O13: =IF(OR(O5="-",O5=0,O8="-",O8=0),"-",+'Salud Financiera'!O5/'Salud Financiera'!O8) ->  | P13: =IF(OR(P5="-",P5=0,P8="-",P8=0),"-",+'Salud Financiera'!P5/'Salud Financiera'!P8) ->  | Q13: =IF(OR(Q5="-",Q5=0,Q8="-",Q8=0),"-",+'Salud Financiera'!Q5/'Salud Financiera'!Q8) ->  | R13: =IF(OR(R5="-",R5=0,R8="-",R8=0),"-",+'Salud Financiera'!R5/'Salud Financiera'!R8) ->  | S13: =IF(OR(S5="-",S5=0,S8="-",S8=0),"-",+'Salud Financiera'!S5/'Salud Financiera'!S8) ->  | T13: =IF(OR(T5="-",T5=0,T8="-",T8=0),"-",+'Salud Financiera'!T5/'Salud Financiera'!T8) ->  | U13: =IF(OR(U5="-",U5=0,U8="-",U8=0),"-",+'Salud Financiera'!U5/'Salud Financiera'!U8) ->  | V13: =IF(OR(V5="-",V5=0,V8="-",V8=0),"-",+'Salud Financiera'!V5/'Salud Financiera'!V8) ->  | W13: =IF(OR(W5="-",W5=0,W8="-",W8=0),"-",+'Salud Financiera'!W5/'Salud Financiera'!W8) ->  | X13: =IF(OR(X5="-",X5=0,X8="-",X8=0),"-",+'Salud Financiera'!X5/'Salud Financiera'!X8) ->  | Y13: =IF(OR(Y5="-",Y5=0,Y8="-",Y8=0),"-",+'Salud Financiera'!Y5/'Salud Financiera'!Y8) ->  | Z13: =IF(OR(Z5="-",Z5=0,Z8="-",Z8=0),"-",+'Salud Financiera'!Z5/'Salud Financiera'!Z8) ->  | AA13: =IF(OR(AA5="-",AA5=0,AA8="-",AA8=0),"-",+'Salud Financiera'!AA5/'Salud Financiera'!AA8) ->  | AB13: =IF(OR(AB5="-",AB5=0,AB8="-",AB8=0),"-",+'Salud Financiera'!AB5/'Salud Financiera'!AB8) ->  | AC13: =IF(OR(AC5="-",AC5=0,AC8="-",AC8=0),"-",+'Salud Financiera'!AC5/'Salud Financiera'!AC8) ->  | AD13: =IF(OR(AD5="-",AD5=0,AD8="-",AD8=0),"-",+'Salud Financiera'!AD5/'Salud Financiera'!AD8) ->  | AE13: =IF(OR(AE5="-",AE5=0,AE8="-",AE8=0),"-",+'Salud Financiera'!AE5/'Salud Financiera'!AE8) ->  | AF13: =IF(OR(AF5="-",AF5=0,AF8="-",AF8=0),"-",+'Salud Financiera'!AF5/'Salud Financiera'!AF8) ->  | AG13: =IF(OR(AG5="-",AG5=0,AG8="-",AG8=0),"-",+'Salud Financiera'!AG5/'Salud Financiera'!AG8) ->  | AH13: =IF(ISNUMBER(AVERAGEIF(C13:AF13,"<> -")),AVERAGEIF(C13:AF13,"<> -"),"-") -> - | AI13: =IF(ISNUMBER(AVERAGEIF(AB13:AF13,"<> -")),AVERAGEIF(AB13:AF13,"<> -"),"-") -> - | AL13: =IF(OR(AL5="-",AL5=0,AL8="-",AL8=0),"-",+'Salud Financiera'!AL5/'Salud Financiera'!AL8) ->  | AM13: =IF(OR(AM5="-",AM5=0,AM8="-",AM8=0),"-",+'Salud Financiera'!AM5/'Salud Financiera'!AM8) ->  | AN13: =IF(OR(AN5="-",AN5=0,AN8="-",AN8=0),"-",+'Salud Financiera'!AN5/'Salud Financiera'!AN8) ->  | AO13: =IF(OR(AO5="-",AO5=0,AO8="-",AO8=0),"-",+'Salud Financiera'!AO5/'Salud Financiera'!AO8) ->  | AP13: =IF(OR(AP5="-",AP5=0,AP8="-",AP8=0),"-",+'Salud Financiera'!AP5/'Salud Financiera'!AP8) ->  | AQ13: =IF(OR(AQ5="-",AQ5=0,AQ8="-",AQ8=0),"-",+'Salud Financiera'!AQ5/'Salud Financiera'!AQ8) ->  | AR13: =IF(OR(AR5="-",AR5=0,AR8="-",AR8=0),"-",+'Salud Financiera'!AR5/'Salud Financiera'!AR8) ->  | AS13: =IF(OR(AS5="-",AS5=0,AS8="-",AS8=0),"-",+'Salud Financiera'!AS5/'Salud Financiera'!AS8) ->  | AT13: =IF(ISNUMBER(AVERAGEIF(AL13:AS13,"<> -")),AVERAGEIF(AL13:AS13,"<> -"),"-") -> -
D14: =IF(OR(D13="-",D13=0,C13="-",C13=0),"-",+(D13-C13)/ABS(C13)) ->  | S14: =IF(OR(S13="-",S13=0,R13="-",R13=0),"-",+(S13-R13)/ABS(R13)) ->  | T14: =IF(OR(T13="-",T13=0,S13="-",S13=0),"-",+(T13-S13)/ABS(S13)) ->  | AM14: =IF(OR(AM13="-",AM13=0,AL13="-",AL13=0),"-",+(AM13-AL13)/ABS(AL13)) ->  | AN14: =IF(OR(AN13="-",AN13=0,AM13="-",AM13=0),"-",+(AN13-AM13)/ABS(AM13)) ->  | AO14: =IF(OR(AO13="-",AO13=0,AN13="-",AN13=0),"-",+(AO13-AN13)/ABS(AN13)) ->  | AP14: =IF(OR(AP13="-",AP13=0,AO13="-",AO13=0),"-",+(AP13-AO13)/ABS(AO13)) ->  | AQ14: =IF(OR(AQ13="-",AQ13=0,AP13="-",AP13=0),"-",+(AQ13-AP13)/ABS(AP13)) ->  | AR14: =IF(OR(AR13="-",AR13=0,AQ13="-",AQ13=0),"-",+(AR13-AQ13)/ABS(AQ13)) ->  | AS14: =IF(OR(AS13="-",AS13=0,AR13="-",AR13=0),"-",+(AS13-AR13)/ABS(AR13)) -> 
A15: Quick Ratio | C15: =IF(OR(C5="-",C5=0,C8="-",C8=0),"-",+('Salud Financiera'!C5-'Salud Financiera'!C4)/'Salud Financiera'!C8) ->  | D15: =IF(OR(D5="-",D5=0,D8="-",D8=0),"-",+('Salud Financiera'!D5-'Salud Financiera'!D4)/'Salud Financiera'!D8) ->  | E15: =IF(OR(E5="-",E5=0,E8="-",E8=0),"-",+('Salud Financiera'!E5-'Salud Financiera'!E4)/'Salud Financiera'!E8) ->  | F15: =IF(OR(F5="-",F5=0,F8="-",F8=0),"-",+('Salud Financiera'!F5-'Salud Financiera'!F4)/'Salud Financiera'!F8) ->  | G15: =IF(OR(G5="-",G5=0,G8="-",G8=0),"-",+('Salud Financiera'!G5-'Salud Financiera'!G4)/'Salud Financiera'!G8) ->  | H15: =IF(OR(H5="-",H5=0,H8="-",H8=0),"-",+('Salud Financiera'!H5-'Salud Financiera'!H4)/'Salud Financiera'!H8) ->  | I15: =IF(OR(I5="-",I5=0,I8="-",I8=0),"-",+('Salud Financiera'!I5-'Salud Financiera'!I4)/'Salud Financiera'!I8) ->  | J15: =IF(OR(J5="-",J5=0,J8="-",J8=0),"-",+('Salud Financiera'!J5-'Salud Financiera'!J4)/'Salud Financiera'!J8) ->  | K15: =IF(OR(K5="-",K5=0,K8="-",K8=0),"-",+('Salud Financiera'!K5-'Salud Financiera'!K4)/'Salud Financiera'!K8) ->  | L15: =IF(OR(L5="-",L5=0,L8="-",L8=0),"-",+('Salud Financiera'!L5-'Salud Financiera'!L4)/'Salud Financiera'!L8) ->  | M15: =IF(OR(M5="-",M5=0,M8="-",M8=0),"-",+('Salud Financiera'!M5-'Salud Financiera'!M4)/'Salud Financiera'!M8) ->  | N15: =IF(OR(N5="-",N5=0,N8="-",N8=0),"-",+('Salud Financiera'!N5-'Salud Financiera'!N4)/'Salud Financiera'!N8) ->  | O15: =IF(OR(O5="-",O5=0,O8="-",O8=0),"-",+('Salud Financiera'!O5-'Salud Financiera'!O4)/'Salud Financiera'!O8) ->  | P15: =IF(OR(P5="-",P5=0,P8="-",P8=0),"-",+('Salud Financiera'!P5-'Salud Financiera'!P4)/'Salud Financiera'!P8) ->  | Q15: =IF(OR(Q5="-",Q5=0,Q8="-",Q8=0),"-",+('Salud Financiera'!Q5-'Salud Financiera'!Q4)/'Salud Financiera'!Q8) ->  | R15: =IF(OR(R5="-",R5=0,R8="-",R8=0),"-",+('Salud Financiera'!R5-'Salud Financiera'!R4)/'Salud Financiera'!R8) ->  | S15: =IF(OR(S5="-",S5=0,S8="-",S8=0),"-",+('Salud Financiera'!S5-'Salud Financiera'!S4)/'Salud Financiera'!S8) ->  | T15: =IF(OR(T5="-",T5=0,T8="-",T8=0),"-",+('Salud Financiera'!T5-'Salud Financiera'!T4)/'Salud Financiera'!T8) ->  | U15: =IF(OR(U5="-",U5=0,U8="-",U8=0),"-",+('Salud Financiera'!U5-'Salud Financiera'!U4)/'Salud Financiera'!U8) ->  | V15: =IF(OR(V5="-",V5=0,V8="-",V8=0),"-",+('Salud Financiera'!V5-'Salud Financiera'!V4)/'Salud Financiera'!V8) ->  | W15: =IF(OR(W5="-",W5=0,W8="-",W8=0),"-",+('Salud Financiera'!W5-'Salud Financiera'!W4)/'Salud Financiera'!W8) ->  | X15: =IF(OR(X5="-",X5=0,X8="-",X8=0),"-",+('Salud Financiera'!X5-'Salud Financiera'!X4)/'Salud Financiera'!X8) ->  | Y15: =IF(OR(Y5="-",Y5=0,Y8="-",Y8=0),"-",+('Salud Financiera'!Y5-'Salud Financiera'!Y4)/'Salud Financiera'!Y8) ->  | Z15: =IF(OR(Z5="-",Z5=0,Z8="-",Z8=0),"-",+('Salud Financiera'!Z5-'Salud Financiera'!Z4)/'Salud Financiera'!Z8) ->  | AA15: =IF(OR(AA5="-",AA5=0,AA8="-",AA8=0),"-",+('Salud Financiera'!AA5-'Salud Financiera'!AA4)/'Salud Financiera'!AA8) ->  | AB15: =IF(OR(AB5="-",AB5=0,AB8="-",AB8=0),"-",+('Salud Financiera'!AB5-'Salud Financiera'!AB4)/'Salud Financiera'!AB8) ->  | AC15: =IF(OR(AC5="-",AC5=0,AC8="-",AC8=0),"-",+('Salud Financiera'!AC5-'Salud Financiera'!AC4)/'Salud Financiera'!AC8) ->  | AD15: =IF(OR(AD5="-",AD5=0,AD8="-",AD8=0),"-",+('Salud Financiera'!AD5-'Salud Financiera'!AD4)/'Salud Financiera'!AD8) ->  | AE15: =IF(OR(AE5="-",AE5=0,AE8="-",AE8=0),"-",+('Salud Financiera'!AE5-'Salud Financiera'!AE4)/'Salud Financiera'!AE8) ->  | AF15: =IF(OR(AF5="-",AF5=0,AF8="-",AF8=0),"-",+('Salud Financiera'!AF5-'Salud Financiera'!AF4)/'Salud Financiera'!AF8) ->  | AG15: =IF(OR(AG5="-",AG5=0,AG8="-",AG8=0),"-",+('Salud Financiera'!AG5-'Salud Financiera'!AG4)/'Salud Financiera'!AG8) ->  | AH15: =IF(ISNUMBER(AVERAGEIF(C15:AF15,"<> -")),AVERAGEIF(C15:AF15,"<> -"),"-") -> - | AI15: =IF(ISNUMBER(AVERAGEIF(AB15:AF15,"<> -")),AVERAGEIF(AB15:AF15,"<> -"),"-") -> - | AL15: =IF(OR(AL5="-",AL5=0,AL8="-",AL8=0),"-",+('Salud Financiera'!AL5-'Salud Financiera'!AL4)/'Salud Financiera'!AL8) ->  | AM15: =IF(OR(AM5="-",AM5=0,AM8="-",AM8=0),"-",+('Salud Financiera'!AM5-'Salud Financiera'!AM4)/'Salud Financiera'!AM8) ->  | AN15: =IF(OR(AN5="-",AN5=0,AN8="-",AN8=0),"-",+('Salud Financiera'!AN5-'Salud Financiera'!AN4)/'Salud Financiera'!AN8) ->  | AO15: =IF(OR(AO5="-",AO5=0,AO8="-",AO8=0),"-",+('Salud Financiera'!AO5-'Salud Financiera'!AO4)/'Salud Financiera'!AO8) ->  | AP15: =IF(OR(AP5="-",AP5=0,AP8="-",AP8=0),"-",+('Salud Financiera'!AP5-'Salud Financiera'!AP4)/'Salud Financiera'!AP8) ->  | AQ15: =IF(OR(AQ5="-",AQ5=0,AQ8="-",AQ8=0),"-",+('Salud Financiera'!AQ5-'Salud Financiera'!AQ4)/'Salud Financiera'!AQ8) ->  | AR15: =IF(OR(AR5="-",AR5=0,AR8="-",AR8=0),"-",+('Salud Financiera'!AR5-'Salud Financiera'!AR4)/'Salud Financiera'!AR8) ->  | AS15: =IF(OR(AS5="-",AS5=0,AS8="-",AS8=0),"-",+('Salud Financiera'!AS5-'Salud Financiera'!AS4)/'Salud Financiera'!AS8) ->  | AT15: =IF(ISNUMBER(AVERAGEIF(AL15:AS15,"<> -")),AVERAGEIF(AL15:AS15,"<> -"),"-") -> -
D16: =IF(OR(D15="-",D15=0,C15="-",C15=0),"-",+(D15-C15)/ABS(C15)) ->  | E16: =IF(OR(E15="-",E15=0,D15="-",D15=0),"-",+(E15-D15)/ABS(D15)) ->  | F16: =IF(OR(F15="-",F15=0,E15="-",E15=0),"-",+(F15-E15)/ABS(E15)) ->  | G16: =IF(OR(G15="-",G15=0,F15="-",F15=0),"-",+(G15-F15)/ABS(F15)) ->  | H16: =IF(OR(H15="-",H15=0,G15="-",G15=0),"-",+(H15-G15)/ABS(G15)) ->  | I16: =IF(OR(I15="-",I15=0,H15="-",H15=0),"-",+(I15-H15)/ABS(H15)) ->  | J16: =IF(OR(J15="-",J15=0,I15="-",I15=0),"-",+(J15-I15)/ABS(I15)) ->  | K16: =IF(OR(K15="-",K15=0,J15="-",J15=0),"-",+(K15-J15)/ABS(J15)) ->  | L16: =IF(OR(L15="-",L15=0,K15="-",K15=0),"-",+(L15-K15)/ABS(K15)) ->  | M16: =IF(OR(M15="-",M15=0,L15="-",L15=0),"-",+(M15-L15)/ABS(L15)) ->  | N16: =IF(OR(N15="-",N15=0,M15="-",M15=0),"-",+(N15-M15)/ABS(M15)) ->  | O16: =IF(OR(O15="-",O15=0,N15="-",N15=0),"-",+(O15-N15)/ABS(N15)) ->  | P16: =IF(OR(P15="-",P15=0,O15="-",O15=0),"-",+(P15-O15)/ABS(O15)) ->  | Q16: =IF(OR(Q15="-",Q15=0,P15="-",P15=0),"-",+(Q15-P15)/ABS(P15)) ->  | R16: =IF(OR(R15="-",R15=0,Q15="-",Q15=0),"-",+(R15-Q15)/ABS(Q15)) ->  | S16: =IF(OR(S15="-",S15=0,R15="-",R15=0),"-",+(S15-R15)/ABS(R15)) ->  | T16: =IF(OR(T15="-",T15=0,S15="-",S15=0),"-",+(T15-S15)/ABS(S15)) ->  | AM16: =IF(OR(AM15="-",AM15=0,AL15="-",AL15=0),"-",+(AM15-AL15)/ABS(AL15)) ->  | AN16: =IF(OR(AN15="-",AN15=0,AM15="-",AM15=0),"-",+(AN15-AM15)/ABS(AM15)) ->  | AO16: =IF(OR(AO15="-",AO15=0,AN15="-",AN15=0),"-",+(AO15-AN15)/ABS(AN15)) ->  | AP16: =IF(OR(AP15="-",AP15=0,AO15="-",AO15=0),"-",+(AP15-AO15)/ABS(AO15)) ->  | AQ16: =IF(OR(AQ15="-",AQ15=0,AP15="-",AP15=0),"-",+(AQ15-AP15)/ABS(AP15)) ->  | AR16: =IF(OR(AR15="-",AR15=0,AQ15="-",AQ15=0),"-",+(AR15-AQ15)/ABS(AQ15)) ->  | AS16: =IF(OR(AS15="-",AS15=0,AR15="-",AR15=0),"-",+(AS15-AR15)/ABS(AR15)) -> 
A17: Fondos Propios/Activos | C17: =IF(OR(C7="-",C7=0,C9="-",C9=0),"-",+('Salud Financiera'!C7-'Salud Financiera'!C9)/'Salud Financiera'!C7) -> - | D17: =IF(OR(D7="-",D7=0,D9="-",D9=0),"-",+('Salud Financiera'!D7-'Salud Financiera'!D9)/'Salud Financiera'!D7) -> - | E17: =IF(OR(E7="-",E7=0,E9="-",E9=0),"-",+('Salud Financiera'!E7-'Salud Financiera'!E9)/'Salud Financiera'!E7) -> 0.4955296896 | F17: =IF(OR(F7="-",F7=0,F9="-",F9=0),"-",+('Salud Financiera'!F7-'Salud Financiera'!F9)/'Salud Financiera'!F7) -> 0.5102994766 | G17: =IF(OR(G7="-",G7=0,G9="-",G9=0),"-",+('Salud Financiera'!G7-'Salud Financiera'!G9)/'Salud Financiera'!G7) -> 0.5250165242 | H17: =IF(OR(H7="-",H7=0,H9="-",H9=0),"-",+('Salud Financiera'!H7-'Salud Financiera'!H9)/'Salud Financiera'!H7) -> 0.5342281192 | I17: =IF(OR(I7="-",I7=0,I9="-",I9=0),"-",+('Salud Financiera'!I7-'Salud Financiera'!I9)/'Salud Financiera'!I7) -> 0.5565089839 | J17: =IF(OR(J7="-",J7=0,J9="-",J9=0),"-",+('Salud Financiera'!J7-'Salud Financiera'!J9)/'Salud Financiera'!J7) -> 0.5829983909 | K17: =IF(OR(K7="-",K7=0,K9="-",K9=0),"-",+('Salud Financiera'!K7-'Salud Financiera'!K9)/'Salud Financiera'!K7) -> 0.5396596129 | L17: =IF(OR(L7="-",L7=0,L9="-",L9=0),"-",+('Salud Financiera'!L7-'Salud Financiera'!L9)/'Salud Financiera'!L7) -> 0.5605852685 | M17: =IF(OR(M7="-",M7=0,M9="-",M9=0),"-",+('Salud Financiera'!M7-'Salud Financiera'!M9)/'Salud Financiera'!M7) -> 0.4696041297 | N17: =IF(OR(N7="-",N7=0,N9="-",N9=0),"-",+('Salud Financiera'!N7-'Salud Financiera'!N9)/'Salud Financiera'!N7) -> 0.4395279114 | O17: =IF(OR(O7="-",O7=0,O9="-",O9=0),"-",+('Salud Financiera'!O7-'Salud Financiera'!O9)/'Salud Financiera'!O7) -> 0.4545481324 | P17: =IF(OR(P7="-",P7=0,P9="-",P9=0),"-",+('Salud Financiera'!P7-'Salud Financiera'!P9)/'Salud Financiera'!P7) -> 0.3560632127 | Q17: =IF(OR(Q7="-",Q7=0,Q9="-",Q9=0),"-",+('Salud Financiera'!Q7-'Salud Financiera'!Q9)/'Salud Financiera'!Q7) -> 0.3777013637 | R17: =IF(OR(R7="-",R7=0,R9="-",R9=0),"-",+('Salud Financiera'!R7-'Salud Financiera'!R9)/'Salud Financiera'!R7) -> 0.4297542631 | S17: =IF(OR(S7="-",S7=0,S9="-",S9=0),"-",+('Salud Financiera'!S7-'Salud Financiera'!S9)/'Salud Financiera'!S7) -> 0.4548005549 | T17: =IF(OR(T7="-",T7=0,T9="-",T9=0),"-",+('Salud Financiera'!T7-'Salud Financiera'!T9)/'Salud Financiera'!T7) -> 0.4612832472 | U17: =IF(OR(U7="-",U7=0,U9="-",U9=0),"-",+('Salud Financiera'!U7-'Salud Financiera'!U9)/'Salud Financiera'!U7) -> 0.4364044003 | V17: =IF(OR(V7="-",V7=0,V9="-",V9=0),"-",+('Salud Financiera'!V7-'Salud Financiera'!V9)/'Salud Financiera'!V7) -> 0.4419863816 | W17: =IF(OR(W7="-",W7=0,W9="-",W9=0),"-",+('Salud Financiera'!W7-'Salud Financiera'!W9)/'Salud Financiera'!W7) -> 0.4086290525 | X17: =IF(OR(X7="-",X7=0,X9="-",X9=0),"-",+('Salud Financiera'!X7-'Salud Financiera'!X9)/'Salud Financiera'!X7) -> 0.4412440807 | Y17: =IF(OR(Y7="-",Y7=0,Y9="-",Y9=0),"-",+('Salud Financiera'!Y7-'Salud Financiera'!Y9)/'Salud Financiera'!Y7) -> 0.4226376773 | Z17: =IF(OR(Z7="-",Z7=0,Z9="-",Z9=0),"-",+('Salud Financiera'!Z7-'Salud Financiera'!Z9)/'Salud Financiera'!Z7) -> 0.4198427595 | AA17: =IF(OR(AA7="-",AA7=0,AA9="-",AA9=0),"-",+('Salud Financiera'!AA7-'Salud Financiera'!AA9)/'Salud Financiera'!AA7) -> 0.4389896409 | AB17: =IF(OR(AB7="-",AB7=0,AB9="-",AB9=0),"-",+('Salud Financiera'!AB7-'Salud Financiera'!AB9)/'Salud Financiera'!AB7) -> 0.4575702523 | AC17: =IF(OR(AC7="-",AC7=0,AC9="-",AC9=0),"-",+('Salud Financiera'!AC7-'Salud Financiera'!AC9)/'Salud Financiera'!AC7) -> 0.4567124387 | AD17: =IF(OR(AD7="-",AD7=0,AD9="-",AD9=0),"-",+('Salud Financiera'!AD7-'Salud Financiera'!AD9)/'Salud Financiera'!AD7) -> 0.4627374574 | AE17: =IF(OR(AE7="-",AE7=0,AE9="-",AE9=0),"-",+('Salud Financiera'!AE7-'Salud Financiera'!AE9)/'Salud Financiera'!AE7) -> 0.4543258157 | AF17: =IF(OR(AF7="-",AF7=0,AF9="-",AF9=0),"-",+('Salud Financiera'!AF7-'Salud Financiera'!AF9)/'Salud Financiera'!AF7) -> 0.4960810147 | AG17: =IF(OR(AG7="-",AG7=0,AG9="-",AG9=0),"-",+('Salud Financiera'!AG7-'Salud Financiera'!AG9)/'Salud Financiera'!AG7) -> 0.4960810147 | AH17: =IF(ISNUMBER(AVERAGEIF(C17:AF17,"<> -")),AVERAGEIF(C17:AF17,"<> -"),"-") -> 0.4673310662 | AI17: =IF(ISNUMBER(AVERAGEIF(AB17:AF17,"<> -")),AVERAGEIF(AB17:AF17,"<> -"),"-") -> 0.4654853957 | AL17: =IF(OR(AL7="-",AL7=0,AL9="-",AL9=0),"-",+('Salud Financiera'!AL7-'Salud Financiera'!AL9)/'Salud Financiera'!AL7) -> 0.4411638795 | AM17: =IF(OR(AM7="-",AM7=0,AM9="-",AM9=0),"-",+('Salud Financiera'!AM7-'Salud Financiera'!AM9)/'Salud Financiera'!AM7) -> 0.4436874173 | AN17: =IF(OR(AN7="-",AN7=0,AN9="-",AN9=0),"-",+('Salud Financiera'!AN7-'Salud Financiera'!AN9)/'Salud Financiera'!AN7) -> 0.4457732792 | AO17: =IF(OR(AO7="-",AO7=0,AO9="-",AO9=0),"-",+('Salud Financiera'!AO7-'Salud Financiera'!AO9)/'Salud Financiera'!AO7) -> 0.4543258157 | AP17: =IF(OR(AP7="-",AP7=0,AP9="-",AP9=0),"-",+('Salud Financiera'!AP7-'Salud Financiera'!AP9)/'Salud Financiera'!AP7) -> 0.4474758232 | AQ17: =IF(OR(AQ7="-",AQ7=0,AQ9="-",AQ9=0),"-",+('Salud Financiera'!AQ7-'Salud Financiera'!AQ9)/'Salud Financiera'!AQ7) -> 0.4517180246 | AR17: =IF(OR(AR7="-",AR7=0,AR9="-",AR9=0),"-",+('Salud Financiera'!AR7-'Salud Financiera'!AR9)/'Salud Financiera'!AR7) -> 0.4523163242 | AS17: =IF(OR(AS7="-",AS7=0,AS9="-",AS9=0),"-",+('Salud Financiera'!AS7-'Salud Financiera'!AS9)/'Salud Financiera'!AS7) -> 0.4960810147 | AT17: =IF(ISNUMBER(AVERAGEIF(AL17:AS17,"<> -")),AVERAGEIF(AL17:AS17,"<> -"),"-") -> 0.4540676973
D18: =IF(OR(D17="-",D17=0,C17="-",C17=0),"-",+(D17-C17)/ABS(C17)) -> - | E18: =IF(OR(E17="-",E17=0,D17="-",D17=0),"-",+(E17-D17)/ABS(D17)) -> - | F18: =IF(OR(F17="-",F17=0,E17="-",E17=0),"-",+(F17-E17)/ABS(E17)) -> 0.02980605856 | G18: =IF(OR(G17="-",G17=0,F17="-",F17=0),"-",+(G17-F17)/ABS(F17)) -> 0.02884002113 | H18: =IF(OR(H17="-",H17=0,G17="-",G17=0),"-",+(H17-G17)/ABS(G17)) -> 0.01754534284 | I18: =IF(OR(I17="-",I17=0,H17="-",H17=0),"-",+(I17-H17)/ABS(H17)) -> 0.04170664915 | J18: =IF(OR(J17="-",J17=0,I17="-",I17=0),"-",+(J17-I17)/ABS(I17)) -> 0.04759924415 | K18: =IF(OR(K17="-",K17=0,J17="-",J17=0),"-",+(K17-J17)/ABS(J17)) -> -0.07433773174 | L18: =IF(OR(L17="-",L17=0,K17="-",K17=0),"-",+(L17-K17)/ABS(K17)) -> 0.03877565616 | M18: =IF(OR(M17="-",M17=0,L17="-",L17=0),"-",+(M17-L17)/ABS(L17)) -> -0.1622966994 | N18: =IF(OR(N17="-",N17=0,M17="-",M17=0),"-",+(N17-M17)/ABS(M17)) -> -0.06404589827 | O18: =IF(OR(O17="-",O17=0,N17="-",N17=0),"-",+(O17-N17)/ABS(N17)) -> 0.03417353184 | P18: =IF(OR(P17="-",P17=0,O17="-",O17=0),"-",+(P17-O17)/ABS(O17)) -> -0.2166655469 | Q18: =IF(OR(Q17="-",Q17=0,P17="-",P17=0),"-",+(Q17-P17)/ABS(P17)) -> 0.06077053215 | R18: =IF(OR(R17="-",R17=0,Q17="-",Q17=0),"-",+(R17-Q17)/ABS(Q17)) -> 0.1378149631 | S18: =IF(OR(S17="-",S17=0,R17="-",R17=0),"-",+(S17-R17)/ABS(R17)) -> 0.05828049624 | T18: =IF(OR(T17="-",T17=0,S17="-",S17=0),"-",+(T17-S17)/ABS(S17)) -> 0.01425392352 | U18: -0.05393399183 | V18: 0.01279084559 | W18: -0.0754713958 | X18: 0.07981573506 | Y18: -0.04216805194 | Z18: -0.006613035152 | AA18: 0.04560488655 | AB18: 0.04232585371 | AC18: -0.001874714455 | AD18: 0.01319214931 | AE18: -0.01817800032 | AF18: 0.09190584708 | AG18: 0 | AM18: =IF(OR(AM17="-",AM17=0,AL17="-",AL17=0),"-",+(AM17-AL17)/ABS(AL17)) -> 0.0057201824 | AN18: =IF(OR(AN17="-",AN17=0,AM17="-",AM17=0),"-",+(AN17-AM17)/ABS(AM17)) -> 0.004701196697 | AO18: =IF(OR(AO17="-",AO17=0,AN17="-",AN17=0),"-",+(AO17-AN17)/ABS(AN17)) -> 0.01918584394 | AP18: =IF(OR(AP17="-",AP17=0,AO17="-",AO17=0),"-",+(AP17-AO17)/ABS(AO17)) -> -0.01507726888 | AQ18: =IF(OR(AQ17="-",AQ17=0,AP17="-",AP17=0),"-",+(AQ17-AP17)/ABS(AP17)) -> 0.009480291766 | AR18: =IF(OR(AR17="-",AR17=0,AQ17="-",AQ17=0),"-",+(AR17-AQ17)/ABS(AQ17)) -> 0.001324497856 | AS18: =IF(OR(AS17="-",AS17=0,AR17="-",AR17=0),"-",+(AS17-AR17)/ABS(AR17)) -> 0.09675682299
A19: % Intereses | B19: Effective Interest Rate on Debt % | C19: =VLOOKUP($B19,'Historical Financial'!$A:$AF,2,FALSE) -> 0 | D19: =VLOOKUP($B19,'Historical Financial'!$A:$AF,3,FALSE) -> 0 | E19: =VLOOKUP($B19,'Historical Financial'!$A:$AF,4,FALSE) -> 18.19 | F19: =VLOOKUP($B19,'Historical Financial'!$A:$AF,5,FALSE) -> 9.77 | G19: =VLOOKUP($B19,'Historical Financial'!$A:$AF,6,FALSE) -> 9.75 | H19: =VLOOKUP($B19,'Historical Financial'!$A:$AF,7,FALSE) -> 7.1 | I19: =VLOOKUP($B19,'Historical Financial'!$A:$AF,8,FALSE) -> 6.74 | J19: =VLOOKUP($B19,'Historical Financial'!$A:$AF,9,FALSE) -> 6.33 | K19: =VLOOKUP($B19,'Historical Financial'!$A:$AF,10,FALSE) -> 6.65 | L19: =VLOOKUP($B19,'Historical Financial'!$A:$AF,11,FALSE) -> 5.32 | M19: =VLOOKUP($B19,'Historical Financial'!$A:$AF,12,FALSE) -> 4.69 | N19: =VLOOKUP($B19,'Historical Financial'!$A:$AF,13,FALSE) -> 5.53 | O19: =VLOOKUP($B19,'Historical Financial'!$A:$AF,14,FALSE) -> 5.62 | P19: =VLOOKUP($B19,'Historical Financial'!$A:$AF,15,FALSE) -> 2.76 | Q19: =VLOOKUP($B19,'Historical Financial'!$A:$AF,16,FALSE) -> 6.65 | R19: =VLOOKUP($B19,'Historical Financial'!$A:$AF,17,FALSE) -> 5.13 | S19: =VLOOKUP($B19,'Historical Financial'!$A:$AF,18,FALSE) -> 8.03 | T19: =VLOOKUP($B19,'Historical Financial'!$A:$AF,19,FALSE) -> 6.21 | U19: =VLOOKUP($B19,'Historical Financial'!$A:$AF,20,FALSE) -> 7.33 | V19: =VLOOKUP($B19,'Historical Financial'!$A:$AF,21,FALSE) -> 5.75 | W19: =VLOOKUP($B19,'Historical Financial'!$A:$AF,22,FALSE) -> 5.55 | X19: =VLOOKUP($B19,'Historical Financial'!$A:$AF,23,FALSE) -> 5.33 | Y19: =VLOOKUP($B19,'Historical Financial'!$A:$AF,24,FALSE) -> 5.3 | Z19: =VLOOKUP($B19,'Historical Financial'!$A:$AF,25,FALSE) -> 4.48 | AA19: =VLOOKUP($B19,'Historical Financial'!$A:$AF,26,FALSE) -> 4.46 | AB19: =VLOOKUP($B19,'Historical Financial'!$A:$AF,27,FALSE) -> 4.15 | AC19: =VLOOKUP($B19,'Historical Financial'!$A:$AF,28,FALSE) -> 4.28 | AD19: =VLOOKUP($B19,'Historical Financial'!$A:$AF,29,FALSE) -> 4.28 | AE19: =VLOOKUP($B19,'Historical Financial'!$A:$AF,30,FALSE) -> 3.76 | AF19: =VLOOKUP($B19,'Historical Financial'!$A:$AF,31,FALSE) -> 5.28 | AG19: =VLOOKUP($B19,'Historical Financial'!$A:$AF,32,FALSE) -> 5.27 | AH19: =IF(ISNUMBER(AVERAGEIF(C19:AF19,"<> -")),AVERAGEIF(C19:AF19,"<> -"),"-") -> 5.814 | AI19: =IF(ISNUMBER(AVERAGEIF(AB19:AF19,"<> -")),AVERAGEIF(AB19:AF19,"<> -"),"-") -> 4.35 | AL19: =VLOOKUP($B19,'Historical Financial'!$A:$EW,146,FALSE) -> 5.05 | AM19: =VLOOKUP($B19,'Historical Financial'!$A:$EW,147,FALSE) -> 2.87 | AN19: =VLOOKUP($B19,'Historical Financial'!$A:$EW,148,FALSE) -> 4.11 | AO19: =VLOOKUP($B19,'Historical Financial'!$A:$EW,149,FALSE) -> 2.18 | AP19: =VLOOKUP($B19,'Historical Financial'!$A:$EW,150,FALSE) -> 4.15 | AQ19: =VLOOKUP($B19,'Historical Financial'!$A:$EW,151,FALSE) -> 5.82 | AR19: =VLOOKUP($B19,'Historical Financial'!$A:$EW,152,FALSE) -> 4.84 | AS19: =VLOOKUP($B19,'Historical Financial'!$A:$EW,153,FALSE) -> 6.25 | AT19: =IF(ISNUMBER(AVERAGEIF(AL19:AS19,"<> -")),AVERAGEIF(AL19:AS19,"<> -"),"-") -> 4.40875
D20: =IF(OR(D19="-",D19=0,C19="-",C19=0),"-",+(D19-C19)/ABS(C19)) -> - | E20: =IF(OR(E19="-",E19=0,D19="-",D19=0),"-",+(E19-D19)/ABS(D19)) -> - | F20: =IF(OR(F19="-",F19=0,E19="-",E19=0),"-",+(F19-E19)/ABS(E19)) -> -0.4628916987 | G20: =IF(OR(G19="-",G19=0,F19="-",F19=0),"-",+(G19-F19)/ABS(F19)) -> -0.002047082907 | H20: =IF(OR(H19="-",H19=0,G19="-",G19=0),"-",+(H19-G19)/ABS(G19)) -> -0.2717948718 | I20: =IF(OR(I19="-",I19=0,H19="-",H19=0),"-",+(I19-H19)/ABS(H19)) -> -0.05070422535 | J20: =IF(OR(J19="-",J19=0,I19="-",I19=0),"-",+(J19-I19)/ABS(I19)) -> -0.06083086053 | K20: =IF(OR(K19="-",K19=0,J19="-",J19=0),"-",+(K19-J19)/ABS(J19)) -> 0.05055292259 | L20: =IF(OR(L19="-",L19=0,K19="-",K19=0),"-",+(L19-K19)/ABS(K19)) -> -0.2 | M20: =IF(OR(M19="-",M19=0,L19="-",L19=0),"-",+(M19-L19)/ABS(L19)) -> -0.1184210526 | N20: =IF(OR(N19="-",N19=0,M19="-",M19=0),"-",+(N19-M19)/ABS(M19)) -> 0.1791044776 | O20: =IF(OR(O19="-",O19=0,N19="-",N19=0),"-",+(O19-N19)/ABS(N19)) -> 0.01627486438 | P20: =IF(OR(P19="-",P19=0,O19="-",O19=0),"-",+(P19-O19)/ABS(O19)) -> -0.5088967972 | Q20: =IF(OR(Q19="-",Q19=0,P19="-",P19=0),"-",+(Q19-P19)/ABS(P19)) -> 1.40942029 | R20: =IF(OR(R19="-",R19=0,Q19="-",Q19=0),"-",+(R19-Q19)/ABS(Q19)) -> -0.2285714286 | S20: =IF(OR(S19="-",S19=0,R19="-",R19=0),"-",+(S19-R19)/ABS(R19)) -> 0.5653021442 | T20: =IF(OR(T19="-",T19=0,S19="-",S19=0),"-",+(T19-S19)/ABS(S19)) -> -0.2266500623 | U20: 0.1803542673 | V20: -0.2155525239 | W20: -0.0347826087 | X20: -0.03963963964 | Y20: -0.005628517824 | Z20: -0.1547169811 | AA20: -0.004464285714 | AB20: -0.06950672646 | AC20: 0.0313253012 | AD20: 0 | AE20: -0.1214953271 | AF20: 0.4042553191 | AG20: -0.001893939394 | AM20: =IF(OR(AM19="-",AM19=0,AL19="-",AL19=0),"-",+(AM19-AL19)/ABS(AL19)) -> -0.4316831683 | AN20: =IF(OR(AN19="-",AN19=0,AM19="-",AM19=0),"-",+(AN19-AM19)/ABS(AM19)) -> 0.4320557491 | AO20: =IF(OR(AO19="-",AO19=0,AN19="-",AN19=0),"-",+(AO19-AN19)/ABS(AN19)) -> -0.4695863747 | AP20: =IF(OR(AP19="-",AP19=0,AO19="-",AO19=0),"-",+(AP19-AO19)/ABS(AO19)) -> 0.9036697248 | AQ20: =IF(OR(AQ19="-",AQ19=0,AP19="-",AP19=0),"-",+(AQ19-AP19)/ABS(AP19)) -> 0.4024096386 | AR20: =IF(OR(AR19="-",AR19=0,AQ19="-",AQ19=0),"-",+(AR19-AQ19)/ABS(AQ19)) -> -0.1683848797 | AS20: =IF(OR(AS19="-",AS19=0,AR19="-",AR19=0),"-",+(AS19-AR19)/ABS(AR19)) -> 0.291322314
A21: Payout | C21: =IF(OR(Crecimiento!C16="-",Crecimiento!C16=0,Crecimiento!C8="-",Crecimiento!C8=0),"-",+Crecimiento!C16/Crecimiento!C8) -> - | D21: =IF(OR(Crecimiento!D16="-",Crecimiento!D16=0,Crecimiento!D8="-",Crecimiento!D8=0),"-",+Crecimiento!D16/Crecimiento!D8) -> - | E21: =IF(OR(Crecimiento!E16="-",Crecimiento!E16=0,Crecimiento!E8="-",Crecimiento!E8=0),"-",+Crecimiento!E16/Crecimiento!E8) -> - | F21: =IF(OR(Crecimiento!F16="-",Crecimiento!F16=0,Crecimiento!F8="-",Crecimiento!F8=0),"-",+Crecimiento!F16/Crecimiento!F8) -> - | G21: =IF(OR(Crecimiento!G16="-",Crecimiento!G16=0,Crecimiento!G8="-",Crecimiento!G8=0),"-",+Crecimiento!G16/Crecimiento!G8) -> - | H21: =IF(OR(Crecimiento!H16="-",Crecimiento!H16=0,Crecimiento!H8="-",Crecimiento!H8=0),"-",+Crecimiento!H16/Crecimiento!H8) -> - | I21: =IF(OR(Crecimiento!I16="-",Crecimiento!I16=0,Crecimiento!I8="-",Crecimiento!I8=0),"-",+Crecimiento!I16/Crecimiento!I8) -> - | J21: =IF(OR(Crecimiento!J16="-",Crecimiento!J16=0,Crecimiento!J8="-",Crecimiento!J8=0),"-",+Crecimiento!J16/Crecimiento!J8) -> - | K21: =IF(OR(Crecimiento!K16="-",Crecimiento!K16=0,Crecimiento!K8="-",Crecimiento!K8=0),"-",+Crecimiento!K16/Crecimiento!K8) -> - | L21: =IF(OR(Crecimiento!L16="-",Crecimiento!L16=0,Crecimiento!L8="-",Crecimiento!L8=0),"-",+Crecimiento!L16/Crecimiento!L8) -> - | M21: =IF(OR(Crecimiento!M16="-",Crecimiento!M16=0,Crecimiento!M8="-",Crecimiento!M8=0),"-",+Crecimiento!M16/Crecimiento!M8) -> - | N21: =IF(OR(Crecimiento!N16="-",Crecimiento!N16=0,Crecimiento!N8="-",Crecimiento!N8=0),"-",+Crecimiento!N16/Crecimiento!N8) -> - | O21: =IF(OR(Crecimiento!O16="-",Crecimiento!O16=0,Crecimiento!O8="-",Crecimiento!O8=0),"-",+Crecimiento!O16/Crecimiento!O8) -> - | P21: =IF(OR(Crecimiento!P16="-",Crecimiento!P16=0,Crecimiento!P8="-",Crecimiento!P8=0),"-",+Crecimiento!P16/Crecimiento!P8) -> - | Q21: =IF(OR(Crecimiento!Q16="-",Crecimiento!Q16=0,Crecimiento!Q8="-",Crecimiento!Q8=0),"-",+Crecimiento!Q16/Crecimiento!Q8) -> - | R21: =IF(OR(Crecimiento!R16="-",Crecimiento!R16=0,Crecimiento!R8="-",Crecimiento!R8=0),"-",+Crecimiento!R16/Crecimiento!R8) -> - | S21: =IF(OR(Crecimiento!S16="-",Crecimiento!S16=0,Crecimiento!S8="-",Crecimiento!S8=0),"-",+Crecimiento!S16/Crecimiento!S8) -> - | T21: =IF(OR(Crecimiento!T16="-",Crecimiento!T16=0,Crecimiento!T8="-",Crecimiento!T8=0),"-",+Crecimiento!T16/Crecimiento!T8) -> - | U21: =IF(OR(Crecimiento!U16="-",Crecimiento!U16=0,Crecimiento!U8="-",Crecimiento!U8=0),"-",+Crecimiento!U16/Crecimiento!U8) -> - | V21: =IF(OR(Crecimiento!V16="-",Crecimiento!V16=0,Crecimiento!V8="-",Crecimiento!V8=0),"-",+Crecimiento!V16/Crecimiento!V8) -> - | W21: =IF(OR(Crecimiento!W16="-",Crecimiento!W16=0,Crecimiento!W8="-",Crecimiento!W8=0),"-",+Crecimiento!W16/Crecimiento!W8) -> - | X21: =IF(OR(Crecimiento!X16="-",Crecimiento!X16=0,Crecimiento!X8="-",Crecimiento!X8=0),"-",+Crecimiento!X16/Crecimiento!X8) -> - | Y21: =IF(OR(Crecimiento!Y16="-",Crecimiento!Y16=0,Crecimiento!Y8="-",Crecimiento!Y8=0),"-",+Crecimiento!Y16/Crecimiento!Y8) -> - | Z21: =IF(OR(Crecimiento!Z16="-",Crecimiento!Z16=0,Crecimiento!Z8="-",Crecimiento!Z8=0),"-",+Crecimiento!Z16/Crecimiento!Z8) -> - | AA21: =IF(OR(Crecimiento!AA16="-",Crecimiento!AA16=0,Crecimiento!AA8="-",Crecimiento!AA8=0),"-",+Crecimiento!AA16/Crecimiento!AA8) -> - | AB21: =IF(OR(Crecimiento!AB16="-",Crecimiento!AB16=0,Crecimiento!AB8="-",Crecimiento!AB8=0),"-",+Crecimiento!AB16/Crecimiento!AB8) -> - | AC21: =IF(OR(Crecimiento!AC16="-",Crecimiento!AC16=0,Crecimiento!AC8="-",Crecimiento!AC8=0),"-",+Crecimiento!AC16/Crecimiento!AC8) -> - | AD21: =IF(OR(Crecimiento!AD16="-",Crecimiento!AD16=0,Crecimiento!AD8="-",Crecimiento!AD8=0),"-",+Crecimiento!AD16/Crecimiento!AD8) -> - | AE21: =IF(OR(Crecimiento!AE16="-",Crecimiento!AE16=0,Crecimiento!AE8="-",Crecimiento!AE8=0),"-",+Crecimiento!AE16/Crecimiento!AE8) -> - | AF21: =IF(OR(Crecimiento!AF16="-",Crecimiento!AF16=0,Crecimiento!AF8="-",Crecimiento!AF8=0),"-",+Crecimiento!AF16/Crecimiento!AF8) -> - | AG21: =IF(OR(Crecimiento!AG16="-",Crecimiento!AG16=0,Crecimiento!AG8="-",Crecimiento!AG8=0),"-",+Crecimiento!AG16/Crecimiento!AG8) -> - | AH21: =IF(Crecimiento!AH16=0,0,IF(ISNUMBER(AVERAGEIF(C21:AF21,"<> -")),AVERAGEIF(C21:AF21,"<> -"),"-")) -> 0 | AI21: =IF(Crecimiento!AI16=0,0,IF(ISNUMBER(AVERAGEIF(AB21:AF21,"<> -")),AVERAGEIF(AB21:AF21,"<> -"),"-")) -> 0 | AL21: =IF(OR(Crecimiento!AL16="-",Crecimiento!AL16=0,Crecimiento!AL8="-",Crecimiento!AL8=0),"-",+Crecimiento!AL16/Crecimiento!AL8) -> - | AM21: =IF(OR(Crecimiento!AM16="-",Crecimiento!AM16=0,Crecimiento!AM8="-",Crecimiento!AM8=0),"-",+Crecimiento!AM16/Crecimiento!AM8) -> - | AN21: =IF(OR(Crecimiento!AN16="-",Crecimiento!AN16=0,Crecimiento!AN8="-",Crecimiento!AN8=0),"-",+Crecimiento!AN16/Crecimiento!AN8) -> - | AO21: =IF(OR(Crecimiento!AO16="-",Crecimiento!AO16=0,Crecimiento!AO8="-",Crecimiento!AO8=0),"-",+Crecimiento!AO16/Crecimiento!AO8) -> - | AP21: =IF(OR(Crecimiento!AP16="-",Crecimiento!AP16=0,Crecimiento!AP8="-",Crecimiento!AP8=0),"-",+Crecimiento!AP16/Crecimiento!AP8) -> - | AQ21: =IF(OR(Crecimiento!AQ16="-",Crecimiento!AQ16=0,Crecimiento!AQ8="-",Crecimiento!AQ8=0),"-",+Crecimiento!AQ16/Crecimiento!AQ8) -> - | AR21: =IF(OR(Crecimiento!AR16="-",Crecimiento!AR16=0,Crecimiento!AR8="-",Crecimiento!AR8=0),"-",+Crecimiento!AR16/Crecimiento!AR8) -> - | AS21: =IF(OR(Crecimiento!AS16="-",Crecimiento!AS16=0,Crecimiento!AS8="-",Crecimiento!AS8=0),"-",+Crecimiento!AS16/Crecimiento!AS8) -> - | AT21: =IF(ISNUMBER(AVERAGEIF(AL21:AS21,"<> -")),AVERAGEIF(AL21:AS21,"<> -"),"-") -> -
D22: =IF(OR(D21="-",D21=0,C21="-",C21=0),"-",+(D21-C21)/ABS(C21)) -> - | E22: =IF(OR(E21="-",E21=0,D21="-",D21=0),"-",+(E21-D21)/ABS(D21)) -> - | F22: =IF(OR(F21="-",F21=0,E21="-",E21=0),"-",+(F21-E21)/ABS(E21)) -> - | G22: =IF(OR(G21="-",G21=0,F21="-",F21=0),"-",+(G21-F21)/ABS(F21)) -> - | H22: =IF(OR(H21="-",H21=0,G21="-",G21=0),"-",+(H21-G21)/ABS(G21)) -> - | I22: =IF(OR(I21="-",I21=0,H21="-",H21=0),"-",+(I21-H21)/ABS(H21)) -> - | J22: =IF(OR(J21="-",J21=0,I21="-",I21=0),"-",+(J21-I21)/ABS(I21)) -> - | K22: =IF(OR(K21="-",K21=0,J21="-",J21=0),"-",+(K21-J21)/ABS(J21)) -> - | L22: =IF(OR(L21="-",L21=0,K21="-",K21=0),"-",+(L21-K21)/ABS(K21)) -> - | M22: =IF(OR(M21="-",M21=0,L21="-",L21=0),"-",+(M21-L21)/ABS(L21)) -> - | N22: =IF(OR(N21="-",N21=0,M21="-",M21=0),"-",+(N21-M21)/ABS(M21)) -> - | O22: =IF(OR(O21="-",O21=0,N21="-",N21=0),"-",+(O21-N21)/ABS(N21)) -> - | P22: =IF(OR(P21="-",P21=0,O21="-",O21=0),"-",+(P21-O21)/ABS(O21)) -> - | Q22: =IF(OR(Q21="-",Q21=0,P21="-",P21=0),"-",+(Q21-P21)/ABS(P21)) -> - | R22: =IF(OR(R21="-",R21=0,Q21="-",Q21=0),"-",+(R21-Q21)/ABS(Q21)) -> - | S22: =IF(OR(S21="-",S21=0,R21="-",R21=0),"-",+(S21-R21)/ABS(R21)) -> - | T22: =IF(OR(T21="-",T21=0,S21="-",S21=0),"-",+(T21-S21)/ABS(S21)) -> - | U22: - | V22: - | W22: - | X22: - | Y22: - | Z22: - | AA22: - | AB22: - | AC22: - | AD22: - | AE22: - | AF22: - | AG22: - | AM22: =IF(OR(AM21="-",AM21=0,AL21="-",AL21=0),"-",+(AM21-AL21)/ABS(AL21)) -> - | AN22: =IF(OR(AN21="-",AN21=0,AM21="-",AM21=0),"-",+(AN21-AM21)/ABS(AM21)) -> - | AO22: =IF(OR(AO21="-",AO21=0,AN21="-",AN21=0),"-",+(AO21-AN21)/ABS(AN21)) -> - | AP22: =IF(OR(AP21="-",AP21=0,AO21="-",AO21=0),"-",+(AP21-AO21)/ABS(AO21)) -> - | AQ22: =IF(OR(AQ21="-",AQ21=0,AP21="-",AP21=0),"-",+(AQ21-AP21)/ABS(AP21)) -> - | AR22: =IF(OR(AR21="-",AR21=0,AQ21="-",AQ21=0),"-",+(AR21-AQ21)/ABS(AQ21)) -> - | AS22: =IF(OR(AS21="-",AS21=0,AR21="-",AR21=0),"-",+(AS21-AR21)/ABS(AR21)) -> -
A23: Deuda Neta | C23: =IF(OR(C5="-",C9="-"),"-",-'Salud Financiera'!C5+'Salud Financiera'!C9) ->  | D23: =IF(OR(D5="-",D9="-"),"-",-'Salud Financiera'!D5+'Salud Financiera'!D9) ->  | E23: =IF(OR(E5="-",E9="-"),"-",-'Salud Financiera'!E5+'Salud Financiera'!E9) ->  | F23: =IF(OR(F5="-",F9="-"),"-",-'Salud Financiera'!F5+'Salud Financiera'!F9) ->  | G23: =IF(OR(G5="-",G9="-"),"-",-'Salud Financiera'!G5+'Salud Financiera'!G9) ->  | H23: =IF(OR(H5="-",H9="-"),"-",-'Salud Financiera'!H5+'Salud Financiera'!H9) ->  | I23: =IF(OR(I5="-",I9="-"),"-",-'Salud Financiera'!I5+'Salud Financiera'!I9) ->  | J23: =IF(OR(J5="-",J9="-"),"-",-'Salud Financiera'!J5+'Salud Financiera'!J9) ->  | K23: =IF(OR(K5="-",K9="-"),"-",-'Salud Financiera'!K5+'Salud Financiera'!K9) ->  | L23: =IF(OR(L5="-",L9="-"),"-",-'Salud Financiera'!L5+'Salud Financiera'!L9) ->  | M23: =IF(OR(M5="-",M9="-"),"-",-'Salud Financiera'!M5+'Salud Financiera'!M9) ->  | N23: =IF(OR(N5="-",N9="-"),"-",-'Salud Financiera'!N5+'Salud Financiera'!N9) ->  | O23: =IF(OR(O5="-",O9="-"),"-",-'Salud Financiera'!O5+'Salud Financiera'!O9) ->  | P23: =IF(OR(P5="-",P9="-"),"-",-'Salud Financiera'!P5+'Salud Financiera'!P9) ->  | Q23: =IF(OR(Q5="-",Q9="-"),"-",-'Salud Financiera'!Q5+'Salud Financiera'!Q9) ->  | R23: =IF(OR(R5="-",R9="-"),"-",-'Salud Financiera'!R5+'Salud Financiera'!R9) ->  | S23: =IF(OR(S5="-",S9="-"),"-",-'Salud Financiera'!S5+'Salud Financiera'!S9) ->  | T23: =IF(OR(T5="-",T9="-"),"-",-'Salud Financiera'!T5+'Salud Financiera'!T9) ->  | U23: =IF(OR(U5="-",U9="-"),"-",-'Salud Financiera'!U5+'Salud Financiera'!U9) ->  | V23: =IF(OR(V5="-",V9="-"),"-",-'Salud Financiera'!V5+'Salud Financiera'!V9) ->  | W23: =IF(OR(W5="-",W9="-"),"-",-'Salud Financiera'!W5+'Salud Financiera'!W9) ->  | X23: =IF(OR(X5="-",X9="-"),"-",-'Salud Financiera'!X5+'Salud Financiera'!X9) ->  | Y23: =IF(OR(Y5="-",Y9="-"),"-",-'Salud Financiera'!Y5+'Salud Financiera'!Y9) ->  | Z23: =IF(OR(Z5="-",Z9="-"),"-",-'Salud Financiera'!Z5+'Salud Financiera'!Z9) ->  | AA23: =IF(OR(AA5="-",AA9="-"),"-",-'Salud Financiera'!AA5+'Salud Financiera'!AA9) ->  | AB23: =IF(OR(AB5="-",AB9="-"),"-",-'Salud Financiera'!AB5+'Salud Financiera'!AB9) ->  | AC23: =IF(OR(AC5="-",AC9="-"),"-",-'Salud Financiera'!AC5+'Salud Financiera'!AC9) ->  | AD23: =IF(OR(AD5="-",AD9="-"),"-",-'Salud Financiera'!AD5+'Salud Financiera'!AD9) ->  | AE23: =IF(OR(AE5="-",AE9="-"),"-",-'Salud Financiera'!AE5+'Salud Financiera'!AE9) ->  | AF23: =IF(OR(AF5="-",AF9="-"),"-",-'Salud Financiera'!AF5+'Salud Financiera'!AF9) ->  | AG23: =IF(OR(AG5="-",AG9="-"),"-",-'Salud Financiera'!AG5+'Salud Financiera'!AG9) ->  | AH23: =IF(ISNUMBER(AVERAGEIF(C23:AF23,"<> -")),AVERAGEIF(C23:AF23,"<> -"),"-") -> - | AI23: =IF(ISNUMBER(AVERAGEIF(AB23:AF23,"<> -")),AVERAGEIF(AB23:AF23,"<> -"),"-") -> - | AL23: =IF(OR(AL5="-",AL9="-"),"-",-'Salud Financiera'!AL5+'Salud Financiera'!AL9) ->  | AM23: =IF(OR(AM5="-",AM9="-"),"-",-'Salud Financiera'!AM5+'Salud Financiera'!AM9) ->  | AN23: =IF(OR(AN5="-",AN9="-"),"-",-'Salud Financiera'!AN5+'Salud Financiera'!AN9) ->  | AO23: =IF(OR(AO5="-",AO9="-"),"-",-'Salud Financiera'!AO5+'Salud Financiera'!AO9) ->  | AP23: =IF(OR(AP5="-",AP9="-"),"-",-'Salud Financiera'!AP5+'Salud Financiera'!AP9) ->  | AQ23: =IF(OR(AQ5="-",AQ9="-"),"-",-'Salud Financiera'!AQ5+'Salud Financiera'!AQ9) ->  | AR23: =IF(OR(AR5="-",AR9="-"),"-",-'Salud Financiera'!AR5+'Salud Financiera'!AR9) ->  | AS23: =IF(OR(AS5="-",AS9="-"),"-",-'Salud Financiera'!AS5+'Salud Financiera'!AS9) ->  | AT23: =IF(ISNUMBER(AVERAGEIF(AL23:AS23,"<> -")),AVERAGEIF(AL23:AS23,"<> -"),"-") -> -
D24: =IF(OR(D23="-",D23=0,C23="-",C23=0),"-",+(D23-C23)/ABS(C23)) ->  | E24: =IF(OR(E23="-",E23=0,D23="-",D23=0),"-",+(E23-D23)/ABS(D23)) ->  | F24: =IF(OR(F23="-",F23=0,E23="-",E23=0),"-",+(F23-E23)/ABS(E23)) ->  | G24: =IF(OR(G23="-",G23=0,F23="-",F23=0),"-",+(G23-F23)/ABS(F23)) ->  | H24: =IF(OR(H23="-",H23=0,G23="-",G23=0),"-",+(H23-G23)/ABS(G23)) ->  | I24: =IF(OR(I23="-",I23=0,H23="-",H23=0),"-",+(I23-H23)/ABS(H23)) ->  | J24: =IF(OR(J23="-",J23=0,I23="-",I23=0),"-",+(J23-I23)/ABS(I23)) ->  | K24: =IF(OR(K23="-",K23=0,J23="-",J23=0),"-",+(K23-J23)/ABS(J23)) ->  | L24: =IF(OR(L23="-",L23=0,K23="-",K23=0),"-",+(L23-K23)/ABS(K23)) ->  | M24: =IF(OR(M23="-",M23=0,L23="-",L23=0),"-",+(M23-L23)/ABS(L23)) ->  | N24: =IF(OR(N23="-",N23=0,M23="-",M23=0),"-",+(N23-M23)/ABS(M23)) ->  | O24: =IF(OR(O23="-",O23=0,N23="-",N23=0),"-",+(O23-N23)/ABS(N23)) ->  | P24: =IF(OR(P23="-",P23=0,O23="-",O23=0),"-",+(P23-O23)/ABS(O23)) ->  | Q24: =IF(OR(Q23="-",Q23=0,P23="-",P23=0),"-",+(Q23-P23)/ABS(P23)) ->  | R24: =IF(OR(R23="-",R23=0,Q23="-",Q23=0),"-",+(R23-Q23)/ABS(Q23)) ->  | S24: =IF(OR(S23="-",S23=0,R23="-",R23=0),"-",+(S23-R23)/ABS(R23)) ->  | T24: =IF(OR(T23="-",T23=0,S23="-",S23=0),"-",+(T23-S23)/ABS(S23)) ->  | AM24: =IF(OR(AM23="-",AM23=0,AL23="-",AL23=0),"-",+(AM23-AL23)/ABS(AL23)) ->  | AN24: =IF(OR(AN23="-",AN23=0,AM23="-",AM23=0),"-",+(AN23-AM23)/ABS(AM23)) ->  | AO24: =IF(OR(AO23="-",AO23=0,AN23="-",AN23=0),"-",+(AO23-AN23)/ABS(AN23)) ->  | AP24: =IF(OR(AP23="-",AP23=0,AO23="-",AO23=0),"-",+(AP23-AO23)/ABS(AO23)) ->  | AQ24: =IF(OR(AQ23="-",AQ23=0,AP23="-",AP23=0),"-",+(AQ23-AP23)/ABS(AP23)) ->  | AR24: =IF(OR(AR23="-",AR23=0,AQ23="-",AQ23=0),"-",+(AR23-AQ23)/ABS(AQ23)) ->  | AS24: =IF(OR(AS23="-",AS23=0,AR23="-",AR23=0),"-",+(AS23-AR23)/ABS(AR23)) -> 
A25: Caja/Activo Corriente | C25: =IF(OR(C3="-",C3=0,C5="-",C5=0),"-",+'Salud Financiera'!C3/'Salud Financiera'!C5) ->  | D25: =IF(OR(D3="-",D3=0,D5="-",D5=0),"-",+'Salud Financiera'!D3/'Salud Financiera'!D5) ->  | E25: =IF(OR(E3="-",E3=0,E5="-",E5=0),"-",+'Salud Financiera'!E3/'Salud Financiera'!E5) ->  | F25: =IF(OR(F3="-",F3=0,F5="-",F5=0),"-",+'Salud Financiera'!F3/'Salud Financiera'!F5) ->  | G25: =IF(OR(G3="-",G3=0,G5="-",G5=0),"-",+'Salud Financiera'!G3/'Salud Financiera'!G5) ->  | H25: =IF(OR(H3="-",H3=0,H5="-",H5=0),"-",+'Salud Financiera'!H3/'Salud Financiera'!H5) ->  | I25: =IF(OR(I3="-",I3=0,I5="-",I5=0),"-",+'Salud Financiera'!I3/'Salud Financiera'!I5) ->  | J25: =IF(OR(J3="-",J3=0,J5="-",J5=0),"-",+'Salud Financiera'!J3/'Salud Financiera'!J5) ->  | K25: =IF(OR(K3="-",K3=0,K5="-",K5=0),"-",+'Salud Financiera'!K3/'Salud Financiera'!K5) ->  | L25: =IF(OR(L3="-",L3=0,L5="-",L5=0),"-",+'Salud Financiera'!L3/'Salud Financiera'!L5) ->  | M25: =IF(OR(M3="-",M3=0,M5="-",M5=0),"-",+'Salud Financiera'!M3/'Salud Financiera'!M5) ->  | N25: =IF(OR(N3="-",N3=0,N5="-",N5=0),"-",+'Salud Financiera'!N3/'Salud Financiera'!N5) ->  | O25: =IF(OR(O3="-",O3=0,O5="-",O5=0),"-",+'Salud Financiera'!O3/'Salud Financiera'!O5) ->  | P25: =IF(OR(P3="-",P3=0,P5="-",P5=0),"-",+'Salud Financiera'!P3/'Salud Financiera'!P5) ->  | Q25: =IF(OR(Q3="-",Q3=0,Q5="-",Q5=0),"-",+'Salud Financiera'!Q3/'Salud Financiera'!Q5) ->  | R25: =IF(OR(R3="-",R3=0,R5="-",R5=0),"-",+'Salud Financiera'!R3/'Salud Financiera'!R5) ->  | S25: =IF(OR(S3="-",S3=0,S5="-",S5=0),"-",+'Salud Financiera'!S3/'Salud Financiera'!S5) ->  | T25: =IF(OR(T3="-",T3=0,T5="-",T5=0),"-",+'Salud Financiera'!T3/'Salud Financiera'!T5) ->  | U25: =IF(OR(U3="-",U3=0,U5="-",U5=0),"-",+'Salud Financiera'!U3/'Salud Financiera'!U5) ->  | V25: =IF(OR(V3="-",V3=0,V5="-",V5=0),"-",+'Salud Financiera'!V3/'Salud Financiera'!V5) ->  | W25: =IF(OR(W3="-",W3=0,W5="-",W5=0),"-",+'Salud Financiera'!W3/'Salud Financiera'!W5) ->  | X25: =IF(OR(X3="-",X3=0,X5="-",X5=0),"-",+'Salud Financiera'!X3/'Salud Financiera'!X5) ->  | Y25: =IF(OR(Y3="-",Y3=0,Y5="-",Y5=0),"-",+'Salud Financiera'!Y3/'Salud Financiera'!Y5) ->  | Z25: =IF(OR(Z3="-",Z3=0,Z5="-",Z5=0),"-",+'Salud Financiera'!Z3/'Salud Financiera'!Z5) ->  | AA25: =IF(OR(AA3="-",AA3=0,AA5="-",AA5=0),"-",+'Salud Financiera'!AA3/'Salud Financiera'!AA5) ->  | AB25: =IF(OR(AB3="-",AB3=0,AB5="-",AB5=0),"-",+'Salud Financiera'!AB3/'Salud Financiera'!AB5) ->  | AC25: =IF(OR(AC3="-",AC3=0,AC5="-",AC5=0),"-",+'Salud Financiera'!AC3/'Salud Financiera'!AC5) ->  | AD25: =IF(OR(AD3="-",AD3=0,AD5="-",AD5=0),"-",+'Salud Financiera'!AD3/'Salud Financiera'!AD5) ->  | AE25: =IF(OR(AE3="-",AE3=0,AE5="-",AE5=0),"-",+'Salud Financiera'!AE3/'Salud Financiera'!AE5) ->  | AF25: =IF(OR(AF3="-",AF3=0,AF5="-",AF5=0),"-",+'Salud Financiera'!AF3/'Salud Financiera'!AF5) ->  | AG25: =IF(OR(AG3="-",AG3=0,AG5="-",AG5=0),"-",+'Salud Financiera'!AG3/'Salud Financiera'!AG5) ->  | AH25: =IF(ISNUMBER(AVERAGEIF(C25:AF25,"<> -")),AVERAGEIF(C25:AF25,"<> -"),"-") -> - | AI25: =IF(ISNUMBER(AVERAGEIF(AB25:AF25,"<> -")),AVERAGEIF(AB25:AF25,"<> -"),"-") -> - | AL25: =IF(OR(AL3="-",AL3=0,AL5="-",AL5=0),"-",+'Salud Financiera'!AL3/'Salud Financiera'!AL5) ->  | AM25: =IF(OR(AM3="-",AM3=0,AM5="-",AM5=0),"-",+'Salud Financiera'!AM3/'Salud Financiera'!AM5) ->  | AN25: =IF(OR(AN3="-",AN3=0,AN5="-",AN5=0),"-",+'Salud Financiera'!AN3/'Salud Financiera'!AN5) ->  | AO25: =IF(OR(AO3="-",AO3=0,AO5="-",AO5=0),"-",+'Salud Financiera'!AO3/'Salud Financiera'!AO5) ->  | AP25: =IF(OR(AP3="-",AP3=0,AP5="-",AP5=0),"-",+'Salud Financiera'!AP3/'Salud Financiera'!AP5) ->  | AQ25: =IF(OR(AQ3="-",AQ3=0,AQ5="-",AQ5=0),"-",+'Salud Financiera'!AQ3/'Salud Financiera'!AQ5) ->  | AR25: =IF(OR(AR3="-",AR3=0,AR5="-",AR5=0),"-",+'Salud Financiera'!AR3/'Salud Financiera'!AR5) ->  | AS25: =IF(OR(AS3="-",AS3=0,AS5="-",AS5=0),"-",+'Salud Financiera'!AS3/'Salud Financiera'!AS5) ->  | AT25: =IF(ISNUMBER(AVERAGEIF(AL25:AS25,"<> -")),AVERAGEIF(AL25:AS25,"<> -"),"-") -> -
D26: =IF(OR(D25="-",D25=0,C25="-",C25=0),"-",+(D25-C25)/ABS(C25)) ->  | E26: =IF(OR(E25="-",E25=0,D25="-",D25=0),"-",+(E25-D25)/ABS(D25)) ->  | F26: =IF(OR(F25="-",F25=0,E25="-",E25=0),"-",+(F25-E25)/ABS(E25)) ->  | G26: =IF(OR(G25="-",G25=0,F25="-",F25=0),"-",+(G25-F25)/ABS(F25)) ->  | H26: =IF(OR(H25="-",H25=0,G25="-",G25=0),"-",+(H25-G25)/ABS(G25)) ->  | I26: =IF(OR(I25="-",I25=0,H25="-",H25=0),"-",+(I25-H25)/ABS(H25)) ->  | J26: =IF(OR(J25="-",J25=0,I25="-",I25=0),"-",+(J25-I25)/ABS(I25)) ->  | K26: =IF(OR(K25="-",K25=0,J25="-",J25=0),"-",+(K25-J25)/ABS(J25)) ->  | L26: =IF(OR(L25="-",L25=0,K25="-",K25=0),"-",+(L25-K25)/ABS(K25)) ->  | M26: =IF(OR(M25="-",M25=0,L25="-",L25=0),"-",+(M25-L25)/ABS(L25)) ->  | N26: =IF(OR(N25="-",N25=0,M25="-",M25=0),"-",+(N25-M25)/ABS(M25)) ->  | O26: =IF(OR(O25="-",O25=0,N25="-",N25=0),"-",+(O25-N25)/ABS(N25)) ->  | P26: =IF(OR(P25="-",P25=0,O25="-",O25=0),"-",+(P25-O25)/ABS(O25)) ->  | Q26: =IF(OR(Q25="-",Q25=0,P25="-",P25=0),"-",+(Q25-P25)/ABS(P25)) ->  | R26: =IF(OR(R25="-",R25=0,Q25="-",Q25=0),"-",+(R25-Q25)/ABS(Q25)) ->  | S26: =IF(OR(S25="-",S25=0,R25="-",R25=0),"-",+(S25-R25)/ABS(R25)) ->  | T26: =IF(OR(T25="-",T25=0,S25="-",S25=0),"-",+(T25-S25)/ABS(S25)) ->  | AM26: =IF(OR(AM25="-",AM25=0,AL25="-",AL25=0),"-",+(AM25-AL25)/ABS(AL25)) ->  | AN26: =IF(OR(AN25="-",AN25=0,AM25="-",AM25=0),"-",+(AN25-AM25)/ABS(AM25)) ->  | AO26: =IF(OR(AO25="-",AO25=0,AN25="-",AN25=0),"-",+(AO25-AN25)/ABS(AN25)) ->  | AP26: =IF(OR(AP25="-",AP25=0,AO25="-",AO25=0),"-",+(AP25-AO25)/ABS(AO25)) ->  | AQ26: =IF(OR(AQ25="-",AQ25=0,AP25="-",AP25=0),"-",+(AQ25-AP25)/ABS(AP25)) ->  | AR26: =IF(OR(AR25="-",AR25=0,AQ25="-",AQ25=0),"-",+(AR25-AQ25)/ABS(AQ25)) ->  | AS26: =IF(OR(AS25="-",AS25=0,AR25="-",AR25=0),"-",+(AS25-AR25)/ABS(AR25)) -> 
A27: Deuda Neta/EBITDA | C27: =IF(OR(C23="-",C23=0,C2="-",C2=0),"-",-C23/C2) ->  | R27: =IF(OR(R23="-",R23=0,R2="-",R2=0),"-",-R23/R2) ->  | S27: =IF(OR(S23="-",S23=0,S2="-",S2=0),"-",-S23/S2) ->  | AH27: =IF(ISNUMBER(AVERAGEIF(C27:AF27,"<> -")),AVERAGEIF(C27:AF27,"<> -"),"-") -> - | AI27: =IF(ISNUMBER(AVERAGEIF(AB27:AF27,"<> -")),AVERAGEIF(AB27:AF27,"<> -"),"-") -> - | AL27: =IF(OR(AL23="-",AL23=0,AL2="-",AL2=0),"-",-AL23/AL2) ->  | AT27: =IF(ISNUMBER(AVERAGEIF(AL27:AS27,"<> -")),AVERAGEIF(AL27:AS27,"<> -"),"-") -> -
D28: =IF(OR(D27="-",D27=0,C27="-",C27=0),"-",+(D27-C27)/ABS(C27)) ->  | E28: =IF(OR(E27="-",E27=0,D27="-",D27=0),"-",+(E27-D27)/ABS(D27)) ->  | F28: =IF(OR(F27="-",F27=0,E27="-",E27=0),"-",+(F27-E27)/ABS(E27)) ->  | G28: =IF(OR(G27="-",G27=0,F27="-",F27=0),"-",+(G27-F27)/ABS(F27)) ->  | H28: =IF(OR(H27="-",H27=0,G27="-",G27=0),"-",+(H27-G27)/ABS(G27)) ->  | I28: =IF(OR(I27="-",I27=0,H27="-",H27=0),"-",+(I27-H27)/ABS(H27)) ->  | J28: =IF(OR(J27="-",J27=0,I27="-",I27=0),"-",+(J27-I27)/ABS(I27)) ->  | K28: =IF(OR(K27="-",K27=0,J27="-",J27=0),"-",+(K27-J27)/ABS(J27)) ->  | L28: =IF(OR(L27="-",L27=0,K27="-",K27=0),"-",+(L27-K27)/ABS(K27)) ->  | M28: =IF(OR(M27="-",M27=0,L27="-",L27=0),"-",+(M27-L27)/ABS(L27)) ->  | N28: =IF(OR(N27="-",N27=0,M27="-",M27=0),"-",+(N27-M27)/ABS(M27)) ->  | O28: =IF(OR(O27="-",O27=0,N27="-",N27=0),"-",+(O27-N27)/ABS(N27)) ->  | P28: =IF(OR(P27="-",P27=0,O27="-",O27=0),"-",+(P27-O27)/ABS(O27)) ->  | Q28: =IF(OR(Q27="-",Q27=0,P27="-",P27=0),"-",+(Q27-P27)/ABS(P27)) ->  | R28: =IF(OR(R27="-",R27=0,Q27="-",Q27=0),"-",+(R27-Q27)/ABS(Q27)) ->  | S28: =IF(OR(S27="-",S27=0,R27="-",R27=0),"-",+(S27-R27)/ABS(R27)) ->  | T28: =IF(OR(T27="-",T27=0,S27="-",S27=0),"-",+(T27-S27)/ABS(S27)) ->  | AM28: =IF(OR(AM27="-",AM27=0,AL27="-",AL27=0),"-",+(AM27-AL27)/ABS(AL27)) ->  | AN28: =IF(OR(AN27="-",AN27=0,AM27="-",AM27=0),"-",+(AN27-AM27)/ABS(AM27)) ->  | AO28: =IF(OR(AO27="-",AO27=0,AN27="-",AN27=0),"-",+(AO27-AN27)/ABS(AN27)) ->  | AP28: =IF(OR(AP27="-",AP27=0,AO27="-",AO27=0),"-",+(AP27-AO27)/ABS(AO27)) ->  | AQ28: =IF(OR(AQ27="-",AQ27=0,AP27="-",AP27=0),"-",+(AQ27-AP27)/ABS(AP27)) ->  | AR28: =IF(OR(AR27="-",AR27=0,AQ27="-",AQ27=0),"-",+(AR27-AQ27)/ABS(AQ27)) ->  | AS28: =IF(OR(AS27="-",AS27=0,AR27="-",AR27=0),"-",+(AS27-AR27)/ABS(AR27)) -> 
A29: Deuda Total/Activos | C29: =IF(OR(C7="-",C7=0,C9="-",C9=0),"-",+C9/C7) -> - | D29: - | E29: 0.5044703104 | F29: 0.4897005234 | G29: 0.4749834758 | H29: 0.4657718808 | I29: 0.4434910161 | J29: 0.4170016091 | K29: 0.4603403871 | L29: 0.4394147315 | M29: 0.5303958703 | N29: 0.5604720886 | O29: 0.5454518676 | P29: 0.6439367873 | Q29: 0.6222986363 | R29: =IF(OR(R7="-",R7=0,R9="-",R9=0),"-",+R9/R7) -> 0.5702457369 | S29: =IF(OR(S7="-",S7=0,S9="-",S9=0),"-",+S9/S7) -> 0.5451994451 | T29: 0.5387167528 | U29: 0.5635955997 | V29: 0.5580136184 | W29: 0.5913709475 | X29: 0.5587559193 | Y29: 0.5773623227 | Z29: 0.5801572405 | AA29: 0.5610103591 | AB29: 0.5424297477 | AC29: 0.5432875613 | AD29: 0.5372625426 | AE29: 0.5456741843 | AF29: 0.5039189853 | AG29: 0.5039189853 | AH29: =IF(ISNUMBER(AVERAGEIF(C29:AF29,"<> -")),AVERAGEIF(C29:AF29,"<> -"),"-") -> 0.5326689338 | AI29: =IF(ISNUMBER(AVERAGEIF(AB29:AF29,"<> -")),AVERAGEIF(AB29:AF29,"<> -"),"-") -> 0.5345146043 | AL29: =IF(OR(AL7="-",AL7=0,AL9="-",AL9=0),"-",+AL9/AL7) -> 0.5588361205 | AM29: 0.5563125827 | AN29: 0.5542267208 | AO29: 0.5456741843 | AP29: 0.5525241768 | AQ29: 0.5482819754 | AR29: 0.5476836758 | AS29: 0.5039189853 | AT29: =IF(ISNUMBER(AVERAGEIF(AL29:AS29,"<> -")),AVERAGEIF(AL29:AS29,"<> -"),"-") -> 0.5459323027
D30: =IF(OR(D29="-",D29=0,C29="-",C29=0),"-",+(D29-C29)/ABS(C29)) -> - | E30: =IF(OR(E29="-",E29=0,D29="-",D29=0),"-",+(E29-D29)/ABS(D29)) -> - | F30: =IF(OR(F29="-",F29=0,E29="-",E29=0),"-",+(F29-E29)/ABS(E29)) -> -0.02927781208 | G30: =IF(OR(G29="-",G29=0,F29="-",F29=0),"-",+(G29-F29)/ABS(F29)) -> -0.03005315899 | H30: =IF(OR(H29="-",H29=0,G29="-",G29=0),"-",+(H29-G29)/ABS(G29)) -> -0.01939350606 | I30: =IF(OR(I29="-",I29=0,H29="-",H29=0),"-",+(I29-H29)/ABS(H29)) -> -0.04783643163 | J30: =IF(OR(J29="-",J29=0,I29="-",I29=0),"-",+(J29-I29)/ABS(I29)) -> -0.05972929785 | K30: =IF(OR(K29="-",K29=0,J29="-",J29=0),"-",+(K29-J29)/ABS(J29)) -> 0.1039295222 | L30: =IF(OR(L29="-",L29=0,K29="-",K29=0),"-",+(L29-K29)/ABS(K29)) -> -0.04545691879 | M30: =IF(OR(M29="-",M29=0,L29="-",L29=0),"-",+(M29-L29)/ABS(L29)) -> 0.2070507252 | N30: =IF(OR(N29="-",N29=0,M29="-",M29=0),"-",+(N29-M29)/ABS(M29)) -> 0.05670522717 | O30: =IF(OR(O29="-",O29=0,N29="-",N29=0),"-",+(O29-N29)/ABS(N29)) -> -0.02679923118 | P30: =IF(OR(P29="-",P29=0,O29="-",O29=0),"-",+(P29-O29)/ABS(O29)) -> 0.1805565725 | Q30: =IF(OR(Q29="-",Q29=0,P29="-",P29=0),"-",+(Q29-P29)/ABS(P29)) -> -0.03360291157 | R30: =IF(OR(R29="-",R29=0,Q29="-",Q29=0),"-",+(R29-Q29)/ABS(Q29)) -> -0.08364617316 | S30: =IF(OR(S29="-",S29=0,R29="-",R29=0),"-",+(S29-R29)/ABS(R29)) -> -0.04392192716 | T30: =IF(OR(T29="-",T29=0,S29="-",S29=0),"-",+(T29-S29)/ABS(S29)) -> -0.01189049693 | U30: 0.04618168408 | V30: -0.00990423151 | W30: 0.05977870081 | X30: -0.05515155644 | Y30: 0.03329969789 | Z30: 0.004840838598 | AA30: -0.03300291728 | AB30: -0.03311990772 | AC30: 0.001581427954 | AD30: -0.01108992569 | AE30: 0.0156564826 | AF30: -0.07652038552 | AG30: 0 | AM30: =IF(OR(AM29="-",AM29=0,AL29="-",AL29=0),"-",+(AM29-AL29)/ABS(AL29)) -> -0.004515702845 | AN30: =IF(OR(AN29="-",AN29=0,AM29="-",AM29=0),"-",+(AN29-AM29)/ABS(AM29)) -> -0.003749442105 | AO30: =IF(OR(AO29="-",AO29=0,AN29="-",AN29=0),"-",+(AO29-AN29)/ABS(AN29)) -> -0.01543147641 | AP30: =IF(OR(AP29="-",AP29=0,AO29="-",AO29=0),"-",+(AP29-AO29)/ABS(AO29)) -> 0.01255326472 | AQ30: =IF(OR(AQ29="-",AQ29=0,AP29="-",AP29=0),"-",+(AQ29-AP29)/ABS(AP29)) -> -0.007677856537 | AR30: =IF(OR(AR29="-",AR29=0,AQ29="-",AQ29=0),"-",+(AR29-AQ29)/ABS(AQ29)) -> -0.001091226015 | AS30: =IF(OR(AS29="-",AS29=0,AR29="-",AR29=0),"-",+(AS29-AR29)/ABS(AR29)) -> -0.07990869994

Sheet Rentabilidad y Eficiencia
C1: ='Historical Financial'!B3 -> Dec88 | D1: ='Historical Financial'!C3 -> Dec89 | E1: ='Historical Financial'!D3 -> Dec90 | F1: ='Historical Financial'!E3 -> Dec91 | G1: ='Historical Financial'!F3 -> Dec92 | H1: ='Historical Financial'!G3 -> Dec93 | I1: ='Historical Financial'!H3 -> Dec94 | J1: ='Historical Financial'!I3 -> Dec95 | K1: ='Historical Financial'!J3 -> Dec96 | L1: ='Historical Financial'!K3 -> Dec97 | M1: ='Historical Financial'!L3 -> Dec98 | N1: ='Historical Financial'!M3 -> Dec99 | O1: ='Historical Financial'!N3 -> Dec00 | P1: ='Historical Financial'!O3 -> Dec01 | Q1: ='Historical Financial'!P3 -> Dec02 | R1: ='Historical Financial'!Q3 -> Dec03 | S1: ='Historical Financial'!R3 -> Dec04 | T1: ='Historical Financial'!S3 -> Dec05 | U1: ='Historical Financial'!T3 -> Dec06 | V1: ='Historical Financial'!U3 -> Dec07 | W1: ='Historical Financial'!V3 -> Dec08 | X1: ='Historical Financial'!W3 -> Dec09 | Y1: ='Historical Financial'!X3 -> Dec10 | Z1: ='Historical Financial'!Y3 -> Dec11 | AA1: ='Historical Financial'!Z3 -> Dec12 | AB1: ='Historical Financial'!AA3 -> Dec13 | AC1: ='Historical Financial'!AB3 -> Dec14 | AD1: ='Historical Financial'!AC3 -> Dec15 | AE1: ='Historical Financial'!AD3 -> Dec16 | AF1: ='Historical Financial'!AE3 -> Dec17 | AG1: ='Historical Financial'!AF3 -> TTM/current | AH1: Media | AI1: 5 años | AL1: ='Historical Financial'!EP3 -> Mar16 | AM1: ='Historical Financial'!EQ3 -> Jun16 | AN1: ='Historical Financial'!ER3 -> Sep16 | AO1: ='Historical Financial'!ES3 -> Dec16 | AP1: ='Historical Financial'!ET3 -> Mar17 | AQ1: ='Historical Financial'!EU3 -> Jun17 | AR1: ='Historical Financial'!EV3 -> Sep17 | AS1: ='Historical Financial'!EW3 -> Dec17 | AT1: Media
A2: ROA | B2: ROA % | C2: =VLOOKUP($B2,'Historical Financial'!$A:$AF,2,FALSE) -> 0 | D2: =VLOOKUP($B2,'Historical Financial'!$A:$AF,3,FALSE) -> 0 | E2: =VLOOKUP($B2,'Historical Financial'!$A:$AF,4,FALSE) -> 7.39 | F2: =VLOOKUP($B2,'Historical Financial'!$A:$AF,5,FALSE) -> 3.5 | G2: =VLOOKUP($B2,'Historical Financial'!$A:$AF,6,FALSE) -> 2.59 | H2: =VLOOKUP($B2,'Historical Financial'!$A:$AF,7,FALSE) -> 3.77 | I2: =VLOOKUP($B2,'Historical Financial'!$A:$AF,8,FALSE) -> 2.71 | J2: =VLOOKUP($B2,'Historical Financial'!$A:$AF,9,FALSE) -> 3.18 | K2: =VLOOKUP($B2,'Historical Financial'!$A:$AF,10,FALSE) -> 6.9 | L2: =VLOOKUP($B2,'Historical Financial'!$A:$AF,11,FALSE) -> 3.82 | M2: =VLOOKUP($B2,'Historical Financial'!$A:$AF,12,FALSE) -> 3.17 | N2: =VLOOKUP($B2,'Historical Financial'!$A:$AF,13,FALSE) -> 1.23 | O2: =VLOOKUP($B2,'Historical Financial'!$A:$AF,14,FALSE) -> 2.49 | P2: =VLOOKUP($B2,'Historical Financial'!$A:$AF,15,FALSE) -> 0.53 | Q2: =VLOOKUP($B2,'Historical Financial'!$A:$AF,16,FALSE) -> 2.58 | R2: =VLOOKUP($B2,'Historical Financial'!$A:$AF,17,FALSE) -> 4.66 | S2: =VLOOKUP($B2,'Historical Financial'!$A:$AF,18,FALSE) -> 3.96 | T2: =VLOOKUP($B2,'Historical Financial'!$A:$AF,19,FALSE) -> 4.4 | U2: =VLOOKUP($B2,'Historical Financial'!$A:$AF,20,FALSE) -> 4.93 | V2: =VLOOKUP($B2,'Historical Financial'!$A:$AF,21,FALSE) -> 5.07 | W2: =VLOOKUP($B2,'Historical Financial'!$A:$AF,22,FALSE) -> 1.85 | X2: =VLOOKUP($B2,'Historical Financial'!$A:$AF,23,FALSE) -> 2.85 | Y2: =VLOOKUP($B2,'Historical Financial'!$A:$AF,24,FALSE) -> 3.87 | Z2: =VLOOKUP($B2,'Historical Financial'!$A:$AF,25,FALSE) -> 2.68 | AA2: =VLOOKUP($B2,'Historical Financial'!$A:$AF,26,FALSE) -> 3.62 | AB2: =VLOOKUP($B2,'Historical Financial'!$A:$AF,27,FALSE) -> 4.27 | AC2: =VLOOKUP($B2,'Historical Financial'!$A:$AF,28,FALSE) -> 3.93 | AD2: =VLOOKUP($B2,'Historical Financial'!$A:$AF,29,FALSE) -> 4.47 | AE2: =VLOOKUP($B2,'Historical Financial'!$A:$AF,30,FALSE) -> 4.1 | AF2: =VLOOKUP($B2,'Historical Financial'!$A:$AF,31,FALSE) -> 6.79 | AG2: =VLOOKUP($B2,'Historical Financial'!$A:$AF,32,FALSE) -> 6.76 | AH2: =IF(ISNUMBER(AVERAGEIF(C2:AF2,"<> -")),AVERAGEIF(C2:AF2,"<> -"),"-") -> 3.510333333 | AI2: =IF(ISNUMBER(AVERAGEIF(AB2:AF2,"<> -")),AVERAGEIF(AB2:AF2,"<> -"),"-") -> 4.712 | AL2: =VLOOKUP($B2,'Historical Financial'!$A:$EW,146,FALSE) -> 3.93 | AM2: =VLOOKUP($B2,'Historical Financial'!$A:$EW,147,FALSE) -> 3.39 | AN2: =VLOOKUP($B2,'Historical Financial'!$A:$EW,148,FALSE) -> 4.81 | AO2: =VLOOKUP($B2,'Historical Financial'!$A:$EW,149,FALSE) -> 4.11 | AP2: =VLOOKUP($B2,'Historical Financial'!$A:$EW,150,FALSE) -> 2.55 | AQ2: =VLOOKUP($B2,'Historical Financial'!$A:$EW,151,FALSE) -> 2.58 | AR2: =VLOOKUP($B2,'Historical Financial'!$A:$EW,152,FALSE) -> 2.42 | AS2: =VLOOKUP($B2,'Historical Financial'!$A:$EW,153,FALSE) -> 18.82 | AT2: =IF(ISNUMBER(AVERAGEIF(AL2:AS2,"<> -")),AVERAGEIF(AL2:AS2,"<> -"),"-") -> 5.32625
D3: =IF(OR(D2="-",D2=0,C2="-",C2=0),"-",+(D2-C2)/ABS(C2)) -> - | E3: - | F3: -0.5263870095 | G3: -0.26 | H3: 0.4555984556 | I3: -0.2811671088 | J3: 0.1734317343 | K3: 1.169811321 | L3: -0.4463768116 | M3: -0.1701570681 | N3: -0.6119873817 | O3: 1.024390244 | P3: -0.7871485944 | Q3: 3.867924528 | R3: 0.8062015504 | S3: =IF(OR(S2="-",S2=0,R2="-",R2=0),"-",+(S2-R2)/ABS(R2)) -> -0.1502145923 | T3: =IF(OR(T2="-",T2=0,S2="-",S2=0),"-",+(T2-S2)/ABS(S2)) -> 0.1111111111 | U3: 0.1204545455 | V3: 0.02839756592 | W3: -0.6351084813 | X3: 0.5405405405 | Y3: 0.3578947368 | Z3: -0.3074935401 | AA3: 0.3507462687 | AB3: 0.179558011 | AC3: -0.07962529274 | AD3: 0.1374045802 | AE3: -0.08277404922 | AF3: 0.656097561 | AG3: -0.00441826215 | AM3: =IF(OR(AM2="-",AM2=0,AL2="-",AL2=0),"-",+(AM2-AL2)/ABS(AL2)) -> -0.1374045802 | AN3: =IF(OR(AN2="-",AN2=0,AM2="-",AM2=0),"-",+(AN2-AM2)/ABS(AM2)) -> 0.418879056 | AO3: =IF(OR(AO2="-",AO2=0,AN2="-",AN2=0),"-",+(AO2-AN2)/ABS(AN2)) -> -0.1455301455 | AP3: =IF(OR(AP2="-",AP2=0,AO2="-",AO2=0),"-",+(AP2-AO2)/ABS(AO2)) -> -0.3795620438 | AQ3: =IF(OR(AQ2="-",AQ2=0,AP2="-",AP2=0),"-",+(AQ2-AP2)/ABS(AP2)) -> 0.01176470588 | AR3: =IF(OR(AR2="-",AR2=0,AQ2="-",AQ2=0),"-",+(AR2-AQ2)/ABS(AQ2)) -> -0.06201550388 | AS3: =IF(OR(AS2="-",AS2=0,AR2="-",AR2=0),"-",+(AS2-AR2)/ABS(AR2)) -> 6.776859504
A4: Margen Neto | B4: Net Margin % | C4: =VLOOKUP($B4,'Historical Financial'!$A:$AF,2,FALSE) -> 16.2 | D4: =VLOOKUP($B4,'Historical Financial'!$A:$AF,3,FALSE) -> 18.02 | E4: =VLOOKUP($B4,'Historical Financial'!$A:$AF,4,FALSE) -> 24.94 | F4: =VLOOKUP($B4,'Historical Financial'!$A:$AF,5,FALSE) -> 18.12 | G4: =VLOOKUP($B4,'Historical Financial'!$A:$AF,6,FALSE) -> 13.45 | H4: =VLOOKUP($B4,'Historical Financial'!$A:$AF,7,FALSE) -> 26.27 | I4: =VLOOKUP($B4,'Historical Financial'!$A:$AF,8,FALSE) -> 16.76 | J4: =VLOOKUP($B4,'Historical Financial'!$A:$AF,9,FALSE) -> 17.42 | K4: =VLOOKUP($B4,'Historical Financial'!$A:$AF,10,FALSE) -> 50.83 | L4: =VLOOKUP($B4,'Historical Financial'!$A:$AF,11,FALSE) -> 33.5 | M4: =VLOOKUP($B4,'Historical Financial'!$A:$AF,12,FALSE) -> 20.46 | N4: =VLOOKUP($B4,'Historical Financial'!$A:$AF,13,FALSE) -> 6.48 | O4: =VLOOKUP($B4,'Historical Financial'!$A:$AF,14,FALSE) -> 9.8 | P4: =VLOOKUP($B4,'Historical Financial'!$A:$AF,15,FALSE) -> 2.06 | Q4: =VLOOKUP($B4,'Historical Financial'!$A:$AF,16,FALSE) -> 10.12 | R4: =VLOOKUP($B4,'Historical Financial'!$A:$AF,17,FALSE) -> 12.76 | S4: =VLOOKUP($B4,'Historical Financial'!$A:$AF,18,FALSE) -> 9.82 | T4: =VLOOKUP($B4,'Historical Financial'!$A:$AF,19,FALSE) -> 10.44 | U4: =VLOOKUP($B4,'Historical Financial'!$A:$AF,20,FALSE) -> 11.18 | V4: =VLOOKUP($B4,'Historical Financial'!$A:$AF,21,FALSE) -> 11.17 | W4: =VLOOKUP($B4,'Historical Financial'!$A:$AF,22,FALSE) -> 4.63 | X4: =VLOOKUP($B4,'Historical Financial'!$A:$AF,23,FALSE) -> 7.16 | Y4: =VLOOKUP($B4,'Historical Financial'!$A:$AF,24,FALSE) -> 9.52 | Z4: =VLOOKUP($B4,'Historical Financial'!$A:$AF,25,FALSE) -> 7.14 | AA4: =VLOOKUP($B4,'Historical Financial'!$A:$AF,26,FALSE) -> 9.12 | AB4: =VLOOKUP($B4,'Historical Financial'!$A:$AF,27,FALSE) -> 10.69 | AC4: =VLOOKUP($B4,'Historical Financial'!$A:$AF,28,FALSE) -> 10.21 | AD4: =VLOOKUP($B4,'Historical Financial'!$A:$AF,29,FALSE) -> 11.42 | AE4: =VLOOKUP($B4,'Historical Financial'!$A:$AF,30,FALSE) -> 10.77 | AF4: =VLOOKUP($B4,'Historical Financial'!$A:$AF,31,FALSE) -> 18.56 | AG4: =VLOOKUP($B4,'Historical Financial'!$A:$AF,32,FALSE) -> 18.56 | AH4: =IF(ISNUMBER(AVERAGEIF(C4:AF4,"<> -")),AVERAGEIF(C4:AF4,"<> -"),"-") -> 14.634 | AI4: =IF(ISNUMBER(AVERAGEIF(AB4:AF4,"<> -")),AVERAGEIF(AB4:AF4,"<> -"),"-") -> 12.33 | AL4: =VLOOKUP($B4,'Historical Financial'!$A:$EW,146,FALSE) -> 10.71 | AM4: =VLOOKUP($B4,'Historical Financial'!$A:$EW,147,FALSE) -> 9.22 | AN4: =VLOOKUP($B4,'Historical Financial'!$A:$EW,148,FALSE) -> 12.23 | AO4: =VLOOKUP($B4,'Historical Financial'!$A:$EW,149,FALSE) -> 10.77 | AP4: =VLOOKUP($B4,'Historical Financial'!$A:$EW,150,FALSE) -> 6.23 | AQ4: =VLOOKUP($B4,'Historical Financial'!$A:$EW,151,FALSE) -> 7.41 | AR4: =VLOOKUP($B4,'Historical Financial'!$A:$EW,152,FALSE) -> 6.72 | AS4: =VLOOKUP($B4,'Historical Financial'!$A:$EW,153,FALSE) -> 55.26 | AT4: =IF(ISNUMBER(AVERAGEIF(AL4:AS4,"<> -")),AVERAGEIF(AL4:AS4,"<> -"),"-") -> 14.81875
D5: =IF(OR(D4="-",D4=0,C4="-",C4=0),"-",+(D4-C4)/ABS(C4)) -> 0.112345679 | E5: =IF(OR(E4="-",E4=0,D4="-",D4=0),"-",+(E4-D4)/ABS(D4)) -> 0.384017758 | F5: =IF(OR(F4="-",F4=0,E4="-",E4=0),"-",+(F4-E4)/ABS(E4)) -> -0.2734562951 | G5: =IF(OR(G4="-",G4=0,F4="-",F4=0),"-",+(G4-F4)/ABS(F4)) -> -0.2577262693 | H5: =IF(OR(H4="-",H4=0,G4="-",G4=0),"-",+(H4-G4)/ABS(G4)) -> 0.9531598513 | I5: =IF(OR(I4="-",I4=0,H4="-",H4=0),"-",+(I4-H4)/ABS(H4)) -> -0.3620098972 | J5: =IF(OR(J4="-",J4=0,I4="-",I4=0),"-",+(J4-I4)/ABS(I4)) -> 0.03937947494 | K5: =IF(OR(K4="-",K4=0,J4="-",J4=0),"-",+(K4-J4)/ABS(J4)) -> 1.917910448 | L5: =IF(OR(L4="-",L4=0,K4="-",K4=0),"-",+(L4-K4)/ABS(K4)) -> -0.3409403895 | M5: =IF(OR(M4="-",M4=0,L4="-",L4=0),"-",+(M4-L4)/ABS(L4)) -> -0.3892537313 | N5: =IF(OR(N4="-",N4=0,M4="-",M4=0),"-",+(N4-M4)/ABS(M4)) -> -0.6832844575 | O5: =IF(OR(O4="-",O4=0,N4="-",N4=0),"-",+(O4-N4)/ABS(N4)) -> 0.512345679 | P5: =IF(OR(P4="-",P4=0,O4="-",O4=0),"-",+(P4-O4)/ABS(O4)) -> -0.7897959184 | Q5: =IF(OR(Q4="-",Q4=0,P4="-",P4=0),"-",+(Q4-P4)/ABS(P4)) -> 3.912621359 | R5: =IF(OR(R4="-",R4=0,Q4="-",Q4=0),"-",+(R4-Q4)/ABS(Q4)) -> 0.2608695652 | S5: =IF(OR(S4="-",S4=0,R4="-",R4=0),"-",+(S4-R4)/ABS(R4)) -> -0.2304075235 | T5: =IF(OR(T4="-",T4=0,S4="-",S4=0),"-",+(T4-S4)/ABS(S4)) -> 0.06313645621 | U5: 0.07088122605 | V5: -0.0008944543828 | W5: -0.5854968666 | X5: 0.5464362851 | Y5: 0.3296089385 | Z5: -0.25 | AA5: 0.2773109244 | AB5: 0.1721491228 | AC5: -0.04490177736 | AD5: 0.1185112635 | AE5: -0.05691768827 | AF5: 0.7233054782 | AG5: 0 | AM5: =IF(OR(AM4="-",AM4=0,AL4="-",AL4=0),"-",+(AM4-AL4)/ABS(AL4)) -> -0.1391223156 | AN5: =IF(OR(AN4="-",AN4=0,AM4="-",AM4=0),"-",+(AN4-AM4)/ABS(AM4)) -> 0.3264642082 | AO5: =IF(OR(AO4="-",AO4=0,AN4="-",AN4=0),"-",+(AO4-AN4)/ABS(AN4)) -> -0.1193785773 | AP5: =IF(OR(AP4="-",AP4=0,AO4="-",AO4=0),"-",+(AP4-AO4)/ABS(AO4)) -> -0.4215413185 | AQ5: =IF(OR(AQ4="-",AQ4=0,AP4="-",AP4=0),"-",+(AQ4-AP4)/ABS(AP4)) -> 0.1894060995 | AR5: =IF(OR(AR4="-",AR4=0,AQ4="-",AQ4=0),"-",+(AR4-AQ4)/ABS(AQ4)) -> -0.09311740891 | AS5: =IF(OR(AS4="-",AS4=0,AR4="-",AR4=0),"-",+(AS4-AR4)/ABS(AR4)) -> 7.223214286
A6: Rotación de activos | B6: Asset Turnover | C6: =VLOOKUP($B6,'Historical Financial'!$A:$AF,2,FALSE) -> 0 | D6: =VLOOKUP($B6,'Historical Financial'!$A:$AF,3,FALSE) -> 0 | E6: =VLOOKUP($B6,'Historical Financial'!$A:$AF,4,FALSE) -> 0.296 | F6: =VLOOKUP($B6,'Historical Financial'!$A:$AF,5,FALSE) -> 0.193 | G6: =VLOOKUP($B6,'Historical Financial'!$A:$AF,6,FALSE) -> 0.193 | H6: =VLOOKUP($B6,'Historical Financial'!$A:$AF,7,FALSE) -> 0.144 | I6: =VLOOKUP($B6,'Historical Financial'!$A:$AF,8,FALSE) -> 0.162 | J6: =VLOOKUP($B6,'Historical Financial'!$A:$AF,9,FALSE) -> 0.182 | K6: =VLOOKUP($B6,'Historical Financial'!$A:$AF,10,FALSE) -> 0.136 | L6: =VLOOKUP($B6,'Historical Financial'!$A:$AF,11,FALSE) -> 0.114 | M6: =VLOOKUP($B6,'Historical Financial'!$A:$AF,12,FALSE) -> 0.155 | N6: =VLOOKUP($B6,'Historical Financial'!$A:$AF,13,FALSE) -> 0.189 | O6: =VLOOKUP($B6,'Historical Financial'!$A:$AF,14,FALSE) -> 0.254 | P6: =VLOOKUP($B6,'Historical Financial'!$A:$AF,15,FALSE) -> 0.259 | Q6: =VLOOKUP($B6,'Historical Financial'!$A:$AF,16,FALSE) -> 0.255 | R6: =VLOOKUP($B6,'Historical Financial'!$A:$AF,17,FALSE) -> 0.365 | S6: =VLOOKUP($B6,'Historical Financial'!$A:$AF,18,FALSE) -> 0.403 | T6: =VLOOKUP($B6,'Historical Financial'!$A:$AF,19,FALSE) -> 0.422 | U6: =VLOOKUP($B6,'Historical Financial'!$A:$AF,20,FALSE) -> 0.441 | V6: =VLOOKUP($B6,'Historical Financial'!$A:$AF,21,FALSE) -> 0.453 | W6: =VLOOKUP($B6,'Historical Financial'!$A:$AF,22,FALSE) -> 0.399 | X6: =VLOOKUP($B6,'Historical Financial'!$A:$AF,23,FALSE) -> 0.399 | Y6: =VLOOKUP($B6,'Historical Financial'!$A:$AF,24,FALSE) -> 0.407 | Z6: =VLOOKUP($B6,'Historical Financial'!$A:$AF,25,FALSE) -> 0.376 | AA6: =VLOOKUP($B6,'Historical Financial'!$A:$AF,26,FALSE) -> 0.396 | AB6: =VLOOKUP($B6,'Historical Financial'!$A:$AF,27,FALSE) -> 0.399 | AC6: =VLOOKUP($B6,'Historical Financial'!$A:$AF,28,FALSE) -> 0.385 | AD6: =VLOOKUP($B6,'Historical Financial'!$A:$AF,29,FALSE) -> 0.391 | AE6: =VLOOKUP($B6,'Historical Financial'!$A:$AF,30,FALSE) -> 0.381 | AF6: =VLOOKUP($B6,'Historical Financial'!$A:$AF,31,FALSE) -> 0.366 | AG6: =VLOOKUP($B6,'Historical Financial'!$A:$AF,32,FALSE) -> 0.36 | AH6: =IF(ISNUMBER(AVERAGEIF(C6:AF6,"<> -")),AVERAGEIF(C6:AF6,"<> -"),"-") -> 0.2838333333 | AI6: =IF(ISNUMBER(AVERAGEIF(AB6:AF6,"<> -")),AVERAGEIF(AB6:AF6,"<> -"),"-") -> 0.3844 | AL6: =VLOOKUP($B6,'Historical Financial'!$A:$EW,146,FALSE) -> 0.092 | AM6: =VLOOKUP($B6,'Historical Financial'!$A:$EW,147,FALSE) -> 0.092 | AN6: =VLOOKUP($B6,'Historical Financial'!$A:$EW,148,FALSE) -> 0.098 | AO6: =VLOOKUP($B6,'Historical Financial'!$A:$EW,149,FALSE) -> 0.095 | AP6: =VLOOKUP($B6,'Historical Financial'!$A:$EW,150,FALSE) -> 0.102 | AQ6: =VLOOKUP($B6,'Historical Financial'!$A:$EW,151,FALSE) -> 0.087 | AR6: =VLOOKUP($B6,'Historical Financial'!$A:$EW,152,FALSE) -> 0.09 | AS6: =VLOOKUP($B6,'Historical Financial'!$A:$EW,153,FALSE) -> 0.085 | AT6: =IF(ISNUMBER(AVERAGEIF(AL6:AS6,"<> -")),AVERAGEIF(AL6:AS6,"<> -"),"-") -> 0.092625
D7: =IF(OR(D6="-",D6=0,C6="-",C6=0),"-",+(D6-C6)/ABS(C6)) -> - | E7: =IF(OR(E6="-",E6=0,D6="-",D6=0),"-",+(E6-D6)/ABS(D6)) -> - | F7: =IF(OR(F6="-",F6=0,E6="-",E6=0),"-",+(F6-E6)/ABS(E6)) -> -0.347972973 | G7: =IF(OR(G6="-",G6=0,F6="-",F6=0),"-",+(G6-F6)/ABS(F6)) -> 0 | H7: =IF(OR(H6="-",H6=0,G6="-",G6=0),"-",+(H6-G6)/ABS(G6)) -> -0.2538860104 | I7: =IF(OR(I6="-",I6=0,H6="-",H6=0),"-",+(I6-H6)/ABS(H6)) -> 0.125 | J7: =IF(OR(J6="-",J6=0,I6="-",I6=0),"-",+(J6-I6)/ABS(I6)) -> 0.1234567901 | K7: =IF(OR(K6="-",K6=0,J6="-",J6=0),"-",+(K6-J6)/ABS(J6)) -> -0.2527472527 | L7: =IF(OR(L6="-",L6=0,K6="-",K6=0),"-",+(L6-K6)/ABS(K6)) -> -0.1617647059 | M7: =IF(OR(M6="-",M6=0,L6="-",L6=0),"-",+(M6-L6)/ABS(L6)) -> 0.3596491228 | N7: =IF(OR(N6="-",N6=0,M6="-",M6=0),"-",+(N6-M6)/ABS(M6)) -> 0.2193548387 | O7: =IF(OR(O6="-",O6=0,N6="-",N6=0),"-",+(O6-N6)/ABS(N6)) -> 0.3439153439 | P7: =IF(OR(P6="-",P6=0,O6="-",O6=0),"-",+(P6-O6)/ABS(O6)) -> 0.01968503937 | Q7: =IF(OR(Q6="-",Q6=0,P6="-",P6=0),"-",+(Q6-P6)/ABS(P6)) -> -0.01544401544 | R7: =IF(OR(R6="-",R6=0,Q6="-",Q6=0),"-",+(R6-Q6)/ABS(Q6)) -> 0.431372549 | S7: =IF(OR(S6="-",S6=0,R6="-",R6=0),"-",+(S6-R6)/ABS(R6)) -> 0.104109589 | T7: =IF(OR(T6="-",T6=0,S6="-",S6=0),"-",+(T6-S6)/ABS(S6)) -> 0.04714640199 | U7: 0.04502369668 | V7: 0.02721088435 | W7: -0.119205298 | X7: 0 | Y7: 0.02005012531 | Z7: -0.07616707617 | AA7: 0.05319148936 | AB7: 0.007575757576 | AC7: -0.0350877193 | AD7: 0.01558441558 | AE7: -0.02557544757 | AF7: -0.03937007874 | AG7: -0.01639344262 | AM7: =IF(OR(AM6="-",AM6=0,AL6="-",AL6=0),"-",+(AM6-AL6)/ABS(AL6)) -> 0 | AN7: =IF(OR(AN6="-",AN6=0,AM6="-",AM6=0),"-",+(AN6-AM6)/ABS(AM6)) -> 0.0652173913 | AO7: =IF(OR(AO6="-",AO6=0,AN6="-",AN6=0),"-",+(AO6-AN6)/ABS(AN6)) -> -0.0306122449 | AP7: =IF(OR(AP6="-",AP6=0,AO6="-",AO6=0),"-",+(AP6-AO6)/ABS(AO6)) -> 0.07368421053 | AQ7: =IF(OR(AQ6="-",AQ6=0,AP6="-",AP6=0),"-",+(AQ6-AP6)/ABS(AP6)) -> -0.1470588235 | AR7: =IF(OR(AR6="-",AR6=0,AQ6="-",AQ6=0),"-",+(AR6-AQ6)/ABS(AQ6)) -> 0.03448275862 | AS7: =IF(OR(AS6="-",AS6=0,AR6="-",AR6=0),"-",+(AS6-AR6)/ABS(AR6)) -> -0.05555555556
A8: Activos/Fondos propios | C8: =IF(OR('Salud Financiera'!C17="-",'Salud Financiera'!C17=0),"-",1/'Salud Financiera'!C17) -> - | D8: =IF(OR('Salud Financiera'!D17="-",'Salud Financiera'!D17=0),"-",1/'Salud Financiera'!D17) -> - | E8: =IF(OR('Salud Financiera'!E17="-",'Salud Financiera'!E17=0),"-",1/'Salud Financiera'!E17) -> 2.018042553 | F8: =IF(OR('Salud Financiera'!F17="-",'Salud Financiera'!F17=0),"-",1/'Salud Financiera'!F17) -> 1.959633599 | G8: =IF(OR('Salud Financiera'!G17="-",'Salud Financiera'!G17=0),"-",1/'Salud Financiera'!G17) -> 1.904701955 | H8: =IF(OR('Salud Financiera'!H17="-",'Salud Financiera'!H17=0),"-",1/'Salud Financiera'!H17) -> 1.871859537 | I8: =IF(OR('Salud Financiera'!I17="-",'Salud Financiera'!I17=0),"-",1/'Salud Financiera'!I17) -> 1.796916185 | J8: =IF(OR('Salud Financiera'!J17="-",'Salud Financiera'!J17=0),"-",1/'Salud Financiera'!J17) -> 1.7152706 | K8: =IF(OR('Salud Financiera'!K17="-",'Salud Financiera'!K17=0),"-",1/'Salud Financiera'!K17) -> 1.853019896 | L8: =IF(OR('Salud Financiera'!L17="-",'Salud Financiera'!L17=0),"-",1/'Salud Financiera'!L17) -> 1.783849944 | M8: =IF(OR('Salud Financiera'!M17="-",'Salud Financiera'!M17=0),"-",1/'Salud Financiera'!M17) -> 2.129453164 | N8: =IF(OR('Salud Financiera'!N17="-",'Salud Financiera'!N17=0),"-",1/'Salud Financiera'!N17) -> 2.275168366 | O8: =IF(OR('Salud Financiera'!O17="-",'Salud Financiera'!O17=0),"-",1/'Salud Financiera'!O17) -> 2.199987039 | P8: =IF(OR('Salud Financiera'!P17="-",'Salud Financiera'!P17=0),"-",1/'Salud Financiera'!P17) -> 2.808490078 | Q8: =IF(OR('Salud Financiera'!Q17="-",'Salud Financiera'!Q17=0),"-",1/'Salud Financiera'!Q17) -> 2.64759436 | R8: =IF(OR('Salud Financiera'!R17="-",'Salud Financiera'!R17=0),"-",1/'Salud Financiera'!R17) -> 2.326911181 | S8: =IF(OR('Salud Financiera'!S17="-",'Salud Financiera'!S17=0),"-",1/'Salud Financiera'!S17) -> 2.198766007 | T8: =IF(OR('Salud Financiera'!T17="-",'Salud Financiera'!T17=0),"-",1/'Salud Financiera'!T17) -> 2.167865419 | U8: =IF(OR('Salud Financiera'!U17="-",'Salud Financiera'!U17=0),"-",1/'Salud Financiera'!U17) -> 2.291452605 | V8: =IF(OR('Salud Financiera'!V17="-",'Salud Financiera'!V17=0),"-",1/'Salud Financiera'!V17) -> 2.262513149 | W8: =IF(OR('Salud Financiera'!W17="-",'Salud Financiera'!W17=0),"-",1/'Salud Financiera'!W17) -> 2.4472073 | X8: =IF(OR('Salud Financiera'!X17="-",'Salud Financiera'!X17=0),"-",1/'Salud Financiera'!X17) -> 2.266319354 | Y8: =IF(OR('Salud Financiera'!Y17="-",'Salud Financiera'!Y17=0),"-",1/'Salud Financiera'!Y17) -> 2.366092882 | Z8: =IF(OR('Salud Financiera'!Z17="-",'Salud Financiera'!Z17=0),"-",1/'Salud Financiera'!Z17) -> 2.381844101 | AA8: =IF(OR('Salud Financiera'!AA17="-",'Salud Financiera'!AA17=0),"-",1/'Salud Financiera'!AA17) -> 2.277958081 | AB8: =IF(OR('Salud Financiera'!AB17="-",'Salud Financiera'!AB17=0),"-",1/'Salud Financiera'!AB17) -> 2.185456758 | AC8: =IF(OR('Salud Financiera'!AC17="-",'Salud Financiera'!AC17=0),"-",1/'Salud Financiera'!AC17) -> 2.189561561 | AD8: =IF(OR('Salud Financiera'!AD17="-",'Salud Financiera'!AD17=0),"-",1/'Salud Financiera'!AD17) -> 2.161052632 | AE8: =IF(OR('Salud Financiera'!AE17="-",'Salud Financiera'!AE17=0),"-",1/'Salud Financiera'!AE17) -> 2.201063566 | AF8: =IF(OR('Salud Financiera'!AF17="-",'Salud Financiera'!AF17=0),"-",1/'Salud Financiera'!AF17) -> 2.015799779 | AG8: =IF(OR('Salud Financiera'!AG17="-",'Salud Financiera'!AG17=0),"-",1/'Salud Financiera'!AG17) -> 2.015799779 | AH8: =IF(ISNUMBER(AVERAGEIF(C8:AF8,"<> -")),AVERAGEIF(C8:AF8,"<> -"),"-") -> 2.167994702 | AI8: =IF(ISNUMBER(AVERAGEIF(AB8:AF8,"<> -")),AVERAGEIF(AB8:AF8,"<> -"),"-") -> 2.150586859 | AL8: =IF(OR('Salud Financiera'!AL17="-",'Salud Financiera'!AL17=0),"-",1/'Salud Financiera'!AL17) -> 2.266731359 | AM8: =IF(OR('Salud Financiera'!AM17="-",'Salud Financiera'!AM17=0),"-",1/'Salud Financiera'!AM17) -> 2.253838989 | AN8: =IF(OR('Salud Financiera'!AN17="-",'Salud Financiera'!AN17=0),"-",1/'Salud Financiera'!AN17) -> 2.243292828 | AO8: =IF(OR('Salud Financiera'!AO17="-",'Salud Financiera'!AO17=0),"-",1/'Salud Financiera'!AO17) -> 2.201063566 | AP8: =IF(OR('Salud Financiera'!AP17="-",'Salud Financiera'!AP17=0),"-",1/'Salud Financiera'!AP17) -> 2.234757607 | AQ8: =IF(OR('Salud Financiera'!AQ17="-",'Salud Financiera'!AQ17=0),"-",1/'Salud Financiera'!AQ17) -> 2.213770418 | AR8: =IF(OR('Salud Financiera'!AR17="-",'Salud Financiera'!AR17=0),"-",1/'Salud Financiera'!AR17) -> 2.210842162 | AS8: =IF(OR('Salud Financiera'!AS17="-",'Salud Financiera'!AS17=0),"-",1/'Salud Financiera'!AS17) -> 2.015799779 | AT8: =IF(ISNUMBER(AVERAGEIF(AL8:AS8,"<> -")),AVERAGEIF(AL8:AS8,"<> -"),"-") -> 2.205012088
D9: =IF(OR(D8="-",D8=0,C8="-",C8=0),"-",+(D8-C8)/ABS(C8)) -> - | E9: =IF(OR(E8="-",E8=0,D8="-",D8=0),"-",+(E8-D8)/ABS(D8)) -> - | F9: =IF(OR(F8="-",F8=0,E8="-",E8=0),"-",+(F8-E8)/ABS(E8)) -> -0.02894337076 | G9: =IF(OR(G8="-",G8=0,F8="-",F8=0),"-",+(G8-F8)/ABS(F8)) -> -0.0280315895 | H9: =IF(OR(H8="-",H8=0,G8="-",G8=0),"-",+(H8-G8)/ABS(G8)) -> -0.01724281179 | I9: =IF(OR(I8="-",I8=0,H8="-",H8=0),"-",+(I8-H8)/ABS(H8)) -> -0.04003684644 | J9: =IF(OR(J8="-",J8=0,I8="-",I8=0),"-",+(J8-I8)/ABS(I8)) -> -0.04543650104 | K9: =IF(OR(K8="-",K8=0,J8="-",J8=0),"-",+(K8-J8)/ABS(J8)) -> 0.0803076179 | L9: =IF(OR(L8="-",L8=0,K8="-",K8=0),"-",+(L8-K8)/ABS(K8)) -> -0.03732822956 | M9: =IF(OR(M8="-",M8=0,L8="-",L8=0),"-",+(M8-L8)/ABS(L8)) -> 0.1937400739 | N9: =IF(OR(N8="-",N8=0,M8="-",M8=0),"-",+(N8-M8)/ABS(M8)) -> 0.06842846049 | O9: =IF(OR(O8="-",O8=0,N8="-",N8=0),"-",+(O8-N8)/ABS(N8)) -> -0.03304429168 | P9: =IF(OR(P8="-",P8=0,O8="-",O8=0),"-",+(P8-O8)/ABS(O8)) -> 0.2765939198 | Q9: =IF(OR(Q8="-",Q8=0,P8="-",P8=0),"-",+(Q8-P8)/ABS(P8)) -> -0.05728904632 | R9: =IF(OR(R8="-",R8=0,Q8="-",Q8=0),"-",+(R8-Q8)/ABS(Q8)) -> -0.1211224738 | S9: =IF(OR(S8="-",S8=0,R8="-",R8=0),"-",+(S8-R8)/ABS(R8)) -> -0.05507093483 | T9: =IF(OR(T8="-",T8=0,S8="-",S8=0),"-",+(T8-S8)/ABS(S8)) -> -0.01405360452 | U9: 0.05700869851 | V9: -0.01262930608 | W9: 0.08163229937 | X9: -0.07391606963 | Y9: 0.04402447843 | Z9: 0.006657058514 | AA9: -0.04361579324 | AB9: -0.04060712258 | AC9: 0.001878235611 | AD9: -0.01302038248 | AE9: 0.01851455796 | AF9: -0.08417012083 | AG9: 0 | AM9: =IF(OR(AM8="-",AM8=0,AL8="-",AL8=0),"-",+(AM8-AL8)/ABS(AL8)) -> -0.005687648016 | AN9: =IF(OR(AN8="-",AN8=0,AM8="-",AM8=0),"-",+(AN8-AM8)/ABS(AM8)) -> -0.004679198863 | AO9: =IF(OR(AO8="-",AO8=0,AN8="-",AN8=0),"-",+(AO8-AN8)/ABS(AN8)) -> -0.01882467663 | AP9: =IF(OR(AP8="-",AP8=0,AO8="-",AO8=0),"-",+(AP8-AO8)/ABS(AO8)) -> 0.01530807281 | AQ9: =IF(OR(AQ8="-",AQ8=0,AP8="-",AP8=0),"-",+(AQ8-AP8)/ABS(AP8)) -> -0.009391259882 | AR9: =IF(OR(AR8="-",AR8=0,AQ8="-",AQ8=0),"-",+(AR8-AQ8)/ABS(AQ8)) -> -0.001322745882 | AS9: =IF(OR(AS8="-",AS8=0,AR8="-",AR8=0),"-",+(AS8-AR8)/ABS(AR8)) -> -0.08822085348
A10: ROE | B10: ROE % | C10: =VLOOKUP($B10,'Historical Financial'!$A:$AF,2,FALSE) -> 0 | D10: =VLOOKUP($B10,'Historical Financial'!$A:$AF,3,FALSE) -> 0 | E10: =VLOOKUP($B10,'Historical Financial'!$A:$AF,4,FALSE) -> 14.91 | F10: =VLOOKUP($B10,'Historical Financial'!$A:$AF,5,FALSE) -> 6.95 | G10: =VLOOKUP($B10,'Historical Financial'!$A:$AF,6,FALSE) -> 5 | H10: =VLOOKUP($B10,'Historical Financial'!$A:$AF,7,FALSE) -> 7.12 | I10: =VLOOKUP($B10,'Historical Financial'!$A:$AF,8,FALSE) -> 4.96 | J10: =VLOOKUP($B10,'Historical Financial'!$A:$AF,9,FALSE) -> 5.56 | K10: =VLOOKUP($B10,'Historical Financial'!$A:$AF,10,FALSE) -> 12.39 | L10: =VLOOKUP($B10,'Historical Financial'!$A:$AF,11,FALSE) -> 6.93 | M10: =VLOOKUP($B10,'Historical Financial'!$A:$AF,12,FALSE) -> 6.37 | N10: =VLOOKUP($B10,'Historical Financial'!$A:$AF,13,FALSE) -> 2.7 | O10: =VLOOKUP($B10,'Historical Financial'!$A:$AF,14,FALSE) -> 5.57 | P10: =VLOOKUP($B10,'Historical Financial'!$A:$AF,15,FALSE) -> 1.33 | Q10: =VLOOKUP($B10,'Historical Financial'!$A:$AF,16,FALSE) -> 7.03 | R10: =VLOOKUP($B10,'Historical Financial'!$A:$AF,17,FALSE) -> 11.51 | S10: =VLOOKUP($B10,'Historical Financial'!$A:$AF,18,FALSE) -> 8.94 | T10: =VLOOKUP($B10,'Historical Financial'!$A:$AF,19,FALSE) -> 9.62 | U10: =VLOOKUP($B10,'Historical Financial'!$A:$AF,20,FALSE) -> 11.02 | V10: =VLOOKUP($B10,'Historical Financial'!$A:$AF,21,FALSE) -> 11.53 | W10: =VLOOKUP($B10,'Historical Financial'!$A:$AF,22,FALSE) -> 4.34 | X10: =VLOOKUP($B10,'Historical Financial'!$A:$AF,23,FALSE) -> 6.7 | Y10: =VLOOKUP($B10,'Historical Financial'!$A:$AF,24,FALSE) -> 8.99 | Z10: =VLOOKUP($B10,'Historical Financial'!$A:$AF,25,FALSE) -> 6.37 | AA10: =VLOOKUP($B10,'Historical Financial'!$A:$AF,26,FALSE) -> 8.41 | AB10: =VLOOKUP($B10,'Historical Financial'!$A:$AF,27,FALSE) -> 9.51 | AC10: =VLOOKUP($B10,'Historical Financial'!$A:$AF,28,FALSE) -> 8.6 | AD10: =VLOOKUP($B10,'Historical Financial'!$A:$AF,29,FALSE) -> 9.72 | AE10: =VLOOKUP($B10,'Historical Financial'!$A:$AF,30,FALSE) -> 8.96 | AF10: =VLOOKUP($B10,'Historical Financial'!$A:$AF,31,FALSE) -> 14.26 | AG10: =VLOOKUP($B10,'Historical Financial'!$A:$AF,32,FALSE) -> 14.67 | AH10: =IF(ISNUMBER(AVERAGEIF(C10:AF10,"<> -")),AVERAGEIF(C10:AF10,"<> -"),"-") -> 7.51 | AI10: =IF(ISNUMBER(AVERAGEIF(AB10:AF10,"<> -")),AVERAGEIF(AB10:AF10,"<> -"),"-") -> 10.21 | AL10: =VLOOKUP($B10,'Historical Financial'!$A:$EW,146,FALSE) -> 8.7 | AM10: =VLOOKUP($B10,'Historical Financial'!$A:$EW,147,FALSE) -> 7.67 | AN10: =VLOOKUP($B10,'Historical Financial'!$A:$EW,148,FALSE) -> 10.82 | AO10: =VLOOKUP($B10,'Historical Financial'!$A:$EW,149,FALSE) -> 9.12 | AP10: =VLOOKUP($B10,'Historical Financial'!$A:$EW,150,FALSE) -> 5.65 | AQ10: =VLOOKUP($B10,'Historical Financial'!$A:$EW,151,FALSE) -> 5.74 | AR10: =VLOOKUP($B10,'Historical Financial'!$A:$EW,152,FALSE) -> 5.34 | AS10: =VLOOKUP($B10,'Historical Financial'!$A:$EW,153,FALSE) -> 39.66 | AT10: =IF(ISNUMBER(AVERAGEIF(AL10:AS10,"<> -")),AVERAGEIF(AL10:AS10,"<> -"),"-") -> 11.5875
D11: =IF(OR(D10="-",D10=0,C10="-",C10=0),"-",+(D10-C10)/ABS(C10)) -> - | E11: =IF(OR(E10="-",E10=0,D10="-",D10=0),"-",+(E10-D10)/ABS(D10)) -> - | F11: =IF(OR(F10="-",F10=0,E10="-",E10=0),"-",+(F10-E10)/ABS(E10)) -> -0.533869886 | G11: =IF(OR(G10="-",G10=0,F10="-",F10=0),"-",+(G10-F10)/ABS(F10)) -> -0.2805755396 | H11: =IF(OR(H10="-",H10=0,G10="-",G10=0),"-",+(H10-G10)/ABS(G10)) -> 0.424 | I11: =IF(OR(I10="-",I10=0,H10="-",H10=0),"-",+(I10-H10)/ABS(H10)) -> -0.3033707865 | J11: =IF(OR(J10="-",J10=0,I10="-",I10=0),"-",+(J10-I10)/ABS(I10)) -> 0.1209677419 | K11: =IF(OR(K10="-",K10=0,J10="-",J10=0),"-",+(K10-J10)/ABS(J10)) -> 1.228417266 | L11: =IF(OR(L10="-",L10=0,K10="-",K10=0),"-",+(L10-K10)/ABS(K10)) -> -0.4406779661 | M11: =IF(OR(M10="-",M10=0,L10="-",L10=0),"-",+(M10-L10)/ABS(L10)) -> -0.08080808081 | N11: =IF(OR(N10="-",N10=0,M10="-",M10=0),"-",+(N10-M10)/ABS(M10)) -> -0.5761381476 | O11: =IF(OR(O10="-",O10=0,N10="-",N10=0),"-",+(O10-N10)/ABS(N10)) -> 1.062962963 | P11: =IF(OR(P10="-",P10=0,O10="-",O10=0),"-",+(P10-O10)/ABS(O10)) -> -0.7612208259 | Q11: =IF(OR(Q10="-",Q10=0,P10="-",P10=0),"-",+(Q10-P10)/ABS(P10)) -> 4.285714286 | R11: =IF(OR(R10="-",R10=0,Q10="-",Q10=0),"-",+(R10-Q10)/ABS(Q10)) -> 0.6372688478 | S11: =IF(OR(S10="-",S10=0,R10="-",R10=0),"-",+(S10-R10)/ABS(R10)) -> -0.2232841008 | T11: =IF(OR(T10="-",T10=0,S10="-",S10=0),"-",+(T10-S10)/ABS(S10)) -> 0.07606263982 | U11: 0.1455301455 | V11: 0.04627949183 | W11: -0.6235906331 | X11: 0.5437788018 | Y11: 0.3417910448 | Z11: -0.2914349277 | AA11: 0.3202511774 | AB11: 0.1307966706 | AC11: -0.09568874869 | AD11: 0.1302325581 | AE11: -0.07818930041 | AF11: 0.5915178571 | AG11: 0.02875175316 | AM11: =IF(OR(AM10="-",AM10=0,AL10="-",AL10=0),"-",+(AM10-AL10)/ABS(AL10)) -> -0.1183908046 | AN11: =IF(OR(AN10="-",AN10=0,AM10="-",AM10=0),"-",+(AN10-AM10)/ABS(AM10)) -> 0.4106910039 | AO11: =IF(OR(AO10="-",AO10=0,AN10="-",AN10=0),"-",+(AO10-AN10)/ABS(AN10)) -> -0.157116451 | AP11: =IF(OR(AP10="-",AP10=0,AO10="-",AO10=0),"-",+(AP10-AO10)/ABS(AO10)) -> -0.3804824561 | AQ11: =IF(OR(AQ10="-",AQ10=0,AP10="-",AP10=0),"-",+(AQ10-AP10)/ABS(AP10)) -> 0.01592920354 | AR11: =IF(OR(AR10="-",AR10=0,AQ10="-",AQ10=0),"-",+(AR10-AQ10)/ABS(AQ10)) -> -0.06968641115 | AS11: =IF(OR(AS10="-",AS10=0,AR10="-",AR10=0),"-",+(AS10-AR10)/ABS(AR10)) -> 6.426966292
A12: ROIC | B12: ROIC % | C12: =VLOOKUP($B12,'Historical Financial'!$A:$AF,2,FALSE) -> 0 | D12: =VLOOKUP($B12,'Historical Financial'!$A:$AF,3,FALSE) -> 0 | E12: =VLOOKUP($B12,'Historical Financial'!$A:$AF,4,FALSE) -> 0 | F12: =VLOOKUP($B12,'Historical Financial'!$A:$AF,5,FALSE) -> 0 | G12: =VLOOKUP($B12,'Historical Financial'!$A:$AF,6,FALSE) -> 0 | H12: =VLOOKUP($B12,'Historical Financial'!$A:$AF,7,FALSE) -> 0 | I12: =VLOOKUP($B12,'Historical Financial'!$A:$AF,8,FALSE) -> 0 | J12: =VLOOKUP($B12,'Historical Financial'!$A:$AF,9,FALSE) -> 5.79 | K12: =VLOOKUP($B12,'Historical Financial'!$A:$AF,10,FALSE) -> 12.23 | L12: =VLOOKUP($B12,'Historical Financial'!$A:$AF,11,FALSE) -> 6.44 | M12: =VLOOKUP($B12,'Historical Financial'!$A:$AF,12,FALSE) -> 7.14 | N12: =VLOOKUP($B12,'Historical Financial'!$A:$AF,13,FALSE) -> 3.19 | O12: =VLOOKUP($B12,'Historical Financial'!$A:$AF,14,FALSE) -> 6.19 | P12: =VLOOKUP($B12,'Historical Financial'!$A:$AF,15,FALSE) -> 1.38 | Q12: =VLOOKUP($B12,'Historical Financial'!$A:$AF,16,FALSE) -> 6.84 | R12: =VLOOKUP($B12,'Historical Financial'!$A:$AF,17,FALSE) -> 14.53 | S12: =VLOOKUP($B12,'Historical Financial'!$A:$AF,18,FALSE) -> 10.55 | T12: =VLOOKUP($B12,'Historical Financial'!$A:$AF,19,FALSE) -> 10.86 | U12: =VLOOKUP($B12,'Historical Financial'!$A:$AF,20,FALSE) -> 10.75 | V12: =VLOOKUP($B12,'Historical Financial'!$A:$AF,21,FALSE) -> 12.77 | W12: =VLOOKUP($B12,'Historical Financial'!$A:$AF,22,FALSE) -> 4.7 | X12: =VLOOKUP($B12,'Historical Financial'!$A:$AF,23,FALSE) -> 5.98 | Y12: =VLOOKUP($B12,'Historical Financial'!$A:$AF,24,FALSE) -> 8.24 | Z12: =VLOOKUP($B12,'Historical Financial'!$A:$AF,25,FALSE) -> 5.73 | AA12: =VLOOKUP($B12,'Historical Financial'!$A:$AF,26,FALSE) -> 7.67 | AB12: =VLOOKUP($B12,'Historical Financial'!$A:$AF,27,FALSE) -> 8.71 | AC12: =VLOOKUP($B12,'Historical Financial'!$A:$AF,28,FALSE) -> 7.95 | AD12: =VLOOKUP($B12,'Historical Financial'!$A:$AF,29,FALSE) -> 9.23 | AE12: =VLOOKUP($B12,'Historical Financial'!$A:$AF,30,FALSE) -> 8.31 | AF12: =VLOOKUP($B12,'Historical Financial'!$A:$AF,31,FALSE) -> 12.44 | AG12: =VLOOKUP($B12,'Historical Financial'!$A:$AF,32,FALSE) -> 10.89 | AH12: =IF(ISNUMBER(AVERAGEIF(C12:AF12,"<> -")),AVERAGEIF(C12:AF12,"<> -"),"-") -> 6.254 | AI12: =IF(ISNUMBER(AVERAGEIF(AB12:AF12,"<> -")),AVERAGEIF(AB12:AF12,"<> -"),"-") -> 9.328 | AL12: =VLOOKUP($B12,'Historical Financial'!$A:$EW,146,FALSE) -> 7.56 | AM12: =VLOOKUP($B12,'Historical Financial'!$A:$EW,147,FALSE) -> 6.59 | AN12: =VLOOKUP($B12,'Historical Financial'!$A:$EW,148,FALSE) -> 9.82 | AO12: =VLOOKUP($B12,'Historical Financial'!$A:$EW,149,FALSE) -> 8.38 | AP12: =VLOOKUP($B12,'Historical Financial'!$A:$EW,150,FALSE) -> 5.25 | AQ12: =VLOOKUP($B12,'Historical Financial'!$A:$EW,151,FALSE) -> 5.42 | AR12: =VLOOKUP($B12,'Historical Financial'!$A:$EW,152,FALSE) -> 5.26 | AS12: =VLOOKUP($B12,'Historical Financial'!$A:$EW,153,FALSE) -> 27.05 | AT12: =IF(ISNUMBER(AVERAGEIF(AL12:AS12,"<> -")),AVERAGEIF(AL12:AS12,"<> -"),"-") -> 9.41625
D13: =IF(OR(D12="-",D12=0,C12="-",C12=0),"-",+(D12-C12)/ABS(C12)) -> - | E13: =IF(OR(E12="-",E12=0,D12="-",D12=0),"-",+(E12-D12)/ABS(D12)) -> - | F13: =IF(OR(F12="-",F12=0,E12="-",E12=0),"-",+(F12-E12)/ABS(E12)) -> - | G13: =IF(OR(G12="-",G12=0,F12="-",F12=0),"-",+(G12-F12)/ABS(F12)) -> - | H13: =IF(OR(H12="-",H12=0,G12="-",G12=0),"-",+(H12-G12)/ABS(G12)) -> - | I13: =IF(OR(I12="-",I12=0,H12="-",H12=0),"-",+(I12-H12)/ABS(H12)) -> - | J13: =IF(OR(J12="-",J12=0,I12="-",I12=0),"-",+(J12-I12)/ABS(I12)) -> - | K13: =IF(OR(K12="-",K12=0,J12="-",J12=0),"-",+(K12-J12)/ABS(J12)) -> 1.112262522 | L13: =IF(OR(L12="-",L12=0,K12="-",K12=0),"-",+(L12-K12)/ABS(K12)) -> -0.4734260016 | M13: =IF(OR(M12="-",M12=0,L12="-",L12=0),"-",+(M12-L12)/ABS(L12)) -> 0.1086956522 | N13: =IF(OR(N12="-",N12=0,M12="-",M12=0),"-",+(N12-M12)/ABS(M12)) -> -0.5532212885 | O13: =IF(OR(O12="-",O12=0,N12="-",N12=0),"-",+(O12-N12)/ABS(N12)) -> 0.9404388715 | P13: =IF(OR(P12="-",P12=0,O12="-",O12=0),"-",+(P12-O12)/ABS(O12)) -> -0.7770597738 | Q13: =IF(OR(Q12="-",Q12=0,P12="-",P12=0),"-",+(Q12-P12)/ABS(P12)) -> 3.956521739 | R13: =IF(OR(R12="-",R12=0,Q12="-",Q12=0),"-",+(R12-Q12)/ABS(Q12)) -> 1.124269006 | S13: =IF(OR(S12="-",S12=0,R12="-",R12=0),"-",+(S12-R12)/ABS(R12)) -> -0.2739160358 | T13: =IF(OR(T12="-",T12=0,S12="-",S12=0),"-",+(T12-S12)/ABS(S12)) -> 0.02938388626 | U13: -0.01012891344 | V13: 0.1879069767 | W13: -0.6319498825 | X13: 0.2723404255 | Y13: 0.3779264214 | Z13: -0.3046116505 | AA13: 0.3385689354 | AB13: 0.1355932203 | AC13: -0.08725602755 | AD13: 0.1610062893 | AE13: -0.09967497291 | AF13: 0.4969915764 | AG13: -0.1245980707 | AM13: =IF(OR(AM12="-",AM12=0,AL12="-",AL12=0),"-",+(AM12-AL12)/ABS(AL12)) -> -0.1283068783 | AN13: =IF(OR(AN12="-",AN12=0,AM12="-",AM12=0),"-",+(AN12-AM12)/ABS(AM12)) -> 0.4901365706 | AO13: =IF(OR(AO12="-",AO12=0,AN12="-",AN12=0),"-",+(AO12-AN12)/ABS(AN12)) -> -0.1466395112 | AP13: =IF(OR(AP12="-",AP12=0,AO12="-",AO12=0),"-",+(AP12-AO12)/ABS(AO12)) -> -0.3735083532 | AQ13: =IF(OR(AQ12="-",AQ12=0,AP12="-",AP12=0),"-",+(AQ12-AP12)/ABS(AP12)) -> 0.03238095238 | AR13: =IF(OR(AR12="-",AR12=0,AQ12="-",AQ12=0),"-",+(AR12-AQ12)/ABS(AQ12)) -> -0.0295202952 | AS13: =IF(OR(AS12="-",AS12=0,AR12="-",AR12=0),"-",+(AS12-AR12)/ABS(AR12)) -> 4.142585551
A16: Tiempo de cobro | B16: Days Sales Outstanding | C16: =VLOOKUP($B16,'Historical Financial'!$A:$AF,2,FALSE) ->  | D16: =VLOOKUP($B16,'Historical Financial'!$A:$AF,3,FALSE) ->  | E16: =VLOOKUP($B16,'Historical Financial'!$A:$AF,4,FALSE) ->  | F16: =VLOOKUP($B16,'Historical Financial'!$A:$AF,5,FALSE) ->  | G16: =VLOOKUP($B16,'Historical Financial'!$A:$AF,6,FALSE) ->  | H16: =VLOOKUP($B16,'Historical Financial'!$A:$AF,7,FALSE) ->  | I16: =VLOOKUP($B16,'Historical Financial'!$A:$AF,8,FALSE) ->  | J16: =VLOOKUP($B16,'Historical Financial'!$A:$AF,9,FALSE) ->  | K16: =VLOOKUP($B16,'Historical Financial'!$A:$AF,10,FALSE) ->  | L16: =VLOOKUP($B16,'Historical Financial'!$A:$AF,11,FALSE) ->  | M16: =VLOOKUP($B16,'Historical Financial'!$A:$AF,12,FALSE) ->  | N16: =VLOOKUP($B16,'Historical Financial'!$A:$AF,13,FALSE) ->  | O16: =VLOOKUP($B16,'Historical Financial'!$A:$AF,14,FALSE) ->  | P16: =VLOOKUP($B16,'Historical Financial'!$A:$AF,15,FALSE) ->  | Q16: =VLOOKUP($B16,'Historical Financial'!$A:$AF,16,FALSE) ->  | R16: =VLOOKUP($B16,'Historical Financial'!$A:$AF,17,FALSE) ->  | S16: =VLOOKUP($B16,'Historical Financial'!$A:$AF,18,FALSE) ->  | T16: =VLOOKUP($B16,'Historical Financial'!$A:$AF,19,FALSE) ->  | U16: =VLOOKUP($B16,'Historical Financial'!$A:$AF,20,FALSE) ->  | V16: =VLOOKUP($B16,'Historical Financial'!$A:$AF,21,FALSE) ->  | W16: =VLOOKUP($B16,'Historical Financial'!$A:$AF,22,FALSE) ->  | X16: =VLOOKUP($B16,'Historical Financial'!$A:$AF,23,FALSE) ->  | Y16: =VLOOKUP($B16,'Historical Financial'!$A:$AF,24,FALSE) ->  | Z16: =VLOOKUP($B16,'Historical Financial'!$A:$AF,25,FALSE) ->  | AA16: =VLOOKUP($B16,'Historical Financial'!$A:$AF,26,FALSE) ->  | AB16: =VLOOKUP($B16,'Historical Financial'!$A:$AF,27,FALSE) ->  | AC16: =VLOOKUP($B16,'Historical Financial'!$A:$AF,28,FALSE) ->  | AD16: =VLOOKUP($B16,'Historical Financial'!$A:$AF,29,FALSE) ->  | AE16: =VLOOKUP($B16,'Historical Financial'!$A:$AF,30,FALSE) ->  | AF16: =VLOOKUP($B16,'Historical Financial'!$A:$AF,31,FALSE) ->  | AG16: =VLOOKUP($B16,'Historical Financial'!$A:$AF,32,FALSE) ->  | AH16: =IF(ISNUMBER(AVERAGEIF(C16:AF16,"<> -")),AVERAGEIF(C16:AF16,"<> -"),"-") -> - | AI16: =IF(ISNUMBER(AVERAGEIF(AB16:AF16,"<> -")),AVERAGEIF(AB16:AF16,"<> -"),"-") -> - | AL16: =VLOOKUP($B16,'Historical Financial'!$A:$EW,146,FALSE) ->  | AM16: =VLOOKUP($B16,'Historical Financial'!$A:$EW,147,FALSE) ->  | AN16: =VLOOKUP($B16,'Historical Financial'!$A:$EW,148,FALSE) ->  | AO16: =VLOOKUP($B16,'Historical Financial'!$A:$EW,149,FALSE) ->  | AP16: =VLOOKUP($B16,'Historical Financial'!$A:$EW,150,FALSE) ->  | AQ16: =VLOOKUP($B16,'Historical Financial'!$A:$EW,151,FALSE) ->  | AR16: =VLOOKUP($B16,'Historical Financial'!$A:$EW,152,FALSE) ->  | AS16: =VLOOKUP($B16,'Historical Financial'!$A:$EW,153,FALSE) ->  | AT16: =IF(ISNUMBER(AVERAGEIF(AL16:AS16,"<> -")),AVERAGEIF(AL16:AS16,"<> -"),"-") -> -
D17: =IF(OR(D16="-",D16=0,C16="-",C16=0),"-",+(D16-C16)/ABS(C16)) ->  | E17: =IF(OR(E16="-",E16=0,D16="-",D16=0),"-",+(E16-D16)/ABS(D16)) ->  | F17: =IF(OR(F16="-",F16=0,E16="-",E16=0),"-",+(F16-E16)/ABS(E16)) ->  | G17: =IF(OR(G16="-",G16=0,F16="-",F16=0),"-",+(G16-F16)/ABS(F16)) ->  | H17: =IF(OR(H16="-",H16=0,G16="-",G16=0),"-",+(H16-G16)/ABS(G16)) ->  | I17: =IF(OR(I16="-",I16=0,H16="-",H16=0),"-",+(I16-H16)/ABS(H16)) ->  | J17: =IF(OR(J16="-",J16=0,I16="-",I16=0),"-",+(J16-I16)/ABS(I16)) ->  | K17: =IF(OR(K16="-",K16=0,J16="-",J16=0),"-",+(K16-J16)/ABS(J16)) ->  | L17: =IF(OR(L16="-",L16=0,K16="-",K16=0),"-",+(L16-K16)/ABS(K16)) ->  | M17: =IF(OR(M16="-",M16=0,L16="-",L16=0),"-",+(M16-L16)/ABS(L16)) ->  | N17: =IF(OR(N16="-",N16=0,M16="-",M16=0),"-",+(N16-M16)/ABS(M16)) ->  | O17: =IF(OR(O16="-",O16=0,N16="-",N16=0),"-",+(O16-N16)/ABS(N16)) ->  | P17: =IF(OR(P16="-",P16=0,O16="-",O16=0),"-",+(P16-O16)/ABS(O16)) ->  | Q17: =IF(OR(Q16="-",Q16=0,P16="-",P16=0),"-",+(Q16-P16)/ABS(P16)) ->  | R17: =IF(OR(R16="-",R16=0,Q16="-",Q16=0),"-",+(R16-Q16)/ABS(Q16)) ->  | S17: =IF(OR(S16="-",S16=0,R16="-",R16=0),"-",+(S16-R16)/ABS(R16)) ->  | T17: =IF(OR(T16="-",T16=0,S16="-",S16=0),"-",+(T16-S16)/ABS(S16)) ->  | AM17: =IF(OR(AM16="-",AM16=0,AL16="-",AL16=0),"-",+(AM16-AL16)/ABS(AL16)) ->  | AN17: =IF(OR(AN16="-",AN16=0,AM16="-",AM16=0),"-",+(AN16-AM16)/ABS(AM16)) ->  | AO17: =IF(OR(AO16="-",AO16=0,AN16="-",AN16=0),"-",+(AO16-AN16)/ABS(AN16)) ->  | AP17: =IF(OR(AP16="-",AP16=0,AO16="-",AO16=0),"-",+(AP16-AO16)/ABS(AO16)) ->  | AQ17: =IF(OR(AQ16="-",AQ16=0,AP16="-",AP16=0),"-",+(AQ16-AP16)/ABS(AP16)) ->  | AR17: =IF(OR(AR16="-",AR16=0,AQ16="-",AQ16=0),"-",+(AR16-AQ16)/ABS(AQ16)) ->  | AS17: =IF(OR(AS16="-",AS16=0,AR16="-",AR16=0),"-",+(AS16-AR16)/ABS(AR16)) -> 
A18: Tiempo de pago | B18: Days Payable | C18: =VLOOKUP($B18,'Historical Financial'!$A:$AF,2,FALSE) ->  | D18: =VLOOKUP($B18,'Historical Financial'!$A:$AF,3,FALSE) ->  | E18: =VLOOKUP($B18,'Historical Financial'!$A:$AF,4,FALSE) ->  | F18: =VLOOKUP($B18,'Historical Financial'!$A:$AF,5,FALSE) ->  | G18: =VLOOKUP($B18,'Historical Financial'!$A:$AF,6,FALSE) ->  | H18: =VLOOKUP($B18,'Historical Financial'!$A:$AF,7,FALSE) ->  | I18: =VLOOKUP($B18,'Historical Financial'!$A:$AF,8,FALSE) ->  | J18: =VLOOKUP($B18,'Historical Financial'!$A:$AF,9,FALSE) ->  | K18: =VLOOKUP($B18,'Historical Financial'!$A:$AF,10,FALSE) ->  | L18: =VLOOKUP($B18,'Historical Financial'!$A:$AF,11,FALSE) ->  | M18: =VLOOKUP($B18,'Historical Financial'!$A:$AF,12,FALSE) ->  | N18: =VLOOKUP($B18,'Historical Financial'!$A:$AF,13,FALSE) ->  | O18: =VLOOKUP($B18,'Historical Financial'!$A:$AF,14,FALSE) ->  | P18: =VLOOKUP($B18,'Historical Financial'!$A:$AF,15,FALSE) ->  | Q18: =VLOOKUP($B18,'Historical Financial'!$A:$AF,16,FALSE) ->  | R18: =VLOOKUP($B18,'Historical Financial'!$A:$AF,17,FALSE) ->  | S18: =VLOOKUP($B18,'Historical Financial'!$A:$AF,18,FALSE) ->  | T18: =VLOOKUP($B18,'Historical Financial'!$A:$AF,19,FALSE) ->  | U18: =VLOOKUP($B18,'Historical Financial'!$A:$AF,20,FALSE) ->  | V18: =VLOOKUP($B18,'Historical Financial'!$A:$AF,21,FALSE) ->  | W18: =VLOOKUP($B18,'Historical Financial'!$A:$AF,22,FALSE) ->  | X18: =VLOOKUP($B18,'Historical Financial'!$A:$AF,23,FALSE) ->  | Y18: =VLOOKUP($B18,'Historical Financial'!$A:$AF,24,FALSE) ->  | Z18: =VLOOKUP($B18,'Historical Financial'!$A:$AF,25,FALSE) ->  | AA18: =VLOOKUP($B18,'Historical Financial'!$A:$AF,26,FALSE) ->  | AB18: =VLOOKUP($B18,'Historical Financial'!$A:$AF,27,FALSE) ->  | AC18: =VLOOKUP($B18,'Historical Financial'!$A:$AF,28,FALSE) ->  | AD18: =VLOOKUP($B18,'Historical Financial'!$A:$AF,29,FALSE) ->  | AE18: =VLOOKUP($B18,'Historical Financial'!$A:$AF,30,FALSE) ->  | AF18: =VLOOKUP($B18,'Historical Financial'!$A:$AF,31,FALSE) ->  | AG18: =VLOOKUP($B18,'Historical Financial'!$A:$AF,32,FALSE) ->  | AH18: =IF(ISNUMBER(AVERAGEIF(C18:AF18,"<> -")),AVERAGEIF(C18:AF18,"<> -"),"-") -> - | AI18: =IF(ISNUMBER(AVERAGEIF(AB18:AF18,"<> -")),AVERAGEIF(AB18:AF18,"<> -"),"-") -> - | AL18: =VLOOKUP($B18,'Historical Financial'!$A:$EW,146,FALSE) ->  | AM18: =VLOOKUP($B18,'Historical Financial'!$A:$EW,147,FALSE) ->  | AN18: =VLOOKUP($B18,'Historical Financial'!$A:$EW,148,FALSE) ->  | AO18: =VLOOKUP($B18,'Historical Financial'!$A:$EW,149,FALSE) ->  | AP18: =VLOOKUP($B18,'Historical Financial'!$A:$EW,150,FALSE) ->  | AQ18: =VLOOKUP($B18,'Historical Financial'!$A:$EW,151,FALSE) ->  | AR18: =VLOOKUP($B18,'Historical Financial'!$A:$EW,152,FALSE) ->  | AS18: =VLOOKUP($B18,'Historical Financial'!$A:$EW,153,FALSE) ->  | AT18: =IF(ISNUMBER(AVERAGEIF(AL18:AS18,"<> -")),AVERAGEIF(AL18:AS18,"<> -"),"-") -> -
D19: =IF(OR(D18="-",D18=0,C18="-",C18=0),"-",+(D18-C18)/ABS(C18)) ->  | E19: =IF(OR(E18="-",E18=0,D18="-",D18=0),"-",+(E18-D18)/ABS(D18)) ->  | F19: =IF(OR(F18="-",F18=0,E18="-",E18=0),"-",+(F18-E18)/ABS(E18)) ->  | G19: =IF(OR(G18="-",G18=0,F18="-",F18=0),"-",+(G18-F18)/ABS(F18)) ->  | H19: =IF(OR(H18="-",H18=0,G18="-",G18=0),"-",+(H18-G18)/ABS(G18)) ->  | I19: =IF(OR(I18="-",I18=0,H18="-",H18=0),"-",+(I18-H18)/ABS(H18)) ->  | J19: =IF(OR(J18="-",J18=0,I18="-",I18=0),"-",+(J18-I18)/ABS(I18)) ->  | K19: =IF(OR(K18="-",K18=0,J18="-",J18=0),"-",+(K18-J18)/ABS(J18)) ->  | L19: =IF(OR(L18="-",L18=0,K18="-",K18=0),"-",+(L18-K18)/ABS(K18)) ->  | M19: =IF(OR(M18="-",M18=0,L18="-",L18=0),"-",+(M18-L18)/ABS(L18)) ->  | N19: =IF(OR(N18="-",N18=0,M18="-",M18=0),"-",+(N18-M18)/ABS(M18)) ->  | O19: =IF(OR(O18="-",O18=0,N18="-",N18=0),"-",+(O18-N18)/ABS(N18)) ->  | P19: =IF(OR(P18="-",P18=0,O18="-",O18=0),"-",+(P18-O18)/ABS(O18)) ->  | Q19: =IF(OR(Q18="-",Q18=0,P18="-",P18=0),"-",+(Q18-P18)/ABS(P18)) ->  | R19: =IF(OR(R18="-",R18=0,Q18="-",Q18=0),"-",+(R18-Q18)/ABS(Q18)) ->  | S19: =IF(OR(S18="-",S18=0,R18="-",R18=0),"-",+(S18-R18)/ABS(R18)) ->  | T19: =IF(OR(T18="-",T18=0,S18="-",S18=0),"-",+(T18-S18)/ABS(S18)) ->  | AM19: =IF(OR(AM18="-",AM18=0,AL18="-",AL18=0),"-",+(AM18-AL18)/ABS(AL18)) ->  | AN19: =IF(OR(AN18="-",AN18=0,AM18="-",AM18=0),"-",+(AN18-AM18)/ABS(AM18)) ->  | AO19: =IF(OR(AO18="-",AO18=0,AN18="-",AN18=0),"-",+(AO18-AN18)/ABS(AN18)) ->  | AP19: =IF(OR(AP18="-",AP18=0,AO18="-",AO18=0),"-",+(AP18-AO18)/ABS(AO18)) ->  | AQ19: =IF(OR(AQ18="-",AQ18=0,AP18="-",AP18=0),"-",+(AQ18-AP18)/ABS(AP18)) ->  | AR19: =IF(OR(AR18="-",AR18=0,AQ18="-",AQ18=0),"-",+(AR18-AQ18)/ABS(AQ18)) ->  | AS19: =IF(OR(AS18="-",AS18=0,AR18="-",AR18=0),"-",+(AS18-AR18)/ABS(AR18)) -> 
A20: Tiempo de inventario | B20: Days Inventory | C20: =VLOOKUP($B20,'Historical Financial'!$A:$AF,2,FALSE) ->  | D20: =VLOOKUP($B20,'Historical Financial'!$A:$AF,3,FALSE) ->  | E20: =VLOOKUP($B20,'Historical Financial'!$A:$AF,4,FALSE) ->  | F20: =VLOOKUP($B20,'Historical Financial'!$A:$AF,5,FALSE) ->  | G20: =VLOOKUP($B20,'Historical Financial'!$A:$AF,6,FALSE) ->  | H20: =VLOOKUP($B20,'Historical Financial'!$A:$AF,7,FALSE) ->  | I20: =VLOOKUP($B20,'Historical Financial'!$A:$AF,8,FALSE) ->  | J20: =VLOOKUP($B20,'Historical Financial'!$A:$AF,9,FALSE) ->  | K20: =VLOOKUP($B20,'Historical Financial'!$A:$AF,10,FALSE) ->  | L20: =VLOOKUP($B20,'Historical Financial'!$A:$AF,11,FALSE) ->  | M20: =VLOOKUP($B20,'Historical Financial'!$A:$AF,12,FALSE) ->  | N20: =VLOOKUP($B20,'Historical Financial'!$A:$AF,13,FALSE) ->  | O20: =VLOOKUP($B20,'Historical Financial'!$A:$AF,14,FALSE) ->  | P20: =VLOOKUP($B20,'Historical Financial'!$A:$AF,15,FALSE) ->  | Q20: =VLOOKUP($B20,'Historical Financial'!$A:$AF,16,FALSE) ->  | R20: =VLOOKUP($B20,'Historical Financial'!$A:$AF,17,FALSE) ->  | S20: =VLOOKUP($B20,'Historical Financial'!$A:$AF,18,FALSE) ->  | T20: =VLOOKUP($B20,'Historical Financial'!$A:$AF,19,FALSE) ->  | U20: =VLOOKUP($B20,'Historical Financial'!$A:$AF,20,FALSE) ->  | V20: =VLOOKUP($B20,'Historical Financial'!$A:$AF,21,FALSE) ->  | W20: =VLOOKUP($B20,'Historical Financial'!$A:$AF,22,FALSE) ->  | X20: =VLOOKUP($B20,'Historical Financial'!$A:$AF,23,FALSE) ->  | Y20: =VLOOKUP($B20,'Historical Financial'!$A:$AF,24,FALSE) ->  | Z20: =VLOOKUP($B20,'Historical Financial'!$A:$AF,25,FALSE) ->  | AA20: =VLOOKUP($B20,'Historical Financial'!$A:$AF,26,FALSE) ->  | AB20: =VLOOKUP($B20,'Historical Financial'!$A:$AF,27,FALSE) ->  | AC20: =VLOOKUP($B20,'Historical Financial'!$A:$AF,28,FALSE) ->  | AD20: =VLOOKUP($B20,'Historical Financial'!$A:$AF,29,FALSE) ->  | AE20: =VLOOKUP($B20,'Historical Financial'!$A:$AF,30,FALSE) ->  | AF20: =VLOOKUP($B20,'Historical Financial'!$A:$AF,31,FALSE) ->  | AG20: =VLOOKUP($B20,'Historical Financial'!$A:$AF,32,FALSE) ->  | AH20: =IF(ISNUMBER(AVERAGEIF(C20:AF20,"<> -")),AVERAGEIF(C20:AF20,"<> -"),"-") -> - | AI20: =IF(ISNUMBER(AVERAGEIF(AB20:AF20,"<> -")),AVERAGEIF(AB20:AF20,"<> -"),"-") -> - | AL20: =VLOOKUP($B20,'Historical Financial'!$A:$EW,146,FALSE) ->  | AM20: =VLOOKUP($B20,'Historical Financial'!$A:$EW,147,FALSE) ->  | AN20: =VLOOKUP($B20,'Historical Financial'!$A:$EW,148,FALSE) ->  | AO20: =VLOOKUP($B20,'Historical Financial'!$A:$EW,149,FALSE) ->  | AP20: =VLOOKUP($B20,'Historical Financial'!$A:$EW,150,FALSE) ->  | AQ20: =VLOOKUP($B20,'Historical Financial'!$A:$EW,151,FALSE) ->  | AR20: =VLOOKUP($B20,'Historical Financial'!$A:$EW,152,FALSE) ->  | AS20: =VLOOKUP($B20,'Historical Financial'!$A:$EW,153,FALSE) ->  | AT20: =IF(ISNUMBER(AVERAGEIF(AL20:AS20,"<> -")),AVERAGEIF(AL20:AS20,"<> -"),"-") -> -
D21: =IF(OR(D20="-",D20=0,C20="-",C20=0),"-",+(D20-C20)/ABS(C20)) ->  | E21: =IF(OR(E20="-",E20=0,D20="-",D20=0),"-",+(E20-D20)/ABS(D20)) ->  | F21: =IF(OR(F20="-",F20=0,E20="-",E20=0),"-",+(F20-E20)/ABS(E20)) ->  | G21: =IF(OR(G20="-",G20=0,F20="-",F20=0),"-",+(G20-F20)/ABS(F20)) ->  | H21: =IF(OR(H20="-",H20=0,G20="-",G20=0),"-",+(H20-G20)/ABS(G20)) ->  | I21: =IF(OR(I20="-",I20=0,H20="-",H20=0),"-",+(I20-H20)/ABS(H20)) ->  | J21: =IF(OR(J20="-",J20=0,I20="-",I20=0),"-",+(J20-I20)/ABS(I20)) ->  | K21: =IF(OR(K20="-",K20=0,J20="-",J20=0),"-",+(K20-J20)/ABS(J20)) ->  | L21: =IF(OR(L20="-",L20=0,K20="-",K20=0),"-",+(L20-K20)/ABS(K20)) ->  | M21: =IF(OR(M20="-",M20=0,L20="-",L20=0),"-",+(M20-L20)/ABS(L20)) ->  | N21: =IF(OR(N20="-",N20=0,M20="-",M20=0),"-",+(N20-M20)/ABS(M20)) ->  | O21: =IF(OR(O20="-",O20=0,N20="-",N20=0),"-",+(O20-N20)/ABS(N20)) ->  | P21: =IF(OR(P20="-",P20=0,O20="-",O20=0),"-",+(P20-O20)/ABS(O20)) ->  | Q21: =IF(OR(Q20="-",Q20=0,P20="-",P20=0),"-",+(Q20-P20)/ABS(P20)) ->  | R21: =IF(OR(R20="-",R20=0,Q20="-",Q20=0),"-",+(R20-Q20)/ABS(Q20)) ->  | S21: =IF(OR(S20="-",S20=0,R20="-",R20=0),"-",+(S20-R20)/ABS(R20)) ->  | T21: =IF(OR(T20="-",T20=0,S20="-",S20=0),"-",+(T20-S20)/ABS(S20)) ->  | AM21: =IF(OR(AM20="-",AM20=0,AL20="-",AL20=0),"-",+(AM20-AL20)/ABS(AL20)) ->  | AN21: =IF(OR(AN20="-",AN20=0,AM20="-",AM20=0),"-",+(AN20-AM20)/ABS(AM20)) ->  | AO21: =IF(OR(AO20="-",AO20=0,AN20="-",AN20=0),"-",+(AO20-AN20)/ABS(AN20)) ->  | AP21: =IF(OR(AP20="-",AP20=0,AO20="-",AO20=0),"-",+(AP20-AO20)/ABS(AO20)) ->  | AQ21: =IF(OR(AQ20="-",AQ20=0,AP20="-",AP20=0),"-",+(AQ20-AP20)/ABS(AP20)) ->  | AR21: =IF(OR(AR20="-",AR20=0,AQ20="-",AQ20=0),"-",+(AR20-AQ20)/ABS(AQ20)) ->  | AS21: =IF(OR(AS20="-",AS20=0,AR20="-",AR20=0),"-",+(AS20-AR20)/ABS(AR20)) -> 
A22: Ciclo de conversión de caja | B22: Cash Conversion Cycle | C22: =VLOOKUP($B22,'Historical Financial'!$A:$AF,2,FALSE) ->  | D22: =VLOOKUP($B22,'Historical Financial'!$A:$AF,3,FALSE) ->  | E22: =VLOOKUP($B22,'Historical Financial'!$A:$AF,4,FALSE) ->  | F22: =VLOOKUP($B22,'Historical Financial'!$A:$AF,5,FALSE) ->  | G22: =VLOOKUP($B22,'Historical Financial'!$A:$AF,6,FALSE) ->  | H22: =VLOOKUP($B22,'Historical Financial'!$A:$AF,7,FALSE) ->  | I22: =VLOOKUP($B22,'Historical Financial'!$A:$AF,8,FALSE) ->  | J22: =VLOOKUP($B22,'Historical Financial'!$A:$AF,9,FALSE) ->  | K22: =VLOOKUP($B22,'Historical Financial'!$A:$AF,10,FALSE) ->  | L22: =VLOOKUP($B22,'Historical Financial'!$A:$AF,11,FALSE) ->  | M22: =VLOOKUP($B22,'Historical Financial'!$A:$AF,12,FALSE) ->  | N22: =VLOOKUP($B22,'Historical Financial'!$A:$AF,13,FALSE) ->  | O22: =VLOOKUP($B22,'Historical Financial'!$A:$AF,14,FALSE) ->  | P22: =VLOOKUP($B22,'Historical Financial'!$A:$AF,15,FALSE) ->  | Q22: =VLOOKUP($B22,'Historical Financial'!$A:$AF,16,FALSE) ->  | R22: =VLOOKUP($B22,'Historical Financial'!$A:$AF,17,FALSE) ->  | S22: =VLOOKUP($B22,'Historical Financial'!$A:$AF,18,FALSE) ->  | T22: =VLOOKUP($B22,'Historical Financial'!$A:$AF,19,FALSE) ->  | U22: =VLOOKUP($B22,'Historical Financial'!$A:$AF,20,FALSE) ->  | V22: =VLOOKUP($B22,'Historical Financial'!$A:$AF,21,FALSE) ->  | W22: =VLOOKUP($B22,'Historical Financial'!$A:$AF,22,FALSE) ->  | X22: =VLOOKUP($B22,'Historical Financial'!$A:$AF,23,FALSE) ->  | Y22: =VLOOKUP($B22,'Historical Financial'!$A:$AF,24,FALSE) ->  | Z22: =VLOOKUP($B22,'Historical Financial'!$A:$AF,25,FALSE) ->  | AA22: =VLOOKUP($B22,'Historical Financial'!$A:$AF,26,FALSE) ->  | AB22: =VLOOKUP($B22,'Historical Financial'!$A:$AF,27,FALSE) ->  | AC22: =VLOOKUP($B22,'Historical Financial'!$A:$AF,28,FALSE) ->  | AD22: =VLOOKUP($B22,'Historical Financial'!$A:$AF,29,FALSE) ->  | AE22: =VLOOKUP($B22,'Historical Financial'!$A:$AF,30,FALSE) ->  | AF22: =VLOOKUP($B22,'Historical Financial'!$A:$AF,31,FALSE) ->  | AG22: =VLOOKUP($B22,'Historical Financial'!$A:$AF,32,FALSE) ->  | AH22: =IF(ISNUMBER(AVERAGEIF(C22:AF22,"<> -")),AVERAGEIF(C22:AF22,"<> -"),"-") -> - | AI22: =IF(ISNUMBER(AVERAGEIF(AB22:AF22,"<> -")),AVERAGEIF(AB22:AF22,"<> -"),"-") -> - | AL22: =VLOOKUP($B22,'Historical Financial'!$A:$EW,146,FALSE) ->  | AM22: =VLOOKUP($B22,'Historical Financial'!$A:$EW,147,FALSE) ->  | AN22: =VLOOKUP($B22,'Historical Financial'!$A:$EW,148,FALSE) ->  | AO22: =VLOOKUP($B22,'Historical Financial'!$A:$EW,149,FALSE) ->  | AP22: =VLOOKUP($B22,'Historical Financial'!$A:$EW,150,FALSE) ->  | AQ22: =VLOOKUP($B22,'Historical Financial'!$A:$EW,151,FALSE) ->  | AR22: =VLOOKUP($B22,'Historical Financial'!$A:$EW,152,FALSE) ->  | AS22: =VLOOKUP($B22,'Historical Financial'!$A:$EW,153,FALSE) ->  | AT22: =IF(ISNUMBER(AVERAGEIF(AL22:AS22,"<> -")),AVERAGEIF(AL22:AS22,"<> -"),"-") -> -
D23: =IF(OR(D22="-",D22=0,C22="-",C22=0),"-",+(D22-C22)/ABS(C22)) ->  | E23: =IF(OR(E22="-",E22=0,D22="-",D22=0),"-",+(E22-D22)/ABS(D22)) ->  | F23: =IF(OR(F22="-",F22=0,E22="-",E22=0),"-",+(F22-E22)/ABS(E22)) ->  | G23: =IF(OR(G22="-",G22=0,F22="-",F22=0),"-",+(G22-F22)/ABS(F22)) ->  | H23: =IF(OR(H22="-",H22=0,G22="-",G22=0),"-",+(H22-G22)/ABS(G22)) ->  | I23: =IF(OR(I22="-",I22=0,H22="-",H22=0),"-",+(I22-H22)/ABS(H22)) ->  | J23: =IF(OR(J22="-",J22=0,I22="-",I22=0),"-",+(J22-I22)/ABS(I22)) ->  | K23: =IF(OR(K22="-",K22=0,J22="-",J22=0),"-",+(K22-J22)/ABS(J22)) ->  | L23: =IF(OR(L22="-",L22=0,K22="-",K22=0),"-",+(L22-K22)/ABS(K22)) ->  | M23: =IF(OR(M22="-",M22=0,L22="-",L22=0),"-",+(M22-L22)/ABS(L22)) ->  | N23: =IF(OR(N22="-",N22=0,M22="-",M22=0),"-",+(N22-M22)/ABS(M22)) ->  | O23: =IF(OR(O22="-",O22=0,N22="-",N22=0),"-",+(O22-N22)/ABS(N22)) ->  | P23: =IF(OR(P22="-",P22=0,O22="-",O22=0),"-",+(P22-O22)/ABS(O22)) ->  | Q23: =IF(OR(Q22="-",Q22=0,P22="-",P22=0),"-",+(Q22-P22)/ABS(P22)) ->  | R23: =IF(OR(R22="-",R22=0,Q22="-",Q22=0),"-",+(R22-Q22)/ABS(Q22)) ->  | S23: =IF(OR(S22="-",S22=0,R22="-",R22=0),"-",+(S22-R22)/ABS(R22)) ->  | T23: =IF(OR(T22="-",T22=0,S22="-",S22=0),"-",+(T22-S22)/ABS(S22)) ->  | AM23: =IF(OR(AM22="-",AM22=0,AL22="-",AL22=0),"-",+(AM22-AL22)/ABS(AL22)) ->  | AN23: =IF(OR(AN22="-",AN22=0,AM22="-",AM22=0),"-",+(AN22-AM22)/ABS(AM22)) ->  | AO23: =IF(OR(AO22="-",AO22=0,AN22="-",AN22=0),"-",+(AO22-AN22)/ABS(AN22)) ->  | AP23: =IF(OR(AP22="-",AP22=0,AO22="-",AO22=0),"-",+(AP22-AO22)/ABS(AO22)) ->  | AQ23: =IF(OR(AQ22="-",AQ22=0,AP22="-",AP22=0),"-",+(AQ22-AP22)/ABS(AP22)) ->  | AR23: =IF(OR(AR22="-",AR22=0,AQ22="-",AQ22=0),"-",+(AR22-AQ22)/ABS(AQ22)) ->  | AS23: =IF(OR(AS22="-",AS22=0,AR22="-",AR22=0),"-",+(AS22-AR22)/ABS(AR22)) -> 
A24: Rotación de inventario | B24: Inventory Turnover | C24: =VLOOKUP($B24,'Historical Financial'!$A:$AF,2,FALSE) ->  | D24: =VLOOKUP($B24,'Historical Financial'!$A:$AF,3,FALSE) ->  | E24: =VLOOKUP($B24,'Historical Financial'!$A:$AF,4,FALSE) ->  | F24: =VLOOKUP($B24,'Historical Financial'!$A:$AF,5,FALSE) ->  | G24: =VLOOKUP($B24,'Historical Financial'!$A:$AF,6,FALSE) ->  | H24: =VLOOKUP($B24,'Historical Financial'!$A:$AF,7,FALSE) ->  | I24: =VLOOKUP($B24,'Historical Financial'!$A:$AF,8,FALSE) ->  | J24: =VLOOKUP($B24,'Historical Financial'!$A:$AF,9,FALSE) ->  | K24: =VLOOKUP($B24,'Historical Financial'!$A:$AF,10,FALSE) ->  | L24: =VLOOKUP($B24,'Historical Financial'!$A:$AF,11,FALSE) ->  | M24: =VLOOKUP($B24,'Historical Financial'!$A:$AF,12,FALSE) ->  | N24: =VLOOKUP($B24,'Historical Financial'!$A:$AF,13,FALSE) ->  | O24: =VLOOKUP($B24,'Historical Financial'!$A:$AF,14,FALSE) ->  | P24: =VLOOKUP($B24,'Historical Financial'!$A:$AF,15,FALSE) ->  | Q24: =VLOOKUP($B24,'Historical Financial'!$A:$AF,16,FALSE) ->  | R24: =VLOOKUP($B24,'Historical Financial'!$A:$AF,17,FALSE) ->  | S24: =VLOOKUP($B24,'Historical Financial'!$A:$AF,18,FALSE) ->  | T24: =VLOOKUP($B24,'Historical Financial'!$A:$AF,19,FALSE) ->  | U24: =VLOOKUP($B24,'Historical Financial'!$A:$AF,20,FALSE) ->  | V24: =VLOOKUP($B24,'Historical Financial'!$A:$AF,21,FALSE) ->  | W24: =VLOOKUP($B24,'Historical Financial'!$A:$AF,22,FALSE) ->  | X24: =VLOOKUP($B24,'Historical Financial'!$A:$AF,23,FALSE) ->  | Y24: =VLOOKUP($B24,'Historical Financial'!$A:$AF,24,FALSE) ->  | Z24: =VLOOKUP($B24,'Historical Financial'!$A:$AF,25,FALSE) ->  | AA24: =VLOOKUP($B24,'Historical Financial'!$A:$AF,26,FALSE) ->  | AB24: =VLOOKUP($B24,'Historical Financial'!$A:$AF,27,FALSE) ->  | AC24: =VLOOKUP($B24,'Historical Financial'!$A:$AF,28,FALSE) ->  | AD24: =VLOOKUP($B24,'Historical Financial'!$A:$AF,29,FALSE) ->  | AE24: =VLOOKUP($B24,'Historical Financial'!$A:$AF,30,FALSE) ->  | AF24: =VLOOKUP($B24,'Historical Financial'!$A:$AF,31,FALSE) ->  | AG24: =VLOOKUP($B24,'Historical Financial'!$A:$AF,32,FALSE) ->  | AH24: =IF(ISNUMBER(AVERAGEIF(C24:AF24,"<> -")),AVERAGEIF(C24:AF24,"<> -"),"-") -> - | AI24: =IF(ISNUMBER(AVERAGEIF(AB24:AF24,"<> -")),AVERAGEIF(AB24:AF24,"<> -"),"-") -> - | AL24: =VLOOKUP($B24,'Historical Financial'!$A:$EW,146,FALSE) ->  | AM24: =VLOOKUP($B24,'Historical Financial'!$A:$EW,147,FALSE) ->  | AN24: =VLOOKUP($B24,'Historical Financial'!$A:$EW,148,FALSE) ->  | AO24: =VLOOKUP($B24,'Historical Financial'!$A:$EW,149,FALSE) ->  | AP24: =VLOOKUP($B24,'Historical Financial'!$A:$EW,150,FALSE) ->  | AQ24: =VLOOKUP($B24,'Historical Financial'!$A:$EW,151,FALSE) ->  | AR24: =VLOOKUP($B24,'Historical Financial'!$A:$EW,152,FALSE) ->  | AS24: =VLOOKUP($B24,'Historical Financial'!$A:$EW,153,FALSE) ->  | AT24: =IF(ISNUMBER(AVERAGEIF(AL24:AS24,"<> -")),AVERAGEIF(AL24:AS24,"<> -"),"-") -> -
D25: =IF(OR(D24="-",D24=0,C24="-",C24=0),"-",+(D24-C24)/ABS(C24)) ->  | E25: =IF(OR(E24="-",E24=0,D24="-",D24=0),"-",+(E24-D24)/ABS(D24)) ->  | F25: =IF(OR(F24="-",F24=0,E24="-",E24=0),"-",+(F24-E24)/ABS(E24)) ->  | G25: =IF(OR(G24="-",G24=0,F24="-",F24=0),"-",+(G24-F24)/ABS(F24)) ->  | H25: =IF(OR(H24="-",H24=0,G24="-",G24=0),"-",+(H24-G24)/ABS(G24)) ->  | I25: =IF(OR(I24="-",I24=0,H24="-",H24=0),"-",+(I24-H24)/ABS(H24)) ->  | J25: =IF(OR(J24="-",J24=0,I24="-",I24=0),"-",+(J24-I24)/ABS(I24)) ->  | K25: =IF(OR(K24="-",K24=0,J24="-",J24=0),"-",+(K24-J24)/ABS(J24)) ->  | L25: =IF(OR(L24="-",L24=0,K24="-",K24=0),"-",+(L24-K24)/ABS(K24)) ->  | M25: =IF(OR(M24="-",M24=0,L24="-",L24=0),"-",+(M24-L24)/ABS(L24)) ->  | N25: =IF(OR(N24="-",N24=0,M24="-",M24=0),"-",+(N24-M24)/ABS(M24)) ->  | O25: =IF(OR(O24="-",O24=0,N24="-",N24=0),"-",+(O24-N24)/ABS(N24)) ->  | P25: =IF(OR(P24="-",P24=0,O24="-",O24=0),"-",+(P24-O24)/ABS(O24)) ->  | Q25: =IF(OR(Q24="-",Q24=0,P24="-",P24=0),"-",+(Q24-P24)/ABS(P24)) ->  | R25: =IF(OR(R24="-",R24=0,Q24="-",Q24=0),"-",+(R24-Q24)/ABS(Q24)) ->  | S25: =IF(OR(S24="-",S24=0,R24="-",R24=0),"-",+(S24-R24)/ABS(R24)) ->  | T25: =IF(OR(T24="-",T24=0,S24="-",S24=0),"-",+(T24-S24)/ABS(S24)) ->  | AM25: =IF(OR(AM24="-",AM24=0,AL24="-",AL24=0),"-",+(AM24-AL24)/ABS(AL24)) ->  | AN25: =IF(OR(AN24="-",AN24=0,AM24="-",AM24=0),"-",+(AN24-AM24)/ABS(AM24)) ->  | AO25: =IF(OR(AO24="-",AO24=0,AN24="-",AN24=0),"-",+(AO24-AN24)/ABS(AN24)) ->  | AP25: =IF(OR(AP24="-",AP24=0,AO24="-",AO24=0),"-",+(AP24-AO24)/ABS(AO24)) ->  | AQ25: =IF(OR(AQ24="-",AQ24=0,AP24="-",AP24=0),"-",+(AQ24-AP24)/ABS(AP24)) ->  | AR25: =IF(OR(AR24="-",AR24=0,AQ24="-",AQ24=0),"-",+(AR24-AQ24)/ABS(AQ24)) ->  | AS25: =IF(OR(AS24="-",AS24=0,AR24="-",AR24=0),"-",+(AS24-AR24)/ABS(AR24)) -> 
A26: Coste de ventas/Ingresos | B26: COGS-to-Revenue | C26: =VLOOKUP($B26,'Historical Financial'!$A:$AF,2,FALSE) ->  | D26: =VLOOKUP($B26,'Historical Financial'!$A:$AF,3,FALSE) ->  | E26: =VLOOKUP($B26,'Historical Financial'!$A:$AF,4,FALSE) ->  | F26: =VLOOKUP($B26,'Historical Financial'!$A:$AF,5,FALSE) ->  | G26: =VLOOKUP($B26,'Historical Financial'!$A:$AF,6,FALSE) ->  | H26: =VLOOKUP($B26,'Historical Financial'!$A:$AF,7,FALSE) ->  | I26: =VLOOKUP($B26,'Historical Financial'!$A:$AF,8,FALSE) ->  | J26: =VLOOKUP($B26,'Historical Financial'!$A:$AF,9,FALSE) ->  | K26: =VLOOKUP($B26,'Historical Financial'!$A:$AF,10,FALSE) ->  | L26: =VLOOKUP($B26,'Historical Financial'!$A:$AF,11,FALSE) ->  | M26: =VLOOKUP($B26,'Historical Financial'!$A:$AF,12,FALSE) ->  | N26: =VLOOKUP($B26,'Historical Financial'!$A:$AF,13,FALSE) ->  | O26: =VLOOKUP($B26,'Historical Financial'!$A:$AF,14,FALSE) ->  | P26: =VLOOKUP($B26,'Historical Financial'!$A:$AF,15,FALSE) ->  | Q26: =VLOOKUP($B26,'Historical Financial'!$A:$AF,16,FALSE) ->  | R26: =VLOOKUP($B26,'Historical Financial'!$A:$AF,17,FALSE) ->  | S26: =VLOOKUP($B26,'Historical Financial'!$A:$AF,18,FALSE) ->  | T26: =VLOOKUP($B26,'Historical Financial'!$A:$AF,19,FALSE) ->  | U26: =VLOOKUP($B26,'Historical Financial'!$A:$AF,20,FALSE) ->  | V26: =VLOOKUP($B26,'Historical Financial'!$A:$AF,21,FALSE) ->  | W26: =VLOOKUP($B26,'Historical Financial'!$A:$AF,22,FALSE) ->  | X26: =VLOOKUP($B26,'Historical Financial'!$A:$AF,23,FALSE) ->  | Y26: =VLOOKUP($B26,'Historical Financial'!$A:$AF,24,FALSE) ->  | Z26: =VLOOKUP($B26,'Historical Financial'!$A:$AF,25,FALSE) ->  | AA26: =VLOOKUP($B26,'Historical Financial'!$A:$AF,26,FALSE) ->  | AB26: =VLOOKUP($B26,'Historical Financial'!$A:$AF,27,FALSE) ->  | AC26: =VLOOKUP($B26,'Historical Financial'!$A:$AF,28,FALSE) ->  | AD26: =VLOOKUP($B26,'Historical Financial'!$A:$AF,29,FALSE) ->  | AE26: =VLOOKUP($B26,'Historical Financial'!$A:$AF,30,FALSE) ->  | AF26: =VLOOKUP($B26,'Historical Financial'!$A:$AF,31,FALSE) ->  | AG26: =VLOOKUP($B26,'Historical Financial'!$A:$AF,32,FALSE) ->  | AH26: =IF(ISNUMBER(AVERAGEIF(C26:AF26,"<> -")),AVERAGEIF(C26:AF26,"<> -"),"-") -> - | AI26: =IF(ISNUMBER(AVERAGEIF(AB26:AF26,"<> -")),AVERAGEIF(AB26:AF26,"<> -"),"-") -> - | AL26: =VLOOKUP($B26,'Historical Financial'!$A:$EW,146,FALSE) ->  | AM26: =VLOOKUP($B26,'Historical Financial'!$A:$EW,147,FALSE) ->  | AN26: =VLOOKUP($B26,'Historical Financial'!$A:$EW,148,FALSE) ->  | AO26: =VLOOKUP($B26,'Historical Financial'!$A:$EW,149,FALSE) ->  | AP26: =VLOOKUP($B26,'Historical Financial'!$A:$EW,150,FALSE) ->  | AQ26: =VLOOKUP($B26,'Historical Financial'!$A:$EW,151,FALSE) ->  | AR26: =VLOOKUP($B26,'Historical Financial'!$A:$EW,152,FALSE) ->  | AS26: =VLOOKUP($B26,'Historical Financial'!$A:$EW,153,FALSE) ->  | AT26: =IF(ISNUMBER(AVERAGEIF(AL26:AS26,"<> -")),AVERAGEIF(AL26:AS26,"<> -"),"-") -> -
D27: =IF(OR(D26="-",D26=0,C26="-",C26=0),"-",+(D26-C26)/ABS(C26)) ->  | E27: =IF(OR(E26="-",E26=0,D26="-",D26=0),"-",+(E26-D26)/ABS(D26)) ->  | F27: =IF(OR(F26="-",F26=0,E26="-",E26=0),"-",+(F26-E26)/ABS(E26)) ->  | G27: =IF(OR(G26="-",G26=0,F26="-",F26=0),"-",+(G26-F26)/ABS(F26)) ->  | H27: =IF(OR(H26="-",H26=0,G26="-",G26=0),"-",+(H26-G26)/ABS(G26)) ->  | I27: =IF(OR(I26="-",I26=0,H26="-",H26=0),"-",+(I26-H26)/ABS(H26)) ->  | J27: =IF(OR(J26="-",J26=0,I26="-",I26=0),"-",+(J26-I26)/ABS(I26)) ->  | K27: =IF(OR(K26="-",K26=0,J26="-",J26=0),"-",+(K26-J26)/ABS(J26)) ->  | L27: =IF(OR(L26="-",L26=0,K26="-",K26=0),"-",+(L26-K26)/ABS(K26)) ->  | M27: =IF(OR(M26="-",M26=0,L26="-",L26=0),"-",+(M26-L26)/ABS(L26)) ->  | N27: =IF(OR(N26="-",N26=0,M26="-",M26=0),"-",+(N26-M26)/ABS(M26)) ->  | O27: =IF(OR(O26="-",O26=0,N26="-",N26=0),"-",+(O26-N26)/ABS(N26)) ->  | P27: =IF(OR(P26="-",P26=0,O26="-",O26=0),"-",+(P26-O26)/ABS(O26)) ->  | Q27: =IF(OR(Q26="-",Q26=0,P26="-",P26=0),"-",+(Q26-P26)/ABS(P26)) ->  | R27: =IF(OR(R26="-",R26=0,Q26="-",Q26=0),"-",+(R26-Q26)/ABS(Q26)) ->  | S27: =IF(OR(S26="-",S26=0,R26="-",R26=0),"-",+(S26-R26)/ABS(R26)) ->  | T27: =IF(OR(T26="-",T26=0,S26="-",S26=0),"-",+(T26-S26)/ABS(S26)) ->  | AM27: =IF(OR(AM26="-",AM26=0,AL26="-",AL26=0),"-",+(AM26-AL26)/ABS(AL26)) ->  | AN27: =IF(OR(AN26="-",AN26=0,AM26="-",AM26=0),"-",+(AN26-AM26)/ABS(AM26)) ->  | AO27: =IF(OR(AO26="-",AO26=0,AN26="-",AN26=0),"-",+(AO26-AN26)/ABS(AN26)) ->  | AP27: =IF(OR(AP26="-",AP26=0,AO26="-",AO26=0),"-",+(AP26-AO26)/ABS(AO26)) ->  | AQ27: =IF(OR(AQ26="-",AQ26=0,AP26="-",AP26=0),"-",+(AQ26-AP26)/ABS(AP26)) ->  | AR27: =IF(OR(AR26="-",AR26=0,AQ26="-",AQ26=0),"-",+(AR26-AQ26)/ABS(AQ26)) ->  | AS27: =IF(OR(AS26="-",AS26=0,AR26="-",AR26=0),"-",+(AS26-AR26)/ABS(AR26)) -> 
A28: Inventario/Ingresos | B28: Inventory-to-Revenue | C28: =VLOOKUP($B28,'Historical Financial'!$A:$AF,2,FALSE) ->  | D28: =VLOOKUP($B28,'Historical Financial'!$A:$AF,3,FALSE) ->  | E28: =VLOOKUP($B28,'Historical Financial'!$A:$AF,4,FALSE) ->  | F28: =VLOOKUP($B28,'Historical Financial'!$A:$AF,5,FALSE) ->  | G28: =VLOOKUP($B28,'Historical Financial'!$A:$AF,6,FALSE) ->  | H28: =VLOOKUP($B28,'Historical Financial'!$A:$AF,7,FALSE) ->  | I28: =VLOOKUP($B28,'Historical Financial'!$A:$AF,8,FALSE) ->  | J28: =VLOOKUP($B28,'Historical Financial'!$A:$AF,9,FALSE) ->  | K28: =VLOOKUP($B28,'Historical Financial'!$A:$AF,10,FALSE) ->  | L28: =VLOOKUP($B28,'Historical Financial'!$A:$AF,11,FALSE) ->  | M28: =VLOOKUP($B28,'Historical Financial'!$A:$AF,12,FALSE) ->  | N28: =VLOOKUP($B28,'Historical Financial'!$A:$AF,13,FALSE) ->  | O28: =VLOOKUP($B28,'Historical Financial'!$A:$AF,14,FALSE) ->  | P28: =VLOOKUP($B28,'Historical Financial'!$A:$AF,15,FALSE) ->  | Q28: =VLOOKUP($B28,'Historical Financial'!$A:$AF,16,FALSE) ->  | R28: =VLOOKUP($B28,'Historical Financial'!$A:$AF,17,FALSE) ->  | S28: =VLOOKUP($B28,'Historical Financial'!$A:$AF,18,FALSE) ->  | T28: =VLOOKUP($B28,'Historical Financial'!$A:$AF,19,FALSE) ->  | U28: =VLOOKUP($B28,'Historical Financial'!$A:$AF,20,FALSE) ->  | V28: =VLOOKUP($B28,'Historical Financial'!$A:$AF,21,FALSE) ->  | W28: =VLOOKUP($B28,'Historical Financial'!$A:$AF,22,FALSE) ->  | X28: =VLOOKUP($B28,'Historical Financial'!$A:$AF,23,FALSE) ->  | Y28: =VLOOKUP($B28,'Historical Financial'!$A:$AF,24,FALSE) ->  | Z28: =VLOOKUP($B28,'Historical Financial'!$A:$AF,25,FALSE) ->  | AA28: =VLOOKUP($B28,'Historical Financial'!$A:$AF,26,FALSE) ->  | AB28: =VLOOKUP($B28,'Historical Financial'!$A:$AF,27,FALSE) ->  | AC28: =VLOOKUP($B28,'Historical Financial'!$A:$AF,28,FALSE) ->  | AD28: =VLOOKUP($B28,'Historical Financial'!$A:$AF,29,FALSE) ->  | AE28: =VLOOKUP($B28,'Historical Financial'!$A:$AF,30,FALSE) ->  | AF28: =VLOOKUP($B28,'Historical Financial'!$A:$AF,31,FALSE) ->  | AG28: =VLOOKUP($B28,'Historical Financial'!$A:$AF,32,FALSE) ->  | AH28: =IF(ISNUMBER(AVERAGEIF(C28:AF28,"<> -")),AVERAGEIF(C28:AF28,"<> -"),"-") -> - | AI28: =IF(ISNUMBER(AVERAGEIF(AB28:AF28,"<> -")),AVERAGEIF(AB28:AF28,"<> -"),"-") -> - | AL28: =VLOOKUP($B28,'Historical Financial'!$A:$EW,146,FALSE) ->  | AM28: =VLOOKUP($B28,'Historical Financial'!$A:$EW,147,FALSE) ->  | AN28: =VLOOKUP($B28,'Historical Financial'!$A:$EW,148,FALSE) ->  | AO28: =VLOOKUP($B28,'Historical Financial'!$A:$EW,149,FALSE) ->  | AP28: =VLOOKUP($B28,'Historical Financial'!$A:$EW,150,FALSE) ->  | AQ28: =VLOOKUP($B28,'Historical Financial'!$A:$EW,151,FALSE) ->  | AR28: =VLOOKUP($B28,'Historical Financial'!$A:$EW,152,FALSE) ->  | AS28: =VLOOKUP($B28,'Historical Financial'!$A:$EW,153,FALSE) ->  | AT28: =IF(ISNUMBER(AVERAGEIF(AL28:AS28,"<> -")),AVERAGEIF(AL28:AS28,"<> -"),"-") -> -
D29: =IF(OR(D28="-",D28=0,C28="-",C28=0),"-",+(D28-C28)/ABS(C28)) ->  | E29: =IF(OR(E28="-",E28=0,D28="-",D28=0),"-",+(E28-D28)/ABS(D28)) ->  | F29: =IF(OR(F28="-",F28=0,E28="-",E28=0),"-",+(F28-E28)/ABS(E28)) ->  | G29: =IF(OR(G28="-",G28=0,F28="-",F28=0),"-",+(G28-F28)/ABS(F28)) ->  | H29: =IF(OR(H28="-",H28=0,G28="-",G28=0),"-",+(H28-G28)/ABS(G28)) ->  | I29: =IF(OR(I28="-",I28=0,H28="-",H28=0),"-",+(I28-H28)/ABS(H28)) ->  | J29: =IF(OR(J28="-",J28=0,I28="-",I28=0),"-",+(J28-I28)/ABS(I28)) ->  | K29: =IF(OR(K28="-",K28=0,J28="-",J28=0),"-",+(K28-J28)/ABS(J28)) ->  | L29: =IF(OR(L28="-",L28=0,K28="-",K28=0),"-",+(L28-K28)/ABS(K28)) ->  | M29: =IF(OR(M28="-",M28=0,L28="-",L28=0),"-",+(M28-L28)/ABS(L28)) ->  | N29: =IF(OR(N28="-",N28=0,M28="-",M28=0),"-",+(N28-M28)/ABS(M28)) ->  | O29: =IF(OR(O28="-",O28=0,N28="-",N28=0),"-",+(O28-N28)/ABS(N28)) ->  | P29: =IF(OR(P28="-",P28=0,O28="-",O28=0),"-",+(P28-O28)/ABS(O28)) ->  | Q29: =IF(OR(Q28="-",Q28=0,P28="-",P28=0),"-",+(Q28-P28)/ABS(P28)) ->  | R29: =IF(OR(R28="-",R28=0,Q28="-",Q28=0),"-",+(R28-Q28)/ABS(Q28)) ->  | S29: =IF(OR(S28="-",S28=0,R28="-",R28=0),"-",+(S28-R28)/ABS(R28)) ->  | T29: =IF(OR(T28="-",T28=0,S28="-",S28=0),"-",+(T28-S28)/ABS(S28)) ->  | AM29: =IF(OR(AM28="-",AM28=0,AL28="-",AL28=0),"-",+(AM28-AL28)/ABS(AL28)) ->  | AN29: =IF(OR(AN28="-",AN28=0,AM28="-",AM28=0),"-",+(AN28-AM28)/ABS(AM28)) ->  | AO29: =IF(OR(AO28="-",AO28=0,AN28="-",AN28=0),"-",+(AO28-AN28)/ABS(AN28)) ->  | AP29: =IF(OR(AP28="-",AP28=0,AO28="-",AO28=0),"-",+(AP28-AO28)/ABS(AO28)) ->  | AQ29: =IF(OR(AQ28="-",AQ28=0,AP28="-",AP28=0),"-",+(AQ28-AP28)/ABS(AP28)) ->  | AR29: =IF(OR(AR28="-",AR28=0,AQ28="-",AQ28=0),"-",+(AR28-AQ28)/ABS(AQ28)) ->  | AS29: =IF(OR(AS28="-",AS28=0,AR28="-",AR28=0),"-",+(AS28-AR28)/ABS(AR28)) -> 

Sheet Normalización
C1: ='Historical Financial'!B3 -> Dec88 | D1: ='Historical Financial'!C3 -> Dec89 | E1: ='Historical Financial'!D3 -> Dec90 | F1: ='Historical Financial'!E3 -> Dec91 | G1: ='Historical Financial'!F3 -> Dec92 | H1: ='Historical Financial'!G3 -> Dec93 | I1: ='Historical Financial'!H3 -> Dec94 | J1: ='Historical Financial'!I3 -> Dec95 | K1: ='Historical Financial'!J3 -> Dec96 | L1: ='Historical Financial'!K3 -> Dec97 | M1: ='Historical Financial'!L3 -> Dec98 | N1: ='Historical Financial'!M3 -> Dec99 | O1: ='Historical Financial'!N3 -> Dec00 | P1: ='Historical Financial'!O3 -> Dec01 | Q1: ='Historical Financial'!P3 -> Dec02 | R1: ='Historical Financial'!Q3 -> Dec03 | S1: ='Historical Financial'!R3 -> Dec04 | T1: ='Historical Financial'!S3 -> Dec05 | U1: ='Historical Financial'!T3 -> Dec06 | V1: ='Historical Financial'!U3 -> Dec07 | W1: ='Historical Financial'!V3 -> Dec08 | X1: ='Historical Financial'!W3 -> Dec09 | Y1: ='Historical Financial'!X3 -> Dec10 | Z1: ='Historical Financial'!Y3 -> Dec11 | AA1: ='Historical Financial'!Z3 -> Dec12 | AB1: ='Historical Financial'!AA3 -> Dec13 | AC1: ='Historical Financial'!AB3 -> Dec14 | AD1: ='Historical Financial'!AC3 -> Dec15 | AE1: ='Historical Financial'!AD3 -> Dec16 | AF1: ='Historical Financial'!AE3 -> Dec17 | AG1: ='Historical Financial'!AF3 -> TTM/current | AH1: Media | AI1: 5 años | AJ1: Objetivo | AM1: ='Historical Financial'!EQ$3 -> Jun16 | AN1: ='Historical Financial'!ER$3 -> Sep16 | AO1: ='Historical Financial'!ES$3 -> Dec16 | AP1: ='Historical Financial'!ET$3 -> Mar17 | AQ1: ='Historical Financial'!EU$3 -> Jun17 | AR1: ='Historical Financial'!EV$3 -> Sep17 | AS1: ='Historical Financial'!EW$3 -> Dec17 | AT1: Media
A2: Margen Bruto | B2: Gross Margin % | C2: =VLOOKUP($B2,'Historical Financial'!$A:$AF,2,FALSE) ->  | D2: =VLOOKUP($B2,'Historical Financial'!$A:$AF,3,FALSE) ->  | E2: =VLOOKUP($B2,'Historical Financial'!$A:$AF,4,FALSE) ->  | F2: =VLOOKUP($B2,'Historical Financial'!$A:$AF,5,FALSE) ->  | G2: =VLOOKUP($B2,'Historical Financial'!$A:$AF,6,FALSE) ->  | H2: =VLOOKUP($B2,'Historical Financial'!$A:$AF,7,FALSE) ->  | I2: =VLOOKUP($B2,'Historical Financial'!$A:$AF,8,FALSE) ->  | J2: =VLOOKUP($B2,'Historical Financial'!$A:$AF,9,FALSE) ->  | K2: =VLOOKUP($B2,'Historical Financial'!$A:$AF,10,FALSE) ->  | L2: =VLOOKUP($B2,'Historical Financial'!$A:$AF,11,FALSE) ->  | M2: =VLOOKUP($B2,'Historical Financial'!$A:$AF,12,FALSE) ->  | N2: =VLOOKUP($B2,'Historical Financial'!$A:$AF,13,FALSE) ->  | O2: =VLOOKUP($B2,'Historical Financial'!$A:$AF,14,FALSE) ->  | P2: =VLOOKUP($B2,'Historical Financial'!$A:$AF,15,FALSE) ->  | Q2: =VLOOKUP($B2,'Historical Financial'!$A:$AF,16,FALSE) ->  | R2: =VLOOKUP($B2,'Historical Financial'!$A:$AF,17,FALSE) ->  | S2: =VLOOKUP($B2,'Historical Financial'!$A:$AF,18,FALSE) ->  | T2: =VLOOKUP($B2,'Historical Financial'!$A:$AF,19,FALSE) ->  | U2: =VLOOKUP($B2,'Historical Financial'!$A:$AF,20,FALSE) ->  | V2: =VLOOKUP($B2,'Historical Financial'!$A:$AF,21,FALSE) ->  | W2: =VLOOKUP($B2,'Historical Financial'!$A:$AF,22,FALSE) ->  | X2: =VLOOKUP($B2,'Historical Financial'!$A:$AF,23,FALSE) ->  | Y2: =VLOOKUP($B2,'Historical Financial'!$A:$AF,24,FALSE) ->  | Z2: =VLOOKUP($B2,'Historical Financial'!$A:$AF,25,FALSE) ->  | AA2: =VLOOKUP($B2,'Historical Financial'!$A:$AF,26,FALSE) ->  | AB2: =VLOOKUP($B2,'Historical Financial'!$A:$AF,27,FALSE) ->  | AC2: =VLOOKUP($B2,'Historical Financial'!$A:$AF,28,FALSE) ->  | AD2: =VLOOKUP($B2,'Historical Financial'!$A:$AF,29,FALSE) ->  | AE2: =VLOOKUP($B2,'Historical Financial'!$A:$AF,30,FALSE) ->  | AF2: =VLOOKUP($B2,'Historical Financial'!$A:$AF,31,FALSE) ->  | AG2: =VLOOKUP($B2,'Historical Financial'!$A:$AF,32,FALSE) ->  | AH2: =IF(ISNUMBER(AVERAGEIF(C2:AF2,"<> -")),AVERAGEIF(C2:AF2,"<> -"),"-") -> - | AI2: =IF(ISNUMBER(AVERAGEIF(AB2:AF2,"<> -")),AVERAGEIF(AB2:AF2,"<> -"),"-") -> - | AM2: =VLOOKUP($B2,'Historical Financial'!$A:$EW,147,FALSE) ->  | AN2: =VLOOKUP($B2,'Historical Financial'!$A:$EW,148,FALSE) ->  | AO2: =VLOOKUP($B2,'Historical Financial'!$A:$EW,149,FALSE) ->  | AP2: =VLOOKUP($B2,'Historical Financial'!$A:$EW,150,FALSE) ->  | AQ2: =VLOOKUP($B2,'Historical Financial'!$A:$EW,151,FALSE) ->  | AR2: =VLOOKUP($B2,'Historical Financial'!$A:$EW,152,FALSE) ->  | AS2: =VLOOKUP($B2,'Historical Financial'!$A:$EW,153,FALSE) ->  | AT2: =IF(ISNUMBER(AVERAGEIF(AL2:AS2,"<> -")),AVERAGEIF(AL2:AS2,"<> -"),"-") -> -
D3: =IF(OR(D2="-",D2=0,C2="-",C2=0),"-",+(D2-C2)/ABS(C2)) ->  | S3: =IF(OR(S2="-",S2=0,R2="-",R2=0),"-",+(S2-R2)/ABS(R2)) ->  | T3: =IF(OR(T2="-",T2=0,S2="-",S2=0),"-",+(T2-S2)/ABS(S2)) ->  | AM3: =IF(OR(AM2="-",AM2=0,AL2="-",AL2=0),"-",+(AM2-AL2)/ABS(AL2)) -> 
A4: Margen EBIT | B4: Operating Margin % | C4: =VLOOKUP($B4,'Historical Financial'!$A:$AF,2,FALSE) -> 0 | D4: =VLOOKUP($B4,'Historical Financial'!$A:$AF,3,FALSE) -> 0 | E4: =VLOOKUP($B4,'Historical Financial'!$A:$AF,4,FALSE) -> 0 | F4: =VLOOKUP($B4,'Historical Financial'!$A:$AF,5,FALSE) -> 0 | G4: =VLOOKUP($B4,'Historical Financial'!$A:$AF,6,FALSE) -> 0 | H4: =VLOOKUP($B4,'Historical Financial'!$A:$AF,7,FALSE) -> 0 | I4: =VLOOKUP($B4,'Historical Financial'!$A:$AF,8,FALSE) -> 0 | J4: =VLOOKUP($B4,'Historical Financial'!$A:$AF,9,FALSE) -> 23.76 | K4: =VLOOKUP($B4,'Historical Financial'!$A:$AF,10,FALSE) -> 75.69 | L4: =VLOOKUP($B4,'Historical Financial'!$A:$AF,11,FALSE) -> 49.81 | M4: =VLOOKUP($B4,'Historical Financial'!$A:$AF,12,FALSE) -> 31.98 | N4: =VLOOKUP($B4,'Historical Financial'!$A:$AF,13,FALSE) -> 10.75 | O4: =VLOOKUP($B4,'Historical Financial'!$A:$AF,14,FALSE) -> 16.87 | P4: =VLOOKUP($B4,'Historical Financial'!$A:$AF,15,FALSE) -> 4.35 | Q4: =VLOOKUP($B4,'Historical Financial'!$A:$AF,16,FALSE) -> 16.16 | R4: =VLOOKUP($B4,'Historical Financial'!$A:$AF,17,FALSE) -> 18.89 | S4: =VLOOKUP($B4,'Historical Financial'!$A:$AF,18,FALSE) -> 10.91 | T4: =VLOOKUP($B4,'Historical Financial'!$A:$AF,19,FALSE) -> 11.25 | U4: =VLOOKUP($B4,'Historical Financial'!$A:$AF,20,FALSE) -> 13.13 | V4: =VLOOKUP($B4,'Historical Financial'!$A:$AF,21,FALSE) -> 17.05 | W4: =VLOOKUP($B4,'Historical Financial'!$A:$AF,22,FALSE) -> 7.03 | X4: =VLOOKUP($B4,'Historical Financial'!$A:$AF,23,FALSE) -> 10.27 | Y4: =VLOOKUP($B4,'Historical Financial'!$A:$AF,24,FALSE) -> 13.99 | Z4: =VLOOKUP($B4,'Historical Financial'!$A:$AF,25,FALSE) -> 10.66 | AA4: =VLOOKUP($B4,'Historical Financial'!$A:$AF,26,FALSE) -> 13.69 | AB4: =VLOOKUP($B4,'Historical Financial'!$A:$AF,27,FALSE) -> 15.81 | AC4: =VLOOKUP($B4,'Historical Financial'!$A:$AF,28,FALSE) -> 14.45 | AD4: =VLOOKUP($B4,'Historical Financial'!$A:$AF,29,FALSE) -> 16.62 | AE4: =VLOOKUP($B4,'Historical Financial'!$A:$AF,30,FALSE) -> 14.64 | AF4: =VLOOKUP($B4,'Historical Financial'!$A:$AF,31,FALSE) -> 8.63 | AG4: =VLOOKUP($B4,'Historical Financial'!$A:$AF,32,FALSE) -> 8.63 | AH4: =IF(ISNUMBER(AVERAGEIF(C4:AF4,"<> -")),AVERAGEIF(C4:AF4,"<> -"),"-") -> 14.213 | AI4: =IF(ISNUMBER(AVERAGEIF(AB4:AF4,"<> -")),AVERAGEIF(AB4:AF4,"<> -"),"-") -> 14.03 | AJ4: 14 | AM4: =VLOOKUP($B4,'Historical Financial'!$A:$EW,147,FALSE) -> 13.21 | AN4: =VLOOKUP($B4,'Historical Financial'!$A:$EW,148,FALSE) -> 17.5 | AO4: =VLOOKUP($B4,'Historical Financial'!$A:$EW,149,FALSE) -> 15.53 | AP4: =VLOOKUP($B4,'Historical Financial'!$A:$EW,150,FALSE) -> 8.36 | AQ4: =VLOOKUP($B4,'Historical Financial'!$A:$EW,151,FALSE) -> 10.12 | AR4: =VLOOKUP($B4,'Historical Financial'!$A:$EW,152,FALSE) -> 8.89 | AS4: =VLOOKUP($B4,'Historical Financial'!$A:$EW,153,FALSE) -> 7.22 | AT4: =IF(ISNUMBER(AVERAGEIF(AL4:AS4,"<> -")),AVERAGEIF(AL4:AS4,"<> -"),"-") -> 11.54714286
D5: =IF(OR(D4="-",D4=0,C4="-",C4=0),"-",+(D4-C4)/ABS(C4)) -> - | E5: - | F5: - | G5: - | H5: - | I5: - | J5: - | K5: 2.185606061 | L5: -0.3419209935 | M5: -0.3579602489 | N5: -0.6638524078 | O5: 0.5693023256 | P5: -0.742145821 | Q5: 2.714942529 | R5: 0.1689356436 | S5: =IF(OR(S4="-",S4=0,R4="-",R4=0),"-",+(S4-R4)/ABS(R4)) -> -0.4224457385 | T5: =IF(OR(T4="-",T4=0,S4="-",S4=0),"-",+(T4-S4)/ABS(S4)) -> 0.03116406966 | U5: 0.1671111111 | V5: 0.2985529322 | W5: -0.5876832845 | X5: 0.4608819346 | Y5: 0.3622200584 | Z5: -0.2380271623 | AA5: 0.2842401501 | AB5: 0.1548575603 | AC5: -0.08602150538 | AD5: 0.1501730104 | AE5: -0.119133574 | AF5: -0.4105191257 | AG5: 0 | AM5: =IF(OR(AM4="-",AM4=0,AL4="-",AL4=0),"-",+(AM4-AL4)/ABS(AL4)) -> - | AN5: =IF(OR(AN4="-",AN4=0,AM4="-",AM4=0),"-",+(AN4-AM4)/ABS(AM4)) -> 0.3247539743 | AO5: =IF(OR(AO4="-",AO4=0,AN4="-",AN4=0),"-",+(AO4-AN4)/ABS(AN4)) -> -0.1125714286 | AP5: =IF(OR(AP4="-",AP4=0,AO4="-",AO4=0),"-",+(AP4-AO4)/ABS(AO4)) -> -0.4616870573 | AQ5: =IF(OR(AQ4="-",AQ4=0,AP4="-",AP4=0),"-",+(AQ4-AP4)/ABS(AP4)) -> 0.2105263158 | AR5: =IF(OR(AR4="-",AR4=0,AQ4="-",AQ4=0),"-",+(AR4-AQ4)/ABS(AQ4)) -> -0.121541502 | AS5: =IF(OR(AS4="-",AS4=0,AR4="-",AR4=0),"-",+(AS4-AR4)/ABS(AR4)) -> -0.1878515186
A6: Margen Neto | B6: Net Margin % | C6: =VLOOKUP($B6,'Historical Financial'!$A:$AF,2,FALSE) -> 16.2 | D6: =VLOOKUP($B6,'Historical Financial'!$A:$AF,3,FALSE) -> 18.02 | E6: =VLOOKUP($B6,'Historical Financial'!$A:$AF,4,FALSE) -> 24.94 | F6: =VLOOKUP($B6,'Historical Financial'!$A:$AF,5,FALSE) -> 18.12 | G6: =VLOOKUP($B6,'Historical Financial'!$A:$AF,6,FALSE) -> 13.45 | H6: =VLOOKUP($B6,'Historical Financial'!$A:$AF,7,FALSE) -> 26.27 | I6: =VLOOKUP($B6,'Historical Financial'!$A:$AF,8,FALSE) -> 16.76 | J6: =VLOOKUP($B6,'Historical Financial'!$A:$AF,9,FALSE) -> 17.42 | K6: =VLOOKUP($B6,'Historical Financial'!$A:$AF,10,FALSE) -> 50.83 | L6: =VLOOKUP($B6,'Historical Financial'!$A:$AF,11,FALSE) -> 33.5 | M6: =VLOOKUP($B6,'Historical Financial'!$A:$AF,12,FALSE) -> 20.46 | N6: =VLOOKUP($B6,'Historical Financial'!$A:$AF,13,FALSE) -> 6.48 | O6: =VLOOKUP($B6,'Historical Financial'!$A:$AF,14,FALSE) -> 9.8 | P6: =VLOOKUP($B6,'Historical Financial'!$A:$AF,15,FALSE) -> 2.06 | Q6: =VLOOKUP($B6,'Historical Financial'!$A:$AF,16,FALSE) -> 10.12 | R6: =VLOOKUP($B6,'Historical Financial'!$A:$AF,17,FALSE) -> 12.76 | S6: =VLOOKUP($B6,'Historical Financial'!$A:$AF,18,FALSE) -> 9.82 | T6: =VLOOKUP($B6,'Historical Financial'!$A:$AF,19,FALSE) -> 10.44 | U6: =VLOOKUP($B6,'Historical Financial'!$A:$AF,20,FALSE) -> 11.18 | V6: =VLOOKUP($B6,'Historical Financial'!$A:$AF,21,FALSE) -> 11.17 | W6: =VLOOKUP($B6,'Historical Financial'!$A:$AF,22,FALSE) -> 4.63 | X6: =VLOOKUP($B6,'Historical Financial'!$A:$AF,23,FALSE) -> 7.16 | Y6: =VLOOKUP($B6,'Historical Financial'!$A:$AF,24,FALSE) -> 9.52 | Z6: =VLOOKUP($B6,'Historical Financial'!$A:$AF,25,FALSE) -> 7.14 | AA6: =VLOOKUP($B6,'Historical Financial'!$A:$AF,26,FALSE) -> 9.12 | AB6: =VLOOKUP($B6,'Historical Financial'!$A:$AF,27,FALSE) -> 10.69 | AC6: =VLOOKUP($B6,'Historical Financial'!$A:$AF,28,FALSE) -> 10.21 | AD6: =VLOOKUP($B6,'Historical Financial'!$A:$AF,29,FALSE) -> 11.42 | AE6: =VLOOKUP($B6,'Historical Financial'!$A:$AF,30,FALSE) -> 10.77 | AF6: =VLOOKUP($B6,'Historical Financial'!$A:$AF,31,FALSE) -> 18.56 | AG6: =VLOOKUP($B6,'Historical Financial'!$A:$AF,32,FALSE) -> 18.56 | AH6: =IF(ISNUMBER(AVERAGEIF(C6:AF6,"<> -")),AVERAGEIF(C6:AF6,"<> -"),"-") -> 14.634 | AI6: =IF(ISNUMBER(AVERAGEIF(AB6:AF6,"<> -")),AVERAGEIF(AB6:AF6,"<> -"),"-") -> 12.33 | AJ6: 12 | AM6: =VLOOKUP($B6,'Historical Financial'!$A:$EW,147,FALSE) -> 9.22 | AN6: =VLOOKUP($B6,'Historical Financial'!$A:$EW,148,FALSE) -> 12.23 | AO6: =VLOOKUP($B6,'Historical Financial'!$A:$EW,149,FALSE) -> 10.77 | AP6: =VLOOKUP($B6,'Historical Financial'!$A:$EW,150,FALSE) -> 6.23 | AQ6: =VLOOKUP($B6,'Historical Financial'!$A:$EW,151,FALSE) -> 7.41 | AR6: =VLOOKUP($B6,'Historical Financial'!$A:$EW,152,FALSE) -> 6.72 | AS6: =VLOOKUP($B6,'Historical Financial'!$A:$EW,153,FALSE) -> 55.26 | AT6: =IF(ISNUMBER(AVERAGEIF(AL6:AS6,"<> -")),AVERAGEIF(AL6:AS6,"<> -"),"-") -> 15.40571429
D7: =IF(OR(D6="-",D6=0,C6="-",C6=0),"-",+(D6-C6)/ABS(C6)) -> 0.112345679 | E7: 0.384017758 | F7: -0.2734562951 | G7: -0.2577262693 | H7: 0.9531598513 | I7: -0.3620098972 | J7: 0.03937947494 | K7: 1.917910448 | L7: -0.3409403895 | M7: -0.3892537313 | N7: -0.6832844575 | O7: 0.512345679 | P7: -0.7897959184 | Q7: 3.912621359 | R7: 0.2608695652 | S7: =IF(OR(S6="-",S6=0,R6="-",R6=0),"-",+(S6-R6)/ABS(R6)) -> -0.2304075235 | T7: =IF(OR(T6="-",T6=0,S6="-",S6=0),"-",+(T6-S6)/ABS(S6)) -> 0.06313645621 | U7: 0.07088122605 | V7: -0.0008944543828 | W7: -0.5854968666 | X7: 0.5464362851 | Y7: 0.3296089385 | Z7: -0.25 | AA7: 0.2773109244 | AB7: 0.1721491228 | AC7: -0.04490177736 | AD7: 0.1185112635 | AE7: -0.05691768827 | AF7: 0.7233054782 | AG7: 0 | AM7: =IF(OR(AM6="-",AM6=0,AL6="-",AL6=0),"-",+(AM6-AL6)/ABS(AL6)) -> - | AN7: =IF(OR(AN6="-",AN6=0,AM6="-",AM6=0),"-",+(AN6-AM6)/ABS(AM6)) -> 0.3264642082 | AO7: =IF(OR(AO6="-",AO6=0,AN6="-",AN6=0),"-",+(AO6-AN6)/ABS(AN6)) -> -0.1193785773 | AP7: =IF(OR(AP6="-",AP6=0,AO6="-",AO6=0),"-",+(AP6-AO6)/ABS(AO6)) -> -0.4215413185 | AQ7: =IF(OR(AQ6="-",AQ6=0,AP6="-",AP6=0),"-",+(AQ6-AP6)/ABS(AP6)) -> 0.1894060995 | AR7: =IF(OR(AR6="-",AR6=0,AQ6="-",AQ6=0),"-",+(AR6-AQ6)/ABS(AQ6)) -> -0.09311740891 | AS7: =IF(OR(AS6="-",AS6=0,AR6="-",AR6=0),"-",+(AS6-AR6)/ABS(AR6)) -> 7.223214286
A8: Margen FCF | B8: FCF Margin % | C8: =VLOOKUP($B8,'Historical Financial'!$A:$AF,2,FALSE) -> 0 | D8: =VLOOKUP($B8,'Historical Financial'!$A:$AF,3,FALSE) -> 0 | E8: =VLOOKUP($B8,'Historical Financial'!$A:$AF,4,FALSE) -> 33.07 | F8: =VLOOKUP($B8,'Historical Financial'!$A:$AF,5,FALSE) -> 22.58 | G8: =VLOOKUP($B8,'Historical Financial'!$A:$AF,6,FALSE) -> 28.96 | H8: =VLOOKUP($B8,'Historical Financial'!$A:$AF,7,FALSE) -> 27.73 | I8: =VLOOKUP($B8,'Historical Financial'!$A:$AF,8,FALSE) -> 28.15 | J8: =VLOOKUP($B8,'Historical Financial'!$A:$AF,9,FALSE) -> 24.72 | K8: =VLOOKUP($B8,'Historical Financial'!$A:$AF,10,FALSE) -> -14.6 | L8: =VLOOKUP($B8,'Historical Financial'!$A:$AF,11,FALSE) -> 27.48 | M8: =VLOOKUP($B8,'Historical Financial'!$A:$AF,12,FALSE) -> 4.75 | N8: =VLOOKUP($B8,'Historical Financial'!$A:$AF,13,FALSE) -> 9.16 | O8: =VLOOKUP($B8,'Historical Financial'!$A:$AF,14,FALSE) -> 8.67 | P8: =VLOOKUP($B8,'Historical Financial'!$A:$AF,15,FALSE) -> 17.03 | Q8: =VLOOKUP($B8,'Historical Financial'!$A:$AF,16,FALSE) -> 26.45 | R8: =VLOOKUP($B8,'Historical Financial'!$A:$AF,17,FALSE) -> 12.93 | S8: =VLOOKUP($B8,'Historical Financial'!$A:$AF,18,FALSE) -> 8.11 | T8: =VLOOKUP($B8,'Historical Financial'!$A:$AF,19,FALSE) -> 8.88 | U8: =VLOOKUP($B8,'Historical Financial'!$A:$AF,20,FALSE) -> 5.71 | V8: =VLOOKUP($B8,'Historical Financial'!$A:$AF,21,FALSE) -> 6.07 | W8: =VLOOKUP($B8,'Historical Financial'!$A:$AF,22,FALSE) -> 4.74 | X8: =VLOOKUP($B8,'Historical Financial'!$A:$AF,23,FALSE) -> 9.7 | Y8: =VLOOKUP($B8,'Historical Financial'!$A:$AF,24,FALSE) -> 8.75 | Z8: =VLOOKUP($B8,'Historical Financial'!$A:$AF,25,FALSE) -> 8.55 | AA8: =VLOOKUP($B8,'Historical Financial'!$A:$AF,26,FALSE) -> 6.88 | AB8: =VLOOKUP($B8,'Historical Financial'!$A:$AF,27,FALSE) -> 9.12 | AC8: =VLOOKUP($B8,'Historical Financial'!$A:$AF,28,FALSE) -> 8.64 | AD8: =VLOOKUP($B8,'Historical Financial'!$A:$AF,29,FALSE) -> 7.3 | AE8: =VLOOKUP($B8,'Historical Financial'!$A:$AF,30,FALSE) -> 8.76 | AF8: =VLOOKUP($B8,'Historical Financial'!$A:$AF,31,FALSE) -> 14.07 | AG8: =VLOOKUP($B8,'Historical Financial'!$A:$AF,32,FALSE) -> 14.07 | AH8: =IF(ISNUMBER(AVERAGEIF(C8:AF8,"<> -")),AVERAGEIF(C8:AF8,"<> -"),"-") -> 12.412 | AI8: =IF(ISNUMBER(AVERAGEIF(AB8:AF8,"<> -")),AVERAGEIF(AB8:AF8,"<> -"),"-") -> 9.578 | AJ8: 10 | AM8: =VLOOKUP($B8,'Historical Financial'!$A:$EW,147,FALSE) -> 8.31 | AN8: =VLOOKUP($B8,'Historical Financial'!$A:$EW,148,FALSE) -> 11.13 | AO8: =VLOOKUP($B8,'Historical Financial'!$A:$EW,149,FALSE) -> 6.71 | AP8: =VLOOKUP($B8,'Historical Financial'!$A:$EW,150,FALSE) -> 24.47 | AQ8: =VLOOKUP($B8,'Historical Financial'!$A:$EW,151,FALSE) -> 9.61 | AR8: =VLOOKUP($B8,'Historical Financial'!$A:$EW,152,FALSE) -> 12.57 | AS8: =VLOOKUP($B8,'Historical Financial'!$A:$EW,153,FALSE) -> 8.46 | AT8: =IF(ISNUMBER(AVERAGEIF(AL8:AS8,"<> -")),AVERAGEIF(AL8:AS8,"<> -"),"-") -> 11.60857143
D9: =IF(OR(D8="-",D8=0,C8="-",C8=0),"-",+(D8-C8)/ABS(C8)) -> - | E9: - | F9: -0.3172059268 | G9: 0.28255093 | H9: -0.04247237569 | I9: 0.01514605121 | J9: -0.1218472469 | K9: -1.590614887 | L9: 2.882191781 | M9: -0.827147016 | N9: 0.9284210526 | O9: -0.05349344978 | P9: 0.9642445213 | Q9: 0.553141515 | R9: -0.5111531191 | S9: =IF(OR(S8="-",S8=0,R8="-",R8=0),"-",+(S8-R8)/ABS(R8)) -> -0.3727764888 | T9: =IF(OR(T8="-",T8=0,S8="-",S8=0),"-",+(T8-S8)/ABS(S8)) -> 0.09494451295 | U9: -0.356981982 | V9: 0.06304728546 | W9: -0.2191103789 | X9: 1.046413502 | Y9: -0.09793814433 | Z9: -0.02285714286 | AA9: -0.1953216374 | AB9: 0.3255813953 | AC9: -0.05263157895 | AD9: -0.1550925926 | AE9: 0.2 | AF9: 0.6061643836 | AG9: 1.262513745e-16 | AM9: =IF(OR(AM8="-",AM8=0,AL8="-",AL8=0),"-",+(AM8-AL8)/ABS(AL8)) -> - | AN9: =IF(OR(AN8="-",AN8=0,AM8="-",AM8=0),"-",+(AN8-AM8)/ABS(AM8)) -> 0.3393501805 | AO9: =IF(OR(AO8="-",AO8=0,AN8="-",AN8=0),"-",+(AO8-AN8)/ABS(AN8)) -> -0.3971248877 | AP9: =IF(OR(AP8="-",AP8=0,AO8="-",AO8=0),"-",+(AP8-AO8)/ABS(AO8)) -> 2.646795827 | AQ9: =IF(OR(AQ8="-",AQ8=0,AP8="-",AP8=0),"-",+(AQ8-AP8)/ABS(AP8)) -> -0.6072742133 | AR9: =IF(OR(AR8="-",AR8=0,AQ8="-",AQ8=0),"-",+(AR8-AQ8)/ABS(AQ8)) -> 0.308012487 | AS9: =IF(OR(AS8="-",AS8=0,AR8="-",AR8=0),"-",+(AS8-AR8)/ABS(AR8)) -> -0.3269689737
C12: ='Historical Financial'!B3 -> Dec88 | D12: ='Historical Financial'!C3 -> Dec89 | E12: ='Historical Financial'!D3 -> Dec90 | F12: ='Historical Financial'!E3 -> Dec91 | G12: ='Historical Financial'!F3 -> Dec92 | H12: ='Historical Financial'!G3 -> Dec93 | I12: ='Historical Financial'!H3 -> Dec94 | J12: ='Historical Financial'!I3 -> Dec95 | K12: ='Historical Financial'!J3 -> Dec96 | L12: ='Historical Financial'!K3 -> Dec97 | M12: ='Historical Financial'!L3 -> Dec98 | N12: ='Historical Financial'!M3 -> Dec99 | O12: ='Historical Financial'!N3 -> Dec00 | P12: ='Historical Financial'!O3 -> Dec01 | Q12: ='Historical Financial'!P3 -> Dec02 | R12: ='Historical Financial'!Q3 -> Dec03 | S12: ='Historical Financial'!R3 -> Dec04 | T12: ='Historical Financial'!S3 -> Dec05 | U12: ='Historical Financial'!T3 -> Dec06 | V12: ='Historical Financial'!U3 -> Dec07 | W12: ='Historical Financial'!V3 -> Dec08 | X12: ='Historical Financial'!W3 -> Dec09 | Y12: ='Historical Financial'!X3 -> Dec10 | Z12: ='Historical Financial'!Y3 -> Dec11 | AA12: ='Historical Financial'!Z3 -> Dec12 | AB12: ='Historical Financial'!AA3 -> Dec13 | AC12: ='Historical Financial'!AB3 -> Dec14 | AD12: ='Historical Financial'!AC3 -> Dec15 | AE12: ='Historical Financial'!AD3 -> Dec16 | AF12: ='Historical Financial'!AE3 -> Dec17 | AG12: ='Historical Financial'!AF3 -> TTM/current | AM12: ='Historical Financial'!EQ$3 -> Jun16 | AN12: ='Historical Financial'!ER$3 -> Sep16 | AO12: ='Historical Financial'!ES$3 -> Dec16 | AP12: ='Historical Financial'!ET$3 -> Mar17 | AQ12: ='Historical Financial'!EU$3 -> Jun17 | AR12: ='Historical Financial'!EV$3 -> Sep17 | AS12: ='Historical Financial'!EW$3 -> Dec17 | AT12: Media
A13: Ventas | B13: Revenue | C13: =VLOOKUP($B13,'Historical Financial'!$A:$AF,2,FALSE) -> 2464.9 | D13: =VLOOKUP($B13,'Historical Financial'!$A:$AF,3,FALSE) -> 2483.9 | E13: =VLOOKUP($B13,'Historical Financial'!$A:$AF,4,FALSE) -> 1580.1 | F13: =VLOOKUP($B13,'Historical Financial'!$A:$AF,5,FALSE) -> 2427.5 | G13: =VLOOKUP($B13,'Historical Financial'!$A:$AF,6,FALSE) -> 3029.3 | H13: =VLOOKUP($B13,'Historical Financial'!$A:$AF,7,FALSE) -> 2619.2 | I13: =VLOOKUP($B13,'Historical Financial'!$A:$AF,8,FALSE) -> 3300 | J13: =VLOOKUP($B13,'Historical Financial'!$A:$AF,9,FALSE) -> 4563.3 | K13: =VLOOKUP($B13,'Historical Financial'!$A:$AF,10,FALSE) -> 4896 | L13: =VLOOKUP($B13,'Historical Financial'!$A:$AF,11,FALSE) -> 5677 | M13: =VLOOKUP($B13,'Historical Financial'!$A:$AF,12,FALSE) -> 13832 | N13: =VLOOKUP($B13,'Historical Financial'!$A:$AF,13,FALSE) -> 24028 | O13: =VLOOKUP($B13,'Historical Financial'!$A:$AF,14,FALSE) -> 33976 | P13: =VLOOKUP($B13,'Historical Financial'!$A:$AF,15,FALSE) -> 38593 | Q13: =VLOOKUP($B13,'Historical Financial'!$A:$AF,16,FALSE) -> 42353 | R13: =VLOOKUP($B13,'Historical Financial'!$A:$AF,17,FALSE) -> 63859 | S13: =VLOOKUP($B13,'Historical Financial'!$A:$AF,18,FALSE) -> 74382 | T13: =VLOOKUP($B13,'Historical Financial'!$A:$AF,19,FALSE) -> 81663 | U13: =VLOOKUP($B13,'Historical Financial'!$A:$AF,20,FALSE) -> 98539 | V13: =VLOOKUP($B13,'Historical Financial'!$A:$AF,21,FALSE) -> 118245 | W13: =VLOOKUP($B13,'Historical Financial'!$A:$AF,22,FALSE) -> 107786 | X13: =VLOOKUP($B13,'Historical Financial'!$A:$AF,23,FALSE) -> 112493 | Y13: =VLOOKUP($B13,'Historical Financial'!$A:$AF,24,FALSE) -> 136185 | Z13: =VLOOKUP($B13,'Historical Financial'!$A:$AF,25,FALSE) -> 143688 | AA13: =VLOOKUP($B13,'Historical Financial'!$A:$AF,26,FALSE) -> 162463 | AB13: =VLOOKUP($B13,'Historical Financial'!$A:$AF,27,FALSE) -> 182150 | AC13: =VLOOKUP($B13,'Historical Financial'!$A:$AF,28,FALSE) -> 194699 | AD13: =VLOOKUP($B13,'Historical Financial'!$A:$AF,29,FALSE) -> 210943 | AE13: =VLOOKUP($B13,'Historical Financial'!$A:$AF,30,FALSE) -> 223604 | AF13: =VLOOKUP($B13,'Historical Financial'!$A:$AF,31,FALSE) -> 242137 | AG13: =VLOOKUP($B13,'Historical Financial'!$A:$AF,32,FALSE) -> 242137 | AH13: =MediaCrecimiento($C13:$AF13) -> 0.1713823733 | AI13: =MediaCrecimiento($AA13:$AF13) -> 0.08308199878 | AJ13: =INDEX(C13:AF13,MATCH(TRUE,INDEX((C13:AF13<>"-"),0),0)) -> 2464.9 | AM13: =VLOOKUP($B13,'Historical Financial'!$A:$EW,147,FALSE) -> 54254 | AN13: =VLOOKUP($B13,'Historical Financial'!$A:$EW,148,FALSE) -> 58843 | AO13: =VLOOKUP($B13,'Historical Financial'!$A:$EW,149,FALSE) -> 58344 | AP13: =VLOOKUP($B13,'Historical Financial'!$A:$EW,150,FALSE) -> 65187 | AQ13: =VLOOKUP($B13,'Historical Financial'!$A:$EW,151,FALSE) -> 57518 | AR13: =VLOOKUP($B13,'Historical Financial'!$A:$EW,152,FALSE) -> 60525 | AS13: =VLOOKUP($B13,'Historical Financial'!$A:$EW,153,FALSE) -> 58907 | AT13: =MediaCrecimiento($AL13:$AS13) -> 0.0138083342
D14: =IF(OR(D13="-",D13=0,C13="-",C13=0),"-",+(D13-C13)/ABS(C13)) -> 0.007708223457 | E14: -0.3638632795 | F14: 0.5362951712 | G14: 0.2479093718 | H14: -0.1353778101 | I14: 0.2599266952 | J14: 0.3828181818 | K14: 0.07290776412 | L14: 0.1595179739 | M14: 1.43649815 | N14: 0.7371312898 | O14: 0.4140169802 | P14: 0.13589004 | Q14: 0.09742699453 | R14: 0.5077798503 | S14: =IF(OR(S13="-",S13=0,R13="-",R13=0),"-",+(S13-R13)/ABS(R13)) -> 0.1647849168 | T14: =IF(OR(T13="-",T13=0,S13="-",S13=0),"-",+(T13-S13)/ABS(S13)) -> 0.09788658546 | U14: 0.2066541763 | V14: 0.1999817331 | W14: -0.088451943 | X14: 0.04366986436 | Y14: 0.2106086601 | Z14: 0.05509417337 | AA14: 0.1306650521 | AB14: 0.1211783606 | AC14: 0.06889376887 | AD14: 0.08343134788 | AE14: 0.06002095353 | AF14: 0.08288313268 | AG14: 0 | AM14: =IF(OR(AM13="-",AM13=0,AL13="-",AL13=0),"-",+(AM13-AL13)/ABS(AL13)) -> - | AN14: =IF(OR(AN13="-",AN13=0,AM13="-",AM13=0),"-",+(AN13-AM13)/ABS(AM13)) -> 0.08458362517 | AO14: =IF(OR(AO13="-",AO13=0,AN13="-",AN13=0),"-",+(AO13-AN13)/ABS(AN13)) -> -0.008480193056 | AP14: =IF(OR(AP13="-",AP13=0,AO13="-",AO13=0),"-",+(AP13-AO13)/ABS(AO13)) -> 0.1172871246 | AQ14: =IF(OR(AQ13="-",AQ13=0,AP13="-",AP13=0),"-",+(AQ13-AP13)/ABS(AP13)) -> -0.1176461564 | AR14: =IF(OR(AR13="-",AR13=0,AQ13="-",AQ13=0),"-",+(AR13-AQ13)/ABS(AQ13)) -> 0.05227928648 | AS14: =IF(OR(AS13="-",AS13=0,AR13="-",AR13=0),"-",+(AS13-AR13)/ABS(AR13)) -> -0.02673275506
A15: OCF | B15: Cash Flow from Operations | C15: =VLOOKUP($B15,'Historical Financial'!$A:$AF,2,FALSE) -> 0 | D15: =VLOOKUP($B15,'Historical Financial'!$A:$AF,3,FALSE) -> 0 | E15: =VLOOKUP($B15,'Historical Financial'!$A:$AF,4,FALSE) -> 522.6 | F15: =VLOOKUP($B15,'Historical Financial'!$A:$AF,5,FALSE) -> 709.2 | G15: =VLOOKUP($B15,'Historical Financial'!$A:$AF,6,FALSE) -> 997.2 | H15: =VLOOKUP($B15,'Historical Financial'!$A:$AF,7,FALSE) -> 726.2 | I15: =VLOOKUP($B15,'Historical Financial'!$A:$AF,8,FALSE) -> 929.1 | J15: =VLOOKUP($B15,'Historical Financial'!$A:$AF,9,FALSE) -> 1127.9 | K15: =VLOOKUP($B15,'Historical Financial'!$A:$AF,10,FALSE) -> 1260 | L15: =VLOOKUP($B15,'Historical Financial'!$A:$AF,11,FALSE) -> 2335 | M15: =VLOOKUP($B15,'Historical Financial'!$A:$AF,12,FALSE) -> 657 | N15: =VLOOKUP($B15,'Historical Financial'!$A:$AF,13,FALSE) -> 2200 | O15: =VLOOKUP($B15,'Historical Financial'!$A:$AF,14,FALSE) -> 2947 | P15: =VLOOKUP($B15,'Historical Financial'!$A:$AF,15,FALSE) -> 6574 | Q15: =VLOOKUP($B15,'Historical Financial'!$A:$AF,16,FALSE) -> 11203 | R15: =VLOOKUP($B15,'Historical Financial'!$A:$AF,17,FALSE) -> 8257 | S15: =VLOOKUP($B15,'Historical Financial'!$A:$AF,18,FALSE) -> 7311 | T15: =VLOOKUP($B15,'Historical Financial'!$A:$AF,19,FALSE) -> 9446 | U15: =VLOOKUP($B15,'Historical Financial'!$A:$AF,20,FALSE) -> 10195 | V15: =VLOOKUP($B15,'Historical Financial'!$A:$AF,21,FALSE) -> 12550 | W15: =VLOOKUP($B15,'Historical Financial'!$A:$AF,22,FALSE) -> 11252 | X15: =VLOOKUP($B15,'Historical Financial'!$A:$AF,23,FALSE) -> 15846 | Y15: =VLOOKUP($B15,'Historical Financial'!$A:$AF,24,FALSE) -> 17895 | Z15: =VLOOKUP($B15,'Historical Financial'!$A:$AF,25,FALSE) -> 20476 | AA15: =VLOOKUP($B15,'Historical Financial'!$A:$AF,26,FALSE) -> 20950 | AB15: =VLOOKUP($B15,'Historical Financial'!$A:$AF,27,FALSE) -> 27704 | AC15: =VLOOKUP($B15,'Historical Financial'!$A:$AF,28,FALSE) -> 32010 | AD15: =VLOOKUP($B15,'Historical Financial'!$A:$AF,29,FALSE) -> 31491 | AE15: =VLOOKUP($B15,'Historical Financial'!$A:$AF,30,FALSE) -> 32535 | AF15: =VLOOKUP($B15,'Historical Financial'!$A:$AF,31,FALSE) -> 45776 | AG15: =VLOOKUP($B15,'Historical Financial'!$A:$AF,32,FALSE) -> 45776 | AM15: =VLOOKUP($B15,'Historical Financial'!$A:$EW,147,FALSE) -> 7810 | AN15: =VLOOKUP($B15,'Historical Financial'!$A:$EW,148,FALSE) -> 9833 | AO15: =VLOOKUP($B15,'Historical Financial'!$A:$EW,149,FALSE) -> 7438 | AP15: =VLOOKUP($B15,'Historical Financial'!$A:$EW,150,FALSE) -> 18305 | AQ15: =VLOOKUP($B15,'Historical Financial'!$A:$EW,151,FALSE) -> 8322 | AR15: =VLOOKUP($B15,'Historical Financial'!$A:$EW,152,FALSE) -> 10870 | AS15: =VLOOKUP($B15,'Historical Financial'!$A:$EW,153,FALSE) -> 8279
A16: Amort y deprec | B16: Depreciation, Depletion and Amortization | C16: =VLOOKUP($B16,'Historical Financial'!$A:$AF,2,FALSE) -> 0 | D16: =VLOOKUP($B16,'Historical Financial'!$A:$AF,3,FALSE) -> 0 | E16: =VLOOKUP($B16,'Historical Financial'!$A:$AF,4,FALSE) -> 56.7 | F16: =VLOOKUP($B16,'Historical Financial'!$A:$AF,5,FALSE) -> 37.2 | G16: =VLOOKUP($B16,'Historical Financial'!$A:$AF,6,FALSE) -> 41.1 | H16: =VLOOKUP($B16,'Historical Financial'!$A:$AF,7,FALSE) -> 50.2 | I16: =VLOOKUP($B16,'Historical Financial'!$A:$AF,8,FALSE) -> 62.5 | J16: =VLOOKUP($B16,'Historical Financial'!$A:$AF,9,FALSE) -> 75.7 | K16: =VLOOKUP($B16,'Historical Financial'!$A:$AF,10,FALSE) -> 151 | L16: =VLOOKUP($B16,'Historical Financial'!$A:$AF,11,FALSE) -> 227 | M16: =VLOOKUP($B16,'Historical Financial'!$A:$AF,12,FALSE) -> 265 | N16: =VLOOKUP($B16,'Historical Financial'!$A:$AF,13,FALSE) -> 688 | O16: =VLOOKUP($B16,'Historical Financial'!$A:$AF,14,FALSE) -> 997 | P16: =VLOOKUP($B16,'Historical Financial'!$A:$AF,15,FALSE) -> 1076 | Q16: =VLOOKUP($B16,'Historical Financial'!$A:$AF,16,FALSE) -> 811 | R16: =VLOOKUP($B16,'Historical Financial'!$A:$AF,17,FALSE) -> 520 | S16: =VLOOKUP($B16,'Historical Financial'!$A:$AF,18,FALSE) -> 941 | T16: =VLOOKUP($B16,'Historical Financial'!$A:$AF,19,FALSE) -> 982 | U16: =VLOOKUP($B16,'Historical Financial'!$A:$AF,20,FALSE) -> 2066 | V16: =VLOOKUP($B16,'Historical Financial'!$A:$AF,21,FALSE) -> 2407 | W16: =VLOOKUP($B16,'Historical Financial'!$A:$AF,22,FALSE) -> 2810 | X16: =VLOOKUP($B16,'Historical Financial'!$A:$AF,23,FALSE) -> 3127 | Y16: =VLOOKUP($B16,'Historical Financial'!$A:$AF,24,FALSE) -> 4279 | Z16: =VLOOKUP($B16,'Historical Financial'!$A:$AF,25,FALSE) -> 5492 | AA16: =VLOOKUP($B16,'Historical Financial'!$A:$AF,26,FALSE) -> 6154 | AB16: =VLOOKUP($B16,'Historical Financial'!$A:$AF,27,FALSE) -> 6508 | AC16: =VLOOKUP($B16,'Historical Financial'!$A:$AF,28,FALSE) -> 7370 | AD16: =VLOOKUP($B16,'Historical Financial'!$A:$AF,29,FALSE) -> 7779 | AE16: =VLOOKUP($B16,'Historical Financial'!$A:$AF,30,FALSE) -> 8901 | AF16: =VLOOKUP($B16,'Historical Financial'!$A:$AF,31,FALSE) -> 9188 | AG16: =VLOOKUP($B16,'Historical Financial'!$A:$AF,32,FALSE) -> 9188 | AM16: =VLOOKUP($B16,'Historical Financial'!$A:$EW,147,FALSE) -> 2234 | AN16: =VLOOKUP($B16,'Historical Financial'!$A:$EW,148,FALSE) -> 2246 | AO16: =VLOOKUP($B16,'Historical Financial'!$A:$EW,149,FALSE) -> 2296 | AP16: =VLOOKUP($B16,'Historical Financial'!$A:$EW,150,FALSE) -> 2243 | AQ16: =VLOOKUP($B16,'Historical Financial'!$A:$EW,151,FALSE) -> 2296 | AR16: =VLOOKUP($B16,'Historical Financial'!$A:$EW,152,FALSE) -> 2296 | AS16: =VLOOKUP($B16,'Historical Financial'!$A:$EW,153,FALSE) -> 2353
A17: FCF sin crecimiento | C17: =IF(OR(C16="-",C16="-"),"-",+C15-C16) -> 0 | D17: 0 | E17: 465.9 | F17: 672 | G17: 956.1 | H17: 676 | I17: 866.6 | J17: 1052.2 | K17: 1109 | L17: 2108 | M17: 392 | N17: 1512 | O17: 1950 | P17: 5498 | Q17: 10392 | R17: =IF(OR(R16="-",R16="-"),"-",+R15-R16) -> 7737 | S17: =IF(OR(S16="-",S16="-"),"-",+S15-S16) -> 6370 | T17: 8464 | U17: 8129 | V17: 10143 | W17: 8442 | X17: 12719 | Y17: 13616 | Z17: 14984 | AA17: 14796 | AB17: 21196 | AC17: 24640 | AD17: 23712 | AE17: 23634 | AF17: 36588 | AG17: 36588 | AM17: =IF(OR(AM16="-",AM16="-"),"-",+AM15-AM16) -> 5576 | AN17: 7587 | AO17: 5142 | AP17: 16062 | AQ17: 6026 | AR17: 8574 | AS17: 5926
A18: Margen FCF sin crec | C18: =IF(OR(C13="-",C13=0,C17="-",C17=0),"-",+C17/C13) -> - | D18: - | E18: 0.294854756 | F18: 0.2768280124 | G18: 0.3156174694 | H18: 0.2580940745 | I18: 0.2626060606 | J18: 0.2305787478 | K18: 0.2265114379 | L18: 0.3713228818 | M18: 0.02834008097 | N18: 0.06292658565 | O18: 0.0573934542 | P18: 0.1424610681 | Q18: 0.2453663259 | R18: 0.1211575502 | S18: 0.08563899868 | T18: 0.1036454698 | U18: 0.08249525569 | V18: 0.08577952556 | W18: 0.07832185998 | X18: 0.1130648129 | Y18: 0.09998164262 | Z18: 0.1042814988 | AA18: 0.09107304432 | AB18: 0.1163656327 | AC18: =IF(OR(AC13="-",AC13=0,AC17="-",AC17=0),"-",+AC17/AC13) -> 0.1265543223 | AD18: =IF(OR(AD13="-",AD13=0,AD17="-",AD17=0),"-",+AD17/AD13) -> 0.1124095135 | AE18: 0.1056957836 | AF18: 0.15110454 | AG18: 0.15110454 | AH18: =IF(ISNUMBER(AVERAGEIF(C18:AF18,"<> -")),AVERAGEIF(C18:AF18,"<> -"),"-") -> 0.1553739431 | AI18: =IF(ISNUMBER(AVERAGEIF(AB18:AF18,"<> -")),AVERAGEIF(AB18:AF18,"<> -"),"-") -> 0.1224259584 | AJ18: 0.12 | AL18: =IF(OR(AL13="-",AL13=0,AL17="-",AL17=0),"-",+AL17/AL13) -> - | AM18: =IF(OR(AM13="-",AM13=0,AM17="-",AM17=0),"-",+AM17/AM13) -> 0.1027758322 | AN18: =IF(OR(AN13="-",AN13=0,AN17="-",AN17=0),"-",+AN17/AN13) -> 0.1289363221 | AO18: =IF(OR(AO13="-",AO13=0,AO17="-",AO17=0),"-",+AO17/AO13) -> 0.08813245578 | AP18: =IF(OR(AP13="-",AP13=0,AP17="-",AP17=0),"-",+AP17/AP13) -> 0.2463988219 | AQ18: =IF(OR(AQ13="-",AQ13=0,AQ17="-",AQ17=0),"-",+AQ17/AQ13) -> 0.1047672033 | AR18: =IF(OR(AR13="-",AR13=0,AR17="-",AR17=0),"-",+AR17/AR13) -> 0.1416604709 | AS18: =IF(OR(AS13="-",AS13=0,AS17="-",AS17=0),"-",+AS17/AS13) -> 0.1005992497 | AT18: =IF(ISNUMBER(AVERAGEIF(AL18:AS18,"<> -")),AVERAGEIF(AL18:AS18,"<> -"),"-") -> 0.1304671937
D19: =IF(OR(D18="-",C18="-"),"-",+(D18-C18)/ABS(C18)) -> - | E19: - | F19: -0.06113770696 | G19: 0.1401211413 | H19: -0.1822566887 | I19: 0.0174819437 | J19: -0.121959534 | K19: -0.01763956985 | L19: 0.6393118389 | M19: -0.9236780647 | N19: 1.220409522 | O19: -0.08792994868 | P19: 1.482183204 | Q19: 0.7223395079 | R19: -0.5062176939 | S19: =IF(OR(S18="-",R18="-"),"-",+(S18-R18)/ABS(R18)) -> -0.293160034 | T19: =IF(OR(T18="-",S18="-"),"-",+(T18-S18)/ABS(S18)) -> 0.2102601781 | U19: =IF(OR(U18="-",T18="-"),"-",+(U18-T18)/ABS(T18)) -> -0.2040630831 | V19: =IF(OR(V18="-",U18="-"),"-",+(V18-U18)/ABS(U18)) -> 0.03981162127 | W19: =IF(OR(W18="-",V18="-"),"-",+(W18-V18)/ABS(V18)) -> -0.08693992571 | X19: =IF(OR(X18="-",W18="-"),"-",+(X18-W18)/ABS(W18)) -> 0.443592031 | Y19: =IF(OR(Y18="-",X18="-"),"-",+(Y18-X18)/ABS(X18)) -> -0.1157138986 | Z19: =IF(OR(Z18="-",Y18="-"),"-",+(Z18-Y18)/ABS(Y18)) -> 0.0430064567 | AA19: =IF(OR(AA18="-",Z18="-"),"-",+(AA18-Z18)/ABS(Z18)) -> -0.1266615328 | AB19: =IF(OR(AB18="-",AA18="-"),"-",+(AB18-AA18)/ABS(AA18)) -> 0.2777176121 | AC19: =IF(OR(AC18="-",AB18="-"),"-",+(AC18-AB18)/ABS(AB18)) -> 0.08755754903 | AD19: =IF(OR(AD18="-",AC18="-"),"-",+(AD18-AC18)/ABS(AC18)) -> -0.1117686744 | AE19: =IF(OR(AE18="-",AD18="-"),"-",+(AE18-AD18)/ABS(AD18)) -> -0.0597256375 | AF19: =IF(OR(AF18="-",AE18="-"),"-",+(AF18-AE18)/ABS(AE18)) -> 0.4296174816 | AG19: =IF(OR(AG18="-",AF18="-"),"-",+(AG18-AF18)/ABS(AF18)) -> 0
A21: Ventas | C21: =+AG13 -> 242137 | D21: =+C21/$C$29 -> 98.13089415
C23: Normalizado Media | E23: Normalizado 5 años | G23: Actual (TTM) | I23: Objetivo
C24: Total | D24: /acción | E24: Total | F24: /acción | G24: Total | H24: /acción | I24: Total | J24: /acción
A25: BPA | C25: =+C21*AH6/100 -> 35434.32858 | D25: =+C25/$C$29 -> 14.36047505 | E25: =+$C$21*AI6/100 -> 29855.4921 | F25: =+E25/$C$29 -> 12.09953925 | G25: =+AG6*C21/100 -> 44940.6272 | H25: =+G25/$C$29 -> 18.21309395 | I25: =+C21*AJ6/100 -> 29056.44 | J25: =+I25/$C$29 -> 11.7757073
A26: FCF | C26: =+C21*AH8/100 -> 30054.04444 | D26: =+C26/$C$29 -> 12.18000658 | E26: =+$C$21*AI8/100 -> 23191.88186 | F26: =+E26/$C$29 -> 9.398977041 | G26: =+AG8*C21/100 -> 34068.6759 | H26: =+G26/$C$29 -> 13.80701681 | I26: =+C21*AJ8/100 -> 24213.7 | J26: =+I26/$C$29 -> 9.813089415
A27: FCF sin crec | C27: =+C21*AH18 -> 37621.78045 | D27: =+C27/$C$29 -> 15.24698396 | E27: =+$C$21*AI18 -> 29643.85429 | F27: =+E27/$C$29 -> 12.01376877 | G27: =+AG18*C21 -> 36588 | H27: =+G27/$C$29 -> 14.82802362 | I27: =+AJ18*C21 -> 29056.44 | J27: 11.7757073
A28: EBIT | C28: =+C21*AH4/100 -> 34414.93181 | D28: =+C28/$C$29 -> 13.94734399 | E28: =+$C$21*AI4/100 -> 33971.8211 | F28: =+E28/$C$29 -> 13.76776445 | G28: =+AG4*C21/100 -> 20896.4231 | H28: =+G28/$C$29 -> 8.468696165 | I28: =+AJ4*C21/100 -> 33899.18 | J28: 13.73832518
A29: Nº acc | C29: =+Crecimiento!AG18 -> 2467.49
A31: Cotización | C31: 197.96
A32: Capitalización (Millones) | C32: =IF(MID($G$32,LEN($G$32),LEN($G$32))="B",IF($J$32="Comas",VALUE(SUBSTITUTE(MID($G$32,1,LEN($G$32)-2),".",","))*1000,VALUE(MID($G$32,1,LEN($G$32)-2))*1000),IF($J$32="Comas",ROUND(VALUE(SUBSTITUTE(MID($G$32,1,LEN($G$32)-2),".",",")),0),ROUND(MID($G$32,1,LEN($G$32)-2),0))) -> 482990 | D32: =+C32/$C$29 -> 195.7414214 | F32: Gurufocus: | G32: 482.99 B | H32: Separador de decimales: | J32: Puntos
A33: Caja Neta | C33: =-'Salud Financiera'!AG23 ->  | D33: =+C33/$C$29 -> 
A34: EV | C34: =+C32-C33 ->  | D34: =+C34/$C$29 -> 
A36: Ratios | C36: Media | D36: 5 años | E36: Actual | F36: Objetivo
A37: PER | C37: =+$C$32/C25 -> 13.63056729 | D37: =+$C$32/E25 -> 16.177593 | E37: =+$C$32/G25 -> 10.74729104 | F37: =+$C$32/I25 -> 16.62247681
A38: EV/EBIT | C38: =+$C$34/C28 ->  | D38: =+$C$34/E28 ->  | E38: =+$C$34/G28 ->  | F38: =+$C$34/I28 -> 
A39: P/FCF | C39: =+$C$32/C27 -> 12.83804206 | D39: =+$C$32/E27 -> 16.29309047 | E39: =+$C$32/G27 -> 13.20077621 | F39: =+$C$32/I27 -> 16.62247681
A40: FCF/EV | C40: =+C27/$C$34 ->  | D40: =+E27/$C$34 ->  | E40: =+G27/$C$34 ->  | F40: =+I27/$C$34 -> 
A41: EV/FCF | C41: =1/C40 ->  | D41: =1/D40 -> 

Sheet Resumen
A1: Crecimiento | B1: Actual | C1: Media | D1: 5 años | F1: Márgenes | G1: Actual | H1: Media | I1: 5 años | J1: Objetivo
A2: Ingresos/acc | B2: =+Crecimiento!AF3 -> 0.08237395792 | C2: =+Crecimiento!AH2 -> 0.1569076243 | D2: =+Crecimiento!AI2 -> 0.0839620419 | F2: Bruto | G2: =+Normalización!AG2 ->  | H2: =+Normalización!AH2 -> - | I2: =+Normalización!AI2 -> - | J2: =+Normalización!AJ2 -> 0
A3: EBITDA/acc | B3: =+Crecimiento!AF5 -> -0.1663633444 | C3: =+Crecimiento!AH4 -> 0.2060398715 | D3: =+Crecimiento!AI4 -> 0.04378963166 | F3: EBIT | G3: =+Normalización!AG4 -> 8.63 | H3: =+Normalización!AH4 -> 14.213 | I3: =+Normalización!AI4 -> 14.03 | J3: =+Normalización!AJ4 -> 14
A4: EBIT/acc | B4: =+Crecimiento!AF7 -> -0.2137738854 | C4: =+Crecimiento!AH6 -> 0.2119590368 | D4: =+Crecimiento!AI6 -> 0.03278159431 | F4: Neto | G4: =+Normalización!AG6 -> 18.56 | H4: =+Normalización!AH6 -> 14.634 | I4: =+Normalización!AI6 -> 12.33 | J4: =+Normalización!AJ6 -> 12
A5: BPA | B5: =+Crecimiento!AF9 -> 0.8659223599 | C5: =+Crecimiento!AH8 -> 0.1623701374 | D5: =+Crecimiento!AI8 -> 0.2493454535 | F5: FCF | G5: =+Normalización!AG8 -> 14.07 | H5: =+Normalización!AH8 -> 12.412 | I5: =+Normalización!AI8 -> 9.578 | J5: =+Normalización!AJ8 -> 10
A6: FCF/acc | B6: =+Crecimiento!AF11 -> 0.7390756832 | C6: =+Crecimiento!AH10 -> 0.1518136626 | D6: =+Crecimiento!AI10 -> 0.2507338895 | F6: FCF sin crecimiento | G6: =+Normalización!AG18 -> 0.15110454 | H6: =+Normalización!AH18 -> 0.1553739431 | I6: =+Normalización!AI18 -> 0.1224259584 | J6: =+Normalización!AJ18 -> 0.12
A7: Nº Acciones | B7: =+Crecimiento!AF19 -> 0.0003202945088 | C7: =+Crecimiento!AH18 -> 0.01253898095 | D7: =+Crecimiento!AI18 -> 0.0002311848265
F8: Valoración | G8: Actual | H8: Media | I8: 5 años | J8: Objetivo
A9: Salud Financiera | B9: Actual | C9: Media | D9: 5 años | F9: PER | G9: =+Normalización!D37 -> 16.177593 | H9: =+Normalización!E37 -> 10.74729104 | I9: =+Normalización!C37 -> 13.63056729 | J9: =+Normalización!F37 -> 16.62247681
A10: Current Ratio | B10: =+'Salud Financiera'!AG13 ->  | C10: =+'Salud Financiera'!AH13 -> - | D10: =+'Salud Financiera'!AI13 -> - | F10: EV/EBIT | G10: =+Normalización!D38 ->  | H10: =+Normalización!E38 ->  | I10: =+Normalización!C38 ->  | J10: =+Normalización!F38 -> 
A11: Quick Ratio | B11: =+'Salud Financiera'!AG15 ->  | C11: =+'Salud Financiera'!AH15 -> - | D11: =+'Salud Financiera'!AI15 -> - | F11: P/FCF | G11: =+Normalización!D39 -> 16.29309047 | H11: =+Normalización!E39 -> 13.20077621 | I11: =+Normalización!C39 -> 12.83804206 | J11: =+Normalización!F39 -> 16.62247681
A12: Deuda Neta/EBITDA | B12: =+'Salud Financiera'!AG27 ->  | C12: =+'Salud Financiera'!AH27 -> - | D12: =+'Salud Financiera'!AI27 -> - | F12: FCF/EV | G12: =+Normalización!D40 ->  | H12: =+Normalización!E40 ->  | I12: =+Normalización!C40 ->  | J12: =+Normalización!F40 -> 
A13: Deuda/Activos | B13: =+'Salud Financiera'!AG29 -> 0.5039189853 | C13: =+'Salud Financiera'!AH29 -> 0.5326689338 | D13: =+'Salud Financiera'!AI29 -> 0.5345146043 | F13: EV/FCF | G13: =+Normalización!D41 ->  | H13: =+Normalización!E41 ->  | I13: =+Normalización!C41 ->  | J13: =+Normalización!F41 -> 
A14: % Intereses | B14: =+'Salud Financiera'!AG19 -> 5.27 | C14: =+'Salud Financiera'!AH19 -> 5.814 | D14: =+'Salud Financiera'!AI19 -> 4.35
A16: Rentabilidad | B16: Actual | C16: Media | D16: 5 años
A17: ROA | B17: =+'Rentabilidad y Eficiencia'!AG2 -> 6.76 | C17: =+'Rentabilidad y Eficiencia'!AH2 -> 3.510333333 | D17: =+'Rentabilidad y Eficiencia'!AI2 -> 4.712
A18: ROE | B18: =+'Rentabilidad y Eficiencia'!AG10 -> 14.67 | C18: =+'Rentabilidad y Eficiencia'!AH10 -> 7.51 | D18: =+'Rentabilidad y Eficiencia'!AI10 -> 10.21
A19: ROIC | B19: =+'Rentabilidad y Eficiencia'!AG12 -> 10.89 | C19: =+'Rentabilidad y Eficiencia'!AH12 -> 6.254 | D19: =+'Rentabilidad y Eficiencia'!AI12 -> 9.328

Sheet Valoración
A1: Valoración actual
A2: P/BV | B2: Valor
A3: 1 | B3: =+Crecimiento!$AG$12*A3 -> 141.167
A4: 1.1 | B4: =+Crecimiento!$AG$12*A4 -> 155.2837
A5: 1.2 | B5: =+Crecimiento!$AG$12*A5 -> 169.4004
A6: 1.3 | B6: =+Crecimiento!$AG$12*A6 -> 183.5171
A7: 1.4 | B7: =+Crecimiento!$AG$12*A7 -> 197.6338
A8: 1.5 | B8: =+Crecimiento!$AG$12*A8 -> 211.7505
A9: 1.6 | B9: =+Crecimiento!$AG$12*A9 -> 225.8672
A10: 1.7 | B10: =+Crecimiento!$AG$12*A10 -> 239.9839
A11: 1.8 | B11: =+Crecimiento!$AG$12*A11 -> 254.1006
A12: 1.9 | B12: =+Crecimiento!$AG$12*A12 -> 268.2173
A15: Valoración 2023
B16: Pesimista | C16: Moderado | D16: Optimista
A17: BV Actual | B17: 141.17 | C17: 141.17 | D17: 141.17
A18: Crecimiento BV | B18: 0.06 | C18: 0.09 | D18: 0.12
A19: BV 2023 | B19: =+B17*(1+B18)^5 -> 188.9173048 | C19: =+C17*(1+C18)^5 -> 217.2075437 | D19: 248.7897754
A20: Ratio P/BV | B20: 1.4 | C20: 1.55 | D20: 1.7
A21: Valoración 2023 | B21: =+B19*B20 -> 264.4842267 | C21: =+C19*C20 -> 336.6716928 | D21: 422.9426182
A22: Precio acutal | B22: 196.5 | C22: 196.5 | D22: 196.5
A23: Rentabilidad Anualizada | B23: =+(B21/B22)^(1/5)-1 -> 0.06122493158 | C23: =+(C21/C22)^(1/5)-1 -> 0.1137015128 | D23: 0.1656919006

Sheet Historical Financial
A1: NYSE:BRK.B - Berkshire Hathaway Inc | F1: Financial Statement Template: | I1: Insurance | P1: Change log: For latest financial page display change, please click GuruFocus 30-Y Financials Page Item Changes. Jan. 4, 2017: Add 'Dividend Yield %' under 'Shiller PE Ratio' in 'Valuation Ratios' section. Sep. 26, 2016: Add 'Scaled Net Operating Assets' under 'Beneish M-Score' in 'Valuation and Quality' section. Aug. 10, 2016: Change 'LT Debt to Total Asset' to 'Total Debt to Total Asset'. Jul. 29, 2016: Add 'Effective Interest Rate on Debt %' below 'Weighted Average Cost Of Capital (WACC) %'. Jul. 18, 2016: Change 'Long-Term Debt' name to 'Long-Term Debt & Capital Lease Obligation'. Add 'Long-Term Debt' above 'Long-Term Debt & Capital Lease Obligation'. Move 'Capital Lease Obligation' in between 'Long-Term Debt' and 'Long-Term Debt & Capital Lease Obligation'. May. 19, 2016: Change 'Gross Margin %' to 'Net Interest Margin (Bank Only) %' for banks and insuance companies. May. 13, 2016: Add 'Current Ratio' below 'Sloan Ratio'. Add 'Quick Ratio' below 'Current Ratio'. Add 'Gross Profit to Total Asset' below 'LT Debt to Total Asset'. Apr. 15, 2016: Add 'Owner Earnings per Share (ttm)' below 'eps without NRI'. Add 'Price to Owner Earnings (ttm)' below 'PE Ratio (ttm)'. Feb 12, 2016: Change 'Filing Date' name to 'Restated Filing Date'. Add new 'Filing Date' above 'Restated Filing Date'. Remove 'Cumulative Effect Of Accounting Change' from Cashflow Statement (under Net Income). Jan 28, 2016: Add 'Total Debt per share' below 'Tangible Book per share'. Jan 20, 2016: Add 'Price-to-Operating-Cash-Flow ratio' below 'Price-to-Free-Cash-Flow ratio'. Jan 18, 2016: Add 'Net-Net Working Capital (per share)' below 'Net Current Asset Value (per share)'.
B2: Annual Data | AH2: Quarterly Data
A3: Fiscal Period | B3: Dec88 | C3: Dec89 | D3: Dec90 | E3: Dec91 | F3: Dec92 | G3: Dec93 | H3: Dec94 | I3: Dec95 | J3: Dec96 | K3: Dec97 | L3: Dec98 | M3: Dec99 | N3: Dec00 | O3: Dec01 | P3: Dec02 | Q3: Dec03 | R3: Dec04 | S3: Dec05 | T3: Dec06 | U3: Dec07 | V3: Dec08 | W3: Dec09 | X3: Dec10 | Y3: Dec11 | Z3: Dec12 | AA3: Dec13 | AB3: Dec14 | AC3: Dec15 | AD3: Dec16 | AE3: Dec17 | AF3: TTM/current | AH3: Mar88 | AI3: Jun88 | AJ3: Sep88 | AK3: Dec88 | AL3: Mar89 | AM3: Jun89 | AN3: Sep89 | AO3: Dec89 | AP3: Mar90 | AQ3: Jun90 | AR3: Sep90 | AS3: Dec90 | AT3: Mar91 | AU3: Jun91 | AV3: Sep91 | AW3: Dec91 | AX3: Mar92 | AY3: Jun92 | AZ3: Sep92 | BA3: Dec92 | BB3: Mar93 | BC3: Jun93 | BD3: Sep93 | BE3: Dec93 | BF3: Mar94 | BG3: Jun94 | BH3: Sep94 | BI3: Dec94 | BJ3: Mar95 | BK3: Jun95 | BL3: Sep95 | BM3: Dec95 | BN3: Mar96 | BO3: Jun96 | BP3: Sep96 | BQ3: Dec96 | BR3: Mar97 | BS3: Jun97 | BT3: Sep97 | BU3: Dec97 | BV3: Mar98 | BW3: Jun98 | BX3: Sep98 | BY3: Dec98 | BZ3: Mar99 | CA3: Jun99 | CB3: Sep99 | CC3: Dec99 | CD3: Mar00 | CE3: Jun00 | CF3: Sep00 | CG3: Dec00 | CH3: Mar01 | CI3: Jun01 | CJ3: Sep01 | CK3: Dec01 | CL3: Mar02 | CM3: Jun02 | CN3: Sep02 | CO3: Dec02 | CP3: Mar03 | CQ3: Jun03 | CR3: Sep03 | CS3: Dec03 | CT3: Mar04 | CU3: Jun04 | CV3: Sep04 | CW3: Dec04 | CX3: Mar05 | CY3: Jun05 | CZ3: Sep05 | DA3: Dec05 | DB3: Mar06 | DC3: Jun06 | DD3: Sep06 | DE3: Dec06 | DF3: Mar07 | DG3: Jun07 | DH3: Sep07 | DI3: Dec07 | DJ3: Mar08 | DK3: Jun08 | DL3: Sep08 | DM3: Dec08 | DN3: Mar09 | DO3: Jun09 | DP3: Sep09 | DQ3: Dec09 | DR3: Mar10 | DS3: Jun10 | DT3: Sep10 | DU3: Dec10 | DV3: Mar11 | DW3: Jun11 | DX3: Sep11 | DY3: Dec11 | DZ3: Mar12 | EA3: Jun12 | EB3: Sep12 | EC3: Dec12 | ED3: Mar13 | EE3: Jun13 | EF3: Sep13 | EG3: Dec13 | EH3: Mar14 | EI3: Jun14 | EJ3: Sep14 | EK3: Dec14 | EL3: Mar15 | EM3: Jun15 | EN3: Sep15 | EO3: Dec15 | EP3: Mar16 | EQ3: Jun16 | ER3: Sep16 | ES3: Dec16 | ET3: Mar17 | EU3: Jun17 | EV3: Sep17 | EW3: Dec17
A4: Revenue per Share | B4: 1.433 | C4: 1.443 | D4: 0.919 | E4: 1.413 | F4: 1.761 | G4: 1.482 | H4: 1.868 | I4: 2.563 | J4: 2.708 | K4: 3.069 | L4: 7.369 | M4: 10.541 | N4: 14.873 | O4: 16.861 | P4: 18.415 | Q4: 27.727 | R4: 32.248 | S4: 35.357 | T4: 42.608 | U4: 50.998 | V4: 46.391 | W4: 48.347 | X4: 55.507 | Y4: 58.06 | Z4: 65.59 | AA4: 73.882 | AB4: 78.98 | AC4: 85.583 | AD4: 90.684 | AE4: 98.154 | AF4: 98.152 | AH4: 0.373 | AI4: 0.335 | AJ4: 0.34 | AK4: 0.385 | AL4: 0.408 | AM4: 0.328 | AN4: 0.347 | AO4: 0.36 | AP4: 0.228 | AQ4: 0.221 | AR4: 0.225 | AS4: 0.207 | AT4: 0.452 | AU4: 0.452 | AV4: 0.452 | AW4: 0.057 | AX4: 0.372 | AY4: 0.382 | AZ4: 0.471 | BA4: 0.537 | BB4: 0.42 | BC4: 0.407 | BD4: 0.43 | BE4: 0.237 | BF4: 0.53 | BG4: 0.504 | BH4: 0.465 | BI4: 0.37 | BJ4: 0.534 | BK4: 0.566 | BL4: 0.618 | BM4: 0.834 | BN4: 2.312 | BO4: 1.06 | BP4: 1.11 | BQ4: -1.727 | BR4: 1.123 | BS4: 0.797 | BT4: 1.282 | BU4: -0.599 | BV4: 1.787 | BW4: 2.114 | BX4: 1.559 | BY4: 1.908 | BZ4: 2.39 | CA4: 2.396 | CB4: 3.093 | CC4: 2.661 | CD4: 2.838 | CE4: 2.872 | CF4: 3.686 | CG4: 5.47 | CH4: 3.553 | CI4: 2.647 | CJ4: 2.319 | CK4: 9.692 | CL4: 4.03 | CM4: 4.297 | CN4: 2.543 | CO4: 11.077 | CP4: 4.941 | CQ4: 6.252 | CR4: 7.916 | CS4: 8.614 | CT4: 7.453 | CU4: 7.802 | CV4: 8.311 | CW4: 8.678 | CX4: 7.638 | CY4: 7.849 | CZ4: 8.889 | DA4: 10.977 | DB4: 9.848 | DC4: 10.459 | DD4: 10.963 | DE4: 11.336 | DF4: 14.224 | DG4: 11.799 | DH4: 12.898 | DI4: 12.079 | DJ4: 10.839 | DK4: 12.952 | DL4: 12.017 | DM4: 10.582 | DN4: 9.803 | DO4: 12.72 | DP4: 12.848 | DQ4: 12.974 | DR4: 13.356 | DS4: 12.834 | DT4: 14.678 | DU4: 14.628 | DV4: 13.637 | DW4: 15.473 | DX4: 13.621 | DY4: 15.328 | DZ4: 15.404 | EA4: 15.56 | EB4: 16.564 | EC4: 18.063 | ED4: 17.798 | EE4: 18.128 | EF4: 18.876 | EG4: 19.08 | EH4: 18.431 | EI4: 20.175 | EJ4: 20.78 | EK4: 19.593 | EL4: 19.738 | EM4: 20.842 | EN4: 23.931 | EO4: 21.071 | EP4: 21.159 | EQ4: 22.004 | ER4: 23.863 | ES4: 23.655 | ET4: 26.427 | EU4: 23.316 | EV4: 24.534 | EW4: 23.875
A5: EBITDA per Share | B5: 0 | C5: 0 | D5: 0.099 | E5: 0.093 | F5: 0.096 | G5: 0.074 | H5: 0.069 | I5: 0.685 | J5: 2.189 | K5: 1.712 | L5: 2.498 | M5: 1.435 | N5: 2.945 | O5: 1.156 | P5: 3.466 | Q5: 5.65 | R5: 5.462 | S5: 6.276 | T5: 8.893 | U5: 10.557 | V5: 5.314 | W5: 7.165 | X5: 10.552 | Y5: 9.483 | Z5: 12.57 | AA5: 15.456 | AB5: 15.71 | AC5: 18.76 | AD5: 18.682 | AE5: 15.574 | AF5: 15.574 | AH5: 0 | AI5: 0 | AJ5: 0 | AK5: 0 | AL5: 0 | AM5: 0 | AN5: 0 | AO5: 0 | AP5: 0.015 | AQ5: 0.016 | AR5: 0.018 | AS5: 0.014 | AT5: 0 | AU5: 0 | AV5: 0 | AW5: 0 | AX5: 0.022 | AY5: 0 | AZ5: 0.017 | BA5: 0.019 | BB5: 0 | BC5: 0.011 | BD5: 0.012 | BE5: 0.012 | BF5: 0.014 | BG5: 0.013 | BH5: 0.013 | BI5: -0.005 | BJ5: 0.109 | BK5: 0.01 | BL5: 0.154 | BM5: 0.23 | BN5: 1.451 | BO5: 0.169 | BP5: 0.224 | BQ5: 0.303 | BR5: 0.242 | BS5: 0.241 | BT5: 0.318 | BU5: 0.833 | BV5: 0.612 | BW5: 1.002 | BX5: 0.323 | BY5: 0.483 | BZ5: 0.453 | CA5: 0.446 | CB5: 0.361 | CC5: 0.083 | CD5: 0.64 | CE5: 0.557 | CF5: 0.673 | CG5: 0.951 | CH5: 0.506 | CI5: 0 | CJ5: 0 | CK5: 0 | CL5: 0.625 | CM5: 0.694 | CN5: 0 | CO5: 0 | CP5: 1.165 | CQ5: 1.502 | CR5: 1.164 | CS5: 1.593 | CT5: 1.099 | CU5: 0.936 | CV5: 0.826 | CW5: 2.192 | CX5: 0.927 | CY5: 1.017 | CZ5: 0.445 | DA5: 3.461 | DB5: 1.72 | DC5: 1.751 | DD5: 2.059 | DE5: 2.47 | DF5: 1.96 | DG5: 2.28 | DH5: 3.157 | DI5: 2.121 | DJ5: 0.831 | DK5: 2.136 | DL5: 0.868 | DM5: 0.27 | DN5: -0.558 | DO5: 2.612 | DP5: 2.626 | DQ5: 2.482 | DR5: 2.754 | DS5: 1.892 | DT5: 2.548 | DU5: 3.362 | DV5: 1.629 | DW5: 2.857 | DX5: 2.089 | DY5: 2.908 | DZ5: 2.776 | EA5: 2.655 | EB5: 3.197 | EC5: 3.942 | ED5: 3.888 | EE5: 3.731 | EF5: 3.934 | EG5: 3.903 | EH5: 3.711 | EI5: 4.683 | EJ5: 3.824 | EK5: 3.492 | EL5: 4.217 | EM5: 3.552 | EN5: 6.867 | EO5: 4.124 | EP5: 3.957 | EQ5: 4.191 | ER5: 5.602 | ES5: 4.932 | ET5: 3.648 | EU5: 4.023 | EV5: 3.713 | EW5: 4.19
A6: EBIT per Share | B6: 0 | C6: 0 | D6: 0.066 | E6: 0.071 | F6: 0.072 | G6: 0.046 | H6: 0.034 | I6: 0.642 | J6: 2.105 | K6: 1.589 | L6: 2.356 | M6: 1.134 | N6: 2.509 | O6: 0.686 | P6: 3.113 | Q6: 5.424 | R6: 5.054 | S6: 5.851 | T6: 8 | U6: 9.519 | V6: 4.105 | W6: 5.821 | X6: 8.807 | Y6: 7.264 | Z6: 10.085 | AA6: 12.816 | AB6: 12.72 | AC6: 15.604 | AD6: 15.072 | AE6: 11.85 | AF6: 11.85 | AH6: 0 | AI6: 0 | AJ6: 0 | AK6: 0 | AL6: 0 | AM6: 0 | AN6: 0 | AO6: 0 | AP6: 0.015 | AQ6: 0.016 | AR6: 0.018 | AS6: 0.014 | AT6: 0 | AU6: 0 | AV6: 0 | AW6: 0 | AX6: 0.022 | AY6: 0 | AZ6: 0.017 | BA6: 0.019 | BB6: 0 | BC6: 0.011 | BD6: 0.012 | BE6: 0.012 | BF6: 0.014 | BG6: 0.013 | BH6: 0.013 | BI6: -0.005 | BJ6: 0.107 | BK6: 0.008 | BL6: 0.151 | BM6: 0.227 | BN6: 1.443 | BO6: 0.161 | BP6: 0.216 | BQ6: 0.294 | BR6: 0.23 | BS6: 0.23 | BT6: 0.307 | BU6: 0.822 | BV6: 0.6 | BW6: 0.989 | BX6: 0.309 | BY6: 0.463 | BZ6: 0.402 | CA6: 0.394 | CB6: 0.309 | CC6: 0.03 | CD6: 0.587 | CE6: 0.503 | CF6: 0.618 | CG6: 0.8 | CH6: 0.444 | CI6: 0 | CJ6: 0 | CK6: 0 | CL6: 0.625 | CM6: 0.694 | CN6: 0 | CO6: 0 | CP6: 1.165 | CQ6: 1.502 | CR6: 1.164 | CS6: 1.593 | CT6: 1.099 | CU6: 0.936 | CV6: 0.826 | CW6: 2.192 | CX6: 0.927 | CY6: 1.017 | CZ6: 0.445 | DA6: 3.461 | DB6: 1.72 | DC6: 1.751 | DD6: 2.059 | DE6: 2.47 | DF6: 1.96 | DG6: 2.28 | DH6: 3.157 | DI6: 2.121 | DJ6: 0.831 | DK6: 2.136 | DL6: 0.868 | DM6: 0.27 | DN6: -0.884 | DO6: 2.277 | DP6: 2.291 | DQ6: 2.133 | DR6: 2.372 | DS6: 1.447 | DT6: 2.105 | DU6: 2.888 | DV6: 1.17 | DW6: 2.396 | DX6: 1.628 | DY6: 2.071 | DZ6: 2.27 | EA6: 2.144 | EB6: 2.674 | EC6: 2.997 | ED6: 3.238 | EE6: 3.075 | EF6: 3.279 | EG6: 3.224 | EH6: 2.993 | EI6: 3.949 | EJ6: 3.071 | EK6: 2.707 | EL6: 3.458 | EM6: 2.764 | EN6: 6.06 | EO6: 3.322 | EP6: 3.095 | EQ6: 3.285 | ER6: 4.691 | ES6: 4.001 | ET6: 2.739 | EU6: 3.093 | EV6: 2.782 | EW6: 3.236
A7: Earnings per Share (Diluted) | B7: 0.232 | C7: 0.26 | D7: 0.229 | E7: 0.256 | F7: 0.237 | G7: 0.448 | H7: 0.313 | I7: 0.447 | J7: 1.377 | K7: 1.028 | L7: 1.508 | M7: 0.683 | N7: 1.457 | O7: 0.347 | P7: 1.863 | Q7: 3.539 | R7: 3.169 | S7: 3.692 | T7: 4.763 | U7: 5.699 | V7: 2.149 | W7: 3.462 | X7: 5.285 | Y7: 4.143 | Z7: 5.985 | AA7: 7.9 | AB7: 8.061 | AC7: 9.771 | AD7: 9.763 | AE7: 18.217 | AF7: 18.218 | AH7: 0.058 | AI7: 0.055 | AJ7: 0.049 | AK7: 0.071 | AL7: 0.074 | AM7: 0.051 | AN7: 0.071 | AO7: 0.065 | AP7: 0.049 | AQ7: 0.055 | AR7: 0.057 | AS7: 0.057 | AT7: 0.064 | AU7: 0.064 | AV7: 0.064 | AW7: 0.064 | AX7: 0.039 | AY7: 0.057 | AZ7: 0.022 | BA7: 0.118 | BB7: 0.017 | BC7: 0.065 | BD7: 0.013 | BE7: 0.353 | BF7: 0.075 | BG7: 0.093 | BH7: 0.06 | BI7: 0.085 | BJ7: 0.068 | BK7: 0.101 | BL7: 0.097 | BM7: 0.181 | BN7: 0.932 | BO7: 0.106 | BP7: 0.145 | BQ7: 0.199 | BR7: 0.154 | BS7: 0.151 | BT7: 0.198 | BU7: 0.525 | BV7: 0.388 | BW7: 0.631 | BX7: 0.195 | BY7: 0.293 | BZ7: 0.237 | CA7: 0.251 | CB7: 0.184 | CC7: 0.011 | CD7: 0.354 | CE7: 0.281 | CF7: 0.349 | CG7: 0.474 | CH7: 0.265 | CI7: 0.337 | CJ7: -0.297 | CK7: 0.042 | CL7: 0.399 | CM7: 0.454 | CN7: 0.496 | CO7: 0.514 | CP7: 0.751 | CQ7: 0.968 | CR7: 0.784 | CS7: 1.036 | CT7: 0.672 | CU7: 0.556 | CV7: 0.493 | CW7: 1.448 | CX7: 0.591 | CY7: 0.627 | CZ7: 0.254 | DA7: 2.221 | DB7: 1.001 | DC7: 1.015 | DD7: 1.198 | DE7: 1.549 | DF7: 1.121 | DG7: 1.345 | DH7: 1.961 | DI7: 1.269 | DJ7: 0.405 | DK7: 1.239 | DL7: 0.455 | DM7: 0.05 | DN7: -0.66 | DO7: 1.415 | DP7: 1.391 | DQ7: 1.313 | DR7: 1.515 | DS7: 0.797 | DT7: 1.209 | DU7: 1.775 | DV7: 0.611 | DW7: 1.381 | DX7: 0.92 | DY7: 1.231 | DZ7: 1.311 | EA7: 1.255 | EB7: 1.582 | EC7: 1.838 | ED7: 1.985 | EE7: 1.842 | EF7: 2.049 | EG7: 2.024 | EH7: 1.908 | EI7: 2.593 | EJ7: 1.874 | EK7: 1.687 | EL7: 2.095 | EM7: 1.628 | EN7: 3.825 | EO7: 2.222 | EP7: 2.267 | EQ7: 2.028 | ER7: 2.919 | ES7: 2.549 | ET7: 1.646 | EU7: 1.728 | EV7: 1.649 | EW7: 13.195
A8: EPS without NRI | B8: 0.232 | C8: 0.26 | D8: 0.229 | E8: 0.256 | F8: 0.237 | G8: 0.467 | H8: 0.313 | I8: 0.447 | J8: 1.377 | K8: 1.028 | L8: 1.508 | M8: 0.683 | N8: 1.457 | O8: 0.347 | P8: 1.863 | Q8: 3.539 | R8: 3.169 | S8: 3.692 | T8: 4.763 | U8: 5.699 | V8: 2.149 | W8: 3.462 | X8: 5.285 | Y8: 4.143 | Z8: 5.985 | AA8: 7.9 | AB8: 8.061 | AC8: 9.771 | AD8: 9.763 | AE8: 18.217 | AF8: 18.218 | AH8: 0.058 | AI8: 0.055 | AJ8: 0.049 | AK8: 0.071 | AL8: 0.074 | AM8: 0.051 | AN8: 0.071 | AO8: 0.065 | AP8: 0.049 | AQ8: 0.055 | AR8: 0.057 | AS8: 0.057 | AT8: 0.064 | AU8: 0.064 | AV8: 0.064 | AW8: 0.064 | AX8: 0.039 | AY8: 0.057 | AZ8: 0.022 | BA8: 0.118 | BB8: 0.049 | BC8: 0.065 | BD8: 0.013 | BE8: 0.331 | BF8: 0.075 | BG8: 0.093 | BH8: 0.06 | BI8: 0.085 | BJ8: 0.068 | BK8: 0.101 | BL8: 0.097 | BM8: 0.181 | BN8: 0.932 | BO8: 0.106 | BP8: 0.145 | BQ8: 0.199 | BR8: 0.154 | BS8: 0.151 | BT8: 0.198 | BU8: 0.525 | BV8: 0.388 | BW8: 0.631 | BX8: 0.195 | BY8: 0.293 | BZ8: 0.237 | CA8: 0.251 | CB8: 0.184 | CC8: 0.011 | CD8: 0.354 | CE8: 0.281 | CF8: 0.349 | CG8: 0.474 | CH8: 0.265 | CI8: 0.337 | CJ8: -0.297 | CK8: 0.042 | CL8: 0.399 | CM8: 0.454 | CN8: 0.496 | CO8: 0.514 | CP8: 0.751 | CQ8: 0.968 | CR8: 0.784 | CS8: 1.036 | CT8: 0.672 | CU8: 0.556 | CV8: 0.493 | CW8: 1.448 | CX8: 0.591 | CY8: 0.627 | CZ8: 0.254 | DA8: 2.221 | DB8: 1.001 | DC8: 1.015 | DD8: 1.198 | DE8: 1.549 | DF8: 1.121 | DG8: 1.345 | DH8: 1.961 | DI8: 1.269 | DJ8: 0.405 | DK8: 1.239 | DL8: 0.455 | DM8: 0.05 | DN8: -0.66 | DO8: 1.415 | DP8: 1.391 | DQ8: 1.313 | DR8: 1.515 | DS8: 0.797 | DT8: 1.209 | DU8: 1.775 | DV8: 0.611 | DW8: 1.381 | DX8: 0.92 | DY8: 1.231 | DZ8: 1.311 | EA8: 1.255 | EB8: 1.582 | EC8: 1.838 | ED8: 1.985 | EE8: 1.842 | EF8: 2.049 | EG8: 2.024 | EH8: 1.908 | EI8: 2.593 | EJ8: 1.874 | EK8: 1.687 | EL8: 2.095 | EM8: 1.628 | EN8: 3.825 | EO8: 2.222 | EP8: 2.267 | EQ8: 2.028 | ER8: 2.919 | ES8: 2.549 | ET8: 1.646 | EU8: 1.728 | EV8: 1.649 | EW8: 13.195
A9: Owner Earnings per Share (TTM) | B9: 0 | C9: 0 | D9: 0 | E9: 0 | F9: 0 | G9: 0 | H9: 0 | I9: 0 | J9: 0 | K9: 0 | L9: 0 | M9: 0 | N9: 0.494 | O9: -0.444 | P9: 0.375 | Q9: 0 | R9: 2.72 | S9: 3.12 | T9: 3.9 | U9: 5.63 | V9: 0.71 | W9: 3.72 | X9: 5.75 | Y9: 6.18 | Z9: 6.52 | AA9: 9.88 | AB9: 11.19 | AC9: 12.28 | AD9: 12.33 | AE9: 14.53 | AF9: 14.53 | AH9: 0 | AI9: 0 | AJ9: 0 | AK9: 0 | AL9: 0 | AM9: 0 | AN9: 0 | AO9: 0 | AP9: 0 | AQ9: 0 | AR9: 0 | AS9: 0 | AT9: 0 | AU9: 0 | AV9: 0 | AW9: 0 | AX9: 0 | AY9: 0 | AZ9: 0 | BA9: 0 | BB9: 0 | BC9: 0 | BD9: 0 | BE9: 0 | BF9: 0 | BG9: 0 | BH9: 0 | BI9: 0 | BJ9: 0 | BK9: 0 | BL9: 0 | BM9: 0 | BN9: 0 | BO9: 0 | BP9: 0 | BQ9: 0 | BR9: 0 | BS9: 0 | BT9: 0 | BU9: 0 | BV9: 0 | BW9: 0 | BX9: 0 | BY9: 0 | BZ9: 0 | CA9: 0 | CB9: 0 | CC9: 0 | CD9: 0 | CE9: 0 | CF9: 0 | CG9: 0.494 | CH9: 0.893 | CI9: 0.613 | CJ9: 0.395 | CK9: -0.444 | CL9: -0.079 | CM9: 0.375 | CN9: 0.375 | CO9: 0.375 | CP9: 0.616 | CQ9: 1.13 | CR9: 0 | CS9: 0 | CT9: 3.03 | CU9: 2.63 | CV9: 2.34 | CW9: 2.72 | CX9: 2.58 | CY9: 2.67 | CZ9: 2.46 | DA9: 3.12 | DB9: 3.47 | DC9: 3.8 | DD9: 4.65 | DE9: 3.9 | DF9: 4.05 | DG9: 4.69 | DH9: 6.26 | DI9: 5.63 | DJ9: 4.77 | DK9: 4.07 | DL9: 1.77 | DM9: 0.71 | DN9: 0.72 | DO9: 0.55 | DP9: 1.96 | DQ9: 3.72 | DR9: 4.87 | DS9: 5.05 | DT9: 6.02 | DU9: 5.75 | DV9: 5.11 | DW9: 6.53 | DX9: 5.82 | DY9: 6.18 | DZ9: 6.64 | EA9: 5.4 | EB9: 5.95 | EC9: 6.52 | ED9: 7.36 | EE9: 8.35 | EF9: 9.16 | EG9: 9.88 | EH9: 9.69 | EI9: 10.51 | EJ9: 11.5 | EK9: 11.19 | EL9: 10.94 | EM9: 10.48 | EN9: 12.67 | EO9: 12.28 | EP9: 13.33 | EQ9: 13.66 | ER9: 11.76 | ES9: 12.33 | ET9: 16.11 | EU9: 15.8 | EV9: 14.97 | EW9: 14.53
A10: Free Cash Flow per Share | B10: 0 | C10: 0 | D10: 0.304 | E10: 0.319 | F10: 0.51 | G10: 0.411 | H10: 0.526 | I10: 0.633 | J10: -0.395 | K10: 0.843 | L10: 0.35 | M10: 0.965 | N10: 1.29 | O10: 2.872 | P10: 4.871 | Q10: 3.585 | R10: 2.616 | S10: 3.139 | T10: 2.432 | U10: 3.095 | V10: 2.201 | W10: 4.688 | X10: 4.856 | Y10: 4.964 | Z10: 4.512 | AA10: 6.74 | AB10: 6.825 | AC10: 6.252 | AD10: 7.941 | AE10: 13.81 | AF10: 13.81 | AH10: 0 | AI10: 0 | AJ10: 0 | AK10: 0 | AL10: 0 | AM10: 0 | AN10: 0 | AO10: 0 | AP10: 0 | AQ10: 0 | AR10: 0 | AS10: 0 | AT10: 0 | AU10: 0 | AV10: 0 | AW10: 0 | AX10: 0.187 | AY10: 0.073 | AZ10: 0.205 | BA10: 0.115 | BB10: 0 | BC10: 0.01 | BD10: 0.158 | BE10: 0.126 | BF10: 0.003 | BG10: 0.11 | BH10: 0.15 | BI10: 0.263 | BJ10: 0.178 | BK10: 0.111 | BL10: 0.177 | BM10: 0.166 | BN10: 0.194 | BO10: -0.001 | BP10: 0.273 | BQ10: 0.227 | BR10: 0.265 | BS10: 0.366 | BT10: 0.372 | BU10: 0.259 | BV10: -0.017 | BW10: -0.054 | BX10: 0.078 | BY10: 0.335 | BZ10: -0.072 | CA10: -0.393 | CB10: 1.047 | CC10: 0.382 | CD10: 0.121 | CE10: 0.292 | CF10: 0.411 | CG10: 0.465 | CH10: 0.32 | CI10: 0.821 | CJ10: 0.733 | CK10: 0.995 | CL10: 1.492 | CM10: 1.443 | CN10: 1.114 | CO10: 0.822 | CP10: 1.147 | CQ10: 0.422 | CR10: 1.045 | CS10: 0.971 | CT10: 0.838 | CU10: -0.118 | CV10: 1.11 | CW10: 0.785 | CX10: 0.457 | CY10: 0.585 | CZ10: 0.95 | DA10: 1.147 | DB10: 0.697 | DC10: 0.004 | DD10: 1.349 | DE10: 0.382 | DF10: 1.468 | DG10: 0.64 | DH10: 1.1 | DI10: -0.111 | DJ10: 0.995 | DK10: 0.061 | DL10: 0.763 | DM10: 0.382 | DN10: 1.406 | DO10: 0.685 | DP10: 1.443 | DQ10: 1.154 | DR10: 0.893 | DS10: 0.81 | DT10: 2.183 | DU10: 0.961 | DV10: 0.817 | DW10: 1.827 | DX10: 1.522 | DY10: 0.798 | DZ10: 1.005 | EA10: 0.985 | EB10: 1.629 | EC10: 0.892 | ED10: 1.561 | EE10: 1.746 | EF10: 1.97 | EG10: 1.463 | EH10: 0.865 | EI10: 1.462 | EJ10: 3.346 | EK10: 1.152 | EL10: 1.021 | EM10: 1.863 | EN10: 2.128 | EO10: 1.24 | EP10: 1.87 | EQ10: 1.829 | ER10: 2.655 | ES10: 1.586 | ET10: 6.466 | EU10: 2.241 | EV10: 3.084 | EW10: 2.019
A11: Operating Cash Flow per Share | B11: 0 | C11: 0 | D11: 0.304 | E11: 0.413 | F11: 0.58 | G11: 0.411 | H11: 0.526 | I11: 0.633 | J11: 0.697 | K11: 1.263 | L11: 0.35 | M11: 0.965 | N11: 1.29 | O11: 2.872 | P11: 4.871 | Q11: 3.585 | R11: 3.17 | S11: 4.09 | T11: 4.408 | U11: 5.413 | V11: 4.843 | W11: 6.81 | X11: 7.294 | Y11: 8.274 | Z11: 8.458 | AA11: 11.237 | AB11: 12.985 | AC11: 12.776 | AD11: 13.195 | AE11: 18.556 | AF11: 18.557 | AH11: 0 | AI11: 0 | AJ11: 0 | AK11: 0 | AL11: 0 | AM11: 0 | AN11: 0 | AO11: 0 | AP11: 0 | AQ11: 0 | AR11: 0 | AS11: 0 | AT11: 0 | AU11: 0 | AV11: 0 | AW11: 0 | AX11: 0.187 | AY11: 0.073 | AZ11: 0.205 | BA11: 0.115 | BB11: 0 | BC11: 0.01 | BD11: 0.158 | BE11: 0.126 | BF11: 0.003 | BG11: 0.11 | BH11: 0.15 | BI11: 0.263 | BJ11: 0.178 | BK11: 0.111 | BL11: 0.177 | BM11: 0.166 | BN11: 0.194 | BO11: -0.001 | BP11: 0.273 | BQ11: 0.227 | BR11: 0.265 | BS11: 0.366 | BT11: 0.372 | BU11: 0.259 | BV11: -0.017 | BW11: -0.054 | BX11: 0.078 | BY11: 0.335 | BZ11: -0.072 | CA11: -0.393 | CB11: 1.047 | CC11: 0.382 | CD11: 0.121 | CE11: 0.292 | CF11: 0.411 | CG11: 0.465 | CH11: 0.32 | CI11: 0.821 | CJ11: 0.733 | CK11: 0.995 | CL11: 1.492 | CM11: 1.443 | CN11: 1.114 | CO11: 0.822 | CP11: 1.147 | CQ11: 0.422 | CR11: 1.045 | CS11: 0.971 | CT11: 0.945 | CU11: 0.009 | CV11: 1.248 | CW11: 0.968 | CX11: 0.589 | CY11: 0.751 | CZ11: 1.108 | DA11: 1.641 | DB11: 1.021 | DC11: 0.472 | DD11: 1.915 | DE11: 1 | DF11: 1.999 | DG11: 1.211 | DH11: 1.688 | DI11: 0.516 | DJ11: 1.444 | DK11: 0.705 | DL11: 1.479 | DM11: 1.215 | DN11: 1.997 | DO11: 1.227 | DP11: 1.946 | DQ11: 1.641 | DR11: 1.381 | DS11: 1.436 | DT11: 2.821 | DU11: 1.644 | DV11: 1.416 | DW11: 2.62 | DX11: 2.422 | DY11: 1.815 | DZ11: 1.878 | EA11: 1.961 | EB11: 2.684 | EC11: 1.935 | ED11: 2.457 | EE11: 2.781 | EF11: 3.174 | EG11: 2.825 | EH11: 1.998 | EI11: 2.799 | EJ11: 5.002 | EK11: 3.187 | EL11: 2.42 | EM11: 3.238 | EN11: 4.143 | EO11: 2.976 | EP11: 3.024 | EQ11: 3.168 | ER11: 3.988 | ES11: 3.016 | ET11: 7.421 | EU11: 3.374 | EV11: 4.406 | EW11: 3.356
A12: Dividends per Share | B12: 0 | C12: 0 | D12: 0 | E12: 0 | F12: 0 | G12: 0 | H12: 0 | I12: 0 | J12: 0 | K12: 0 | L12: 0 | M12: 0 | N12: 0 | O12: 0 | P12: 0 | Q12: 0 | R12: 0 | S12: 0 | T12: 0 | U12: 0 | V12: 0 | W12: 0 | X12: 0 | Y12: 0 | Z12: 0 | AA12: 0 | AB12: 0 | AC12: 0 | AD12: 0 | AE12: 0 | AF12: 0 | AH12: 0 | AI12: 0 | AJ12: 0 | AK12: 0 | AL12: 0 | AM12: 0 | AN12: 0 | AO12: 0 | AP12: 0 | AQ12: 0 | AR12: 0 | AS12: 0 | AT12: 0 | AU12: 0 | AV12: 0 | AW12: 0 | AX12: 0 | AY12: 0 | AZ12: 0 | BA12: 0 | BB12: 0 | BC12: 0 | BD12: 0 | BE12: 0 | BF12: 0 | BG12: 0 | BH12: 0 | BI12: 0 | BJ12: 0 | BK12: 0 | BL12: 0 | BM12: 0 | BN12: 0 | BO12: 0 | BP12: 0 | BQ12: 0 | BR12: 0 | BS12: 0 | BT12: 0 | BU12: 0 | BV12: 0 | BW12: 0 | BX12: 0 | BY12: 0 | BZ12: 0 | CA12: 0 | CB12: 0 | CC12: 0 | CD12: 0 | CE12: 0 | CF12: 0 | CG12: 0 | CH12: 0 | CI12: 0 | CJ12: 0 | CK12: 0 | CL12: 0 | CM12: 0 | CN12: 0 | CO12: 0 | CP12: 0 | CQ12: 0 | CR12: 0 | CS12: 0 | CT12: 0 | CU12: 0 | CV12: 0 | CW12: 0 | CX12: 0 | CY12: 0 | CZ12: 0 | DA12: 0 | DB12: 0 | DC12: 0 | DD12: 0 | DE12: 0 | DF12: 0 | DG12: 0 | DH12: 0 | DI12: 0 | DJ12: 0 | DK12: 0 | DL12: 0 | DM12: 0 | DN12: 0 | DO12: 0 | DP12: 0 | DQ12: 0 | DR12: 0 | DS12: 0 | DT12: 0 | DU12: 0 | DV12: 0 | DW12: 0 | DX12: 0 | DY12: 0 | DZ12: 0 | EA12: 0 | EB12: 0 | EC12: 0 | ED12: 0 | EE12: 0 | EF12: 0 | EG12: 0 | EH12: 0 | EI12: 0 | EJ12: 0 | EK12: 0 | EL12: 0 | EM12: 0 | EN12: 0 | EO12: 0 | EP12: 0 | EQ12: 0 | ER12: 0 | ES12: 0 | ET12: 0 | EU12: 0 | EV12: 0 | EW12: 0
A13: Book Value per Share | B13: 0 | C13: 0 | D13: 3.076 | E13: 4.293 | F13: 5.162 | G13: 5.902 | H13: 6.72 | I13: 9.346 | J13: 12.674 | K13: 16.992 | L13: 30.704 | M13: 25.324 | N13: 26.961 | O13: 25.28 | P13: 27.818 | Q13: 33.665 | R13: 37.216 | S13: 39.585 | T13: 46.854 | U13: 52.006 | V13: 47.02 | W13: 56.324 | X13: 63.635 | Y13: 66.574 | Z13: 76.142 | AA13: 89.982 | AB13: 97.457 | AC13: 103.668 | AD13: 114.361 | AE13: 141.167 | AF13: 141.167 | AH13: 0 | AI13: 0 | AJ13: 0 | AK13: 0 | AL13: 0 | AM13: 0 | AN13: 0 | AO13: 0 | AP13: 2.793 | AQ13: 3.147 | AR13: 2.796 | AS13: 3.076 | AT13: 0 | AU13: 0 | AV13: 0 | AW13: 4.293 | AX13: 4.424 | AY13: 4.66 | AZ13: 4.736 | BA13: 5.162 | BB13: 0 | BC13: 5.258 | BD13: 5.41 | BE13: 5.902 | BF13: 5.911 | BG13: 6.105 | BH13: 6.456 | BI13: 6.72 | BJ13: 7.341 | BK13: 8.209 | BL13: 9.034 | BM13: 9.346 | BN13: 9.995 | BO13: 11.018 | BP13: 11.667 | BQ13: 12.674 | BR13: 13.087 | BS13: 15.155 | BT13: 15.129 | BU13: 16.992 | BV13: 18.681 | BW13: 19.829 | BX13: 16.559 | BY13: 30.704 | BZ13: 25.398 | CA13: 25.46 | CB13: 24.256 | CC13: 25.324 | CD13: 24.676 | CE13: 25.244 | CF13: 25.962 | CG13: 26.961 | CH13: 25.497 | CI13: 25.641 | CJ13: 24.928 | CK13: 25.28 | CL13: 26.302 | CM13: 27.106 | CN13: 27.208 | CO13: 27.818 | CP13: 28.388 | CQ13: 30.657 | CR13: 31.237 | CS13: 33.665 | CT13: 34.573 | CU13: 34.869 | CV13: 34.97 | CW13: 37.216 | CX13: 37.444 | CY13: 38.136 | CZ13: 38.746 | DA13: 39.585 | DB13: 41.252 | DC13: 42.2 | DD13: 44.204 | DE13: 46.854 | DF13: 47.478 | DG13: 49.665 | DH13: 51.653 | DI13: 52.006 | DJ13: 51.384 | DK13: 50.788 | DL13: 51.705 | DM13: 47.02 | DN13: 44.113 | DO13: 72.213 | DP13: 79.513 | DQ13: 56.324 | DR13: 59.584 | DS13: 57.774 | DT13: 60.548 | DU13: 63.635 | DV13: 64.724 | DW13: 65.811 | DX13: 64.584 | DY13: 66.574 | DZ13: 71.066 | EA13: 71.585 | EB13: 74.479 | EC13: 76.142 | ED13: 80.353 | EE13: 81.933 | EF13: 84.51 | EG13: 89.982 | EH13: 92.299 | EI13: 94.989 | EJ13: 96.362 | EK13: 97.457 | EL13: 97.976 | EM13: 99.824 | EN13: 100.722 | EO13: 103.668 | EP13: 104.922 | EQ13: 106.673 | ER13: 109.188 | ES13: 114.361 | ET13: 118.717 | EU13: 121.877 | EV13: 124.957 | EW13: 141.167
A14: Tangible Book per Share | B14: 0 | C14: 0 | D14: 3.076 | E14: 4.293 | F14: 5.162 | G14: 5.902 | H14: 6.72 | I14: 8.971 | J14: 10.991 | K14: 15.335 | L14: 20.771 | M14: 17.309 | N14: 18.717 | O14: 15.941 | P14: 18.132 | Q14: 23.709 | R14: 27.246 | S14: 29.354 | T14: 32.922 | U14: 37.85 | V14: 32.483 | W14: 41.729 | X14: 43.812 | Y14: 45.084 | Z14: 54.018 | AA14: 66.863 | AB14: 69.086 | AC14: 74.518 | AD14: 68.56 | AE14: 95.052 | AF14: 95.052 | AH14: 0 | AI14: 0 | AJ14: 0 | AK14: 0 | AL14: 0 | AM14: 0 | AN14: 0 | AO14: 0 | AP14: 2.793 | AQ14: 3.147 | AR14: 2.796 | AS14: 3.076 | AT14: 0 | AU14: 0 | AV14: 0 | AW14: 4.293 | AX14: 4.424 | AY14: 4.66 | AZ14: 4.736 | BA14: 5.162 | BB14: 0 | BC14: 5.258 | BD14: 5.41 | BE14: 5.902 | BF14: 5.911 | BG14: 6.105 | BH14: 6.456 | BI14: 6.72 | BJ14: 7.341 | BK14: 8.209 | BL14: 9.034 | BM14: 8.971 | BN14: 8.74 | BO14: 9.774 | BP14: 10.414 | BQ14: 10.991 | BR14: 11.413 | BS14: 13.493 | BT14: 13.462 | BU14: 15.335 | BV14: 16.837 | BW14: 17.997 | BX14: 14.397 | BY14: 20.771 | BZ14: 17.357 | CA14: 17.401 | CB14: 16.243 | CC14: 17.309 | CD14: 16.606 | CE14: 17.229 | CF14: 17.863 | CG14: 18.717 | CH14: 16.157 | CI14: 16.366 | CJ14: 15.495 | CK14: 15.941 | CL14: 16.722 | CM14: 17.483 | CN14: 17.527 | CO14: 18.132 | CP14: 18.701 | CQ14: 20.949 | CR14: 21.366 | CS14: 23.709 | CT14: 24.617 | CU14: 24.914 | CV14: 24.989 | CW14: 27.246 | CX14: 27.479 | CY14: 28.089 | CZ14: 28.509 | DA14: 29.354 | DB14: 28.488 | DC14: 29.288 | DD14: 30.276 | DE14: 32.922 | DF14: 33.389 | DG14: 35.693 | DH14: 37.553 | DI14: 37.85 | DJ14: 36.945 | DK14: 36.358 | DL14: 37.276 | DM14: 32.483 | DN14: 29.617 | DO14: 50.824 | DP14: 58.086 | DQ14: 41.729 | DR14: 39.867 | DS14: 37.899 | DT14: 40.647 | DU14: 43.812 | DV14: 44.877 | DW14: 45.977 | DX14: 43.06 | DY14: 45.084 | DZ14: 49.598 | EA14: 50.137 | EB14: 52.635 | EC14: 54.018 | ED14: 58.282 | EE14: 59.881 | EF14: 62.312 | EG14: 66.863 | EH14: 68.672 | EI14: 71.124 | EJ14: 72.553 | EK14: 69.086 | EL14: 72.462 | EM14: 74.345 | EN14: 75.29 | EO14: 74.518 | EP14: 58.525 | EQ14: 60.294 | ER14: 62.788 | ES14: 68.56 | ET14: 72.737 | EU14: 75.911 | EV14: 78.807 | EW14: 95.052
A15: Total Debt per Share | B15: 0 | C15: 0 | D15: 0.721 | E15: 0.73 | F15: 0.754 | G15: 0.55 | H15: 0.459 | I15: 0.593 | J15: 1.052 | K15: 1.225 | L15: 1.276 | M15: 1.081 | N15: 1.163 | O15: 5.455 | P15: 4.035 | Q15: 3.956 | R15: 3.829 | S15: 6.253 | T15: 14.091 | U15: 14.571 | V15: 15.871 | W15: 16.287 | X15: 23.693 | Y15: 24.386 | Z15: 25.457 | AA15: 29.289 | AB15: 32.418 | AC15: 34.193 | AD15: 41.21 | AE15: 41.579 | AF15: 41.579 | AH15: 0 | AI15: 0 | AJ15: 0 | AK15: 0 | AL15: 0 | AM15: 0 | AN15: 0 | AO15: 0 | AP15: 0.644 | AQ15: 0.649 | AR15: 0.706 | AS15: 0.721 | AT15: 0 | AU15: 0 | AV15: 0 | AW15: 0.73 | AX15: 0.651 | AY15: 0.75 | AZ15: 0.74 | BA15: 0.754 | BB15: 0 | BC15: 0.471 | BD15: 0.494 | BE15: 0.55 | BF15: 0.512 | BG15: 0.51 | BH15: 0.455 | BI15: 0.459 | BJ15: 0.435 | BK15: 0.502 | BL15: 0.45 | BM15: 0.593 | BN15: 0.793 | BO15: 0.826 | BP15: 0.79 | BQ15: 1.052 | BR15: 1 | BS15: 1.019 | BT15: 0.99 | BU15: 1.225 | BV15: 1.215 | BW15: 1.177 | BX15: 0.959 | BY15: 1.276 | BZ15: 1.08 | CA15: 1.138 | CB15: 1.074 | CC15: 1.081 | CD15: 1.032 | CE15: 1.072 | CF15: 1.151 | CG15: 1.163 | CH15: 1.771 | CI15: 1.598 | CJ15: 1.565 | CK15: 5.455 | CL15: 1.619 | CM15: 1.778 | CN15: 3.89 | CO15: 4.035 | CP15: 3.564 | CQ15: 3.457 | CR15: 3.889 | CS15: 3.956 | CT15: 3.915 | CU15: 3.564 | CV15: 3.909 | CW15: 3.829 | CX15: 5.367 | CY15: 5.957 | CZ15: 6.128 | DA15: 6.253 | DB15: 13.186 | DC15: 13.21 | DD15: 13.39 | DE15: 14.091 | DF15: 14.267 | DG15: 14.474 | DH15: 14.959 | DI15: 14.571 | DJ15: 15.573 | DK15: 15.596 | DL15: 16.162 | DM15: 15.871 | DN15: 16.227 | DO15: 24.455 | DP15: 23.979 | DQ15: 16.287 | DR15: 23.325 | DS15: 23.46 | DT15: 23.732 | DU15: 23.693 | DV15: 22.866 | DW15: 22.898 | DX15: 24.421 | DY15: 24.386 | DZ15: 24.968 | EA15: 24.671 | EB15: 25.22 | EC15: 25.457 | ED15: 25.659 | EE15: 25.938 | EF15: 26.665 | EG15: 29.289 | EH15: 29.693 | EI15: 30.074 | EJ15: 30.359 | EK15: 32.418 | EL15: 34.002 | EM15: 34.315 | EN15: 34.446 | EO15: 34.193 | EP15: 41.188 | EQ15: 41.129 | ER15: 41.28 | ES15: 41.21 | ET15: 42.142 | EU15: 41.457 | EV15: 41.138 | EW15: 41.579
A16: Month End Stock Price | B16: 0 | C16: 0 | D16: 0 | E16: 0 | F16: 0 | G16: 0 | H16: 0 | I16: 0 | J16: 22.24 | K16: 30.78 | L16: 47 | M16: 36.6 | N16: 47.08 | O16: 50.5 | P16: 48.46 | Q16: 56.3 | R16: 58.72 | S16: 58.71 | T16: 73.32 | U16: 94.72 | V16: 64.28 | W16: 65.72 | X16: 80.11 | Y16: 76.3 | Z16: 89.7 | AA16: 118.56 | AB16: 150.15 | AC16: 132.04 | AD16: 162.98 | AE16: 198.22 | AF16: 197.96 | AH16: 0 | AI16: 0 | AJ16: 0 | AK16: 0 | AL16: 0 | AM16: 0 | AN16: 0 | AO16: 0 | AP16: 0 | AQ16: 0 | AR16: 0 | AS16: 0 | AT16: 0 | AU16: 0 | AV16: 0 | AW16: 0 | AX16: 0 | AY16: 0 | AZ16: 0 | BA16: 0 | BB16: 0 | BC16: 0 | BD16: 0 | BE16: 0 | BF16: 0 | BG16: 0 | BH16: 0 | BI16: 0 | BJ16: 0 | BK16: 0 | BL16: 0 | BM16: 0 | BN16: 0 | BO16: 20.66 | BP16: 21.46 | BQ16: 22.24 | BR16: 24.2 | BS16: 31.6 | BT16: 29.9 | BU16: 30.78 | BV16: 44.9 | BW16: 52.26 | BX16: 39.86 | BY16: 47 | BZ16: 47.02 | CA16: 44.8 | CB16: 37.12 | CC16: 36.6 | CD16: 36.4 | CE16: 35.2 | CF16: 41.4 | CG16: 47.08 | CH16: 43.52 | CI16: 46 | CJ16: 46.6 | CK16: 50.5 | CL16: 47.38 | CM16: 44.68 | CN16: 49.3 | CO16: 48.46 | CP16: 42.74 | CQ16: 48.6 | CR16: 49.92 | CS16: 56.3 | CT16: 62.22 | CU16: 59.1 | CV16: 57.42 | CW16: 58.72 | CX16: 57.12 | CY16: 55.67 | CZ16: 54.62 | DA16: 58.71 | DB16: 60.24 | DC16: 60.86 | DD16: 63.48 | DE16: 73.32 | DF16: 72.8 | DG16: 72.1 | DH16: 79.04 | DI16: 94.72 | DJ16: 89.46 | DK16: 80.24 | DL16: 87.9 | DM16: 64.28 | DN16: 56.4 | DO16: 57.91 | DP16: 66.46 | DQ16: 65.72 | DR16: 81.27 | DS16: 79.69 | DT16: 82.68 | DU16: 80.11 | DV16: 83.63 | DW16: 77.39 | DX16: 71.04 | DY16: 76.3 | DZ16: 81.15 | EA16: 83.33 | EB16: 88.2 | EC16: 89.7 | ED16: 104.2 | EE16: 111.92 | EF16: 113.51 | EG16: 118.56 | EH16: 124.97 | EI16: 126.56 | EJ16: 138.14 | EK16: 150.15 | EL16: 144.32 | EM16: 136.11 | EN16: 130.4 | EO16: 132.04 | EP16: 141.88 | EQ16: 144.79 | ER16: 144.47 | ES16: 162.98 | ET16: 166.68 | EU16: 169.37 | EV16: 183.32 | EW16: 198.22
A17: ROE % | B17: 0 | C17: 0 | D17: 14.91 | E17: 6.95 | F17: 5 | G17: 7.12 | H17: 4.96 | I17: 5.56 | J17: 12.39 | K17: 6.93 | L17: 6.37 | M17: 2.7 | N17: 5.57 | O17: 1.33 | P17: 7.03 | Q17: 11.51 | R17: 8.94 | S17: 9.62 | T17: 11.02 | U17: 11.53 | V17: 4.34 | W17: 6.7 | X17: 8.99 | Y17: 6.37 | Z17: 8.41 | AA17: 9.51 | AB17: 8.6 | AC17: 9.72 | AD17: 8.96 | AE17: 14.26 | AF17: 14.67 | AH17: 0 | AI17: 0 | AJ17: 0 | AK17: 0 | AL17: 0 | AM17: 0 | AN17: 0 | AO17: 0 | AP17: 14.08 | AQ17: 7.36 | AR17: 7.06 | AS17: 9.95 | AT17: 16.64 | AU17: 0 | AV17: 0 | AW17: 11.91 | AX17: 3.6 | AY17: 5.02 | AZ17: 1.9 | BA17: 9.56 | BB17: 2.67 | BC17: 9.85 | BD17: 0.99 | BE17: 21.17 | BF17: 5.09 | BG17: 6.2 | BH17: 3.81 | BI17: 5.14 | BJ17: 4.48 | BK17: 5.19 | BL17: 5.04 | BM17: 6.54 | BN17: 38.3 | BO17: 4.01 | BP17: 5.13 | BQ17: 6.54 | BR17: 4.77 | BS17: 4.26 | BT17: 5.24 | BU17: 13.09 | BV17: 8.72 | BW17: 13.12 | BX17: 4.3 | BY17: 5.13 | BZ17: 3.75 | CA17: 3.95 | CB17: 2.96 | CC17: 0.17 | CD17: 5.66 | CE17: 4.5 | CF17: 5.45 | CG17: 7.16 | CH17: 4.04 | CI17: 0 | CJ17: 0 | CK17: 0 | CL17: 6.19 | CM17: 6.8 | CN17: 0 | CO17: 0 | CP17: 10.7 | CQ17: 13.12 | CR17: 10.13 | CS17: 12.76 | CT17: 7.88 | CU17: 6.4 | CV17: 5.65 | CW17: 16.04 | CX17: 6.33 | CY17: 6.64 | CZ17: 2.64 | DA17: 22.67 | DB17: 9.9 | DC17: 9.73 | DD17: 11.1 | DE17: 13.61 | DF17: 9.51 | DG17: 11.08 | DH17: 15.49 | DI17: 9.8 | DJ17: 3.13 | DK17: 9.71 | DL17: 3.55 | DM17: 0.41 | DN17: -5.79 | DO17: 12.13 | DP17: 10.77 | DQ17: 9.51 | DR17: 10.44 | DS17: 5.43 | DT17: 8.18 | DU17: 11.41 | DV17: 3.81 | DW17: 8.46 | DX17: 5.64 | DY17: 7.51 | DZ17: 7.62 | EA17: 7.04 | EB17: 8.66 | EC17: 9.78 | ED17: 10.15 | EE17: 9.08 | EF17: 9.85 | EG17: 9.28 | EH17: 8.37 | EI17: 11.08 | EJ17: 7.83 | EK17: 6.96 | EL17: 8.58 | EM17: 6.59 | EN17: 15.26 | EO17: 8.7 | EP17: 8.7 | EQ17: 7.67 | ER17: 10.82 | ES17: 9.12 | ET17: 5.65 | EU17: 5.74 | EV17: 5.34 | EW17: 39.66
A18: ROE % Adjusted to Book Value | B18: 0 | C18: 0 | D18: 0 | E18: 0 | F18: 0 | G18: 0 | H18: 0 | I18: 0 | J18: 7.08 | K18: 3.83 | L18: 4.16 | M18: 1.86 | N18: 3.18 | O18: 0.67 | P18: 4.04 | Q18: 6.89 | R18: 5.66 | S18: 6.5 | T18: 7.06 | U18: 6.34 | V18: 3.17 | W18: 5.73 | X18: 7.13 | Y18: 5.54 | Z18: 7.13 | AA18: 7.2 | AB18: 5.58 | AC18: 7.65 | AD18: 6.27 | AE18: 10.19 | AF18: 10.48 | AH18: 0 | AI18: 0 | AJ18: 0 | AK18: 0 | AL18: 0 | AM18: 0 | AN18: 0 | AO18: 0 | AP18: 0 | AQ18: 0 | AR18: 0 | AS18: 0 | AT18: 0 | AU18: 0 | AV18: 0 | AW18: 0 | AX18: 0 | AY18: 0 | AZ18: 0 | BA18: 0 | BB18: 0 | BC18: 0 | BD18: 0 | BE18: 0 | BF18: 0 | BG18: 0 | BH18: 0 | BI18: 0 | BJ18: 0 | BK18: 0 | BL18: 0 | BM18: 0 | BN18: 0 | BO18: 2.13 | BP18: 2.79 | BQ18: 3.74 | BR18: 2.58 | BS18: 2.04 | BT18: 2.65 | BU18: 7.23 | BV18: 3.63 | BW18: 4.97 | BX18: 1.78 | BY18: 3.35 | BZ18: 2.03 | CA18: 2.24 | CB18: 1.93 | CC18: 0.12 | CD18: 3.82 | CE18: 3.24 | CF18: 3.43 | CG18: 4.09 | CH18: 2.36 | CI18: 0 | CJ18: 0 | CK18: 0 | CL18: 3.44 | CM18: 4.12 | CN18: 0 | CO18: 0 | CP18: 7.09 | CQ18: 8.25 | CR18: 6.33 | CS18: 7.64 | CT18: 4.38 | CU18: 3.79 | CV18: 3.45 | CW18: 10.15 | CX18: 4.14 | CY18: 4.55 | CZ18: 1.87 | DA18: 15.32 | DB18: 6.78 | DC18: 6.76 | DD18: 7.71 | DE18: 8.72 | DF18: 6.22 | DG18: 7.64 | DH18: 10.12 | DI18: 5.38 | DJ18: 1.8 | DK18: 6.15 | DL18: 2.09 | DM18: 0.3 | DN18: -4.52 | DO18: 15.16 | DP18: 12.82 | DQ18: 8.13 | DR18: 7.68 | DS18: 3.93 | DT18: 5.97 | DU18: 9.06 | DV18: 2.95 | DW18: 7.17 | DX18: 5.13 | DY18: 6.53 | DZ18: 6.68 | EA18: 6.07 | EB18: 7.34 | EC18: 8.29 | ED18: 7.81 | EE18: 6.63 | EF18: 7.35 | EG18: 7.03 | EH18: 6.2 | EI18: 8.33 | EJ18: 5.48 | EK18: 4.52 | EL18: 5.84 | EM18: 4.85 | EN18: 11.83 | EO18: 6.85 | EP18: 6.44 | EQ18: 5.64 | ER18: 8.2 | ES18: 6.38 | ET18: 4.04 | EU18: 4.13 | EV18: 3.63 | EW18: 28.33
A19: ROA % | B19: 0 | C19: 0 | D19: 7.39 | E19: 3.5 | F19: 2.59 | G19: 3.77 | H19: 2.71 | I19: 3.18 | J19: 6.9 | K19: 3.82 | L19: 3.17 | M19: 1.23 | N19: 2.49 | O19: 0.53 | P19: 2.58 | Q19: 4.66 | R19: 3.96 | S19: 4.4 | T19: 4.93 | U19: 5.07 | V19: 1.85 | W19: 2.85 | X19: 3.87 | Y19: 2.68 | Z19: 3.62 | AA19: 4.27 | AB19: 3.93 | AC19: 4.47 | AD19: 4.1 | AE19: 6.79 | AF19: 6.76 | AH19: 0 | AI19: 0 | AJ19: 0 | AK19: 0 | AL19: 0 | AM19: 0 | AN19: 0 | AO19: 0 | AP19: 7.27 | AQ19: 3.88 | AR19: 3.72 | AS19: 5.04 | AT19: 8.25 | AU19: 0 | AV19: 0 | AW19: 6.08 | AX19: 1.84 | AY19: 2.57 | AZ19: 0.97 | BA19: 4.93 | BB19: 1.4 | BC19: 5.17 | BD19: 0.52 | BE19: 11.14 | BF19: 2.72 | BG19: 3.33 | BH19: 2.08 | BI19: 2.85 | BJ19: 2.5 | BK19: 2.92 | BL19: 2.87 | BM19: 3.77 | BN19: 20.92 | BO19: 2.11 | BP19: 2.76 | BQ19: 3.53 | BR19: 2.6 | BS19: 2.35 | BT19: 2.9 | BU19: 7.29 | BV19: 4.93 | BW19: 7.52 | BX19: 2.47 | BY19: 2.57 | BZ19: 1.76 | CA19: 1.84 | CB19: 1.33 | CC19: 0.07 | CD19: 2.43 | CE19: 1.9 | CF19: 2.4 | CG19: 3.26 | CH19: 1.72 | CI19: 0 | CJ19: 0 | CK19: 0 | CL19: 2.24 | CM19: 2.52 | CN19: 0 | CO19: 0 | CP19: 4.08 | CQ19: 5.21 | CR19: 4.19 | CS19: 5.41 | CT19: 3.17 | CU19: 2.48 | CV19: 2.36 | CW19: 7.21 | CX19: 2.87 | CY19: 3 | CZ19: 1.2 | DA19: 10.39 | DB19: 4.32 | DC19: 4.06 | DD19: 4.69 | DE19: 5.87 | DF19: 4.07 | DG19: 4.7 | DH19: 6.68 | DI19: 4.29 | DJ19: 1.36 | DK19: 4.12 | DL19: 1.51 | DM19: 0.17 | DN19: -2.32 | DO19: 4.92 | DP19: 4.56 | DQ19: 4.15 | DR19: 4.45 | DS19: 2.23 | DT19: 3.35 | DU19: 4.76 | DV19: 1.61 | DW19: 3.6 | DX19: 2.37 | DY19: 3.13 | DZ19: 3.23 | EA19: 3.02 | EB19: 3.75 | EC19: 4.28 | ED19: 4.5 | EE19: 4.09 | EF19: 4.47 | EG19: 4.23 | EH19: 3.84 | EI19: 5.12 | EJ19: 3.62 | EK19: 3.19 | EL19: 3.91 | EM19: 3 | EN19: 6.94 | EO19: 3.99 | EP19: 3.93 | EQ19: 3.39 | ER19: 4.81 | ES19: 4.11 | ET19: 2.55 | EU19: 2.58 | EV19: 2.42 | EW19: 18.82
A20: ROIC % | B20: 0 | C20: 0 | D20: 0 | E20: 0 | F20: 0 | G20: 0 | H20: 0 | I20: 5.79 | J20: 12.23 | K20: 6.44 | L20: 7.14 | M20: 3.19 | N20: 6.19 | O20: 1.38 | P20: 6.84 | Q20: 14.53 | R20: 10.55 | S20: 10.86 | T20: 10.75 | U20: 12.77 | V20: 4.7 | W20: 5.98 | X20: 8.24 | Y20: 5.73 | Z20: 7.67 | AA20: 8.71 | AB20: 7.95 | AC20: 9.23 | AD20: 8.31 | AE20: 12.44 | AF20: 10.89 | AH20: 0 | AI20: 0 | AJ20: 0 | AK20: 0 | AL20: 0 | AM20: 0 | AN20: 0 | AO20: 0 | AP20: 0 | AQ20: 0 | AR20: 0 | AS20: 0 | AT20: 0 | AU20: 0 | AV20: 0 | AW20: 0 | AX20: 0 | AY20: 0 | AZ20: 0 | BA20: 0 | BB20: 0 | BC20: 0 | BD20: 0 | BE20: 0 | BF20: 0 | BG20: 0 | BH20: 0 | BI20: 0 | BJ20: 4.32 | BK20: 7.37 | BL20: 5.28 | BM20: 7.16 | BN20: 39.83 | BO20: 3.95 | BP20: 4.98 | BQ20: 6.16 | BR20: 4.52 | BS20: 4.14 | BT20: 5.02 | BU20: 12.39 | BV20: 8.22 | BW20: 13.81 | BX20: 5.02 | BY20: 6.94 | BZ20: 4.64 | CA20: 4.35 | CB20: 3.08 | CC20: 1.3 | CD20: 6 | CE20: 5.09 | CF20: 6.15 | CG20: 7.51 | CH20: 4.44 | CI20: 0 | CJ20: 0 | CK20: 0 | CL20: 5.92 | CM20: 7.38 | CN20: 0 | CO20: 0 | CP20: 11.9 | CQ20: 17.03 | CR20: 14.09 | CS20: 18.83 | CT20: 13.03 | CU20: 11.55 | CV20: 10.79 | CW20: 8.69 | CX20: 10.6 | CY20: 11.34 | CZ20: 4.52 | DA20: 17.85 | DB20: 14.21 | DC20: 12.46 | DD20: 13.95 | DE20: 0.42 | DF20: 10.8 | DG20: 12.57 | DH20: 17.35 | DI20: 10.88 | DJ20: 3.53 | DK20: 9.63 | DL20: 3.78 | DM20: 0.99 | DN20: -5.01 | DO20: 10.37 | DP20: 9.42 | DQ20: 8.52 | DR20: 15.74 | DS20: 4.63 | DT20: 7 | DU20: -6.02 | DV20: 3.54 | DW20: 7.97 | DX20: 5.28 | DY20: 6.69 | DZ20: 6.79 | EA20: 6.36 | EB20: 7.99 | EC20: 9.07 | ED20: 9.47 | EE20: 8.21 | EF20: 8.8 | EG20: 8.38 | EH20: 7.59 | EI20: 10.13 | EJ20: 7.43 | EK20: 6.61 | EL20: 7.98 | EM20: 6.17 | EN20: 14.19 | EO20: 8.34 | EP20: 7.56 | EQ20: 6.59 | ER20: 9.82 | ES20: 8.38 | ET20: 5.25 | EU20: 5.42 | EV20: 5.26 | EW20: 27.05
A21: WACC % | B21: 0 | C21: 0 | D21: 0 | E21: 0 | F21: 0 | G21: 11.67 | H21: 14.25 | I21: 11.13 | J21: 8.74 | K21: 9.66 | L21: 9.73 | M21: 12.02 | N21: 10.5 | O21: 7.4 | P21: 5.87 | Q21: 5.45 | R21: 6 | S21: 8.56 | T21: 7.2 | U21: 5.14 | V21: 5.13 | W21: 6.98 | X21: 5.51 | Y21: 4.46 | Z21: 3.29 | AA21: 6.76 | AB21: 6.24 | AC21: 6.89 | AD21: 6.53 | AE21: 7.09 | AF21: 7.83 | AH21: 0 | AI21: 0 | AJ21: 0 | AK21: 0 | AL21: 0 | AM21: 0 | AN21: 0 | AO21: 0 | AP21: 0 | AQ21: 0 | AR21: 0 | AS21: 0 | AT21: 0 | AU21: 0 | AV21: 0 | AW21: 0 | AX21: 0 | AY21: 0 | AZ21: 0 | BA21: 0 | BB21: 0 | BC21: 11.97 | BD21: 11.18 | BE21: 11.67 | BF21: 11.83 | BG21: 12.01 | BH21: 13.11 | BI21: 14.25 | BJ21: 12.93 | BK21: 11.48 | BL21: 12.14 | BM21: 11.13 | BN21: 11.52 | BO21: 10.91 | BP21: 9.73 | BQ21: 8.74 | BR21: 8.8 | BS21: 9.33 | BT21: 9.69 | BU21: 9.66 | BV21: 10.7 | BW21: 10.52 | BX21: 9.61 | BY21: 9.73 | BZ21: 9.75 | CA21: 10.25 | CB21: 11.04 | CC21: 12.02 | CD21: 13.53 | CE21: 12.9 | CF21: 11.78 | CG21: 10.5 | CH21: 9.05 | CI21: 9.33 | CJ21: 7.9 | CK21: 7.4 | CL21: 8.15 | CM21: 7.78 | CN21: 5.83 | CO21: 5.87 | CP21: 4.02 | CQ21: 4.45 | CR21: 4.96 | CS21: 5.45 | CT21: 5.31 | CU21: 5.95 | CV21: 5.71 | CW21: 6 | CX21: 6.26 | CY21: 5.36 | CZ21: 6.97 | DA21: 8.56 | DB21: 8.01 | DC21: 6.81 | DD21: 6.3 | DE21: 7.2 | DF21: 7.02 | DG21: 7.04 | DH21: 6.23 | DI21: 5.14 | DJ21: 5.04 | DK21: 6.57 | DL21: 4.81 | DM21: 5.13 | DN21: 6.28 | DO21: 6.7 | DP21: 6.61 | DQ21: 6.98 | DR21: 6.82 | DS21: 5.96 | DT21: 5.35 | DU21: 5.51 | DV21: 5.74 | DW21: 5.28 | DX21: 4.7 | DY21: 4.46 | DZ21: 3.72 | EA21: 3.23 | EB21: 3.02 | EC21: 3.29 | ED21: 4.08 | EE21: 5.17 | EF21: 6.03 | EG21: 6.76 | EH21: 6.42 | EI21: 6.09 | EJ21: 6.56 | EK21: 6.24 | EL21: 6.39 | EM21: 7.39 | EN21: 7.12 | EO21: 6.89 | EP21: 6.02 | EQ21: 5.51 | ER21: 5.42 | ES21: 6.53 | ET21: 6.47 | EU21: 6.59 | EV21: 6.4 | EW21: 7.09
A22: Effective Interest Rate on Debt % | B22: 0 | C22: 0 | D22: 18.19 | E22: 9.77 | F22: 9.75 | G22: 7.1 | H22: 6.74 | I22: 6.33 | J22: 6.65 | K22: 5.32 | L22: 4.69 | M22: 5.53 | N22: 5.62 | O22: 2.76 | P22: 6.65 | Q22: 5.13 | R22: 8.03 | S22: 6.21 | T22: 7.33 | U22: 5.75 | V22: 5.55 | W22: 5.33 | X22: 5.3 | Y22: 4.48 | Z22: 4.46 | AA22: 4.15 | AB22: 4.28 | AC22: 4.28 | AD22: 3.76 | AE22: 5.28 | AF22: 5.27 | AH22: 0 | AI22: 0 | AJ22: 0 | AK22: 0 | AL22: 0 | AM22: 0 | AN22: 0 | AO22: 0 | AP22: 18.71 | AQ22: 10.15 | AR22: 9.65 | AS22: 9.98 | AT22: 0 | AU22: 0 | AV22: 0 | AW22: 0 | AX22: 12.61 | AY22: 0 | AZ22: 9.37 | BA22: 10.11 | BB22: 0 | BC22: 18.17 | BD22: 10.07 | BE22: 10.16 | BF22: 10.23 | BG22: 10.42 | BH22: 10.37 | BI22: -4.66 | BJ22: 6.69 | BK22: 6.43 | BL22: 6.57 | BM22: 8.01 | BN22: 8.42 | BO22: 7.33 | BP22: 7.22 | BQ22: 4.81 | BR22: 5.91 | BS22: 5.79 | BT22: 6.24 | BU22: 5.46 | BV22: 4.77 | BW22: 4.85 | BX22: 5.62 | BY22: 5.17 | BZ22: 5.45 | CA22: 5.06 | CB22: 5.55 | CC22: 5.54 | CD22: 5.48 | CE22: 5.67 | CF22: 5.98 | CG22: 5.89 | CH22: 7.14 | CI22: 5.91 | CJ22: 28.04 | CK22: -25.26 | CL22: 2.27 | CM22: 5.02 | CN22: 10.8 | CO22: 7.89 | CP22: 6.04 | CQ22: 6.14 | CR22: 4.63 | CS22: 5.22 | CT22: 10.27 | CU22: 11.36 | CV22: 5.2 | CW22: 5.87 | CX22: 6.26 | CY22: 5.97 | CZ22: 5.53 | DA22: 4.73 | DB22: 6.45 | DC22: 5.85 | DD22: 6.02 | DE22: 5.7 | DF22: 5.64 | DG22: 5.63 | DH22: 5.63 | DI22: 5.8 | DJ22: 5.44 | DK22: 5.45 | DL22: 5.57 | DM22: 5.16 | DN22: 5.23 | DO22: 5.33 | DP22: 5.15 | DQ22: 5.27 | DR22: 4.97 | DS22: 4.41 | DT22: 4.58 | DU22: 4.5 | DV22: 4.57 | DW22: 4.68 | DX22: 4.57 | DY22: 4.47 | DZ22: 4.52 | EA22: 4.53 | EB22: 4.48 | EC22: 4.25 | ED22: 4.36 | EE22: 4.35 | EF22: 4.35 | EG22: 4.16 | EH22: 4.3 | EI22: 4.47 | EJ22: 4.39 | EK22: 4.29 | EL22: 4.28 | EM22: 4.59 | EN22: 4.08 | EO22: 3.82 | EP22: 5.05 | EQ22: 2.87 | ER22: 4.11 | ES22: 2.18 | ET22: 4.15 | EU22: 5.82 | EV22: 4.84 | EW22: 6.25
A23: Net Interest Margin (Bank Only) % | B23: 0 | C23: 0 | D23: 0 | E23: 0 | F23: 0 | G23: 0 | H23: 0 | I23: 0 | J23: 0 | K23: 0 | L23: 0 | M23: 0 | N23: 0 | O23: 0 | P23: 0 | Q23: 0 | R23: 0 | S23: 0 | T23: 0 | U23: 0 | V23: 0 | W23: 0 | X23: 0 | Y23: 0 | Z23: 0 | AA23: 0 | AB23: 0 | AC23: 0 | AD23: 0 | AE23: 0 | AH23: 0 | AI23: 0 | AJ23: 0 | AK23: 0 | AL23: 0 | AM23: 0 | AN23: 0 | AO23: 0 | AP23: 0 | AQ23: 0 | AR23: 0 | AS23: 0 | AT23: 0 | AU23: 0 | AV23: 0 | AW23: 0 | AX23: 0 | AY23: 0 | AZ23: 0 | BA23: 0 | BB23: 0 | BC23: 0 | BD23: 0 | BE23: 0 | BF23: 0 | BG23: 0 | BH23: 0 | BI23: 0 | BJ23: 0 | BK23: 0 | BL23: 0 | BM23: 0 | BN23: 0 | BO23: 0 | BP23: 0 | BQ23: 0 | BR23: 0 | BS23: 0 | BT23: 0 | BU23: 0 | BV23: 0 | BW23: 0 | BX23: 0 | BY23: 0 | BZ23: 0 | CA23: 0 | CB23: 0 | CC23: 0 | CD23: 0 | CE23: 0 | CF23: 0 | CG23: 0 | CH23: 0 | CI23: 0 | CJ23: 0 | CK23: 0 | CL23: 0 | CM23: 0 | CN23: 0 | CO23: 0 | CP23: 0 | CQ23: 0 | CR23: 0 | CS23: 0 | CT23: 0 | CU23: 0 | CV23: 0 | CW23: 0 | CX23: 0 | CY23: 0 | CZ23: 0 | DA23: 0 | DB23: 0 | DC23: 0 | DD23: 0 | DE23: 0 | DF23: 0 | DG23: 0 | DH23: 0 | DI23: 0 | DJ23: 0 | DK23: 0 | DL23: 0 | DM23: 0 | DN23: 0 | DO23: 0 | DP23: 0 | DQ23: 0 | DR23: 0 | DS23: 0 | DT23: 0 | DU23: 0 | DV23: 0 | DW23: 0 | DX23: 0 | DY23: 0 | DZ23: 0 | EA23: 0 | EB23: 0 | EC23: 0 | ED23: 0 | EE23: 0 | EF23: 0 | EG23: 0 | EH23: 0 | EI23: 0 | EJ23: 0 | EK23: 0 | EL23: 0 | EM23: 0 | EN23: 0 | EO23: 0 | EP23: 0 | EQ23: 0 | ER23: 0 | ES23: 0 | ET23: 0 | EU23: 0 | EV23: 0 | EW23: 0
A24: Operating Margin % | B24: 0 | C24: 0 | D24: 0 | E24: 0 | F24: 0 | G24: 0 | H24: 0 | I24: 23.76 | J24: 75.69 | K24: 49.81 | L24: 31.98 | M24: 10.75 | N24: 16.87 | O24: 4.35 | P24: 16.16 | Q24: 18.89 | R24: 10.91 | S24: 11.25 | T24: 13.13 | U24: 17.05 | V24: 7.03 | W24: 10.27 | X24: 13.99 | Y24: 10.66 | Z24: 13.69 | AA24: 15.81 | AB24: 14.45 | AC24: 16.62 | AD24: 14.64 | AE24: 8.63 | AF24: 8.63 | AH24: 0 | AI24: 0 | AJ24: 0 | AK24: 0 | AL24: 0 | AM24: 0 | AN24: 0 | AO24: 0 | AP24: 0 | AQ24: 0 | AR24: 0 | AS24: 0 | AT24: 0 | AU24: 0 | AV24: 0 | AW24: 0 | AX24: 0 | AY24: 0 | AZ24: 0 | BA24: 0 | BB24: 0 | BC24: 0 | BD24: 0 | BE24: 0 | BF24: 0 | BG24: 0 | BH24: 0 | BI24: 0 | BJ24: 18.63 | BK24: 26.24 | BL24: 23.17 | BM24: 26 | BN24: 61.76 | BO24: 13.76 | BP24: 18.16 | BQ24: -16.38 | BR24: 19.18 | BS24: 27 | BT24: 22.71 | BU24: -134.59 | BV24: 32.75 | BW24: 46.11 | BX24: 18.84 | BY24: 26.52 | BZ24: 16.2 | CA24: 15.84 | CB24: 9.49 | CC24: 2.77 | CD24: 20.67 | CE24: 17.52 | CF24: 16.78 | CG24: 14.62 | CH24: 12.5 | CI24: 0 | CJ24: 0 | CK24: 0 | CL24: 15.52 | CM24: 16.14 | CN24: 0 | CO24: 0 | CP24: 22.45 | CQ24: 23.4 | CR24: 14.09 | CS24: 17.99 | CT24: 13.94 | CU24: 11.6 | CV24: 10.66 | CW24: 7.92 | CX24: 11.33 | CY24: 12.41 | CZ24: 4.32 | DA24: 15.98 | DB24: 17.46 | DC24: 16.74 | DD24: 18.79 | DE24: 0.56 | DF24: 12.37 | DG24: 17.61 | DH24: 22.87 | DI24: 15.78 | DJ24: 5.77 | DK24: 14.86 | DL24: 5.38 | DM24: 0.6 | DN24: -11.16 | DO24: 16.18 | DP24: 16.18 | DQ24: 14.79 | DR24: 15.91 | DS24: 9.27 | DT24: 12.5 | DU24: 17.92 | DV24: 6.63 | DW24: 13.76 | DX24: 9.97 | DY24: 11.73 | DZ24: 12.93 | EA24: 11.97 | EB24: 14.46 | EC24: 15.1 | ED24: 16.63 | EE24: 15.42 | EF24: 15.85 | EG24: 15.37 | EH24: 14.52 | EI24: 17.92 | EJ24: 13.18 | EK24: 12.15 | EL24: 15.72 | EM24: 11.38 | EN24: 23.86 | EO24: 14.44 | EP24: 11.92 | EQ24: 13.21 | ER24: 17.5 | ES24: 15.53 | ET24: 8.36 | EU24: 10.12 | EV24: 8.89 | EW24: 7.22
A25: Net Margin % | B25: 16.2 | C25: 18.02 | D25: 24.94 | E25: 18.12 | F25: 13.45 | G25: 26.27 | H25: 16.76 | I25: 17.42 | J25: 50.83 | K25: 33.5 | L25: 20.46 | M25: 6.48 | N25: 9.8 | O25: 2.06 | P25: 10.12 | Q25: 12.76 | R25: 9.82 | S25: 10.44 | T25: 11.18 | U25: 11.17 | V25: 4.63 | W25: 7.16 | X25: 9.52 | Y25: 7.14 | Z25: 9.12 | AA25: 10.69 | AB25: 10.21 | AC25: 11.42 | AD25: 10.77 | AE25: 18.56 | AF25: 18.56 | AH25: 15.44 | AI25: 16.38 | AJ25: 14.47 | AK25: 18.3 | AL25: 18.11 | AM25: 15.49 | AN25: 20.38 | AO25: 17.94 | AP25: 21.56 | AQ25: 24.73 | AR25: 25.45 | AS25: 27.67 | AT25: 14.17 | AU25: 14.17 | AV25: 14.17 | AW25: 112.14 | AX25: 10.54 | AY25: 14.92 | AZ25: 4.73 | BA25: 22.04 | BB25: 4.09 | BC25: 15.92 | BD25: 3.06 | BE25: 117.53 | BF25: 14.2 | BG25: 18.48 | BH25: 12.89 | BI25: 22.92 | BJ25: 14.75 | BK25: 17.87 | BL25: 17.57 | BM25: 18.02 | BN25: 40.31 | BO25: 9.99 | BP25: 13.1 | BQ25: -11.49 | BR25: 13.69 | BS25: 18.86 | BT25: 15.47 | BU25: -87.7 | BV25: 21.71 | BW25: 29.88 | BX25: 12.55 | BY25: 15.48 | BZ25: 9.93 | CA25: 10.47 | CB25: 5.96 | CC25: 0.4 | CD25: 12.47 | CE25: 9.77 | CF25: 9.46 | CG25: 8.66 | CH25: 7.45 | CI25: 0 | CJ25: 0 | CK25: 0 | CL25: 9.9 | CM25: 10.57 | CN25: 0 | CO25: 0 | CP25: 15.21 | CQ25: 15.48 | CR25: 9.91 | CS25: 12.02 | CT25: 9.02 | CU25: 7.12 | CV25: 5.93 | CW25: 16.67 | CX25: 7.73 | CY25: 7.99 | CZ25: 2.85 | DA25: 20.22 | DB25: 10.16 | DC25: 9.7 | DD25: 10.93 | DE25: 13.66 | DF25: 7.88 | DG25: 11.4 | DH25: 15.21 | DI25: 10.51 | DJ25: 3.73 | DK25: 9.57 | DL25: 3.79 | DM25: 0.48 | DN25: -6.73 | DO25: 11.13 | DP25: 10.83 | DQ25: 10.12 | DR25: 11.34 | DS25: 6.21 | DT25: 8.24 | DU25: 12.1 | DV25: 4.48 | DW25: 8.93 | DX25: 6.75 | DY25: 8.03 | DZ25: 8.51 | EA25: 8.06 | EB25: 9.55 | EC25: 10.18 | ED25: 11.15 | EE25: 10.16 | EF25: 10.86 | EG25: 10.61 | EH25: 10.35 | EI25: 12.85 | EJ25: 9.02 | EK25: 8.61 | EL25: 10.62 | EM25: 7.81 | EN25: 15.98 | EO25: 10.55 | EP25: 10.71 | EQ25: 9.22 | ER25: 12.23 | ES25: 10.77 | ET25: 6.23 | EU25: 7.41 | EV25: 6.72 | EW25: 55.26
A26: FCF Margin % | B26: 0 | C26: 0 | D26: 33.07 | E26: 22.58 | F26: 28.96 | G26: 27.73 | H26: 28.15 | I26: 24.72 | J26: -14.6 | K26: 27.48 | L26: 4.75 | M26: 9.16 | N26: 8.67 | O26: 17.03 | P26: 26.45 | Q26: 12.93 | R26: 8.11 | S26: 8.88 | T26: 5.71 | U26: 6.07 | V26: 4.74 | W26: 9.7 | X26: 8.75 | Y26: 8.55 | Z26: 6.88 | AA26: 9.12 | AB26: 8.64 | AC26: 7.3 | AD26: 8.76 | AE26: 14.07 | AF26: 14.07 | AH26: 0 | AI26: 0 | AJ26: 0 | AK26: 0 | AL26: 0 | AM26: 0 | AN26: 0 | AO26: 0 | AP26: 0 | AQ26: 0 | AR26: 0 | AS26: 0 | AT26: 0 | AU26: 0 | AV26: 0 | AW26: 0 | AX26: 50.19 | AY26: 19.09 | AZ26: 43.6 | BA26: 21.43 | BB26: 0 | BC26: 2.52 | BD26: 36.68 | BE26: 53.36 | BF26: 0.53 | BG26: 21.85 | BH26: 32.19 | BI26: 71.29 | BJ26: 33.35 | BK26: 19.65 | BL26: 28.68 | BM26: 19.95 | BN26: 8.4 | BO26: -0.08 | BP26: 24.63 | BQ26: -13.16 | BR26: 23.61 | BS26: 45.93 | BT26: 28.99 | BU26: -43.28 | BV26: -0.93 | BW26: -2.54 | BX26: 4.98 | BY26: 17.56 | BZ26: -3.03 | CA26: -16.39 | CB26: 33.87 | CC26: 14.37 | CD26: 4.26 | CE26: 10.18 | CF26: 11.16 | CG26: 8.5 | CH26: 9.01 | CI26: 31.03 | CJ26: 31.63 | CK26: 10.26 | CL26: 37.03 | CM26: 33.57 | CN26: 43.81 | CO26: 7.42 | CP26: 23.22 | CQ26: 6.75 | CR26: 13.2 | CS26: 11.27 | CT26: 11.24 | CU26: -1.51 | CV26: 13.36 | CW26: 9.05 | CX26: 5.99 | CY26: 7.45 | CZ26: 10.69 | DA26: 10.45 | DB26: 7.08 | DC26: 0.04 | DD26: 12.3 | DE26: 3.37 | DF26: 10.32 | DG26: 5.42 | DH26: 8.53 | DI26: -0.92 | DJ26: 9.18 | DK26: 0.47 | DL26: 6.35 | DM26: 3.61 | DN26: 14.35 | DO26: 5.39 | DP26: 11.23 | DQ26: 8.89 | DR26: 6.69 | DS26: 6.31 | DT26: 14.88 | DU26: 6.57 | DV26: 5.99 | DW26: 11.81 | DX26: 11.17 | DY26: 5.21 | DZ26: 6.53 | EA26: 6.33 | EB26: 9.83 | EC26: 4.94 | ED26: 8.77 | EE26: 9.63 | EF26: 10.44 | EG26: 7.67 | EH26: 4.69 | EI26: 7.25 | EJ26: 16.1 | EK26: 5.88 | EL26: 5.17 | EM26: 8.94 | EN26: 8.89 | EO26: 5.89 | EP26: 8.84 | EQ26: 8.31 | ER26: 11.13 | ES26: 6.71 | ET26: 24.47 | EU26: 9.61 | EV26: 12.57 | EW26: 8.46
A27: Debt-to-Equity | B27: - | C27: - | D27: 0.234 | E27: 0.17 | F27: 0.146 | G27: 0.093 | H27: 0.068 | I27: 0.063 | J27: 0.083 | K27: 0.072 | L27: 0.042 | M27: 0.043 | N27: 0.043 | O27: 0.216 | P27: 0.145 | Q27: 0.118 | R27: 0.103 | S27: 0.158 | T27: 0.301 | U27: 0.28 | V27: 0.338 | W27: 0.289 | X27: 0.372 | Y27: 0.366 | Z27: 0.334 | AA27: 0.325 | AB27: 0.333 | AC27: 0.33 | AD27: 0.36 | AE27: 0.295 | AF27: 0.295 | AH27: - | AI27: - | AJ27: - | AK27: - | AL27: - | AM27: - | AN27: - | AO27: - | AP27: 0.231 | AQ27: 0.206 | AR27: 0.253 | AS27: 0.234 | AT27: - | AU27: - | AV27: - | AW27: 0.17 | AX27: 0.147 | AY27: 0.161 | AZ27: 0.156 | BA27: 0.146 | BB27: - | BC27: 0.09 | BD27: 0.091 | BE27: 0.093 | BF27: 0.087 | BG27: 0.084 | BH27: 0.071 | BI27: 0.068 | BJ27: 0.059 | BK27: 0.061 | BL27: 0.05 | BM27: 0.063 | BN27: 0.079 | BO27: 0.075 | BP27: 0.068 | BQ27: 0.083 | BR27: 0.076 | BS27: 0.067 | BT27: 0.065 | BU27: 0.072 | BV27: 0.065 | BW27: 0.059 | BX27: 0.058 | BY27: 0.042 | BZ27: 0.043 | CA27: 0.045 | CB27: 0.044 | CC27: 0.043 | CD27: 0.042 | CE27: 0.042 | CF27: 0.044 | CG27: 0.043 | CH27: 0.069 | CI27: 0.062 | CJ27: 0.063 | CK27: 0.216 | CL27: 0.062 | CM27: 0.066 | CN27: 0.143 | CO27: 0.145 | CP27: 0.126 | CQ27: 0.113 | CR27: 0.124 | CS27: 0.118 | CT27: 0.113 | CU27: 0.102 | CV27: 0.112 | CW27: 0.103 | CX27: 0.143 | CY27: 0.156 | CZ27: 0.158 | DA27: 0.158 | DB27: 0.32 | DC27: 0.313 | DD27: 0.303 | DE27: 0.301 | DF27: 0.301 | DG27: 0.291 | DH27: 0.29 | DI27: 0.28 | DJ27: 0.303 | DK27: 0.307 | DL27: 0.313 | DM27: 0.338 | DN27: 0.368 | DO27: 0.339 | DP27: 0.302 | DQ27: 0.289 | DR27: 0.391 | DS27: 0.406 | DT27: 0.392 | DU27: 0.372 | DV27: 0.353 | DW27: 0.348 | DX27: 0.378 | DY27: 0.366 | DZ27: 0.351 | EA27: 0.345 | EB27: 0.339 | EC27: 0.334 | ED27: 0.319 | EE27: 0.317 | EF27: 0.316 | EG27: 0.325 | EH27: 0.322 | EI27: 0.317 | EJ27: 0.315 | EK27: 0.333 | EL27: 0.347 | EM27: 0.344 | EN27: 0.342 | EO27: 0.33 | EP27: 0.393 | EQ27: 0.386 | ER27: 0.378 | ES27: 0.36 | ET27: 0.355 | EU27: 0.34 | EV27: 0.329 | EW27: 0.295
A28: Equity-to-Asset | B28: 0 | C28: 0 | D28: 0.496 | E28: 0.51 | F28: 0.525 | G28: 0.534 | H28: 0.557 | I28: 0.583 | J28: 0.54 | K28: 0.561 | L28: 0.47 | M28: 0.44 | N28: 0.455 | O28: 0.356 | P28: 0.378 | Q28: 0.43 | R28: 0.455 | S28: 0.461 | T28: 0.436 | U28: 0.442 | V28: 0.409 | W28: 0.441 | X28: 0.423 | Y28: 0.42 | Z28: 0.439 | AA28: 0.458 | AB28: 0.457 | AC28: 0.463 | AD28: 0.454 | AE28: 0.496 | AF28: 0.496 | AH28: 0 | AI28: 0 | AJ28: 0 | AK28: 0 | AL28: 0 | AM28: 0 | AN28: 0 | AO28: 0 | AP28: 0.517 | AQ28: 0.535 | AR28: 0.519 | AS28: 0.496 | AT28: 0 | AU28: 0 | AV28: 0 | AW28: 0.51 | AX28: 0.51 | AY28: 0.512 | AZ28: 0.507 | BA28: 0.525 | BB28: 0 | BC28: 0.525 | BD28: 0.517 | BE28: 0.534 | BF28: 0.533 | BG28: 0.54 | BH28: 0.55 | BI28: 0.557 | BJ28: 0.557 | BK28: 0.568 | BL28: 0.57 | BM28: 0.583 | BN28: 0.516 | BO28: 0.535 | BP28: 0.54 | BQ28: 0.54 | BR28: 0.548 | BS28: 0.554 | BT28: 0.553 | BU28: 0.561 | BV28: 0.569 | BW28: 0.577 | BX28: 0.572 | BY28: 0.47 | BZ28: 0.468 | CA28: 0.464 | CB28: 0.437 | CC28: 0.44 | CD28: 0.419 | CE28: 0.427 | CF28: 0.455 | CG28: 0.455 | CH28: 0.398 | CI28: 0.395 | CJ28: 0.369 | CK28: 0.356 | CL28: 0.367 | CM28: 0.372 | CN28: 0.373 | CO28: 0.378 | CP28: 0.385 | CQ28: 0.408 | CR28: 0.418 | CS28: 0.43 | CT28: 0.378 | CU28: 0.395 | CV28: 0.444 | CW28: 0.455 | CX28: 0.452 | CY28: 0.452 | CZ28: 0.455 | DA28: 0.461 | DB28: 0.414 | DC28: 0.42 | DD28: 0.426 | DE28: 0.436 | DF28: 0.42 | DG28: 0.428 | DH28: 0.434 | DI28: 0.442 | DJ28: 0.425 | DK28: 0.425 | DL28: 0.426 | DM28: 0.409 | DN28: 0.395 | DO28: 0.415 | DP28: 0.432 | DQ28: 0.441 | DR28: 0.413 | DS28: 0.409 | DT28: 0.411 | DU28: 0.423 | DV28: 0.425 | DW28: 0.426 | DX28: 0.415 | DY28: 0.42 | DZ28: 0.428 | EA28: 0.431 | EB28: 0.435 | EC28: 0.439 | ED28: 0.448 | EE28: 0.452 | EF28: 0.455 | EG28: 0.458 | EH28: 0.46 | EI28: 0.464 | EJ28: 0.459 | EK28: 0.457 | EL28: 0.455 | EM28: 0.455 | EN28: 0.455 | EO28: 0.463 | EP28: 0.441 | EQ28: 0.444 | ER28: 0.446 | ES28: 0.454 | ET28: 0.447 | EU28: 0.452 | EV28: 0.452 | EW28: 0.496
A29: Debt-to-Asset | B29: 0 | C29: 0 | D29: 0.116 | E29: 0.087 | F29: 0.077 | G29: 0.05 | H29: 0.038 | I29: 0.037 | J29: 0.045 | K29: 0.04 | L29: 0.02 | M29: 0.019 | N29: 0.02 | O29: 0.077 | P29: 0.055 | Q29: 0.051 | R29: 0.047 | S29: 0.073 | T29: 0.131 | U29: 0.124 | V29: 0.138 | W29: 0.128 | X29: 0.157 | Y29: 0.154 | Z29: 0.147 | AA29: 0.149 | AB29: 0.152 | AC29: 0.153 | AD29: 0.164 | AE29: 0.146 | AF29: 0.146 | AH29: 0 | AI29: 0 | AJ29: 0 | AK29: 0 | AL29: 0 | AM29: 0 | AN29: 0 | AO29: 0 | AP29: 0.119 | AQ29: 0.11 | AR29: 0.131 | AS29: 0.116 | AT29: 0 | AU29: 0 | AV29: 0 | AW29: 0.087 | AX29: 0.075 | AY29: 0.082 | AZ29: 0.079 | BA29: 0.077 | BB29: 0 | BC29: 0.047 | BD29: 0.047 | BE29: 0.05 | BF29: 0.046 | BG29: 0.045 | BH29: 0.039 | BI29: 0.038 | BJ29: 0.033 | BK29: 0.035 | BL29: 0.028 | BM29: 0.037 | BN29: 0.041 | BO29: 0.04 | BP29: 0.037 | BQ29: 0.045 | BR29: 0.042 | BS29: 0.037 | BT29: 0.036 | BU29: 0.04 | BV29: 0.037 | BW29: 0.034 | BX29: 0.033 | BY29: 0.02 | BZ29: 0.02 | CA29: 0.021 | CB29: 0.019 | CC29: 0.019 | CD29: 0.018 | CE29: 0.018 | CF29: 0.02 | CG29: 0.02 | CH29: 0.028 | CI29: 0.025 | CJ29: 0.023 | CK29: 0.077 | CL29: 0.023 | CM29: 0.024 | CN29: 0.053 | CO29: 0.055 | CP29: 0.048 | CQ29: 0.046 | CR29: 0.052 | CS29: 0.051 | CT29: 0.043 | CU29: 0.04 | CV29: 0.05 | CW29: 0.047 | CX29: 0.065 | CY29: 0.071 | CZ29: 0.072 | DA29: 0.073 | DB29: 0.132 | DC29: 0.132 | DD29: 0.129 | DE29: 0.131 | DF29: 0.126 | DG29: 0.125 | DH29: 0.126 | DI29: 0.124 | DJ29: 0.129 | DK29: 0.13 | DL29: 0.133 | DM29: 0.138 | DN29: 0.145 | DO29: 0.141 | DP29: 0.13 | DQ29: 0.128 | DR29: 0.162 | DS29: 0.166 | DT29: 0.161 | DU29: 0.157 | DV29: 0.15 | DW29: 0.148 | DX29: 0.157 | DY29: 0.154 | DZ29: 0.15 | EA29: 0.149 | EB29: 0.147 | EC29: 0.147 | ED29: 0.143 | EE29: 0.143 | EF29: 0.144 | EG29: 0.149 | EH29: 0.148 | EI29: 0.147 | EJ29: 0.145 | EK29: 0.152 | EL29: 0.158 | EM29: 0.156 | EN29: 0.156 | EO29: 0.153 | EP29: 0.173 | EQ29: 0.171 | ER29: 0.169 | ES29: 0.164 | ET29: 0.159 | EU29: 0.154 | EV29: 0.149 | EW29: 0.146
A30: Asset Turnover | B30: 0 | C30: 0 | D30: 0.296 | E30: 0.193 | F30: 0.193 | G30: 0.144 | H30: 0.162 | I30: 0.182 | J30: 0.136 | K30: 0.114 | L30: 0.155 | M30: 0.189 | N30: 0.254 | O30: 0.259 | P30: 0.255 | Q30: 0.365 | R30: 0.403 | S30: 0.422 | T30: 0.441 | U30: 0.453 | V30: 0.399 | W30: 0.399 | X30: 0.407 | Y30: 0.376 | Z30: 0.396 | AA30: 0.399 | AB30: 0.385 | AC30: 0.391 | AD30: 0.381 | AE30: 0.366 | AF30: 0.36 | AH30: 0 | AI30: 0 | AJ30: 0 | AK30: 0 | AL30: 0 | AM30: 0 | AN30: 0 | AO30: 0 | AP30: 0.084 | AQ30: 0.039 | AR30: 0.037 | AS30: 0.045 | AT30: 0.146 | AU30: 0 | AV30: 0 | AW30: 0.014 | AX30: 0.044 | AY30: 0.043 | AZ30: 0.051 | BA30: 0.056 | BB30: 0.086 | BC30: 0.081 | BD30: 0.042 | BE30: 0.024 | BF30: 0.048 | BG30: 0.045 | BH30: 0.04 | BI30: 0.031 | BJ30: 0.042 | BK30: 0.041 | BL30: 0.041 | BM30: 0.052 | BN30: 0.13 | BO30: 0.053 | BP30: 0.053 | BQ30: -0.077 | BR30: 0.047 | BS30: 0.031 | BT30: 0.047 | BU30: -0.021 | BV30: 0.057 | BW30: 0.063 | BX30: 0.049 | BY30: 0.042 | BZ30: 0.044 | CA30: 0.044 | CB30: 0.056 | CC30: 0.047 | CD30: 0.049 | CE30: 0.049 | CF30: 0.064 | CG30: 0.094 | CH30: 0.058 | CI30: 0.041 | CJ30: 0.035 | CK30: 0.14 | CL30: 0.057 | CM30: 0.06 | CN30: 0.035 | CO30: 0.151 | CP30: 0.067 | CQ30: 0.084 | CR30: 0.106 | CS30: 0.113 | CT30: 0.088 | CU30: 0.087 | CV30: 0.1 | CW30: 0.108 | CX30: 0.093 | CY30: 0.094 | CZ30: 0.105 | DA30: 0.128 | DB30: 0.106 | DC30: 0.105 | DD30: 0.107 | DE30: 0.107 | DF30: 0.129 | DG30: 0.103 | DH30: 0.11 | DI30: 0.102 | DJ30: 0.091 | DK30: 0.108 | DL30: 0.1 | DM30: 0.09 | DN30: 0.086 | DO30: 0.11 | DP30: 0.105 | DQ30: 0.103 | DR30: 0.098 | DS30: 0.09 | DT30: 0.102 | DU30: 0.098 | DV30: 0.09 | DW30: 0.101 | DX30: 0.088 | DY30: 0.098 | DZ30: 0.095 | EA30: 0.094 | EB30: 0.098 | EC30: 0.105 | ED30: 0.101 | EE30: 0.101 | EF30: 0.103 | EG30: 0.1 | EH30: 0.093 | EI30: 0.1 | EJ30: 0.1 | EK30: 0.093 | EL30: 0.092 | EM30: 0.096 | EN30: 0.109 | EO30: 0.095 | EP30: 0.092 | EQ30: 0.092 | ER30: 0.098 | ES30: 0.095 | ET30: 0.102 | EU30: 0.087 | EV30: 0.09 | EW30: 0.085
A31: Dividend Payout Ratio | B31: 0 | C31: 0 | D31: 0 | E31: 0 | F31: 0 | G31: 0 | H31: 0 | I31: 0 | J31: 0 | K31: 0 | L31: 0 | M31: 0 | N31: 0 | O31: 0 | P31: 0 | Q31: 0 | R31: 0 | S31: 0 | T31: 0 | U31: 0 | V31: 0 | W31: 0 | X31: 0 | Y31: 0 | Z31: 0 | AA31: 0 | AB31: 0 | AC31: 0 | AD31: 0 | AE31: 0 | AF31: 0 | AH31: 0 | AI31: 0 | AJ31: 0 | AK31: 0 | AL31: 0 | AM31: 0 | AN31: 0 | AO31: 0 | AP31: 0 | AQ31: 0 | AR31: 0 | AS31: 0 | AT31: 0 | AU31: 0 | AV31: 0 | AW31: 0 | AX31: 0 | AY31: 0 | AZ31: 0 | BA31: 0 | BB31: 0 | BC31: 0 | BD31: 0 | BE31: 0 | BF31: 0 | BG31: 0 | BH31: 0 | BI31: 0 | BJ31: 0 | BK31: 0 | BL31: 0 | BM31: 0 | BN31: 0 | BO31: 0 | BP31: 0 | BQ31: 0 | BR31: 0 | BS31: 0 | BT31: 0 | BU31: 0 | BV31: 0 | BW31: 0 | BX31: 0 | BY31: 0 | BZ31: 0 | CA31: 0 | CB31: 0 | CC31: 0 | CD31: 0 | CE31: 0 | CF31: 0 | CG31: 0 | CH31: 0 | CI31: 0 | CJ31: 0 | CK31: 0 | CL31: 0 | CM31: 0 | CN31: 0 | CO31: 0 | CP31: 0 | CQ31: 0 | CR31: 0 | CS31: 0 | CT31: 0 | CU31: 0 | CV31: 0 | CW31: 0 | CX31: 0 | CY31: 0 | CZ31: 0 | DA31: 0 | DB31: 0 | DC31: 0 | DD31: 0 | DE31: 0 | DF31: 0 | DG31: 0 | DH31: 0 | DI31: 0 | DJ31: 0 | DK31: 0 | DL31: 0 | DM31: 0 | DN31: 0 | DO31: 0 | DP31: 0 | DQ31: 0 | DR31: 0 | DS31: 0 | DT31: 0 | DU31: 0 | DV31: 0 | DW31: 0 | DX31: 0 | DY31: 0 | DZ31: 0 | EA31: 0 | EB31: 0 | EC31: 0 | ED31: 0 | EE31: 0 | EF31: 0 | EG31: 0 | EH31: 0 | EI31: 0 | EJ31: 0 | EK31: 0 | EL31: 0 | EM31: 0 | EN31: 0 | EO31: 0 | EP31: 0 | EQ31: 0 | ER31: 0 | ES31: 0 | ET31: 0 | EU31: 0 | EV31: 0 | EW31: 0
A32: Total Premiums Earned | B32: 0 | C32: 0 | D32: 0 | E32: 776.4 | F32: 0 | G32: 0 | H32: 0 | I32: 957.5 | J32: 4118 | K32: 4761 | L32: 5481 | M32: 14306 | N32: 19343 | O32: 17905 | P32: 19182 | Q32: 21493 | R32: 21085 | S32: 21997 | T32: 23964 | U32: 31783 | V32: 25525 | W32: 27884 | X32: 30749 | Y32: 32075 | Z32: 34545 | AA32: 36684 | AB32: 41253 | AC32: 41294 | AD32: 45881 | AE32: 60597 | AF32: 60597 | AH32: 0 | AI32: 0 | AJ32: 0 | AK32: 0 | AL32: 0 | AM32: 0 | AN32: 0 | AO32: 0 | AP32: 0 | AQ32: 0 | AR32: 0 | AS32: 0 | AT32: 0 | AU32: 0 | AV32: 0 | AW32: 0 | AX32: 0 | AY32: 0 | AZ32: 0 | BA32: 0 | BB32: 0 | BC32: 0 | BD32: 0 | BE32: 0 | BF32: 0 | BG32: 0 | BH32: 0 | BI32: 0 | BJ32: 231.4 | BK32: 174.2 | BL32: 173.8 | BM32: 378.1 | BN32: 921.9 | BO32: 1011.7 | BP32: 971.2 | BQ32: 1213.2 | BR32: 983 | BS32: 1260 | BT32: 1089 | BU32: 1429 | BV32: 1367 | BW32: 1249 | BX32: 1367 | BY32: 1498 | BZ32: 3070 | CA32: 3027 | CB32: 4603 | CC32: 3606 | CD32: 3220 | CE32: 3408 | CF32: 4872 | CG32: 7843 | CH32: 3726 | CI32: 5382 | CJ32: 4213 | CK32: 4584 | CL32: 4438 | CM32: 4417 | CN32: 4765 | CO32: 5562 | CP32: 5176 | CQ32: 5521 | CR32: 5242 | CS32: 5554 | CT32: 5002 | CU32: 5481 | CV32: 5354 | CW32: 5248 | CX32: 5331 | CY32: 5196 | CZ32: 5779 | DA32: 5691 | DB32: 5522 | DC32: 5836 | DD32: 6359 | DE32: 6247 | DF32: 13514 | DG32: 5950 | DH32: 6020 | DI32: 6299 | DJ32: 6209 | DK32: 6231 | DL32: 6465 | DM32: 6620 | DN32: 8183 | DO32: 6485 | DP32: 6595 | DQ32: 6621 | DR32: 7426 | DS32: 6864 | DT32: 9054 | DU32: 7405 | DV32: 7482 | DW32: 8949 | DX32: 7645 | DY32: 7999 | DZ32: 8065 | EA32: 8428 | EB32: 8851 | EC32: 9201 | ED32: 9377 | EE32: 8815 | EF32: 9270 | EG32: 9222 | EH32: 9416 | EI32: 9323 | EJ32: 12717 | EK32: 9797 | EL32: 9540 | EM32: 10400 | EN32: 10514 | EO32: 10840 | EP32: 11124 | EQ32: 10799 | ER32: 11364 | ES32: 12594 | ET32: 21753 | EU32: 12367 | EV32: 13349 | EW32: 13128
A33: Net Investment Income | B33: 0 | C33: 0 | D33: 0 | E33: 481.8 | F33: 0 | G33: 0 | H33: 0 | I33: 0 | J33: 778 | K33: 916 | L33: 2098 | M33: 2314 | N33: 5372 | O33: 5530 | P33: 7619 | Q33: 7289 | R33: 5853 | S33: 4253 | T33: 6816 | U33: 6607 | V33: -65 | W33: 10755 | X33: 2346 | Y33: 0 | Z33: 3425 | AA33: 0 | AB33: 0 | AC33: 0 | AD33: 0 | AE33: 0 | AF33: 0 | AH33: 0 | AI33: 0 | AJ33: 0 | AK33: 0 | AL33: 0 | AM33: 0 | AN33: 0 | AO33: 0 | AP33: 0 | AQ33: 0 | AR33: 0 | AS33: 0 | AT33: 0 | AU33: 0 | AV33: 0 | AW33: 0 | AX33: 0 | AY33: 0 | AZ33: 0 | BA33: 0 | BB33: 0 | BC33: 0 | BD33: 0 | BE33: 0 | BF33: 0 | BG33: 0 | BH33: 0 | BI33: 0 | BJ33: 0 | BK33: 0 | BL33: 0 | BM33: 0 | BN33: 0 | BO33: 0 | BP33: 0 | BQ33: 0 | BR33: 0 | BS33: 214 | BT33: 0 | BU33: 0 | BV33: 0 | BW33: 0 | BX33: 0 | BY33: 0 | BZ33: 0 | CA33: 0 | CB33: 0 | CC33: 0 | CD33: 1268 | CE33: 1298 | CF33: 1296 | CG33: 1564 | CH33: 1403 | CI33: 680 | CJ33: 1099 | CK33: 2475 | CL33: 1376 | CM33: 1366 | CN33: 1087 | CO33: 4386 | CP33: 819 | CQ33: 794 | CR33: 656 | CS33: 5020 | CT33: 651 | CU33: 673 | CV33: 1678 | CW33: 851 | CX33: 786 | CY33: 850 | CZ33: 903 | DA33: -1969 | DB33: 1031 | DC33: 1124 | DD33: 1117 | DE33: 3544 | DF33: 2661 | DG33: 2997 | DH33: 2981 | DI33: 1306 | DJ33: -19 | DK33: 2408 | DL33: 346 | DM33: -2800 | DN33: 219 | DO33: 4230 | DP33: 3513 | DQ33: 2793 | DR33: 2107 | DS33: -261 | DT33: 1488 | DU33: -988 | DV33: 1946 | DW33: 1601 | DX33: -1008 | DY33: 0 | DZ33: 896 | EA33: -1068 | EB33: -118 | EC33: 3609 | ED33: 1206 | EE33: 461 | EF33: 427 | EG33: 0 | EH33: 236 | EI33: 155 | EJ33: 0 | EK33: 0 | EL33: 0 | EM33: 0 | EN33: 0 | EO33: 0 | EP33: 0 | EQ33: 0 | ER33: 0 | ES33: 0 | ET33: 0 | EU33: 0 | EV33: 0 | EW33: 0
A34: Fees and Other Income | B34: 2464.9 | C34: 2483.9 | D34: 1580.1 | E34: 1169.3 | F34: 3029.3 | G34: 2619.2 | H34: 3300 | I34: 3605.8 | J34: 0 | K34: 0 | L34: 6253 | M34: 7408 | N34: 9261 | O34: 15158 | P34: 15552 | Q34: 35077 | R34: 47444 | S34: 55413 | T34: 67759 | U34: 79855 | V34: 82326 | W34: 73854 | X34: 103090 | Y34: 111613 | Z34: 124493 | AA34: 145466 | AB34: 153446 | AC34: 169649 | AD34: 177723 | AE34: 181540 | AF34: 181540 | AH34: 641.7 | AI34: 576.4 | AJ34: 583.9 | AK34: 662.9 | AL34: 701.7 | AM34: 564.2 | AN34: 597.1 | AO34: 620.8 | AP34: 392 | AQ34: 380.1 | AR34: 354.4 | AS34: 453.5 | AT34: 776.5 | AU34: 776.5 | AV34: 776.5 | AW34: 98 | AX34: 639.6 | AY34: 656.8 | AZ34: 809.4 | BA34: 923.5 | BB34: 725.8 | BC34: 703.7 | BD34: 744.1 | BE34: 445.5 | BF34: 935.9 | BG34: 890.5 | BH34: 820.8 | BI34: 652.7 | BJ34: 712.6 | BK34: 830.7 | BL34: 933.4 | BM34: 1115.6 | BN34: 3217.8 | BO34: 903.1 | BP34: 1044.1 | BQ34: -4387 | BR34: 1092 | BS34: 0 | BT34: 1284 | BU34: -2538 | BV34: 1958 | BW34: 2687 | BX34: 1542 | BY34: 2164 | BZ34: 2376 | CA34: 2434 | CB34: 2448 | CC34: 2464 | CD34: 1986 | CE34: 1847 | CF34: 2258 | CG34: 3116 | CH34: 3006 | CI34: 0 | CJ34: 0 | CK34: 15158 | CL34: 3441 | CM34: 4103 | CN34: 0 | CO34: 15552 | CP34: 5381 | CQ34: 8081 | CR34: 12334 | CS34: 9281 | CT34: 11531 | CU34: 11842 | CV34: 12140 | CW34: 13931 | CX34: 11517 | CY34: 12082 | CZ34: 13851 | DA34: 21646 | DB34: 16210 | DC34: 17225 | DD34: 17884 | DE34: 16440 | DF34: 16743 | DG34: 18400 | DH34: 20936 | DI34: 20438 | DJ34: 18985 | DK34: 21454 | DL34: 21115 | DM34: 20772 | DN34: 14382 | DO34: 18892 | DP34: 19796 | DQ34: 20784 | DR34: 22504 | DS34: 25106 | DT34: 25732 | DU34: 29748 | DV34: 24292 | DW34: 27724 | DX34: 27102 | DY34: 29956 | DZ34: 29186 | EA34: 31186 | EB34: 32317 | EC34: 31910 | ED34: 33284 | EE34: 35417 | EF34: 36844 | EG34: 37827 | EH34: 35801 | EI34: 40284 | EJ34: 38482 | EK34: 38488 | EL34: 39104 | EM34: 40968 | EN34: 48475 | EO34: 41102 | EP34: 41039 | EQ34: 43455 | ER34: 47479 | ES34: 45750 | ET34: 43434 | EU34: 45151 | EV34: 47176 | EW34: 45779
